Workbook

Sheet GENERAL
A1: CLUB CONSERVADOR DE CARTES I JOCS
B2: Temporada 2022-23
B4: Classificació general
B5: FINAL
B6: 12 | C6: Mesos
A7: =MAX(D7:AQ7) -> 142 | B7: Timbes | D7: =+King!AU46 -> 137 | E7: =+Buti!BT43 -> 138 | F7: =+Pocha!AK40 -> 0 | G7: =+Julepe!AK39 -> 37 | H7: =+Pumba!BB40 -> 0 | I7: =+Cors!AK37 -> 0 | J7: =+Podrida!AK37 -> 115 | K7: =+Buti3!AS38 -> 95 | L7: =+Remigio!AY40 -> 23 | M7: =+Truc!AY39 -> 0 | N7: =+Texas!AM41 -> 0 | O7: =+Omaha!AG38 -> 0 | P7: =+'Black Jack'!AE35 -> 37 | Q7: =+Chinchón!AP38 -> 0 | R7: =+Mus!AE38 -> 0 | S7: =+Kul!AO42 -> 138 | T7: =+Manilla!BH42 -> 0 | U7: =+Tute!BH42 -> 124 | V7: =+'4 Duros'!AM41 -> 0 | W7: =+'Skull King'!AE38 -> 142 | X7: =+Whist!BH42 -> 18 | Y7: =+Wizard!BK52 -> 140 | Z7: =+'Tute cabrò'!AG38 -> 138 | AA7: =+Copo!AE38 -> 0 | AB7: =+Escombra!AO43 -> 137 | AC7: =+'1000km'!BB40 -> 0 | AD7: =+Cribbage!BK45 -> 136 | AE7: =+Canasta!BB40 -> 52 | AF7: =+Portugués!AO43 -> 0 | AG7: =+Tarot!BH42 -> 0 | AH7: =+Guinyot!BB40 -> 0 | AI7: =+'7 i mig'!AE35 -> 0 | AJ7: =+Camelot!BI51 -> 53 | AK7: =+Magic!BI51 -> 23 | AL7: =+'Wizard Classic'!BK52 -> 141 | AM7: =+'5 Cogombres'!AM41 -> 78 | AN7: =+Euchre!BK43 -> 135 | AO7: =+'Euchre Sub.'!BH42 -> 87
A8: =SUM(D8:AQ8) -> 2380.166667 | B8: Partides | D8: =+King!AU47 -> 24 | E8: =+Buti!BT47 -> 77 | F8: =+Pocha!AK41 -> 0 | G8: =+Julepe!AK40 -> 1 | H8: =+Pumba!BB41 -> 0 | I8: =+Cors!AK41 -> 0 | J8: =+Podrida!AK41 -> 3 | K8: =+Buti3!AS39 -> 2 | L8: =+Remigio!AY41 -> 1 | M8: =+Truc!AY40 -> 0 | N8: =+Texas!AM42 -> 0 | O8: =+Omaha!AG39 -> 0 | P8: =+'Black Jack'!AE39 -> 1 | Q8: =+Chinchón!AP39 -> 0 | R8: =+Mus!AE39 -> 0 | S8: =+Kul!AO43 -> 12 | T8: =+Manilla!BH43 -> 0 | U8: =+Tute!BH43 -> 4 | V8: =+'4 Duros'!AM42 -> 0 | W8: =+'Skull King'!AE39 -> 2 | X8: =+Whist!BH43 -> 2 | Y8: =+Wizard!BK53 -> 161.5 | Z8: =+'Tute cabrò'!AG39 -> 39 | AA8: =+Copo!AE39 -> 0 | AB8: =+Escombra!AO44 -> 15 | AC8: =+'1000km'!BB41 -> 0 | AD8: =+Cribbage!BK46 -> 86 | AE8: =+Canasta!BB41 -> 11 | AF8: =+Portugués!AO44 -> 0 | AG8: =+Tarot!BH43 -> 0 | AH8: =+Guinyot!BB41 -> 0 | AI8: =+'7 i mig'!AE39 -> 0 | AJ8: =+Camelot!BI52 -> 78.16666667 | AK8: =+Magic!BI52 -> 966.1666667 | AL8: =+'Wizard Classic'!BK53 -> 836.3333333 | AM8: =+'5 Cogombres'!AM42 -> 19 | AN8: =+Euchre!BK44 -> 36 | AO8: =+'Euchre Sub.'!BH43 -> 3
D9: =IF(SUM(D11:D757)>0,1,0) ->  | E9: =IF(SUM(E11:E757)>0,1,0) ->  | F9: =IF(SUM(F11:F757)>0,1,0) ->  | G9: =IF(SUM(G11:G767)>0,1,0) ->  | H9: =IF(SUM(H11:H575)>0,1,0) ->  | I9: =IF(SUM(I11:I577)>0,1,0) -> 1 | L9: =IF(SUM(O11:O653)>0,1,0) ->  | AQ9: =IF(SUM(AQ11:AQ665)>0,1,0) -> 0
C10: GENERAL | D10: KING | E10: BOTIFARRA | F10: POCHA | G10: JULEPE | H10: PUMBA | I10: CORS | J10: PODRIDA | K10: BUTI 3 | L10: REMIGIO | M10: TRUC | N10: TEXAS | O10: OMAHA | P10: BLACK JACK | Q10: CHINCHÓN | R10: MUS | S10: CUL | T10: MANILLA | U10: SUBHASTAT | V10: 4 DUROS | W10: SKULL KING | X10: WHIST | Y10: WIZARD | Z10: TUTE CABRÒ | AA10: COPO | AB10: ESCOMBRA | AC10: 1000 Km | AD10: CRIBBAGE | AE10: CANASTA | AF10: PORTUGUÈS | AG10: TAROT | AH10: GUINYOT | AI10: 7 I MIG | AJ10: CAMELOT | AK10: MAGIC | AL10: WIZARD CLASSIC | AM10: 5 COGOMBRES | AN10: EUCHRE | AO10: EUCHRE SUBHASTAT | AQ10: Joc 8 | AR10: PARTIDES | AS10: KING | AT10: BOTIFARRA | AU10: POCHA | AV10: JULEPE | AW10: PUMBA | AX10: CORS | AY10: PODRIDA | AZ10: REMIGIO | BA10: BUTI 3 | BB10: TRUC | BC10: TEXAS | BD10: OMAHA | BE10: BLACK JACK | BF10: CHINCHÓN | BG10: MUS | BH10: CUL | BI10: MANILLA | BJ10: SUBHASTAT | BK10: 4 DUROS | BL10: SKULL KING | BM10: WHIST | BN10: WIZARD | BO10: TUTE CABRÒ | BP10: COPO | BQ10: ESCOMBRA | BR10: 1000 Km | BS10: CRIBBAGE | BT10: CANASTA | BU10: PORTUGUÈS | BV10: TAROT | BW10: GUINYOT | BX10: 7 i mig | BY10: Camelot | BZ10: Magic | CA10: Wizard Classic | CB10: 5 Cogombres | CC10: Euchre | CD10: Euchre Subhastat
A11: =RANK(C11,C$11:C$61) -> 1 | B11: Jordi | C11: =SUM(D11:AQ11)+AR11/10000 -> 600.0332 | D11: =+King!G30 -> 80 | E11: =+Buti!I30 -> 80 | F11: =+Pocha!G24 -> 0 | G11: =+Julepe!G23 -> 0 | H11: =+Pumba!I24 -> 0 | I11: =+Cors!G24 -> 0 | J11: =+Podrida!G$24 -> 0 | K11: =+Buti3!I22 -> 0 | L11: =+Remigio!I24 -> 0 | M11: =+Truc!I23 -> 0 | N11: =+Texas!G25 -> 0 | O11: =+Omaha!G22 -> 0 | P11: =+'Black Jack'!G22 -> 0 | Q11: =+Chinchón!I22 -> 0 | R11: =+Mus!G22 -> 0 | S11: =+Kul!G26 -> 80 | T11: =+Manilla!I26 -> 0 | U11: =+Tute!I26 -> 0 | V11: =+'4 Duros'!G25 -> 0 | W11: =+'Skull King'!G22 -> 0 | X11: =+Whist!I26 -> 0 | Y11: =+Wizard!G36 -> 0 | Z11: =+'Tute cabrò'!G22 -> 80 | AA11: =+Copo!G22 -> 0 | AB11: =+Escombra!G27 -> 80 | AC11: =+'1000km'!I24 -> 0 | AD11: =+Cribbage!C29 -> 80 | AE11: =+Canasta!I24 -> 0 | AF11: =+Portugués!G27 -> 0 | AG11: =+Tarot!I26 -> 0 | AH11: =+Guinyot!I24 -> 0 | AI11: =+'7 i mig'!G22 -> 0 | AJ11: =+Camelot!G35 -> 20 | AK11: =+Magic!G35 -> 0 | AL11: =+'Wizard Classic'!G36 -> 0 | AM11: =+'5 Cogombres'!G25 -> 20 | AN11: =+Euchre!I27 -> 80 | AO11: =+'Euchre Sub.'!I26 -> 0 | AR11: =SUM(AS11:CC11) -> 332 | AS11: =+King!H30 -> 23 | AT11: =+Buti!J30 -> 73 | AU11: =+Pocha!H24 -> 0 | AV11: =+Julepe!H23 -> 0 | AW11: =+Pumba!J24 -> 0 | AX11: =+Cors!H24 -> 0 | AY11: =+Podrida!H$24 -> 0 | AZ11: =+Remigio!J24 -> 0 | BA11: =+Buti3!J22 -> 0 | BB11: =+Truc!J23 -> 0 | BC11: =+Texas!H25 -> 0 | BD11: =+Omaha!H22 -> 0 | BE11: =+'Black Jack'!H22 -> 0 | BF11: =+Chinchón!J22 -> 0 | BG11: =+Mus!H22 -> 0 | BH11: =+Kul!H26 -> 12 | BI11: =+Manilla!J26 -> 0 | BJ11: =+Tute!J26 -> 0 | BK11: =+'4 Duros'!H25 -> 0 | BL11: =+'Skull King'!H22 -> 0 | BM11: =+Whist!J26 -> 0 | BN11: =+Wizard!H36 -> 9 | BO11: =+'Tute cabrò'!H22 -> 36 | BP11: =+Copo!H22 -> 0 | BQ11: =+Escombra!H27 -> 12 | BR11: =+'1000km'!V24 -> 0 | BS11: =+Cribbage!E44 -> 75 | BT11: =+Canasta!V24 -> 1 | BU11: =+Portugués!D27 -> 0 | BV11: =+Tarot!V26 -> 0 | BW11: =+Guinyot!V24 -> 0 | BX11: =+'7 i mig'!H22 -> 0 | BY11: =+Camelot!H35 -> 30 | BZ11: =+Magic!H35 -> 3 | CA11: =+'Wizard Classic'!H36 -> 3 | CB11: =+'5 Cogombres'!H25 -> 19 | CC11: =+Euchre!J27 -> 36 | CD11: =+'Euchre Sub.'!J26 -> 0
A12: 2 | B12: Carles | C12: 240.0524 | D12: =+King!C30 -> 0 | E12: =+Buti!U30 -> 0 | F12: =+Pocha!O24 -> 0 | G12: =+Julepe!O23 -> 0 | H12: =+Pumba!U24 -> 0 | I12: =+Cors!O24 -> 0 | J12: =+Podrida!O$24 -> 0 | K12: =+Buti3!U22 -> 0 | L12: =+Remigio!U24 -> 0 | M12: =+Truc!U23 -> 0 | N12: =+Texas!O25 -> 0 | O12: =+Omaha!O22 -> 0 | P12: =+'Black Jack'!O22 -> 0 | Q12: =+Chinchón!U22 -> 0 | R12: =+Mus!O22 -> 0 | S12: =+Kul!O26 -> 0 | T12: =+Manilla!U26 -> 0 | U12: =+Tute!U26 -> 0 | V12: =+'4 Duros'!O25 -> 0 | W12: =+'Skull King'!O22 -> 0 | X12: =+Whist!U26 -> 0 | Y12: =+Wizard!Q36 -> 80 | Z12: =+'Tute cabrò'!O22 -> 0 | AA12: =+Copo!O22 -> 0 | AB12: =+Escombra!C27 -> 0 | AC12: =+'1000km'!U24 -> 0 | AD12: =+Cribbage!U29 -> 0 | AE12: =+Canasta!U24 -> 0 | AF12: =+Portugués!C27 -> 0 | AG12: =+Tarot!U26 -> 0 | AH12: =+Guinyot!U24 -> 0 | AI12: =+'7 i mig'!O22 -> 0 | AJ12: =+Camelot!Q35 -> 80 | AK12: =+Magic!Q35 -> 40 | AL12: =+'Wizard Classic'!Q36 -> 40 | AM12: =+'5 Cogombres'!O25 -> 0 | AN12: =+Euchre!U27 -> 0 | AO12: =+'Euchre Sub.'!U26 -> 0 | AR12: 524 | AS12: =+King!D30 -> 1 | AT12: =+Buti!V30 -> 2 | AU12: =+Pocha!P24 -> 0 | AV12: =+Julepe!P23 -> 0 | AW12: =+Pumba!V24 -> 0 | AX12: =+Cors!P24 -> 0 | AY12: =+Podrida!P$24 -> 0 | AZ12: =+Remigio!V24 -> 0 | BA12: =+Buti3!V22 -> 0 | BB12: =+Truc!V23 -> 0 | BC12: =+Texas!P25 -> 0 | BD12: =+Omaha!P22 -> 0 | BE12: =+'Black Jack'!P22 -> 0 | BF12: =+Chinchón!V22 -> 0 | BG12: =+Mus!P22 -> 0 | BH12: =+Kul!P26 -> 2 | BI12: =+Manilla!V26 -> 0 | BJ12: =+Tute!V26 -> 0 | BK12: =+'4 Duros'!P25 -> 0 | BL12: =+'Skull King'!P22 -> 0 | BM12: =+Whist!V26 -> 0 | BN12: =+Wizard!R36 -> 73 | BO12: =+'Tute cabrò'!P22 -> 2 | BP12: =+Copo!P22 -> 0 | BQ12: =+Escombra!D27 -> 0 | BR12: =+'1000km'!Y24 -> 0 | BS12: =+Cribbage!W44 -> 0 | BT12: =+Canasta!Y24 -> 11 | BU12: =+Portugués!AN27 -> 0 | BV12: =+Tarot!Y26 -> 0 | BW12: =+Guinyot!Y24 -> 0 | BX12: =+'7 i mig'!P22 -> 0 | BY12: =+Camelot!R35 -> 61 | BZ12: =+Magic!R35 -> 217 | CA12: =+'Wizard Classic'!R36 -> 153 | CB12: =+'5 Cogombres'!P25 -> 0 | CC12: =+Euchre!V27 -> 2 | CD12: =+'Euchre Sub.'!V26 -> 0
A13: 3 | B13: Núria | C13: 190.0157 | D13: =+King!AK30 -> 40 | E13: =+Buti!AA30 -> 0 | F13: =+Pocha!S24 -> 0 | G13: =+Julepe!S23 -> 0 | H13: =+Pumba!AA24 -> 0 | I13: =+Cors!W24 -> 0 | J13: =+Podrida!W$24 -> 0 | K13: =+Buti3!AA22 -> 0 | L13: =+Remigio!AA24 -> 0 | M13: =+Truc!AA23 -> 0 | N13: =+Texas!S25 -> 0 | P13: =+'Black Jack'!S22 -> 0 | Q13: =+Chinchón!AA22 -> 0 | R13: =+Mus!S22 -> 0 | S13: =+Kul!E26 -> 40 | T13: =+Manilla!AA26 -> 0 | U13: =+Tute!AA26 -> 0 | V13: =+'4 Duros'!S25 -> 0 | X13: =+Whist!AA26 -> 0 | Y13: =+Wizard!AK36 -> 0 | Z13: =+'Tute cabrò'!S22 -> 0 | AA13: =+Copo!S22 -> 0 | AB13: =+Escombra!AK27 -> 20 | AC13: =+'1000km'!AA24 -> 0 | AD13: =+Cribbage!I29 -> 10 | AI13: =+'7 i mig'!S22 -> 0 | AJ13: =+Camelot!AK35 -> 0 | AK13: =+Magic!AK35 -> 0 | AL13: =+'Wizard Classic'!AK36 -> 0 | AM13: =+'5 Cogombres'!S25 -> 80 | AN13: =+Euchre!AA27 -> 0 | AO13: =+'Euchre Sub.'!AA26 -> 0 | AR13: 157 | AS13: =+King!AL30 -> 15 | AT13: =+Buti!AB30 -> 47 | AU13: =+Pocha!T24 -> 0 | AV13: =+Julepe!T23 -> 0 | AW13: =+Pumba!AB24 -> 0 | AX13: =+Cors!X24 -> 0 | AY13: =+Podrida!X$24 -> 0 | AZ13: =+Remigio!AB24 -> 0 | BA13: =+Buti3!AB22 -> 0 | BB13: =+Truc!AB23 -> 0 | BC13: =+Texas!T25 -> 0 | BF13: =+Chinchón!AB22 -> 0 | BG13: =+Mus!T22 -> 0 | BH13: =+Kul!F26 -> 8 | BI13: =+Manilla!AB26 -> 0 | BJ13: =+Tute!AB26 -> 0 | BK13: =+'4 Duros'!T25 -> 0 | BM13: =+Whist!AB26 -> 0 | BN13: =+Wizard!AL36 -> 8 | BO13: =+'Tute cabrò'!T22 -> 22 | BP13: =+Copo!T22 -> 0 | BQ13: =+Escombra!AL27 -> 7 | BR13: =+'1000km'!AB24 -> 0 | BS13: =+Cribbage!K44 -> 18 | BX13: =+'7 i mig'!T22 -> 0 | BY13: =+Camelot!AL35 -> 2 | BZ13: =+Magic!AL35 -> 0 | CA13: =+'Wizard Classic'!AL36 -> 3 | CB13: =+'5 Cogombres'!T25 -> 13 | CC13: =+Euchre!AB27 -> 14 | CD13: =+'Euchre Sub.'!AB26 -> 0
A14: 4 | B14: Sebas | C14: 155.019 | D14: =+King!U30 -> 10 | E14: =+Buti!F30 -> 0 | H14: =+Pumba!AJ24 -> 0 | I14: =+Cors!AC24 -> 0 | J14: =+Podrida!AC24 -> 0 | K14: =+Buti3!L22 -> 0 | O14: =+Omaha!AE22 -> 0 | P14: =+'Black Jack'!AA22 -> 0 | S14: =+Kul!AC26 -> 20 | X14: =+Whist!F26 -> 0 | Y14: =+Wizard!AQ36 -> 0 | Z14: =+'Tute cabrò'!C22 -> 20 | AB14: =+Escombra!U27 -> 40 | AD14: =+Cribbage!AP29 -> 20 | AI14: =+'7 i mig'!AA22 -> 0 | AJ14: =+Camelot!AO35 -> 0 | AK14: =+Magic!AO35 -> 0 | AL14: =+'Wizard Classic'!AQ36 -> 0 | AM14: =+'5 Cogombres'!C25 -> 5 | AN14: =+Euchre!F27 -> 40 | AO14: =+'Euchre Sub.'!F26 -> 0 | AR14: 190 | AS14: =+King!V30 -> 15 | AT14: =+Buti!G30 -> 51 | AW14: =+Pumba!AK24 -> 0 | AX14: =+Cors!AD24 -> 0 | AY14: =+Podrida!AD24 -> 0 | BA14: =+Buti3!M22 -> 0 | BD14: =+Omaha!AF22 -> 0 | BE14: =+'Black Jack'!AB22 -> 0 | BH14: =+Kul!AD26 -> 8 | BM14: =+Whist!G26 -> 0 | BN14: =+Wizard!AR36 -> 6 | BO14: =+'Tute cabrò'!D22 -> 23 | BQ14: =+Escombra!V27 -> 9 | BS14: =+Cribbage!AR44 -> 27 | BX14: =+'7 i mig'!AB22 -> 0 | BY14: =+Camelot!AP35 -> 1 | BZ14: =+Magic!AP35 -> 6 | CA14: =+'Wizard Classic'!AR36 -> 3 | CB14: =+'5 Cogombres'!D25 -> 14 | CC14: =+Euchre!G27 -> 27 | CD14: =+'Euchre Sub.'!G26 -> 0
A15: 5 | B15: Nogué | C15: 115.0165 | D15: =+King!Y30 -> 5 | E15: =+Buti!AP30 -> 40 | H15: =+Pumba!AM24 -> 0 | I15: =+Cors!AE24 -> 0 | J15: =+Podrida!AE24 -> 0 | K15: =+Buti3!AD22 -> 0 | L15: =+Remigio!AP24 -> 0 | N15: =+Texas!AC25 -> 0 | O15: =+Omaha!K22 -> 0 | Q15: =+Chinchón!F22 -> 0 | R15: =+Mus!U22 -> 0 | S15: =+Kul!AE26 -> 10 | T15: =+Manilla!AP26 -> 0 | U15: =+Tute!AP26 -> 0 | V15: =+'4 Duros'!AC25 -> 0 | X15: =+Whist!AP26 -> 0 | Y15: =+Wizard!BI36 -> 0 | Z15: =+'Tute cabrò'!AE22 -> 0 | AB15: =+Escombra!Y27 -> 10 | AD15: =+Cribbage!R29 -> 0 | AJ15: =+Camelot!BG35 -> 0 | AK15: =+Magic!BG35 -> 0 | AL15: =+'Wizard Classic'!BI36 -> 0 | AM15: =+'5 Cogombres'!AK25 -> 40 | AN15: =+Euchre!AP27 -> 10 | AO15: =+'Euchre Sub.'!AP26 -> 0 | AR15: 165 | AS15: =+King!Z30 -> 16 | AT15: =+Buti!AQ30 -> 53 | AW15: =+Pumba!AN24 -> 0 | AX15: =+Cors!AF24 -> 0 | AY15: =+Podrida!AF24 -> 0 | AZ15: =+Remigio!AQ24 -> 0 | BA15: =+Buti3!AE22 -> 0 | BC15: =+Texas!AD25 -> 0 | BD15: =+Omaha!L22 -> 0 | BF15: =+Chinchón!G22 -> 0 | BG15: =+Mus!V22 -> 0 | BH15: =+Kul!AF26 -> 7 | BI15: =+Manilla!AQ26 -> 0 | BJ15: =+Tute!AQ26 -> 0 | BK15: =+'4 Duros'!AD25 -> 0 | BM15: =+Whist!AQ26 -> 0 | BN15: =+Wizard!BJ36 -> 7 | BO15: =+'Tute cabrò'!AF22 -> 17 | BQ15: =+Escombra!Z27 -> 9 | BR15: =+'1000km'!AE24 -> 0 | BS15: =+Cribbage!T44 -> 38 | BY15: =+Camelot!BH35 -> 1 | BZ15: =+Magic!BH35 -> 0 | CA15: =+'Wizard Classic'!BJ36 -> 1 | CB15: =+'5 Cogombres'!AL25 -> 7 | CC15: =+Euchre!AQ27 -> 9 | CD15: =+'Euchre Sub.'!AQ26 -> 0
A16: 6 | B16: Debi | C16: 100.1061 | Y16: =+Wizard!BA36 -> 0 | AJ16: =+Camelot!AY35 -> 0 | AK16: =+Magic!AY35 -> 20 | AL16: =+'Wizard Classic'!BA36 -> 80 | AR16: 1061 | BN16: =+Wizard!BB36 -> 26 | BY16: =+Camelot!AZ35 -> 0 | BZ16: =+Magic!AZ35 -> 487 | CA16: =+'Wizard Classic'!BB36 -> 548
A17: 7 | B17: Alfred | C17: 80.2131 | Y17: =+Wizard!AE36 -> 0 | AJ17: =+Camelot!AE35 -> 0 | AK17: =+Magic!AE35 -> 80 | AL17: =+'Wizard Classic'!AE36 -> 0 | AR17: 2131 | BN17: =+Wizard!AF36 -> 48 | BY17: =+Camelot!AF35 -> 9 | BZ17: =+Magic!AF35 -> 1608 | CA17: =+'Wizard Classic'!AF36 -> 466
A18: 8 | B18: Mariajo | C18: 80.0013 | D18: =+King!AS30 -> 0 | E18: =+Buti!X30 -> 0 | F18: =+Pocha!Q24 -> 0 | G18: =+Julepe!Q23 -> 0 | H18: =+Pumba!X24 -> 0 | I18: =+Cors!AI24 -> 0 | J18: =+Podrida!AI$24 -> 0 | K18: =+Buti3!X22 -> 0 | L18: =+Remigio!C24 -> 0 | M18: =+Truc!X23 -> 0 | N18: =+Texas!Q25 -> 0 | O18: =+Omaha!Q22 -> 0 | P18: =+'Black Jack'!Q22 -> 0 | Q18: =+Chinchón!C22 -> 0 | R18: =+Mus!Q22 -> 0 | S18: =+Kul!Q26 -> 0 | T18: =+Manilla!X26 -> 0 | U18: =+Tute!X26 -> 0 | V18: =+'4 Duros'!Q25 -> 0 | W18: =+'Skull King'!Q22 -> 0 | X18: =+Whist!X26 -> 0 | Y18: =+Wizard!S36 -> 0 | Z18: =+'Tute cabrò'!Q22 -> 0 | AA18: =+Copo!Q22 -> 0 | AB18: =+Escombra!AM27 -> 0 | AC18: =+'1000km'!X24 -> 0 | AD18: =+Cribbage!X29 -> 0 | AE18: =+Canasta!X24 -> 80 | AF18: =+Portugués!AM27 -> 0 | AG18: =+Tarot!X26 -> 0 | AH18: =+Guinyot!X24 -> 0 | AI18: =+'7 i mig'!Q22 -> 0 | AJ18: =+Camelot!S35 -> 0 | AK18: =+Magic!S35 -> 0 | AM18: =+'5 Cogombres'!Q25 -> 0 | AO18: =+'Euchre Sub.'!X26 -> 0 | AR18: 13 | AS18: =+King!AT30 -> 1 | AT18: =+Buti!Y30 -> 2 | AU18: =+Pocha!R24 -> 0 | AV18: =+Julepe!R23 -> 0 | AW18: =+Pumba!Y24 -> 0 | AX18: =+Cors!AJ24 -> 0 | AY18: =+Podrida!AJ$24 -> 0 | AZ18: =+Remigio!D24 -> 0 | BA18: =+Buti3!Y22 -> 0 | BB18: =+Truc!Y23 -> 0 | BC18: =+Texas!R25 -> 0 | BD18: =+Omaha!R22 -> 0 | BE18: =+'Black Jack'!R22 -> 0 | BF18: =+Chinchón!D22 -> 0 | BG18: =+Mus!R22 -> 0 | BH18: =+Kul!R26 -> 4 | BI18: =+Manilla!Y26 -> 0 | BJ18: =+Tute!Y26 -> 0 | BK18: =+'4 Duros'!R25 -> 0 | BL18: =+'Skull King'!R22 -> 0 | BM18: =+Whist!Y26 -> 0 | BN18: =+Wizard!T36 -> 1 | BO18: =+'Tute cabrò'!R22 -> 2 | BP18: =+Copo!R22 -> 0 | BQ18: =+Escombra!AN27 -> 0 | BS18: =+Cribbage!Z44 -> 0 | BT18: =+Canasta!AZ24 -> 1 | BU18: =+Portugués!AH27 -> 0 | BV18: =+Tarot!AW26 -> 0 | BW18: =+Guinyot!P24 -> 0 | BX18: =+'7 i mig'!R22 -> 0 | BY18: =+Camelot!T35 -> 0 | BZ18: =+Magic!T35 -> 1 | CB18: =+'5 Cogombres'!R25 -> 1 | CD18: =+'Euchre Sub.'!Y26 -> 0
A19: 9 | B19: Gemma | C19: 75.0932 | D19: =+King!AC30 -> 20 | E19: =+Buti!AJ30 -> 0 | F19: =+Pocha!AG24 -> 0 | H19: =+Pumba!C24 -> 0 | I19: =+Cors!AA24 -> 0 | J19: =+Podrida!AA$24 -> 0 | K19: =+Buti3!AP22 -> 0 | L19: =+Remigio!AM24 -> 0 | N19: =+Texas!AA25 -> 0 | Q19: =+Chinchón!O22 -> 0 | R19: =+Mus!AA22 -> 0 | S19: =+Kul!Y26 -> 5 | T19: =+Manilla!AJ26 -> 0 | U19: =+Tute!AJ26 -> 0 | V19: =+'4 Duros'!AA25 -> 0 | X19: =+Whist!AJ26 -> 0 | Y19: =+Wizard!AO36 -> 0 | Z19: =+'Tute cabrò'!Y22 -> 0 | AB19: =+Escombra!AC27 -> 0 | AC19: =+'1000km'!C24 -> 0 | AD19: =+Cribbage!L29 -> 40 | AJ19: =+Camelot!AM35 -> 0 | AK19: =+Magic!AM35 -> 0 | AL19: =+'Wizard Classic'!AO36 -> 0 | AM19: =+'5 Cogombres'!Y25 -> 10 | AN19: =+Euchre!AJ27 -> 0 | AO19: =+'Euchre Sub.'!AJ26 -> 0 | AR19: 932 | AS19: =+King!AD30 -> 10 | AT19: =+Buti!AK30 -> 28 | AU19: =+Pocha!AH24 -> 0 | AW19: =+Pumba!D24 -> 0 | AX19: =+Cors!AB24 -> 0 | AY19: =+Podrida!AB$24 -> 0 | AZ19: =+Remigio!AN24 -> 0 | BA19: =+Buti3!AQ22 -> 0 | BC19: =+Texas!AB25 -> 0 | BF19: =+Chinchón!P22 -> 0 | BG19: =+Mus!AB22 -> 0 | BH19: =+Kul!Z26 -> 8 | BI19: =+Manilla!AK26 -> 0 | BJ19: =+Tute!AK26 -> 0 | BK19: =+'4 Duros'!AB25 -> 0 | BM19: =+Whist!AK26 -> 0 | BN19: =+Wizard!AP36 -> 33 | BO19: =+'Tute cabrò'!Z22 -> 4 | BQ19: =+Escombra!AD27 -> 1 | BR19: =+'1000km'!D24 -> 0 | BS19: =+Cribbage!O44 -> 3 | BY19: =+Camelot!AN35 -> 21 | BZ19: =+Magic!AN35 -> 577 | CA19: =+'Wizard Classic'!AP36 -> 234 | CB19: =+'5 Cogombres'!Z25 -> 8 | CC19: =+Euchre!AK27 -> 5 | CD19: =+'Euchre Sub.'!AK26 -> 0
A20: 10 | B20: Manel | C20: 60.1761 | D20: =+King!AA30 -> 0 | E20: =+Buti!AM30 -> 0 | F20: =+Pocha!C24 -> 0 | G20: =+Julepe!C23 -> 0 | H20: =+Pumba!O24 -> 0 | I20: =+Cors!Y24 -> 0 | J20: =+Podrida!Y$24 -> 0 | M20: =+Truc!F23 -> 0 | N20: =+Texas!U25 -> 0 | O20: =+Omaha!AA22 -> 0 | P20: =+'Black Jack'!E22 -> 0 | R20: =+Mus!E22 -> 0 | S20: =+Kul!AK26 -> 0 | T20: =+Manilla!AM26 -> 0 | U20: =+Tute!AM26 -> 0 | W20: =+'Skull King'!E22 -> 0 | X20: =+Whist!AM26 -> 0 | Y20: =+Wizard!C36 -> 0 | Z20: =+'Tute cabrò'!U22 -> 0 | AB20: =+Escombra!AA27 -> 0 | AD20: =+Cribbage!AM29 -> 0 | AF20: =+Portugués!E27 -> 0 | AG20: =+Tarot!AM26 -> 0 | AH20: =+Guinyot!O24 -> 0 | AI20: =+'7 i mig'!E22 -> 0 | AJ20: =+Camelot!C35 -> 40 | AK20: =+Magic!C35 -> 0 | AL20: =+'Wizard Classic'!C36 -> 20 | AM20: =+'5 Cogombres'!U25 -> 0 | AN20: =+Euchre!AM27 -> 0 | AO20: =+'Euchre Sub.'!AM26 -> 0 | AR20: 1761 | AS20: =+King!AB30 -> 1 | AT20: =+Buti!AN30 -> 2 | AU20: =+Pocha!D24 -> 0 | AV20: =+Julepe!D23 -> 0 | AW20: =+Pumba!P24 -> 0 | AX20: =+Cors!Z24 -> 0 | AY20: =+Podrida!Z$24 -> 0 | BB20: =+Truc!G23 -> 0 | BC20: =+Texas!V25 -> 0 | BD20: =+Omaha!AB22 -> 0 | BE20: =+'Black Jack'!F22 -> 0 | BG20: =+Mus!F22 -> 0 | BH20: =+Kul!AL26 -> 2 | BI20: =+Manilla!AN26 -> 0 | BJ20: =+Tute!AN26 -> 0 | BK20: =+'4 Duros'!AF25 -> 0 | BL20: =+'Skull King'!F22 -> 0 | BM20: =+Whist!AN26 -> 0 | BN20: =+Wizard!D36 -> 101 | BO20: =+'Tute cabrò'!V22 -> 2 | BQ20: =+Escombra!AB27 -> 0 | BS20: =+Cribbage!AO44 -> 0 | BU20: =+Portugués!F27 -> 0 | BV20: =+Tarot!AN26 -> 0 | BW20: =+Guinyot!G24 -> 0 | BX20: =+'7 i mig'!F22 -> 0 | BY20: =+Camelot!D35 -> 134 | BZ20: =+Magic!D35 -> 787 | CA20: =+'Wizard Classic'!D36 -> 730 | CB20: =+'5 Cogombres'!V25 -> 0 | CC20: =+Euchre!AN27 -> 2 | CD20: =+'Euchre Sub.'!AN26 -> 0
A21: 11 | B21: Grau | C21: 55.0997 | D21: =+King!AG30 -> 0 | E21: =+Buti!AV30 -> 0 | F21: =+Pocha!AC24 -> 0 | G21: =+Julepe!AI23 -> 0 | H21: =+Pumba!AY24 -> 0 | I21: =+Cors!AG24 -> 0 | J21: =+Podrida!AG$24 -> 0 | K21: =+Buti3!AM22 -> 0 | L21: =+Remigio!L24 -> 0 | M21: =+Truc!AV23 -> 0 | N21: =+Texas!K25 -> 0 | O21: =+Omaha!S22 -> 0 | P21: =+'Black Jack'!I22 -> 0 | R21: =+Mus!AC22 -> 0 | S21: =+Kul!K26 -> 0 | T21: =+Manilla!AV26 -> 0 | U21: =+Tute!C26 -> 0 | V21: =+'4 Duros'!C25 -> 0 | W21: =+'Skull King'!S22 -> 0 | Y21: =+Wizard!U36 -> 5 | Z21: =+'Tute cabrò'!E22 -> 40 | AB21: =+Escombra!AG27 -> 0 | AC21: =+'1000km'!AY24 -> 0 | AD21: =+Cribbage!AV29 -> 0 | AE21: =+Canasta!AY24 -> 0 | AF21: =+Portugués!AG27 -> 0 | AG21: =+Tarot!AV26 -> 0 | AH21: =+Guinyot!AY24 -> 0 | AJ21: =+Camelot!U35 -> 5 | AK21: =+Magic!U35 -> 0 | AL21: =+'Wizard Classic'!AI36 -> 0 | AM21: =+'5 Cogombres'!E25 -> 0 | AN21: =+Euchre!AV27 -> 5 | AO21: =+'Euchre Sub.'!AV26 -> 0 | AR21: 997 | AS21: =+King!AH30 -> 2 | AT21: =+Buti!AW30 -> 11 | AU21: =+Pocha!AD24 -> 0 | AV21: =+Julepe!AJ23 -> 0 | AW21: =+Pumba!AZ24 -> 0 | AX21: =+Cors!AH24 -> 0 | AY21: =+Podrida!AH$24 -> 0 | AZ21: =+Remigio!AK24 -> 0 | BA21: =+Buti3!AN22 -> 0 | BB21: =+Truc!AW23 -> 0 | BC21: =+Texas!L25 -> 0 | BD21: =+Omaha!T22 -> 0 | BE21: =+'Black Jack'!J22 -> 0 | BG21: =+Mus!AD22 -> 0 | BH21: =+Kul!L26 -> 4 | BI21: =+Manilla!AW26 -> 0 | BJ21: =+Tute!D26 -> 0 | BK21: =+'4 Duros'!D25 -> 0 | BL21: =+'Skull King'!T22 -> 0 | BN21: =+Wizard!V36 -> 85 | BO21: =+'Tute cabrò'!F22 -> 9 | BQ21: =+Escombra!AH27 -> 0 | BR21: =+'1000km'!J24 -> 0 | BS21: =+Cribbage!AX44 -> 4 | BT21: =+Canasta!J24 -> 1 | BU21: =+Portugués!H27 -> 0 | BV21: =+Tarot!J26 -> 0 | BW21: =+Guinyot!J24 -> 0 | BY21: =+Camelot!V35 -> 56 | BZ21: =+Magic!V35 -> 351 | CA21: =+'Wizard Classic'!V36 -> 463 | CB21: =+'5 Cogombres'!F25 -> 3 | CC21: =+Euchre!AW27 -> 8 | CD21: =+'Euchre Sub.'!AW26 -> 0
A22: 12 | B22: Tim | C22: 50.0529 | F22: =+Pocha!Y24 -> 0 | G22: =+Julepe!AA23 -> 0 | M22: =+Truc!O23 -> 0 | T22: =+Manilla!BE26 -> 0 | V22: =+'4 Duros'!AE25 -> 0 | W22: =+'Skull King'!K22 -> 0 | Y22: =+Wizard!AY36 -> 40 | AJ22: =+Camelot!AW35 -> 0 | AK22: =+Magic!AW35 -> 0 | AL22: =+'Wizard Classic'!AY36 -> 10 | AR22: 529 | AU22: =+Pocha!Z24 -> 0 | AV22: =+Julepe!AB23 -> 0 | BB22: =+Truc!P23 -> 0 | BI22: =+Manilla!BF26 -> 0 | BL22: =+'Skull King'!L22 -> 0 | BN22: =+Wizard!AZ36 -> 106 | BY22: =+Camelot!AX35 -> 0 | BZ22: =+Magic!AX35 -> 55 | CA22: =+'Wizard Classic'!AZ36 -> 368
A23: 13 | B23: Tere | C23: 40.0008 | AE23: =+Canasta!L24 -> 40 | AR23: 8 | BT23: =+Canasta!M24 -> 8
A24: 14 | B24: Goretti | C24: 30.0781 | D24: =+King!AI30 -> 0 | E24: =+Buti!AS30 -> 10 | F24: =+Pocha!K24 -> 0 | G24: =+Julepe!AC23 -> 0 | H24: =+Pumba!AS24 -> 0 | K24: =+Buti3!C22 -> 0 | L24: =+Remigio!O24 -> 0 | M24: =+Truc!AP23 -> 0 | N24: =+Texas!AG25 -> 0 | O24: =+Omaha!AC22 -> 0 | P24: =+'Black Jack'!K22 -> 0 | Q24: =+Chinchón!X22 -> 0 | R24: =+Mus!C22 -> 0 | S24: =+Kul!U26 -> 0 | T24: =+Manilla!AS26 -> 0 | U24: =+Tute!AV26 -> 0 | V24: =+'4 Duros'!AG25 -> 0 | W24: =+'Skull King'!C22 -> 0 | X24: =+Whist!AV26 -> 0 | Y24: =+Wizard!M36 -> 0 | Z24: =+'Tute cabrò'!K22 -> 10 | AA24: =+Copo!C22 -> 0 | AB24: =+Escombra!AI27 -> 0 | AC24: =+'1000km'!AS24 -> 0 | AD24: =+Cribbage!AS29 -> 5 | AE24: =+Canasta!AS24 -> 0 | AF24: =+Portugués!AI27 -> 0 | AG24: =+Tarot!AS26 -> 0 | AH24: =+Guinyot!AS24 -> 0 | AI24: =+'7 i mig'!K22 -> 0 | AJ24: =+Camelot!M35 -> 0 | AK24: =+Magic!M35 -> 0 | AL24: =+'Wizard Classic'!BC36 -> 5 | AM24: =+'5 Cogombres'!K25 -> 0 | AN24: =+Euchre!AS27 -> 0 | AO24: =+'Euchre Sub.'!AS26 -> 0 | AR24: 781 | AS24: =+King!AJ30 -> 3 | AT24: =+Buti!AT30 -> 15 | AU24: =+Pocha!L24 -> 0 | AV24: =+Julepe!AD23 -> 0 | AW24: =+Pumba!AT24 -> 0 | AZ24: =+Remigio!P24 -> 0 | BA24: =+Buti3!D22 -> 0 | BB24: =+Truc!AQ23 -> 0 | BC24: =+Texas!AH25 -> 0 | BD24: =+Omaha!AD22 -> 0 | BE24: =+'Black Jack'!L22 -> 0 | BF24: =+Chinchón!Y22 -> 0 | BG24: =+Mus!D22 -> 0 | BH24: =+Kul!V26 -> 2 | BI24: =+Manilla!AT26 -> 0 | BJ24: =+Tute!AW26 -> 0 | BK24: =+'4 Duros'!AH25 -> 0 | BL24: =+'Skull King'!D22 -> 0 | BM24: =+Whist!AW26 -> 0 | BN24: =+Wizard!N36 -> 69 | BO24: =+'Tute cabrò'!L22 -> 8 | BP24: =+Copo!D22 -> 0 | BQ24: =+Escombra!AJ27 -> 0 | BR24: =+'1000km'!AT24 -> 0 | BS24: =+Cribbage!AU44 -> 28 | BT24: =+Canasta!M24 -> 8 | BU24: =+Portugués!L27 -> 0 | BV24: =+Portugués!AR27 -> 0 | BW24: =+Guinyot!AT24 -> 0 | BX24: =+'7 i mig'!L22 -> 0 | BY24: =+Camelot!N35 -> 0 | BZ24: =+Magic!N35 -> 4 | CA24: =+'Wizard Classic'!N36 -> 639 | CB24: =+'5 Cogombres'!L25 -> 0 | CC24: =+Euchre!AT27 -> 5 | CD24: =+'Euchre Sub.'!AT26 -> 0
A25: 15 | B25: Mario | C25: 25.0649 | Y25: =+Wizard!BC36 -> 20 | AJ25: =+Camelot!BA35 -> 0 | AK25: =+Magic!BA35 -> 5 | AR25: 649 | BN25: =+Wizard!BD36 -> 81 | BY25: =+Camelot!BB35 -> 0 | BZ25: =+Magic!BB35 -> 246 | CA25: =+'Wizard Classic'!BD36 -> 322
A26: 16 | B26: Jeff | C26: 20.0637 | F26: =+Pocha!AE24 -> 0 | G26: =+Julepe!Y23 -> 0 | H26: =+Pumba!AP24 -> 0 | I26: =+Cors!I24 -> 0 | K26: =+Buti3!AJ22 -> 0 | L26: =+Remigio!AJ24 -> 0 | M26: =+Truc!C23 -> 0 | N26: =+Texas!Y25 -> 0 | O26: =+Omaha!Y22 -> 0 | P26: =+'Black Jack'!Y22 -> 0 | Q26: =+Chinchón!AJ22 -> 0 | T26: =+Manilla!AY26 -> 0 | V26: =+'4 Duros'!Y25 -> 0 | W26: =+'Skull King'!I22 -> 0 | Y26: =+Wizard!AI36 -> 0 | AA26: =+Copo!Y22 -> 0 | AC26: =+'1000km'!AP24 -> 0 | AE26: =+Canasta!AP24 -> 0 | AF26: =+Portugués!Y27 -> 0 | AJ26: =+Camelot!AI35 -> 10 | AK26: =+Magic!AI35 -> 10 | AL26: =+'Wizard Classic'!E36 -> 0 | AR26: 637 | AU26: =+Pocha!AF24 -> 0 | AV26: =+Julepe!Z23 -> 0 | AW26: =+Pumba!AQ24 -> 0 | AX26: =+Cors!J24 -> 0 | BA26: =+Buti3!AK22 -> 0 | BB26: =+Truc!D23 -> 0 | BC26: =+Texas!Z25 -> 0 | BD26: =+Omaha!Z22 -> 0 | BE26: =+'Black Jack'!Z22 -> 0 | BF26: =+Chinchón!AK22 -> 0 | BI26: =+Manilla!AZ26 -> 0 | BK26: =+'4 Duros'!Z25 -> 0 | BL26: =+'Skull King'!J22 -> 0 | BN26: =+Wizard!AJ36 -> 93 | BP26: =+Copo!Z22 -> 0 | BR26: =+'1000km'!G24 -> 0 | BY26: =+Camelot!AJ35 -> 12 | BZ26: =+Magic!AJ35 -> 292 | CA26: =+'Wizard Classic'!AJ36 -> 240
A27: 17 | B27: Lluïsa | C27: 20.0037 | F27: =+Pocha!I24 -> 0 | G27: =+Julepe!I23 -> 0 | M27: =+Truc!L23 -> 0 | N27: =+Texas!I25 -> 0 | O27: =+Omaha!I22 -> 0 | Q27: =+Chinchón!L22 -> 0 | R27: =+Mus!I22 -> 0 | T27: =+Manilla!L26 -> 0 | U27: =+Tute!L26 -> 0 | V27: =+'4 Duros'!I25 -> 0 | X27: =+Whist!L26 -> 0 | AD27: =+Cribbage!BH29 -> 0 | AI27: =+'7 i mig'!I22 -> 0 | AJ27: =+Camelot!AQ35 -> 0 | AK27: =+Magic!AQ35 -> 0 | AL27: =+'Wizard Classic'!U36 -> 0 | AN27: =+Euchre!BB27 -> 20 | AR27: 37 | AU27: =+Pocha!J24 -> 0 | AV27: =+Julepe!J23 -> 0 | BB27: =+Truc!M23 -> 0 | BC27: =+Texas!J25 -> 0 | BD27: =+Omaha!J22 -> 0 | BF27: =+Chinchón!M22 -> 0 | BG27: =+Mus!J22 -> 0 | BI27: =+Manilla!M26 -> 0 | BJ27: =+Tute!M26 -> 0 | BK27: =+'4 Duros'!J25 -> 0 | BM27: =+Whist!M26 -> 0 | BR27: =+'1000km'!S24 -> 0 | BS27: =+Cribbage!BJ44 -> 0 | BT27: =+Canasta!AQ24 -> 1 | BU27: =+Portugués!Z27 -> 0 | BV27: =+Tarot!AZ26 -> 0 | BW27: =+Guinyot!S24 -> 0 | BX27: =+'7 i mig'!J22 -> 0 | BY27: =+Camelot!AR35 -> 29 | BZ27: =+Magic!AR35 -> 0 | CC27: =+Euchre!BC27 -> 7
A28: 18 | B28: Emiliano | C28: 20.0013 | D28: =+King!Q30 -> 0 | E28: =+Buti!BN30 -> 0 | L28: =+Remigio!AS24 -> 0 | AE28: =+Canasta!C24 -> 20 | AL28: =+'Wizard Classic'!M36 -> 0 | AR28: 13 | AS28: =+King!R30 -> 1 | AT28: =+Buti!BO30 -> 1 | AZ28: =+Remigio!AT24 -> 0 | BT28: =+Canasta!D24 -> 11
A29: 19 | B29: Anaïs | C29: 20.0011 | D29: =+King!AO30 -> 0 | E29: =+Buti!BH30 -> 20 | AD29: =+Cribbage!AY29 -> 0 | AN29: =+Euchre!BE27 -> 0 | AR29: 11 | AS29: =+King!AP30 -> 2 | AT29: =+Buti!BI30 -> 7 | BS29: =+Cribbage!BA44 -> 1 | CC29: =+Euchre!BF27 -> 1
A30: 20 | B30: Marina | C30: 10.0467 | I30: =+Cors!S24 -> 0 | J30: =+Podrida!I$24 -> 0 | O30: =+Omaha!E22 -> 0 | V30: =+'4 Duros'!AK25 -> 0 | W30: =+'Skull King'!AA22 -> 0 | Y30: =+Wizard!Y36 -> 10 | AA30: =+Copo!K22 -> 0 | AH30: =+Guinyot!AJ24 -> 0 | AJ30: =+Camelot!Y35 -> 0 | AK30: =+Magic!Y35 -> 0 | AL30: =+'Wizard Classic'!AA36 -> 0 | AR30: 467 | AX30: =+Cors!T24 -> 0 | AY30: =+Podrida!J$24 -> 0 | BD30: =+Omaha!F22 -> 0 | BK30: =+'4 Duros'!AL25 -> 0 | BL30: =+'Skull King'!AB22 -> 0 | BN30: =+Wizard!Z36 -> 96 | BP30: =+Copo!L22 -> 0 | BR30: =+'1000km'!M24 -> 0 | BW30: =+Guinyot!M24 -> 0 | BY30: =+Camelot!Z35 -> 2 | BZ30: =+Magic!Z35 -> 166 | CA30: =+'Wizard Classic'!Z36 -> 203
A31: 21 | B31: Ana B. | C31: 10.0289 | D31: =+King!S30 -> 0 | E31: =+Buti!C30 -> 5 | H31: =+Pumba!F24 -> 0 | I31: =+Cors!Q24 -> 0 | J31: =+Podrida!Q24 -> 0 | K31: =+Buti3!F22 -> 0 | L31: =+Remigio!X24 -> 0 | M31: =+Truc!AJ23 -> 0 | P31: =+'Black Jack'!C22 -> 0 | S31: =+Kul!C26 -> 0 | T31: =+Manilla!C26 -> 0 | U31: =+Tute!AY26 -> 0 | W31: =+'Skull King'!AC22 -> 0 | X31: =+Whist!C26 -> 0 | Y31: =+Wizard!E36 -> 0 | Z31: =+'Tute cabrò'!AA22 -> 5 | AB31: =+Escombra!S27 -> 0 | AD31: =+Cribbage!AG29 -> 0 | AH31: =+Guinyot!F24 -> 0 | AI31: =+'7 i mig'!C22 -> 0 | AJ31: =+Camelot!E35 -> 0 | AK31: =+Magic!E35 -> 0 | AM31: =+'5 Cogombres'!AA25 -> 0 | AN31: =+Euchre!C27 -> 0 | AO31: =+'Euchre Sub.'!C26 -> 0 | AR31: 289 | AS31: =+King!T30 -> 1 | AT31: =+Buti!D30 -> 8 | AW31: =+Pumba!G24 -> 0 | AX31: =+Cors!R24 -> 0 | AY31: =+Podrida!R24 -> 0 | AZ31: =+Remigio!Y24 -> 0 | BA31: =+Buti3!G22 -> 0 | BB31: =+Truc!AK23 -> 0 | BE31: =+'Black Jack'!D22 -> 0 | BH31: =+Kul!D26 -> 2 | BI31: =+Manilla!D26 -> 0 | BJ31: =+Tute!AZ26 -> 0 | BL31: =+'Skull King'!AD22 -> 0 | BM31: =+Whist!D26 -> 0 | BN31: =+Wizard!F36 -> 49 | BO31: =+'Tute cabrò'!AB22 -> 6 | BQ31: =+Escombra!T27 -> 0 | BS31: =+Cribbage!AI44 -> 0 | BX31: =+'7 i mig'!D22 -> 0 | BY31: =+Camelot!F35 -> 26 | BZ31: =+Magic!F35 -> 77 | CA31: =+'Wizard Classic'!F36 -> 112 | CB31: =+'5 Cogombres'!AB25 -> 3 | CC31: =+Euchre!D27 -> 5 | CD31: =+'Euchre Sub.'!D26 -> 0
A32: 22 | B32: Carmen | C32: 10.0007 | AE32: =+Canasta!AA24 -> 10 | AL32: =+'Wizard Classic'!I36 -> 0 | AR32: 7 | BT32: =+Canasta!AB24 -> 7
A33: 23 | B33: Nancy | C33: 0.059 | G33: =+Julepe!K23 -> 0 | Y33: =+Wizard!AG36 -> 0 | AC33: =+'1000km'!AM24 -> 0 | AJ33: =+Camelot!AG35 -> 0 | AK33: =+Magic!AG35 -> 0 | AL33: =+'Wizard Classic'!K36 -> 0 | AR33: 590 | AV33: =+Julepe!L23 -> 0 | BN33: =+Wizard!AH36 -> 28 | BY33: =+Camelot!AH35 -> 0 | BZ33: =+Magic!AH35 -> 393 | CA33: =+'Wizard Classic'!AH36 -> 169
A34: 24 | B34: Ken | C34: 0.0463 | I34: =+Cors!E24 -> 0 | AJ34: =+Camelot!K35 -> 0 | AK34: =+Magic!K35 -> 0 | AL34: =+'Wizard Classic'!Y36 -> 0 | AR34: 463 | AX34: =+Cors!F24 -> 0 | BY34: =+Camelot!L35 -> 16 | BZ34: =+Magic!L35 -> 281 | CA34: =+'Wizard Classic'!L36 -> 166
A35: 25 | B35: Tito | C35: 0.0272 | D35: =+King!K30 -> 0 | E35: =+Buti!BB30 -> 0 | G35: =+Julepe!AG23 -> 0 | H35: =+Pumba!AV24 -> 0 | I35: =+Cors!K24 -> 0 | J35: =+Podrida!K$24 -> 0 | M35: =+Truc!AM23 -> 0 | N35: =+Texas!AI25 -> 0 | O35: =+Omaha!C22 -> 0 | S35: =+Kul!AG26 -> 0 | T35: =+Manilla!BB26 -> 0 | U35: =+Tute!F26 -> 0 | V35: =+'4 Duros'!AI25 -> 0 | W35: =+'Skull King'!U22 -> 0 | Y35: =+Wizard!AA36 -> 0 | Z35: =+'Tute cabrò'!AC22 -> 0 | AA35: =+Copo!E22 -> 0 | AB35: =+Escombra!K27 -> 0 | AC35: =+'1000km'!AV24 -> 0 | AD35: =+Cribbage!BB29 -> 0 | AE35: =+Canasta!AV24 -> 0 | AJ35: =+Camelot!AA35 -> 0 | AK35: =+Magic!AA35 -> 0 | AO35: =+'Euchre Sub.'!BB26 -> 0 | AR35: 272 | AS35: =+King!L30 -> 1 | AT35: =+Buti!BC30 -> 2 | AV35: =+Julepe!AH23 -> 0 | AW35: =+Pumba!AW24 -> 0 | AX35: =+Cors!L24 -> 0 | AY35: =+Podrida!L$24 -> 0 | BB35: =+Truc!AN23 -> 0 | BC35: =+Texas!AJ25 -> 0 | BD35: =+Omaha!D22 -> 0 | BH35: =+Kul!AH26 -> 2 | BI35: =+Manilla!BC26 -> 0 | BJ35: =+Tute!G26 -> 0 | BL35: =+'Skull King'!V22 -> 0 | BN35: =+Wizard!AB36 -> 13 | BO35: =+'Tute cabrò'!AD22 -> 4 | BP35: =+Copo!F22 -> 0 | BQ35: =+Escombra!L27 -> 0 | BS35: =+Cribbage!BD44 -> 0 | BY35: =+Camelot!AB35 -> 0 | BZ35: =+Magic!AB35 -> 152 | CA35: =+'Wizard Classic'!AB36 -> 98 | CD35: =+'Euchre Sub.'!BC26 -> 0
A36: 26 | B36: Nin | C36: 0.0142 | D36: =+King!AE30 -> 0 | E36: =+Buti!AD30 -> 0 | H36: =+Pumba!L24 -> 0 | I36: =+Cors!U24 -> 0 | J36: =+Podrida!U$24 -> 0 | N36: =+Texas!AE25 -> 0 | P36: =+'Black Jack'!U22 -> 0 | R36: =+Mus!Y22 -> 0 | S36: =+Kul!AI26 -> 0 | W36: =+'Skull King'!Y22 -> 0 | Y36: =+Wizard!AC36 -> 0 | Z36: =+'Tute cabrò'!I22 -> 0 | AB36: =+Escombra!AE27 -> 0 | AD36: =+Cribbage!BE29 -> 0 | AG36: =+Tarot!AY26 -> 0 | AI36: =+'7 i mig'!Y22 -> 0 | AJ36: =+Camelot!AC35 -> 0 | AK36: =+Magic!AC35 -> 0 | AL36: =+'Wizard Classic'!AU36 -> 0 | AM36: =+'5 Cogombres'!I25 -> 0 | AN36: =+Euchre!AD27 -> 0 | AO36: =+'Euchre Sub.'!AD26 -> 0 | AR36: 142 | AS36: =+King!AF30 -> 1 | AT36: =+Buti!AE30 -> 2 | AW36: =+Pumba!M24 -> 0 | AX36: =+Cors!V24 -> 0 | AY36: =+Podrida!V$24 -> 0 | BC36: =+Texas!AF25 -> 0 | BE36: =+'Black Jack'!V22 -> 0 | BG36: =+Mus!Z22 -> 0 | BH36: =+Kul!AJ26 -> 2 | BL36: =+'Skull King'!Z22 -> 0 | BN36: =+Wizard!AD36 -> 34 | BO36: =+'Tute cabrò'!J22 -> 2 | BQ36: =+Escombra!AF27 -> 0 | BS36: =+Cribbage!BG44 -> 0 | BX36: =+'7 i mig'!Z22 -> 0 | BY36: =+Camelot!AD35 -> 8 | BZ36: =+Magic!AD35 -> 92 | CB36: =+'5 Cogombres'!J25 -> 0 | CC36: =+Euchre!AE27 -> 1 | CD36: =+'Euchre Sub.'!AE26 -> 0
A37: 27 | B37: Xavier | C37: 0.0033 | AD37: =+Cribbage!AJ29 -> 0 | AJ37: =+Camelot!AS35 -> 0 | AK37: =+Magic!AS35 -> 0 | AN37: =+Euchre!BH27 -> 0 | AR37: 33 | BS37: =+Cribbage!AL44 -> 0 | BY37: =+Camelot!AT35 -> 26 | BZ37: =+Magic!AT35 -> 2 | CA37: =+'Wizard Classic'!AV36 -> 1 | CC37: =+Euchre!BI27 -> 4
A38: 28 | B38: Sagalés | C38: 0.003 | F38: =+Pocha!U24 -> 0 | G38: =+Julepe!U23 -> 0 | H38: =+Pumba!AD24 -> 0 | L38: =+Remigio!AD24 -> 0 | M38: =+Truc!AD23 -> 0 | Q38: =+Chinchón!AD22 -> 0 | T38: =+Manilla!AD26 -> 0 | U38: =+Tute!AD26 -> 0 | V38: =+'4 Duros'!U25 -> 0 | AA38: =+Copo!U22 -> 0 | AC38: =+'1000km'!AD24 -> 0 | AD38: =+Cribbage!AD29 -> 0 | AI38: =+'7 i mig'!U22 -> 0 | AJ38: =+Camelot!AQ35 -> 0 | AK38: =+Magic!I35 -> 0 | AR38: 30 | AU38: =+Pocha!V24 -> 0 | AV38: =+Julepe!V23 -> 0 | AW38: =+Pumba!AE24 -> 0 | AZ38: =+Remigio!AE24 -> 0 | BB38: =+Truc!AE23 -> 0 | BF38: =+Chinchón!AE22 -> 0 | BI38: =+Manilla!AE26 -> 0 | BJ38: =+Tute!AE26 -> 0 | BP38: =+Copo!V22 -> 0 | BR38: =+'1000km'!AH24 -> 0 | BS38: =+Cribbage!AF44 -> 0 | BT38: =+Canasta!G24 -> 1 | BX38: =+'7 i mig'!V22 -> 0 | BY38: =+Camelot!AR35 -> 29 | BZ38: =+Magic!J35 -> 0
A39: 29 | B39: Eito | C39: 0.0024 | L39: =+Remigio!F24 -> 0 | M39: =+Truc!AS23 -> 0 | P39: =+'Black Jack'!AC22 -> 0 | Q39: =+Chinchón!AM22 -> 0 | V39: =+'4 Duros'!E25 -> 0 | AA39: =+Copo!AC22 -> 0 | AD39: =+Cribbage!AA29 -> 0 | AI39: =+'7 i mig'!AC22 -> 0 | AJ39: =+Camelot!AU35 -> 0 | AK39: =+Magic!AU35 -> 0 | AN39: =+Euchre!R27 -> 0 | AR39: 24 | AZ39: =+Remigio!G24 -> 0 | BB39: =+Truc!AT23 -> 0 | BE39: =+'Black Jack'!AD22 -> 0 | BF39: =+Chinchón!AN22 -> 0 | BK39: =+'4 Duros'!F25 -> 0 | BP39: =+Copo!AD22 -> 0 | BR39: =+'1000km'!AZ24 -> 0 | BS39: =+Cribbage!AC44 -> 0 | BT39: =+Canasta!AT24 -> 1 | BU39: =+Portugués!AJ27 -> 0 | BV39: =+Tarot!AT26 -> 0 | BW39: =+Guinyot!AZ24 -> 0 | BX39: =+'7 i mig'!AD22 -> 0 | BY39: =+Camelot!AV35 -> 18 | BZ39: =+Magic!AV35 -> 1 | CC39: =+Euchre!S27 -> 4
A40: 30 | B40: Òscar | C40: 0.0022 | D40: =+King!W30 -> 0 | E40: =+Buti!AG30 -> 0 | F40: =+Pocha!W24 -> 0 | G40: =+Julepe!W23 -> 0 | H40: =+Pumba!AG24 -> 0 | K40: =+Buti3!AG22 -> 0 | L40: =+Remigio!AG24 -> 0 | M40: =+Truc!AG23 -> 0 | N40: =+Texas!W25 -> 0 | O40: =+Omaha!W22 -> 0 | P40: =+'Black Jack'!W22 -> 0 | Q40: =+Chinchón!AG22 -> 0 | R40: =+Mus!W22 -> 0 | S40: =+Kul!AM26 -> 0 | T40: =+Manilla!AG26 -> 0 | U40: =+Tute!AG26 -> 0 | V40: =+'4 Duros'!W25 -> 0 | W40: =+'Skull King'!W22 -> 0 | X40: =+Whist!AG26 -> 0 | Y40: =+Wizard!BE36 -> 0 | Z40: =+'Tute cabrò'!W22 -> 0 | AA40: =+Copo!W22 -> 0 | AB40: =+Escombra!W27 -> 0 | AC40: =+'1000km'!AG24 -> 0 | AD40: =+Cribbage!O29 -> 0 | AI40: =+'7 i mig'!W22 -> 0 | AJ40: =+Camelot!BC35 -> 0 | AK40: =+Magic!BC35 -> 0 | AM40: =+'5 Cogombres'!W25 -> 0 | AN40: =+Euchre!AG27 -> 0 | AO40: =+'Euchre Sub.'!AG26 -> 0 | AR40: 22 | AS40: =+King!X30 -> 3 | AT40: =+Buti!AH30 -> 4 | AU40: =+Pocha!X24 -> 0 | AV40: =+Julepe!X23 -> 0 | AW40: =+Pumba!AH24 -> 0 | AZ40: =+Remigio!AH24 -> 0 | BA40: =+Buti3!AH22 -> 0 | BB40: =+Truc!AH23 -> 0 | BC40: =+Texas!X25 -> 0 | BD40: =+Omaha!X22 -> 0 | BE40: =+'Black Jack'!X22 -> 0 | BF40: =+Chinchón!AH22 -> 0 | BG40: =+Mus!X22 -> 0 | BH40: =+Kul!AN26 -> 3 | BI40: =+Manilla!AH26 -> 0 | BJ40: =+Tute!AH26 -> 0 | BK40: =+'4 Duros'!X25 -> 0 | BL40: =+'Skull King'!X22 -> 0 | BM40: =+Whist!AH26 -> 0 | BN40: =+Wizard!BF36 -> 1 | BO40: =+'Tute cabrò'!X22 -> 0 | BP40: =+Copo!X22 -> 0 | BQ40: =+Escombra!X27 -> 1 | BS40: =+Cribbage!Q44 -> 2 | BX40: =+'7 i mig'!X22 -> 0 | BY40: =+Camelot!BD35 -> 0 | BZ40: =+Magic!BD35 -> 0 | CA40: =+'Wizard Classic'!BF36 -> 0 | CB40: =+'5 Cogombres'!X25 -> 5 | CC40: =+Euchre!AH27 -> 3 | CD40: =+'Euchre Sub.'!AH26 -> 0
A41: 31 | B41: Anna P. | C41: 0.0011 | D41: =+King!O30 -> 0 | E41: =+Buti!BK30 -> 0 | F41: =+Pocha!AI24 -> 0 | G41: =+Julepe!AE23 -> 0 | J41: =+Podrida!S$24 -> 0 | L41: =+Remigio!AV24 -> 0 | N41: =+Texas!AK25 -> 0 | S41: =+Kul!S26 -> 0 | V41: =+'4 Duros'!K25 -> 0 | X41: =+Whist!AY26 -> 0 | AL41: =+'Wizard Classic'!AM36 -> 0 | AM41: =+'5 Cogombres'!AI25 -> 0 | AN41: =+Euchre!AY27 -> 0 | AO41: =+'Euchre Sub.'!AY26 -> 0 | AR41: 11 | AS41: =+King!P30 -> 1 | AT41: =+Buti!BL30 -> 5 | AU41: =+Pocha!AJ24 -> 0 | AV41: =+Julepe!AF23 -> 0 | AY41: =+Podrida!T$24 -> 0 | AZ41: =+Remigio!AW24 -> 0 | BC41: =+Texas!AL25 -> 0 | BH41: =+Kul!T26 -> 1 | BK41: =+'4 Duros'!L25 -> 0 | BM41: =+Whist!AZ26 -> 0 | BR41: =+'1000km'!AQ24 -> 0 | CA41: =+'Wizard Classic'!AN36 -> 1 | CB41: =+'5 Cogombres'!AJ25 -> 1 | CC41: =+Euchre!AZ27 -> 2 | CD41: =+'Euchre Sub.'!AZ26 -> 0
A42: 32 | B42: Christophe | C42: 0.001 | D42: =+King!AM30 -> 0 | E42: =+Buti!BQ30 -> 0 | G42: =+Julepe!E23 -> 0 | P42: =+'Black Jack'!S22 -> 0 | S42: =+Kul!W26 -> 0 | Y42: =+Wizard!BG36 -> 0 | AD42: =+Cribbage!AD29 -> 0 | AJ42: =+Camelot!BE35 -> 0 | AK42: =+Magic!BE35 -> 0 | AM42: =+'5 Cogombres'!AC25 -> 0 | AO42: =+'Euchre Sub.'!BE26 -> 0 | AR42: 10 | AS42: =+King!AN30 -> 1 | AT42: =+Buti!BR30 -> 1 | AV42: =+Julepe!F23 -> 0 | BE42: =+'Black Jack'!T22 -> 0 | BH42: =+Kul!X26 -> 2 | BN42: =+Wizard!BH36 -> 2 | BS42: =+Cribbage!AF44 -> 0 | BY42: =+Camelot!BF35 -> 0 | BZ42: =+Magic!BF35 -> 0 | CB42: =+'5 Cogombres'!AD25 -> 4 | CD42: =+'Euchre Sub.'!BF26 -> 0
A43: =RANK(C43,C$11:C$61) -> 32 | B43: Rosa M. | C43: =SUM(D43:AQ43)+AR43/10000 -> 0.001 | D43: =+King!E30 -> 0 | E43: =+Buti!L30 -> 0 | F43: =+Pocha!E24 -> 0 | I43: =+Cors!C24 -> 0 | J43: =+Podrida!E$24 -> 0 | N43: =+Texas!E25 -> 0 | S43: =+Kul!I26 -> 0 | T43: =+Manilla!F26 -> 0 | X43: =+Whist!AD26 -> 0 | AB43: =+Escombra!E27 -> 0 | AC43: =+'1000km'!F24 -> 0 | AL43: =+'Wizard Classic'!AG36 -> 0 | AM43: =+'5 Cogombres'!AE25 -> 0 | AN43: =+Euchre!L27 -> 0 | AO43: =+'Euchre Sub.'!L26 -> 0 | AR43: =SUM(AS43:CC43) -> 10 | AS43: =+King!F30 -> 1 | AT43: =+Buti!M30 -> 4 | AU43: =+Pocha!F24 -> 0 | AX43: =+Cors!D24 -> 0 | AY43: =+Podrida!F$24 -> 0 | AZ43: =+Remigio!M24 -> 0 | BC43: =+Texas!F25 -> 0 | BH43: =+Kul!J26 -> 1 | BI43: =+Manilla!G26 -> 0 | BM43: =+Whist!AE26 -> 0 | BQ43: =+Escombra!F27 -> 0 | BR43: =+'1000km'!AW24 -> 0 | CA43: =+'Wizard Classic'!J36 -> 1 | CB43: =+'5 Cogombres'!AF25 -> 1 | CC43: =+Euchre!M27 -> 2 | CD43: =+'Euchre Sub.'!M26 -> 0
A44: 32 | B44: Joan | C44: 0.001 | D44: =+King!I30 -> 0 | E44: =+Buti!O30 -> 0 | F44: =+Pocha!AA24 -> 0 | J44: =+Podrida!C$24 -> 0 | K44: =+Buti3!O22 -> 0 | N44: =+Texas!C25 -> 0 | O44: =+Omaha!U22 -> 0 | R44: =+Mus!K22 -> 0 | S44: =+Kul!M26 -> 0 | T44: =+Manilla!O26 -> 0 | U44: =+Tute!O26 -> 0 | X44: =+Whist!O26 -> 0 | AC44: =+'1000km'!L24 -> 0 | AF44: =+Portugués!K27 -> 0 | AH44: =+Guinyot!L24 -> 0 | AL44: =+'Wizard Classic'!BE36 -> 0 | AM44: =+'5 Cogombres'!AG25 -> 0 | AN44: =+Euchre!O27 -> 0 | AO44: =+'Euchre Sub.'!O26 -> 0 | AR44: 10 | AS44: =+King!J30 -> 1 | AT44: =+Buti!P30 -> 4 | AU44: =+Pocha!AB24 -> 0 | AY44: =+Podrida!D$24 -> 0 | BA44: =+Buti3!P22 -> 0 | BC44: =+Texas!D25 -> 0 | BD44: =+Omaha!V22 -> 0 | BG44: =+Mus!L22 -> 0 | BH44: =+Kul!N26 -> 1 | BI44: =+Manilla!P26 -> 0 | BJ44: =+Tute!P26 -> 0 | BK44: =+'4 Duros'!AJ25 -> 0 | BM44: =+Whist!P26 -> 0 | BR44: =+'1000km'!AN24 -> 0 | CA44: =+'Wizard Classic'!AX36 -> 1 | CB44: =+'5 Cogombres'!AH25 -> 1 | CC44: =+Euchre!P27 -> 2 | CD44: =+'Euchre Sub.'!P26 -> 0
A45: 35 | B45: Lleixà | C45: 0.0006 | AE45: =+Canasta!AD24 -> 0 | AN45: =+Euchre!X27 -> 0 | AR45: 6 | BT45: =+Canasta!AE24 -> 1 | CC45: =+Euchre!Y27 -> 5
A46: 36 | B46: Carol | C46: 0.0005 | D46: =+King!AQ30 -> 0 | E46: =+Buti!BE30 -> 0 | AR46: 5 | AS46: =+King!AR30 -> 1 | AT46: =+Buti!BF30 -> 4
A47: 36 | B47: Alejandro | C47: 0.0005 | Y47: =+Wizard!I36 -> 0 | AJ47: =+Camelot!W35 -> 0 | AK47: =+Magic!W35 -> 0 | AL47: =+'Wizard Classic'!W36 -> 0 | AR47: 5 | BN47: =+Wizard!J36 -> 1 | BY47: =+Camelot!X35 -> 0 | BZ47: =+Magic!X35 -> 2 | CA47: =+'Wizard Classic'!X36 -> 2
A48: 38 | B48: Sergi | C48: 0.0004 | D48: =+King!M30 -> 0 | E48: =+Buti!R30 -> 0 | F48: =+Pocha!M24 -> 0 | G48: =+Julepe!M23 -> 0 | H48: =+Pumba!R24 -> 0 | I48: =+Cors!M24 -> 0 | J48: =+Podrida!M$24 -> 0 | K48: =+Buti3!R22 -> 0 | L48: =+Remigio!R24 -> 0 | M48: =+Truc!R23 -> 0 | N48: =+Texas!M25 -> 0 | O48: =+Omaha!M22 -> 0 | P48: =+'Black Jack'!M22 -> 0 | Q48: =+Chinchón!R22 -> 0 | R48: =+Mus!M22 -> 0 | T48: =+Manilla!R26 -> 0 | U48: =+Tute!R26 -> 0 | V48: =+'4 Duros'!M25 -> 0 | W48: =+'Skull King'!M22 -> 0 | X48: =+Whist!R26 -> 0 | Z48: =+'Tute cabrò'!M22 -> 0 | AA48: =+Copo!M22 -> 0 | AB48: =+Escombra!M27 -> 0 | AC48: =+'1000km'!R24 -> 0 | AD48: =+Cribbage!F29 -> 0 | AF48: =+Portugués!M27 -> 0 | AG48: =+Tarot!R26 -> 0 | AH48: =+Guinyot!R24 -> 0 | AI48: =+'7 i mig'!M22 -> 0 | AJ48: =+Camelot!O35 -> 0 | AK48: =+Magic!O35 -> 0 | AM48: =+'5 Cogombres'!M25 -> 0 | AO48: =+'Euchre Sub.'!R26 -> 0 | AR48: 4 | AS48: =+King!N30 -> 1 | AT48: =+Buti!S30 -> 1 | AU48: =+Pocha!N24 -> 0 | AV48: =+Julepe!N23 -> 0 | AW48: =+Pumba!S24 -> 0 | AX48: =+Cors!N24 -> 0 | AY48: =+Podrida!N$24 -> 0 | AZ48: =+Remigio!S24 -> 0 | BA48: =+Buti3!S22 -> 0 | BB48: =+Truc!S23 -> 0 | BC48: =+Texas!N25 -> 0 | BD48: =+Omaha!N22 -> 0 | BE48: =+'Black Jack'!N22 -> 0 | BF48: =+Chinchón!S22 -> 0 | BG48: =+Mus!N22 -> 0 | BI48: =+Manilla!S26 -> 0 | BJ48: =+Tute!S26 -> 0 | BK48: =+'4 Duros'!N25 -> 0 | BL48: =+'Skull King'!N22 -> 0 | BM48: =+Whist!S26 -> 0 | BO48: =+'Tute cabrò'!N22 -> 1 | BP48: =+Copo!N22 -> 0 | BQ48: =+Escombra!N27 -> 0 | BS48: =+Cribbage!H44 -> 0 | BU48: =+Portugués!N27 -> 0 | BV48: =+Tarot!S26 -> 0 | BW48: =+Guinyot!AK24 -> 0 | BX48: =+'7 i mig'!N22 -> 0 | BY48: =+Camelot!P35 -> 0 | BZ48: =+Magic!P35 -> 1 | CB48: =+'5 Cogombres'!N25 -> 0 | CD48: =+'Euchre Sub.'!S26 -> 0
A49: 38 | B49: Paul | C49: 0.0004 | Y49: =+Wizard!W36 -> 0 | AR49: 4 | BN49: =+Wizard!X36 -> 4
A50: 40 | B50: France | C50: 0.0003 | Y50: =+Wizard!AS36 -> 0 | AL50: =+'Wizard Classic'!AS36 -> 0 | AR50: 3 | BN50: =+Wizard!AT36 -> 2 | CA50: =+'Wizard Classic'!AT36 -> 1
A51: 40 | B51: Robert | C51: 0.0003 | Y51: =+Wizard!AU36 -> 0 | AR51: 3 | BN51: =+Wizard!AV36 -> 3
A52: 40 | B52: Maite | C52: 0.0003 | AE52: =+Canasta!AG24 -> 0 | AR52: 3 | BT52: =+Canasta!AH24 -> 3
A53: 40 | B53: Pol | C53: 0.0003 | E53: =+Buti!AY30 -> 0 | AR53: 3 | AT53: =+Buti!AZ30 -> 3
A54: 44 | B54: Silvia | C54: 0.0002 | S54: =+Kul!AA26 -> 0 | AL54: =+'Wizard Classic'!AU36 -> 0 | AR54: 2 | BH54: =+Kul!AB26 -> 1 | CA54: =+'Wizard Classic'!AV36 -> 1
A55: 44 | B55: Kallie | C55: 0.0002 | Y55: =+Wizard!K36 -> 0 | AR55: 2 | BN55: =+Wizard!L36 -> 2
A56: 44 | B56: Levi | C56: 0.0002 | Y56: =+Wizard!O36 -> 0 | AR56: 2 | BN56: =+Wizard!P36 -> 2
A57: 44 | B57: Georges | C57: 0.0002 | Y57: =+Wizard!AW36 -> 0 | AR57: 2 | BN57: =+Wizard!AX36 -> 2
A58: 48 | B58: Rosa | C58: 0.0001 | AE58: =+Canasta!R24 -> 0 | AR58: 1 | BT58: =+Canasta!S24 -> 1
A59: 48 | B59: Helena | C59: 0.0001 | AE59: =+Canasta!F24 -> 0 | AR59: 1 | BT59: =+Canasta!AW24 -> 1
A60: 50 | B60: Jim | C60: 0 | AR60: 0
A61: 50 | C61: =SUM(D$55:AQ61)+AR61/10000 -> 0 | AR61: =SUM(AS61:CC61) -> 0
O68: zw
A70: 2 | B70: 10 | C70: -10
A71: 3 | B71: 10 | C71: 0 | D71: -10
A72: 4 | B72: 10 | C72: 4 | D72: -4 | E72: -10
A73: 5 | B73: 10 | C73: 5 | D73: 0 | E73: -5 | F73: -10
A74: 6 | B74: 10 | C74: 6 | D74: 2 | E74: -2 | F74: -6 | G74: -10
A75: 7 | B75: 10 | C75: 6 | D75: 2 | E75: 0 | F75: -2 | G75: -6 | H75: -10
A76: 8 | B76: 10 | C76: 6 | D76: 4 | E76: 2 | F76: -2 | G76: -4 | H76: -6 | I76: -10
A77: 9 | B77: 10 | C77: 6 | D77: 4 | E77: 2 | F77: 0 | G77: -2 | H77: -4 | I77: -6 | J77: -10
A78: 10 | B78: 10 | C78: 8 | D78: 6 | E78: 4 | F78: 2 | G78: -2 | H78: -4 | I78: -6 | J78: -8 | K78: -10
A80: Classificació per "mosques"
C81: =+C10 -> GENERAL | D81: KING | E81: BOTIFARRA | F81: POCHA | G81: JULEPE | H81: PUMBA | I81: CORS | J81: PODRIDA | K81: BUTI 3 | L81: REMIGIO | M81: TRUC | N81: TEXAS | O81: OMAHA | P81: BLACK JACK | Q81: CHINCHÓN | R81: MUS | S81: CUL | T81: MANILLA | U81: SUBHASTAT | V81: 4 DUROS | W81: SKULL KING | X81: WHIST | Y81: WIZARD | Z81: TUTE CABRÒ | AA81: COPO | AB81: ESCOMBRA | AC81: 1000 Km | AD81: CRIBBAGE | AE81: CANASTA | AF81: PORTUGUÈS | AG81: TAROT | AH81: GUINYOT | AQ81: =+AQ10 -> Joc 8
A82: =RANK(C82,C$82:C$99) -> 1 | B82: Jordi | C82: =SUM(D82:AQ82) -> 0
A83: 1 | B83: Carles | C83: 0
A84: 1 | B84: Mariajo | C84: 0
A85: 1 | B85: Grau | C85: 0
A86: 1 | B86: Joan | C86: 0
A87: 1 | B87: Manolo | C87: 0
A88: 1 | B88: Angie | C88: 0
A89: 1 | B89: Rosa M. | C89: 0
A90: 1 | B90: Sergi | C90: 0
A91: 1 | B91: Núria | C91: 0
A92: 1 | B92: Katy | C92: 0
A93: 1 | B93: Anna P. | C93: 0
A94: 1 | B94: Lucía | C94: 0
A95: 1 | B95: Lucía | C95: 0
A96: 1 | B96: Palafox | C96: 0
A97: 1 | B97: Goretti | C97: 0
A98: =RANK(C98,C$82:C$99) -> 1 | B98: Celes | C98: 0
A99: 1 | B99: Pol C. | C99: 0
B100: Total | C100: =SUM(C82:C99) -> 0
B101: Anomalies | C101: =SUM(D101:AQ101) -> 0
D103: TUTE CABRÒ | L103: =+King!A1 -> KING | T103: =+Cribbage!A1 -> CRIBBAGE | AB103: =+Escombra!A1 -> ESCOMBRA
F105: Premi | G105: Punts | H105: Partides | I105: General | N105: =+King!C4 -> Premi | O105: =+King!D4 -> Reptes | P105: =+King!E4 -> Punts | Q105: =+King!F4 -> Partides | R105: =+King!G4 -> General | V105: =+Cribbage!C4 -> Premi | W105: =+Cribbage!D4 -> Reptes | X105: =+Cribbage!E4 -> Punts | Y105: =+Cribbage!F4 -> Partides | Z105: =+Cribbage!G4 -> General | AD105: =+Escombra!C4 -> Premi | AE105: =+Escombra!D4 -> Reptes | AF105: =+Escombra!E4 -> Punts | AG105: =+Escombra!F4 -> Partides | AH105: =+Escombra!G4 -> General
D106: 1 | E106: =+'Tute cabrò'!B5 -> Jordi | F106: =+'Tute cabrò'!C5 -> 120 | G106: =+'Tute cabrò'!D5 -> 1.5 | H106: =+'Tute cabrò'!E5 -> 36 | I106: =+'Tute cabrò'!F5 -> 80 | L106: =+King!A5 -> 1 | M106: =+King!B5 -> Jordi | N106: =+King!C5 -> 4 | O106: =+King!D5 -> 15 | P106: =+King!E5 -> 36 | Q106: =+King!F5 -> 23 | R106: =+King!G5 -> 80 | T106: =+Cribbage!A5 -> 1 | U106: =+Cribbage!B5 -> Jordi | V106: =+Cribbage!C5 -> 3.5 | W106: =+Cribbage!D5 -> 7 | X106: =+Cribbage!E5 -> -4 | Y106: =+Cribbage!F5 -> 75 | Z106: =+Cribbage!G5 -> 80 | AB106: =+Escombra!A5 -> 1 | AC106: =+Escombra!B5 -> Jordi | AD106: =+Escombra!C5 -> 2.5 | AE106: =+Escombra!D5 -> 5 | AF106: =+Escombra!E5 -> 5 | AG106: =+Escombra!F5 -> 12 | AH106: =+Escombra!G5 -> 80
D107: 2 | E107: =+'Tute cabrò'!B6 -> Grau | F107: =+'Tute cabrò'!C6 -> 41 | G107: =+'Tute cabrò'!D6 -> 1.444444444 | H107: =+'Tute cabrò'!E6 -> 9 | I107: =+'Tute cabrò'!F6 -> 40 | L107: =+King!A6 -> 2 | M107: =+King!B6 -> Núria | N107: =+King!C6 -> 2 | O107: =+King!D6 -> 6 | P107: =+King!E6 -> -5 | Q107: =+King!F6 -> 15 | R107: =+King!G6 -> 40 | T107: =+Cribbage!A6 -> 2 | U107: =+Cribbage!B6 -> Gemma | V107: =+Cribbage!C6 -> 3 | W107: =+Cribbage!D6 -> 4 | X107: =+Cribbage!E6 -> 8 | Y107: =+Cribbage!F6 -> 16 | Z107: =+Cribbage!G6 -> 40 | AB107: =+Escombra!A6 -> 2 | AC107: =+Escombra!B6 -> Sebas | AD107: =+Escombra!C6 -> 1.5 | AE107: =+Escombra!D6 -> 4 | AF107: =+Escombra!E6 -> 1 | AG107: =+Escombra!F6 -> 9 | AH107: =+Escombra!G6 -> 40
D108: 3 | E108: =+'Tute cabrò'!B7 -> Sebas | F108: =+'Tute cabrò'!C7 -> 5 | G108: =+'Tute cabrò'!D7 -> 2.260869565 | H108: =+'Tute cabrò'!E7 -> 23 | I108: =+'Tute cabrò'!F7 -> 20 | L108: =+King!A7 -> 3 | M108: =+King!B7 -> Gemma | N108: =+King!C7 -> 1.5 | O108: =+King!D7 -> 4 | P108: =+King!E7 -> -4 | Q108: =+King!F7 -> 10 | R108: =+King!G7 -> 20 | T108: =+Cribbage!A7 -> 3 | U108: =+Cribbage!B7 -> Sebas | V108: =+Cribbage!C7 -> 2 | W108: =+Cribbage!D7 -> 4 | X108: =+Cribbage!E7 -> 12 | Y108: =+Cribbage!F7 -> 27 | Z108: =+Cribbage!G7 -> 20 | AB108: =+Escombra!A7 -> 3 | AC108: =+Escombra!B7 -> Núria | AD108: =+Escombra!C7 -> 1 | AE108: =+Escombra!D7 -> 3 | AF108: =+Escombra!E7 -> -1 | AG108: =+Escombra!F7 -> 7 | AH108: =+Escombra!G7 -> 20
D109: 4 | E109: =+'Tute cabrò'!B8 -> Goretti | F109: =+'Tute cabrò'!C8 -> 4 | G109: =+'Tute cabrò'!D8 -> 2.375 | H109: =+'Tute cabrò'!E8 -> 8 | I109: =+'Tute cabrò'!F8 -> 10 | L109: =+King!A8 -> 4 | M109: =+King!B8 -> Sebas | N109: =+King!C8 -> 1.5 | O109: =+King!D8 -> 8 | P109: =+King!E8 -> -7 | Q109: =+King!F8 -> 15 | R109: =+King!G8 -> 10 | T109: =+Cribbage!A8 -> 4 | U109: =+Cribbage!B8 -> Núria | V109: =+Cribbage!C8 -> 2 | W109: =+Cribbage!D8 -> 5 | X109: =+Cribbage!E8 -> 1 | Y109: =+Cribbage!F8 -> 18 | Z109: =+Cribbage!G8 -> 10 | AB109: =+Escombra!A8 -> 4 | AC109: =+Escombra!B8 -> Montse | AD109: =+Escombra!C8 -> 0.5 | AE109: =+Escombra!D8 -> 4 | AF109: =+Escombra!E8 -> -6 | AG109: =+Escombra!F8 -> 9 | AH109: =+Escombra!G8 -> 10
D110: 5 | E110: =+'Tute cabrò'!B9 -> Ana | F110: =+'Tute cabrò'!C9 -> -15 | G110: =+'Tute cabrò'!D9 -> 3.333333333 | H110: =+'Tute cabrò'!E9 -> 6 | I110: =+'Tute cabrò'!F9 -> 5 | L110: =+King!A9 -> 5 | M110: =+King!B9 -> Montse | N110: =+King!C9 -> 1 | O110: =+King!D9 -> 6 | P110: =+King!E9 -> -13 | Q110: =+King!F9 -> 16 | R110: =+King!G9 -> 5 | T110: =+Cribbage!A9 -> 5 | U110: =+Cribbage!B9 -> Goretti | V110: =+Cribbage!C9 -> 0.5 | W110: =+Cribbage!D9 -> 3 | X110: =+Cribbage!E9 -> -7 | Y110: =+Cribbage!F9 -> 28 | Z110: =+Cribbage!G9 -> 5
D111: 6 | E111: =+'Tute cabrò'!B10 -> Núria | F111: =+'Tute cabrò'!C10 -> -28 | G111: =+'Tute cabrò'!D10 -> 2 | H111: =+'Tute cabrò'!E10 -> 22 | I111: =+'Tute cabrò'!F10 -> 0 | L111: =+King!A10 -> 6 | M111: =+King!B10 -> Òscar | N111: =+King!C10 -> 3 | O111: =+King!D10 -> 4 | P111: =+King!E10 -> 3 | Q111: =+King!F10 -> 3 | R111: =+King!G10 -> 0 | T111: =+Cribbage!A10 -> 6 | U111: =+Cribbage!B10 -> Nogué | V111: =+Cribbage!C10 -> 0.5 | W111: =+Cribbage!D10 -> 5 | X111: =+Cribbage!E10 -> -17 | Y111: =+Cribbage!F10 -> 38 | Z111: =+Cribbage!G10 -> 0
D112: 7 | E112: =+'Tute cabrò'!B11 -> Montse | F112: =+'Tute cabrò'!C11 -> -66 | G112: =+'Tute cabrò'!D11 -> 2.705882353 | H112: =+'Tute cabrò'!E11 -> 17 | I112: =+'Tute cabrò'!F11 -> 0 | L112: =+King!A11 -> 7 | M112: =+King!B11 -> Christophe | N112: =+King!C11 -> 1.5 | O112: =+King!D11 -> 4 | P112: =+King!E11 -> -1 | Q112: =+King!F11 -> 1 | R112: =+King!G11 -> 0 | T112: =+Cribbage!A11 -> 7 | U112: =+Cribbage!B11 -> Òscar | V112: =+Cribbage!C11 -> 3 | W112: =+Cribbage!D11 -> 3 | X112: =+Cribbage!E11 -> 4 | Y112: =+Cribbage!F11 -> 2 | Z112: =+Cribbage!G11 -> 0
D113: 8 | E113: =+'Tute cabrò'!B12 -> Mariajo | F113: =+'Tute cabrò'!C12 -> 10 | G113: =+'Tute cabrò'!D12 -> 3 | H113: =+'Tute cabrò'!E12 -> 2 | I113: =+'Tute cabrò'!F12 -> 0 | L113: =+King!A12 -> 8 | M113: =+King!B12 -> Rosa M. | N113: =+King!C12 -> 1 | O113: =+King!D12 -> 3 | P113: =+King!E12 -> 3 | Q113: =+King!F12 -> 1 | R113: =+King!G12 -> 0 | T113: =+Cribbage!A12 -> 8 | U113: =+Cribbage!B12 -> Anaïs | V113: =+Cribbage!C12 -> 2 | W113: =+Cribbage!D12 -> 2 | X113: =+Cribbage!E12 -> 2 | Y113: =+Cribbage!F12 -> 1 | Z113: =+Cribbage!G12 -> 0
D114: 9 | E114: =+'Tute cabrò'!B13 -> Alejandro | F114: =+'Tute cabrò'!C13 -> 0 | G114: =+'Tute cabrò'!D13 -> 5 | H114: =+'Tute cabrò'!E13 -> 1 | I114: =+'Tute cabrò'!F13 -> 0 | L114: =+King!A13 -> 9 | M114: =+King!B13 -> Anaïs | N114: =+King!C13 -> 0.5 | O114: =+King!D13 -> 4 | P114: =+King!E13 -> 2 | Q114: =+King!F13 -> 2 | R114: =+King!G13 -> 0
L115: =+King!A14 -> 10 | M115: =+King!B14 -> Manolo | N115: =+King!C14 -> 0 | O115: =+King!D14 -> 3 | P115: =+King!E14 -> 3 | Q115: =+King!F14 -> 1 | R115: =+King!G14 -> 0
L116: =+King!A15 -> 11 | M116: =+King!B15 -> Ana B | N116: =+King!C15 -> 0 | O116: =+King!D15 -> 3 | P116: =+King!E15 -> 3 | Q116: =+King!F15 -> 1 | R116: =+King!G15 -> 0
L117: =+King!A16 -> 12 | M117: =+King!B16 -> Nin | N117: =+King!C16 -> 0 | O117: =+King!D16 -> 3 | P117: =+King!E16 -> 1 | Q117: =+King!F16 -> 1 | R117: =+King!G16 -> 0
L118: =+King!A17 -> 13 | M118: =+King!B17 -> Sergi | N118: =+King!C17 -> 0 | O118: =+King!D17 -> 3 | P118: =+King!E17 -> -1 | Q118: =+King!F17 -> 1 | R118: =+King!G17 -> 0
L119: =+King!A18 -> 14 | M119: =+King!B18 -> Joan | N119: =+King!C18 -> 0 | O119: =+King!D18 -> 3 | P119: =+King!E18 -> -1 | Q119: =+King!F18 -> 1 | R119: =+King!G18 -> 0
L120: =+King!A19 -> 15 | M120: =+King!B19 -> Carles | N120: =+King!C19 -> 0 | O120: =+King!D19 -> 3 | P120: =+King!E19 -> -1 | Q120: =+King!F19 -> 1 | R120: =+King!G19 -> 0
L121: =+King!A20 -> 16 | M121: =+King!B20 -> Tito | N121: =+King!C20 -> 0 | O121: =+King!D20 -> 3 | P121: =+King!E20 -> -1 | Q121: =+King!F20 -> 1 | R121: =+King!G20 -> 0
L122: =+King!A21 -> 17 | M122: =+King!B21 -> Mariajo | N122: =+King!C21 -> 0 | O122: =+King!D21 -> 3 | P122: =+King!E21 -> -3 | Q122: =+King!F21 -> 1 | R122: =+King!G21 -> 0
L123: =+King!A22 -> 18 | M123: =+King!B22 -> Anna P. | N123: =+King!C22 -> 0 | O123: =+King!D22 -> 3 | P123: =+King!E22 -> -3 | Q123: =+King!F22 -> 1 | R123: =+King!G22 -> 0
L124: =+King!A23 -> 19 | M124: =+King!B23 -> Emiliano | N124: =+King!C23 -> 0 | O124: =+King!D23 -> 3 | P124: =+King!E23 -> -3 | Q124: =+King!F23 -> 1 | R124: =+King!G23 -> 0
L125: =+King!A24 -> 20 | M125: =+King!B24 -> Carol | N125: =+King!C24 -> 0 | O125: =+King!D24 -> 3 | P125: =+King!E24 -> -3 | Q125: =+King!F24 -> 1 | R125: =+King!G24 -> 0
L126: =+King!A25 -> 21 | M126: =+King!B25 -> Grau | N126: =+King!C25 -> 0 | O126: =+King!D25 -> 5 | P126: =+King!E25 -> 0 | Q126: =+King!F25 -> 2 | R126: =+King!G25 -> 0
L127: =+King!A26 -> 22 | M127: =+King!B26 -> Goretti | N127: =+King!C26 -> 0 | O127: =+King!D26 -> 6 | P127: =+King!E26 -> -5 | Q127: =+King!F26 -> 3 | R127: =+King!G26 -> 0
D129: =+Whist!A1 -> WHIST | L129: =+Kul!A1 -> KUL | T129: =+'5 Cogombres'!A1 -> 5 COGOMBRES | AB129: =+Buti!A1 -> BOTIFARRA
F131: =+Whist!C4 -> Premi | G131: =+Whist!D4 -> Punts | H131: =+Whist!E4 -> Partides | I131: =+Whist!F4 -> General | N131: =+Kul!C4 -> Premi | O131: =+Kul!D4 -> Punts | P131: =+Kul!E4 -> Partides | Q131: =+Kul!F4 -> General | V131: =+'5 Cogombres'!C4 -> Premi | W131: =+'5 Cogombres'!D4 -> Punts | X131: =+'5 Cogombres'!E4 -> Partides | Y131: =+'5 Cogombres'!F4 -> General | AD131: =+Buti!C4 -> Premi | AE131: =+Buti!D4 -> Punts | AF131: =+Buti!E4 -> Partides | AG131: =+Buti!F4 -> General
D132: =+Whist!A5 -> 1 | E132: =+Whist!B5 -> Jordi | F132: =+Whist!C5 -> -10 | G132: =+Whist!D5 -> -5 | H132: =+Whist!E5 -> 2 | I132: =+Whist!F5 -> 0 | L132: =+Kul!A5 -> 1 | M132: =+Kul!B5 -> Jordi | N132: =+Kul!C5 -> 53 | O132: =+Kul!D5 -> 38 | P132: =+Kul!E5 -> 12 | Q132: =+Kul!F5 -> 80 | T132: =+'5 Cogombres'!A5 -> 1 | U132: =+'5 Cogombres'!B5 -> Núria | V132: =+'5 Cogombres'!C5 -> 63.5 | W132: =+'5 Cogombres'!D5 -> 2.307692308 | X132: =+'5 Cogombres'!E5 -> 13 | Y132: =+'5 Cogombres'!F5 -> 80 | AB132: =+Buti!A5 -> 1 | AC132: =+Buti!B5 -> Jordi | AD132: =+Buti!C5 -> 140 | AE132: =+Buti!D5 -> 581 | AF132: =+Buti!E5 -> 73 | AG132: =+Buti!F5 -> 80
D133: =+Whist!A6 -> 2 | E133: =+Whist!B6 -> Anna P. | F133: =+Whist!C6 -> 10 | G133: =+Whist!D6 -> 6 | H133: =+Whist!E6 -> 1 | I133: =+Whist!F6 -> 0 | L133: =+Kul!A6 -> 2 | M133: =+Kul!B6 -> Sebas | N133: =+Kul!C6 -> 1 | O133: =+Kul!D6 -> -7 | P133: =+Kul!E6 -> 8 | Q133: =+Kul!F6 -> 20 | T133: =+'5 Cogombres'!A6 -> 2 | U133: =+'5 Cogombres'!B6 -> Montse | V133: =+'5 Cogombres'!C6 -> 14.5 | W133: =+'5 Cogombres'!D6 -> 3.357142857 | X133: =+'5 Cogombres'!E6 -> 7 | Y133: =+'5 Cogombres'!F6 -> 40 | AB133: =+Buti!A6 -> 2 | AC133: =+Buti!B6 -> Nogué | AD133: =+Buti!C6 -> 140 | AE133: =+Buti!D6 -> 410 | AF133: =+Buti!E6 -> 53 | AG133: =+Buti!F6 -> 40
D134: =+Whist!A7 -> 3 | E134: =+Whist!B7 -> Rosa M. | F134: =+Whist!C7 -> 10 | G134: =+Whist!D7 -> 6 | H134: =+Whist!E7 -> 1 | I134: =+Whist!F7 -> 0 | L134: =+Kul!A7 -> 3 | M134: =+Kul!B7 -> Nogué | N134: =+Kul!C7 -> -8 | O134: =+Kul!D7 -> -9 | P134: =+Kul!E7 -> 7 | Q134: =+Kul!F7 -> 10 | T134: =+'5 Cogombres'!A7 -> 3 | U134: =+'5 Cogombres'!B7 -> Jordi | V134: =+'5 Cogombres'!C7 -> -5 | W134: =+'5 Cogombres'!D7 -> 3.263157895 | X134: =+'5 Cogombres'!E7 -> 19 | Y134: =+'5 Cogombres'!F7 -> 20 | AB134: =+Buti!A7 -> 3 | AC134: =+Buti!B7 -> Anaïs | AD134: =+Buti!C7 -> 30 | AE134: =+Buti!D7 -> 111 | AF134: =+Buti!E7 -> 7 | AG134: =+Buti!F7 -> 20
D135: =+Whist!A8 -> 4 | E135: =+Whist!B8 -> Montse | F135: =+Whist!C8 -> 10 | G135: =+Whist!D8 -> 3 | H135: =+Whist!E8 -> 1 | I135: =+Whist!F8 -> 0 | L135: =+Kul!A8 -> 4 | M135: =+Kul!B8 -> Núria | N135: =+Kul!C8 -> 2 | O135: =+Kul!D8 -> -17 | P135: =+Kul!E8 -> 8 | Q135: =+Kul!F8 -> 40 | T135: =+'5 Cogombres'!A8 -> 4 | U135: =+'5 Cogombres'!B8 -> Gemma | V135: =+'5 Cogombres'!C8 -> -8 | W135: =+'5 Cogombres'!D8 -> 4.75 | X135: =+'5 Cogombres'!E8 -> 8 | Y135: =+'5 Cogombres'!F8 -> 10 | AB135: =+Buti!A8 -> 4 | AC135: =+Buti!B8 -> Goretti | AD135: =+Buti!C8 -> -10 | AE135: =+Buti!D8 -> -25 | AF135: =+Buti!E8 -> 15 | AG135: =+Buti!F8 -> 10
D136: =+Whist!A9 -> 5 | E136: =+Whist!B9 -> Joan | F136: =+Whist!C9 -> -10 | G136: =+Whist!D9 -> -6 | H136: =+Whist!E9 -> 1 | I136: =+Whist!F9 -> 0 | L136: =+Kul!A9 -> 5 | M136: =+Kul!B9 -> Gemma | N136: =+Kul!C9 -> -11 | O136: =+Kul!D9 -> 13 | P136: =+Kul!E9 -> 8 | Q136: =+Kul!F9 -> 5 | T136: =+'5 Cogombres'!A9 -> 5 | U136: =+'5 Cogombres'!B9 -> Sebas | V136: =+'5 Cogombres'!C9 -> -66.5 | W136: =+'5 Cogombres'!D9 -> 5.607142857 | X136: =+'5 Cogombres'!E9 -> 14 | Y136: =+'5 Cogombres'!F9 -> 5 | AB136: =+Buti!A9 -> 5 | AC136: =+Buti!B9 -> Ana B. | AD136: =+Buti!C9 -> -20 | AE136: =+Buti!D9 -> -30 | AF136: =+Buti!E9 -> 8 | AG136: =+Buti!F9 -> 5
D137: =+Whist!A10 -> 6 | E137: =+Whist!B10 -> Sebas | F137: =+Whist!C10 -> -10 | G137: =+Whist!D10 -> -11 | H137: =+Whist!E10 -> 1 | I137: =+Whist!F10 -> 0 | L137: =+Kul!A10 -> 6 | M137: =+Kul!B10 -> Joan | N137: =+Kul!C10 -> 10 | O137: =+Kul!D10 -> 4 | P137: =+Kul!E10 -> 1 | Q137: =+Kul!F10 -> 0 | T137: =+'5 Cogombres'!A10 -> 6 | U137: =+'5 Cogombres'!B10 -> Rosa M | V137: =+'5 Cogombres'!C10 -> 10 | W137: =+'5 Cogombres'!D10 -> 0 | X137: =+'5 Cogombres'!E10 -> 1 | Y137: =+'5 Cogombres'!F10 -> 0 | AB137: =+Buti!A10 -> 6 | AC137: =+Buti!B10 -> Núria | AD137: =+Buti!C10 -> -35 | AE137: =+Buti!D10 -> -249 | AF137: =+Buti!E10 -> 47 | AG137: =+Buti!F10 -> 0
L138: =+Kul!A11 -> 7 | M138: =+Kul!B11 -> Anna P | N138: =+Kul!C11 -> 5 | O138: =+Kul!D11 -> 1 | P138: =+Kul!E11 -> 1 | Q138: =+Kul!F11 -> 0 | T138: =+'5 Cogombres'!A11 -> 7 | U138: =+'5 Cogombres'!B11 -> Grau | V138: =+'5 Cogombres'!C11 -> 10 | W138: =+'5 Cogombres'!D11 -> 3.333333333 | X138: =+'5 Cogombres'!E11 -> 3 | Y138: =+'5 Cogombres'!F11 -> 0 | AB138: =+Buti!A11 -> 7 | AC138: =+Buti!B11 -> Grau | AD138: =+Buti!C11 -> -70 | AE138: =+Buti!D11 -> -179 | AF138: =+Buti!E11 -> 11 | AG138: =+Buti!F11 -> 0
L139: =+Kul!A12 -> 8 | M139: =+Kul!B12 -> Òscar | N139: =+Kul!C12 -> 0 | O139: =+Kul!D12 -> 12 | P139: =+Kul!E12 -> 3 | Q139: =+Kul!F12 -> 0 | T139: =+'5 Cogombres'!A12 -> 8 | U139: =+'5 Cogombres'!B12 -> Christophe | V139: =+'5 Cogombres'!C12 -> 8 | W139: =+'5 Cogombres'!D12 -> 2 | X139: =+'5 Cogombres'!E12 -> 4 | Y139: =+'5 Cogombres'!F12 -> 0 | AB139: =+Buti!A12 -> 8 | AC139: =+Buti!B12 -> Gemma | AD139: =+Buti!C12 -> -85 | AE139: =+Buti!D12 -> -358 | AF139: =+Buti!E12 -> 28 | AG139: =+Buti!F12 -> 0
L140: =+Kul!A13 -> 9 | M140: =+Kul!B13 -> Grau | N140: =+Kul!C13 -> -6 | O140: =+Kul!D13 -> 8 | P140: =+Kul!E13 -> 4 | Q140: =+Kul!F13 -> 0 | T140: =+'5 Cogombres'!A13 -> 9 | U140: =+'5 Cogombres'!B13 -> Joan | V140: =+'5 Cogombres'!C13 -> 4 | W140: =+'5 Cogombres'!D13 -> 1 | X140: =+'5 Cogombres'!E13 -> 1 | Y140: =+'5 Cogombres'!F13 -> 0 | AB140: =+Buti!A13 -> 9 | AC140: =+Buti!B13 -> Sebas | AD140: =+Buti!C13 -> -175 | AE140: =+Buti!D13 -> -381 | AF140: =+Buti!E13 -> 51 | AG140: =+Buti!F13 -> 0
L141: =+Kul!A14 -> 10 | M141: =+Kul!B14 -> Sílvia | N141: =+Kul!C14 -> -5 | O141: =+Kul!D14 -> -5 | P141: =+Kul!E14 -> 1 | Q141: =+Kul!F14 -> 0 | AB141: =+Buti!A14 -> 10 | AC141: =+Buti!B14 -> Carol | AD141: =+Buti!C14 -> 40 | AE141: =+Buti!D14 -> 171 | AF141: =+Buti!E14 -> 4 | AG141: =+Buti!F14 -> 0
L142: =+Kul!A15 -> 11 | M142: =+Kul!B15 -> Rosa M | N142: =+Kul!C15 -> -10 | O142: =+Kul!D15 -> -7 | P142: =+Kul!E15 -> 1 | Q142: =+Kul!F15 -> 0 | AB142: =+Buti!A15 -> 11 | AC142: =+Buti!B15 -> Manolo | AD142: =+Buti!C15 -> 20 | AE142: =+Buti!D15 -> 34 | AF142: =+Buti!E15 -> 2 | AG142: =+Buti!F15 -> 0
L143: =+Kul!A16 -> 12 | M143: =+Kul!B16 -> Mariajo | N143: =+Kul!C16 -> -2 | O143: =+Kul!D16 -> -8 | P143: =+Kul!E16 -> 4 | Q143: =+Kul!F16 -> 0 | AB143: =+Buti!A16 -> 12 | AC143: =+Buti!B16 -> Mariajo | AD143: =+Buti!C16 -> 20 | AE143: =+Buti!D16 -> 27 | AF143: =+Buti!E16 -> 2 | AG143: =+Buti!F16 -> 0
L144: =+Kul!A17 -> 13 | M144: =+Kul!B17 -> Christophe | N144: =+Kul!C17 -> -12 | O144: =+Kul!D17 -> 2 | P144: =+Kul!E17 -> 2 | Q144: =+Kul!F17 -> 0 | AB144: =+Buti!A17 -> 13 | AC144: =+Buti!B17 -> Joan | AD144: =+Buti!C17 -> 15 | AE144: =+Buti!D17 -> 47 | AF144: =+Buti!E17 -> 4 | AG144: =+Buti!F17 -> 0
AB145: =+Buti!A18 -> 14 | AC145: =+Buti!B18 -> Rosa M. | AD145: =+Buti!C18 -> 10 | AE145: =+Buti!D18 -> 35 | AF145: =+Buti!E18 -> 4 | AG145: =+Buti!F18 -> 0
AB146: =+Buti!A19 -> 15 | AC146: =+Buti!B19 -> Sergi | AD146: =+Buti!C19 -> 10 | AE146: =+Buti!D19 -> 18 | AF146: =+Buti!E19 -> 1 | AG146: =+Buti!F19 -> 0
AB147: =+Buti!A20 -> 16 | AC147: =+Buti!B20 -> Emiliano | AD147: =+Buti!C20 -> 10 | AE147: =+Buti!D20 -> 18 | AF147: =+Buti!E20 -> 1 | AG147: =+Buti!F20 -> 0
AB148: =+Buti!A21 -> 17 | AC148: =+Buti!B21 -> Pol | AD148: =+Buti!C21 -> 5 | AE148: =+Buti!D21 -> 61 | AF148: =+Buti!E21 -> 3 | AG148: =+Buti!F21 -> 0
AB149: =+Buti!A22 -> 18 | AC149: =+Buti!B22 -> Òscar | AD149: =+Buti!C22 -> 0 | AE149: =+Buti!D22 -> 9 | AF149: =+Buti!E22 -> 4 | AG149: =+Buti!F22 -> 0
AB150: =+Buti!A23 -> 19 | AC150: =+Buti!B23 -> Tito | AD150: =+Buti!C23 -> 0 | AE150: =+Buti!D23 -> -11 | AF150: =+Buti!E23 -> 2 | AG150: =+Buti!F23 -> 0
AB151: =+Buti!A24 -> 20 | AC151: =+Buti!B24 -> Carles | AD151: =+Buti!C24 -> 0 | AE151: =+Buti!D24 -> -16 | AF151: =+Buti!E24 -> 2 | AG151: =+Buti!F24 -> 0
AB152: =+Buti!A25 -> 21 | AC152: =+Buti!B25 -> Sílvia | AD152: =+Buti!C25 -> -5 | AE152: =+Buti!D25 -> -5 | AF152: =+Buti!E25 -> 1 | AG152: =+Buti!F25 -> 0
AB153: =+Buti!A26 -> 22 | AC153: =+Buti!B26 -> Nin | AD153: =+Buti!C26 -> -20 | AE153: =+Buti!D26 -> -27 | AF153: =+Buti!E26 -> 2 | AG153: =+Buti!F26 -> 0
AB154: =+Buti!A27 -> 23 | AC154: =+Buti!B27 -> Anna P. | AD154: =+Buti!C27 -> -20 | AE154: =+Buti!D27 -> -54 | AF154: =+Buti!E27 -> 5 | AG154: =+Buti!F27 -> 0
D156: =+Wizard!A1 -> WIZARD | L156: =+Euchre!A1 -> EUCHRE | T156: =+Camelot!A1 -> CAMELOT | AB156: =+Magic!A1 -> MAGIC
F158: =+Wizard!C4 -> Premi | G158: =+Wizard!D4 -> Punts | H158: =+Wizard!E4 -> Partides | I158: =+Wizard!F4 -> General | N158: =+Euchre!C4 -> Premi | O158: =+Euchre!D4 -> Punts | P158: =+Euchre!E4 -> Partides | Q158: =+Euchre!F4 -> General | V158: =+Camelot!C4 -> Premi | W158: =+Camelot!D4 -> Punts | X158: =+Camelot!E4 -> Partides | Y158: =+Camelot!F4 -> General | AD158: =+Magic!C4 -> Premi | AE158: =+Magic!D4 -> Punts | AF158: =+Magic!E4 -> Partides | AG158: =+Magic!F4 -> General
D159: =+Wizard!A5 -> 1 | E159: =+Wizard!B5 -> Carles | F159: =+Wizard!C5 -> 188 | G159: =+Wizard!D5 -> 0 | H159: =+Wizard!E5 -> 73 | I159: =+Wizard!F5 -> 80 | L159: =+Euchre!A5 -> 1 | M159: =+Euchre!B5 -> Jordi | N159: =+Euchre!C5 -> 150 | O159: =+Euchre!D5 -> 67 | P159: =+Euchre!E5 -> 36 | Q159: =+Euchre!F5 -> 80 | T159: =+Camelot!A5 -> 1 | U159: =+Camelot!B5 -> Carles | V159: =+Camelot!C5 -> 151 | W159: =+Camelot!D5 -> 0 | X159: =+Camelot!E5 -> 61 | Y159: =+Camelot!F5 -> 80 | AB159: =+Magic!A5 -> 1 | AC159: =+Magic!B5 -> Alfred | AD159: =+Magic!C5 -> 534 | AE159: =+Magic!D5 -> 0 | AF159: =+Magic!E5 -> 1608 | AG159: =+Magic!F5 -> 80
D160: =+Wizard!A6 -> 2 | E160: =+Wizard!B6 -> Tim | F160: =+Wizard!C6 -> 72 | G160: =+Wizard!D6 -> 0 | H160: =+Wizard!E6 -> 106 | I160: =+Wizard!F6 -> 40 | L160: =+Euchre!A6 -> 2 | M160: =+Euchre!B6 -> Sebas | N160: =+Euchre!C6 -> 110 | O160: =+Euchre!D6 -> 38 | P160: =+Euchre!E6 -> 27 | Q160: =+Euchre!F6 -> 40 | T160: =+Camelot!A6 -> 2 | U160: =+Camelot!B6 -> Manolo | V160: =+Camelot!C6 -> 20 | W160: =+Camelot!D6 -> 0 | X160: =+Camelot!E6 -> 134 | Y160: =+Camelot!F6 -> 40 | AB160: =+Magic!A6 -> 2 | AC160: =+Magic!B6 -> Carles | AD160: =+Magic!C6 -> 441 | AE160: =+Magic!D6 -> 0 | AF160: =+Magic!E6 -> 217 | AG160: =+Magic!F6 -> 40
D161: =+Wizard!A7 -> 3 | E161: =+Wizard!B7 -> Mario | F161: =+Wizard!C7 -> 30 | G161: =+Wizard!D7 -> 0 | H161: =+Wizard!E7 -> 81 | I161: =+Wizard!F7 -> 20 | L161: =+Euchre!A7 -> 3 | M161: =+Euchre!B7 -> Lluisa | N161: =+Euchre!C7 -> -10 | O161: =+Euchre!D7 -> -7 | P161: =+Euchre!E7 -> 7 | Q161: =+Euchre!F7 -> 20 | T161: =+Camelot!A7 -> 3 | U161: =+Camelot!B7 -> Jordi | V161: =+Camelot!C7 -> 19 | W161: =+Camelot!D7 -> 0 | X161: =+Camelot!E7 -> 30 | Y161: =+Camelot!F7 -> 20 | AB161: =+Magic!A7 -> 3 | AC161: =+Magic!B7 -> Debi | AD161: =+Magic!C7 -> 324 | AE161: =+Magic!D7 -> 0 | AF161: =+Magic!E7 -> 487 | AG161: =+Magic!F7 -> 20
D162: =+Wizard!A8 -> 4 | E162: =+Wizard!B8 -> Marina | F162: =+Wizard!C8 -> 29 | G162: =+Wizard!D8 -> 0 | H162: =+Wizard!E8 -> 96 | I162: =+Wizard!F8 -> 10 | L162: =+Euchre!A8 -> 4 | M162: =+Euchre!B8 -> Nogué | N162: =+Euchre!C8 -> -30 | O162: =+Euchre!D8 -> -18 | P162: =+Euchre!E8 -> 9 | Q162: =+Euchre!F8 -> 10 | T162: =+Camelot!A8 -> 4 | U162: =+Camelot!B8 -> Jeff | V162: =+Camelot!C8 -> 16 | W162: =+Camelot!D8 -> 0 | X162: =+Camelot!E8 -> 12 | Y162: =+Camelot!F8 -> 10 | AB162: =+Magic!A8 -> 4 | AC162: =+Magic!B8 -> Jeff | AD162: =+Magic!C8 -> 242 | AE162: =+Magic!D8 -> 0 | AF162: =+Magic!E8 -> 292 | AG162: =+Magic!F8 -> 10
D163: =+Wizard!A9 -> 5 | E163: =+Wizard!B9 -> Grau | F163: =+Wizard!C9 -> 28 | G163: =+Wizard!D9 -> 0 | H163: =+Wizard!E9 -> 85 | I163: =+Wizard!F9 -> 5 | L163: =+Euchre!A9 -> 5 | M163: =+Euchre!B9 -> Grau | N163: =+Euchre!C9 -> -35 | O163: =+Euchre!D9 -> -22 | P163: =+Euchre!E9 -> 8 | Q163: =+Euchre!F9 -> 5 | T163: =+Camelot!A9 -> 5 | U163: =+Camelot!B9 -> Grau | V163: =+Camelot!C9 -> 13 | W163: =+Camelot!D9 -> 0 | X163: =+Camelot!E9 -> 56 | Y163: =+Camelot!F9 -> 5 | AB163: =+Magic!A9 -> 5 | AC163: =+Magic!B9 -> Mario | AD163: =+Magic!C9 -> 222 | AE163: =+Magic!D9 -> 0 | AF163: =+Magic!E9 -> 246 | AG163: =+Magic!F9 -> 5
D164: =+Wizard!A10 -> 6 | E164: =+Wizard!B10 -> Jordi | F164: =+Wizard!C10 -> 24 | G164: =+Wizard!D10 -> 0 | H164: =+Wizard!E10 -> 9 | I164: =+Wizard!F10 -> 0 | L164: =+Euchre!A10 -> 6 | M164: =+Euchre!B10 -> Núria | N164: =+Euchre!C10 -> -60 | O164: =+Euchre!D10 -> -26 | P164: =+Euchre!E10 -> 14 | Q164: =+Euchre!F10 -> 0 | T164: =+Camelot!A10 -> 6 | U164: =+Camelot!B10 -> Ken | V164: =+Camelot!C10 -> 12 | W164: =+Camelot!D10 -> 0 | X164: =+Camelot!E10 -> 16 | Y164: =+Camelot!F10 -> 0 | AB164: =+Magic!A10 -> 6 | AC164: =+Magic!B10 -> Ken | AD164: =+Magic!C10 -> 75 | AE164: =+Magic!D10 -> 0 | AF164: =+Magic!E10 -> 281 | AG164: =+Magic!F10 -> 0
D165: =+Wizard!A11 -> 7 | E165: =+Wizard!B11 -> Debi | F165: =+Wizard!C11 -> 18 | G165: =+Wizard!D11 -> 0 | H165: =+Wizard!E11 -> 26 | I165: =+Wizard!F11 -> 0 | L165: =+Euchre!A11 -> 7 | M165: =+Euchre!B11 -> Anna P. | N165: =+Euchre!C11 -> 20 | O165: =+Euchre!D11 -> 7 | P165: =+Euchre!E11 -> 2 | Q165: =+Euchre!F11 -> 0 | T165: =+Camelot!A11 -> 7 | U165: =+Camelot!B11 -> Alfred | V165: =+Camelot!C11 -> 11 | W165: =+Camelot!D11 -> 0 | X165: =+Camelot!E11 -> 9 | Y165: =+Camelot!F11 -> 0 | AB165: =+Magic!A11 -> 7 | AC165: =+Magic!B11 -> Tim | AD165: =+Magic!C11 -> 41 | AE165: =+Magic!D11 -> 0 | AF165: =+Magic!E11 -> 55 | AG165: =+Magic!F11 -> 0
D166: =+Wizard!A12 -> 8 | E166: =+Wizard!B12 -> Tito | F166: =+Wizard!C12 -> 7 | G166: =+Wizard!D12 -> 0 | H166: =+Wizard!E12 -> 13 | I166: =+Wizard!F12 -> 0 | L166: =+Euchre!A12 -> 8 | M166: =+Euchre!B12 -> Òscar | N166: =+Euchre!C12 -> 10 | O166: =+Euchre!D12 -> 10 | P166: =+Euchre!E12 -> 3 | Q166: =+Euchre!F12 -> 0 | T166: =+Camelot!A12 -> 8 | U166: =+Camelot!B12 -> Lluïsa | V166: =+Camelot!C12 -> 7 | W166: =+Camelot!D12 -> 0 | X166: =+Camelot!E12 -> 29 | Y166: =+Camelot!F12 -> 0 | AB166: =+Magic!A12 -> 8 | AC166: =+Magic!B12 -> Manolo | AD166: =+Magic!C12 -> 35 | AE166: =+Magic!D12 -> 0 | AF166: =+Magic!E12 -> 787 | AG166: =+Magic!F12 -> 0
D167: =+Wizard!A13 -> 9 | E167: =+Wizard!B13 -> Jeff | F167: =+Wizard!C13 -> 0 | G167: =+Wizard!D13 -> 0 | H167: =+Wizard!E13 -> 93 | I167: =+Wizard!F13 -> 0 | L167: =+Euchre!A13 -> 9 | M167: =+Euchre!B13 -> Nin | N167: =+Euchre!C13 -> 10 | O167: =+Euchre!D13 -> 5 | P167: =+Euchre!E13 -> 1 | Q167: =+Euchre!F13 -> 0 | T167: =+Camelot!A13 -> 9 | U167: =+Camelot!B13 -> Ana B | V167: =+Camelot!C13 -> -4 | W167: =+Camelot!D13 -> 0 | X167: =+Camelot!E13 -> 26 | Y167: =+Camelot!F13 -> 0 | AB167: =+Magic!A13 -> 9 | AC167: =+Magic!B13 -> Marina | AD167: =+Magic!C13 -> 6 | AE167: =+Magic!D13 -> 0 | AF167: =+Magic!E13 -> 166 | AG167: =+Magic!F13 -> 0
D168: =+Wizard!A14 -> 10 | E168: =+Wizard!B14 -> Nogué | F168: =+Wizard!C14 -> -2 | G168: =+Wizard!D14 -> 0 | H168: =+Wizard!E14 -> 7 | I168: =+Wizard!F14 -> 0 | L168: =+Euchre!A14 -> 10 | M168: =+Euchre!B14 -> Eito | N168: =+Euchre!C14 -> 0 | O168: =+Euchre!D14 -> -2 | P168: =+Euchre!E14 -> 4 | Q168: =+Euchre!F14 -> 0 | T168: =+Camelot!A14 -> 10 | U168: =+Camelot!B14 -> Sagalés | V168: =+Camelot!C14 -> -9 | W168: =+Camelot!D14 -> 0 | X168: =+Camelot!E14 -> 16 | Y168: =+Camelot!F14 -> 0 | AB168: =+Magic!A14 -> 10 | AC168: =+Magic!B14 -> Sebas | AD168: =+Magic!C14 -> -12 | AE168: =+Magic!D14 -> 0 | AF168: =+Magic!E14 -> 6 | AG168: =+Magic!F14 -> 0
D169: =+Wizard!A15 -> 11 | E169: =+Wizard!B15 -> Sebas | F169: =+Wizard!C15 -> -4 | G169: =+Wizard!D15 -> 0 | H169: =+Wizard!E15 -> 6 | I169: =+Wizard!F15 -> 0 | L169: =+Euchre!A15 -> 11 | M169: =+Euchre!B15 -> Carles | N169: =+Euchre!C15 -> 0 | O169: =+Euchre!D15 -> -2 | P169: =+Euchre!E15 -> 2 | Q169: =+Euchre!F15 -> 0 | T169: =+Camelot!A15 -> 11 | U169: =+Camelot!B15 -> Xavier | V169: =+Camelot!C15 -> -12 | W169: =+Camelot!D15 -> 0 | X169: =+Camelot!E15 -> 26 | Y169: =+Camelot!F15 -> 0 | AB169: =+Magic!A15 -> 11 | AC169: =+Magic!B15 -> Tito | AD169: =+Magic!C15 -> -31 | AE169: =+Magic!D15 -> 0 | AF169: =+Magic!E15 -> 152 | AG169: =+Magic!F15 -> 0
D170: =+Wizard!A16 -> 12 | E170: =+Wizard!B16 -> Núria | F170: =+Wizard!C16 -> -11 | G170: =+Wizard!D16 -> 0 | H170: =+Wizard!E16 -> 8 | I170: =+Wizard!F16 -> 0 | L170: =+Euchre!A16 -> 11 | M170: =+Euchre!B16 -> Manolo | N170: =+Euchre!C16 -> -5 | O170: =+Euchre!D16 -> -1 | P170: =+Euchre!E16 -> 2 | Q170: =+Euchre!F16 -> 0 | T170: =+Camelot!A16 -> 12 | U170: =+Camelot!B16 -> Eito | V170: =+Camelot!C16 -> -14 | W170: =+Camelot!D16 -> 0 | X170: =+Camelot!E16 -> 18 | Y170: =+Camelot!F16 -> 0 | AB170: =+Magic!A16 -> 12 | AC170: =+Magic!B16 -> Grau | AD170: =+Magic!C16 -> -45 | AE170: =+Magic!D16 -> 0 | AF170: =+Magic!E16 -> 351 | AG170: =+Magic!F16 -> 0
D171: =+Wizard!A17 -> 13 | E171: =+Wizard!B17 -> Nancy | F171: =+Wizard!C17 -> -15 | G171: =+Wizard!D17 -> 0 | H171: =+Wizard!E17 -> 28 | I171: =+Wizard!F17 -> 0 | L171: =+Euchre!A17 -> 13 | M171: =+Euchre!B17 -> Ana B. | N171: =+Euchre!C17 -> -10 | O171: =+Euchre!D17 -> 4 | P171: =+Euchre!E17 -> 5 | Q171: =+Euchre!F17 -> 0 | T171: =+Camelot!A17 -> 13 | U171: =+Camelot!B17 -> Nin | V171: =+Camelot!C17 -> -16 | W171: =+Camelot!D17 -> 0 | X171: =+Camelot!E17 -> 8 | Y171: =+Camelot!F17 -> 0 | AB171: =+Magic!A17 -> 13 | AC171: =+Magic!B17 -> Ana B | AD171: =+Magic!C17 -> -60 | AE171: =+Magic!D17 -> 0 | AF171: =+Magic!E17 -> 77 | AG171: =+Magic!F17 -> 0
D172: =+Wizard!A18 -> 14 | E172: =+Wizard!B18 -> Ana B | F172: =+Wizard!C18 -> -20 | G172: =+Wizard!D18 -> 0 | H172: =+Wizard!E18 -> 49 | I172: =+Wizard!F18 -> 0 | L172: =+Euchre!A18 -> 14 | M172: =+Euchre!B18 -> Lleixà | N172: =+Euchre!C18 -> -10 | O172: =+Euchre!D18 -> 1 | P172: =+Euchre!E18 -> 5 | Q172: =+Euchre!F18 -> 0 | T172: =+Camelot!A18 -> 14 | U172: =+Camelot!B18 -> Gemma | V172: =+Camelot!C18 -> -37 | W172: =+Camelot!D18 -> 0 | X172: =+Camelot!E18 -> 21 | Y172: =+Camelot!F18 -> 0 | AB172: =+Magic!A18 -> 14 | AC172: =+Magic!B18 -> Nin | AD172: =+Magic!C18 -> -62 | AE172: =+Magic!D18 -> 0 | AF172: =+Magic!E18 -> 92 | AG172: =+Magic!F18 -> 0
D173: =+Wizard!A19 -> 15 | E173: =+Wizard!B19 -> Nin | F173: =+Wizard!C19 -> -22 | G173: =+Wizard!D19 -> 0 | H173: =+Wizard!E19 -> 34 | I173: =+Wizard!F19 -> 0 | L173: =+Euchre!A19 -> 15 | M173: =+Euchre!B19 -> Anaïs | N173: =+Euchre!C19 -> -10 | O173: =+Euchre!D19 -> -5 | P173: =+Euchre!E19 -> 1 | Q173: =+Euchre!F19 -> 0 | T173: =+Camelot!A19 -> 15 | U173: =+Camelot!B19 -> Nogué | V173: =+Camelot!C19 -> 1 | W173: =+Camelot!D19 -> 0 | X173: =+Camelot!E19 -> 1 | Y173: =+Camelot!F19 -> 0 | AB173: =+Magic!A19 -> 15 | AC173: =+Magic!B19 -> Gemma | AD173: =+Magic!C19 -> -286 | AE173: =+Magic!D19 -> 0 | AF173: =+Magic!E19 -> 577 | AG173: =+Magic!F19 -> 0
D174: =+Wizard!A20 -> 16 | E174: =+Wizard!B20 -> Alfred | F174: =+Wizard!C20 -> -31 | G174: =+Wizard!D20 -> 0 | H174: =+Wizard!E20 -> 48 | I174: =+Wizard!F20 -> 0 | L174: =+Euchre!A20 -> 16 | M174: =+Euchre!B20 -> Goretti | N174: =+Euchre!C20 -> -10 | O174: =+Euchre!D20 -> -13 | P174: =+Euchre!E20 -> 5 | Q174: =+Euchre!F20 -> 0 | T174: =+Camelot!A20 -> 16 | U174: =+Camelot!B20 -> Marina | V174: =+Camelot!C20 -> 0 | W174: =+Camelot!D20 -> 0 | X174: =+Camelot!E20 -> 2 | Y174: =+Camelot!F20 -> 0 | AB174: =+Magic!A20 -> 16 | AC174: =+Magic!B20 -> Nancy | AD174: =+Magic!C20 -> -467 | AE174: =+Magic!D20 -> 0 | AF174: =+Magic!E20 -> 393 | AG174: =+Magic!F20 -> 0
D175: =+Wizard!A21 -> 17 | E175: =+Wizard!B21 -> Gemma | F175: =+Wizard!C21 -> -31 | G175: =+Wizard!D21 -> 0 | H175: =+Wizard!E21 -> 33 | I175: =+Wizard!F21 -> 0 | L175: =+Euchre!A21 -> 17 | M175: =+Euchre!B21 -> Joan | N175: =+Euchre!C21 -> -20 | O175: =+Euchre!D21 -> -7 | P175: =+Euchre!E21 -> 2 | Q175: =+Euchre!F21 -> 0 | T175: =+Camelot!A21 -> 17 | U175: =+Camelot!B21 -> Sebas | V175: =+Camelot!C21 -> -2 | W175: =+Camelot!D21 -> 0 | X175: =+Camelot!E21 -> 1 | Y175: =+Camelot!F21 -> 0 | AB175: =+Magic!A21 -> 17 | AC175: =+Magic!B21 -> Jordi | AD175: =+Magic!C21 -> 4 | AE175: =+Magic!D21 -> 0 | AF175: =+Magic!E21 -> 3 | AG175: =+Magic!F21 -> 0
D176: =+Wizard!A22 -> 18 | E176: =+Wizard!B22 -> Manolo | F176: =+Wizard!C22 -> -41 | G176: =+Wizard!D22 -> 0 | H176: =+Wizard!E22 -> 101 | I176: =+Wizard!F22 -> 0 | L176: =+Euchre!A22 -> 18 | M176: =+Euchre!B22 -> Rosa M. | N176: =+Euchre!C22 -> -20 | O176: =+Euchre!D22 -> -7 | P176: =+Euchre!E22 -> 2 | Q176: =+Euchre!F22 -> 0 | T176: =+Camelot!A22 -> 18 | U176: =+Camelot!B22 -> Núria | V176: =+Camelot!C22 -> -7 | W176: =+Camelot!D22 -> 0 | X176: =+Camelot!E22 -> 2 | Y176: =+Camelot!F22 -> 0 | AB176: =+Magic!A22 -> 18 | AC176: =+Magic!B22 -> Xavier | AD176: =+Magic!C22 -> 2 | AE176: =+Magic!D22 -> 0 | AF176: =+Magic!E22 -> 2 | AG176: =+Magic!F22 -> 0
D177: =+Wizard!A23 -> 19 | E177: =+Wizard!B23 -> Goretti | F177: =+Wizard!C23 -> -67 | G177: =+Wizard!D23 -> 0 | H177: =+Wizard!E23 -> 69 | I177: =+Wizard!F23 -> 0 | L177: =+Euchre!A23 -> 19 | M177: =+Euchre!B23 -> Gemma | N177: =+Euchre!C23 -> -30 | O177: =+Euchre!D23 -> -8 | P177: =+Euchre!E23 -> 5 | Q177: =+Euchre!F23 -> 0 | AB177: =+Magic!A23 -> 19 | AC177: =+Magic!B23 -> Mariajo | AD177: =+Magic!C23 -> -1 | AE177: =+Magic!D23 -> 0 | AF177: =+Magic!E23 -> 1 | AG177: =+Magic!F23 -> 0
D178: =+Wizard!A24 -> 20 | E178: =+Wizard!B24 -> Robert | F178: =+Wizard!C24 -> 12 | G178: =+Wizard!D24 -> 0 | H178: =+Wizard!E24 -> 3 | I178: =+Wizard!F24 -> 0 | L178: =+Euchre!A24 -> 20 | M178: =+Euchre!B24 -> Xavier | N178: =+Euchre!C24 -> -40 | O178: =+Euchre!D24 -> -12 | P178: =+Euchre!E24 -> 4 | Q178: =+Euchre!F24 -> 0 | AB178: =+Magic!A24 -> 20 | AC178: =+Magic!B24 -> Alejandro | AD178: =+Magic!C24 -> -2 | AE178: =+Magic!D24 -> 0 | AF178: =+Magic!E24 -> 2 | AG178: =+Magic!F24 -> 0
D179: =+Wizard!A25 -> 21 | E179: =+Wizard!B25 -> Òscar | F179: =+Wizard!C25 -> 5 | G179: =+Wizard!D25 -> 0 | H179: =+Wizard!E25 -> 1 | I179: =+Wizard!F25 -> 0 | AB179: =+Magic!A25 -> 21 | AC179: =+Magic!B25 -> Sergi | AD179: =+Magic!C25 -> -2 | AE179: =+Magic!D25 -> 0 | AF179: =+Magic!E25 -> 1 | AG179: =+Magic!F25 -> 0
D180: =+Wizard!A26 -> 22 | E180: =+Wizard!B26 -> France | F180: =+Wizard!C26 -> 4 | G180: =+Wizard!D26 -> 0 | H180: =+Wizard!E26 -> 2 | I180: =+Wizard!F26 -> 0 | AB180: =+Magic!A26 -> 22 | AC180: =+Magic!B26 -> Eito | AD180: =+Magic!C26 -> -3 | AE180: =+Magic!D26 -> 0 | AF180: =+Magic!E26 -> 1 | AG180: =+Magic!F26 -> 0
D181: =+Wizard!A27 -> 23 | E181: =+Wizard!B27 -> Mariajo | F181: =+Wizard!C27 -> 3 | G181: =+Wizard!D27 -> 0 | H181: =+Wizard!E27 -> 1 | I181: =+Wizard!F27 -> 0 | AB181: =+Magic!A27 -> 23 | AC181: =+Magic!B27 -> Goretti | AD181: =+Magic!C27 -> -15 | AE181: =+Magic!D27 -> 0 | AF181: =+Magic!E27 -> 4 | AG181: =+Magic!F27 -> 0
D182: =+Wizard!A28 -> 24 | E182: =+Wizard!B28 -> Eito | F182: =+Wizard!C28 -> 2 | G182: =+Wizard!D28 -> 0 | H182: =+Wizard!E28 -> 2 | I182: =+Wizard!F28 -> 0
D183: =+Wizard!A29 -> 25 | E183: =+Wizard!B29 -> Christophe | F183: =+Wizard!C29 -> 0 | G183: =+Wizard!D29 -> 0 | H183: =+Wizard!E29 -> 2 | I183: =+Wizard!F29 -> 0
D184: =+Wizard!A30 -> 26 | E184: =+Wizard!B30 -> Paul | F184: =+Wizard!C30 -> -2 | G184: =+Wizard!D30 -> 0 | H184: =+Wizard!E30 -> 4 | I184: =+Wizard!F30 -> 0
D185: =+Wizard!A31 -> 27 | E185: =+Wizard!B31 -> Kallie | F185: =+Wizard!C31 -> -2 | G185: =+Wizard!D31 -> 0 | H185: =+Wizard!E31 -> 2 | I185: =+Wizard!F31 -> 0
D186: =+Wizard!A32 -> 28 | E186: =+Wizard!B32 -> Levi | F186: =+Wizard!C32 -> -2 | G186: =+Wizard!D32 -> 0 | H186: =+Wizard!E32 -> 2 | I186: =+Wizard!F32 -> 0
D187: =+Wizard!A33 -> 29 | E187: =+Wizard!B33 -> Alejandro | F187: =+Wizard!C33 -> -3 | G187: =+Wizard!D33 -> 0 | H187: =+Wizard!E33 -> 1 | I187: =+Wizard!F33 -> 0
D189: =+'Wizard Classic'!A1 -> WIZARD CLASSIC | L189: =+Podrida!A1 -> PODRIDA | T189: =+Remigio!A1 -> REMIGIO | AB189: =+Tute!A1 -> SUBHASTAT
F191: =+'Wizard Classic'!C4 -> Premi | G191: =+'Wizard Classic'!D4 -> Punts | H191: =+'Wizard Classic'!E4 -> Partides | I191: =+'Wizard Classic'!F4 -> General | N191: =+Podrida!C4 -> Premi | O191: =+Podrida!D4 -> Reptes | P191: =+Podrida!E4 -> Punts | Q191: =+Podrida!F4 -> Partides | R191: =+Podrida!G4 -> General | V191: =+Remigio!C4 -> Premio | W191: =+Remigio!D4 -> Punts | X191: =+Remigio!E4 -> Partides | Y191: =+Remigio!F4 -> General | AD191: =+Tute!C4 -> Premi | AE191: =+Tute!D4 -> Punts | AF191: =+Tute!E4 -> Partides | AG191: =+Tute!F4 -> General
D192: =+'Wizard Classic'!A5 -> 1 | E192: =+'Wizard Classic'!B5 -> Debi | F192: =+'Wizard Classic'!C5 -> 342 | G192: =+'Wizard Classic'!D5 -> 0 | H192: =+'Wizard Classic'!E5 -> 548 | I192: =+'Wizard Classic'!F5 -> 80 | L192: =+Podrida!A5 -> 1 | M192: =+Podrida!B5 -> Jordi | N192: =+Podrida!C5 -> 4.5 | O192: =+Podrida!D5 -> 5 | P192: =+Podrida!E5 -> 10 | Q192: =+Podrida!F5 -> 3 | R192: =+Podrida!G5 -> 0 | T192: =+Remigio!A5 -> 1 | U192: =+Remigio!B5 -> Goretti | V192: =+Remigio!C5 -> 10 | W192: =+Remigio!D5 -> 5.8 | X192: =+Remigio!E5 -> 1 | Y192: =+Remigio!F5 -> 0 | AB192: =+Tute!A5 -> 1 | AC192: =+Tute!B5 -> Jordi | AD192: =+Tute!C5 -> 15 | AE192: =+Tute!D5 -> 650 | AF192: =+Tute!E5 -> 3 | AG192: =+Tute!F5 -> 0
D193: =+'Wizard Classic'!A6 -> 2 | E193: =+'Wizard Classic'!B6 -> Carles | F193: =+'Wizard Classic'!C6 -> 299 | G193: =+'Wizard Classic'!D6 -> 0 | H193: =+'Wizard Classic'!E6 -> 153 | I193: =+'Wizard Classic'!F6 -> 40 | L193: =+Podrida!A6 -> 2 | M193: =+Podrida!B6 -> Pol | N193: =+Podrida!C6 -> 4.5 | O193: =+Podrida!D6 -> 5 | P193: =+Podrida!E6 -> 7 | Q193: =+Podrida!F6 -> 2 | R193: =+Podrida!G6 -> 0 | T193: =+Remigio!A6 -> 2 | U193: =+Remigio!B6 -> Manel | V193: =+Remigio!C6 -> 10 | W193: =+Remigio!D6 -> 8.166666667 | X193: =+Remigio!E6 -> 1 | Y193: =+Remigio!F6 -> 0 | AB193: =+Tute!A6 -> 2 | AC193: =+Tute!B6 -> Tito | AD193: =+Tute!C6 -> 10 | AE193: =+Tute!D6 -> 285 | AF193: =+Tute!E6 -> 1 | AG193: =+Tute!F6 -> 0
D194: =+'Wizard Classic'!A7 -> 3 | E194: =+'Wizard Classic'!B7 -> Manolo | F194: =+'Wizard Classic'!C7 -> 267 | G194: =+'Wizard Classic'!D7 -> 0 | H194: =+'Wizard Classic'!E7 -> 730 | I194: =+'Wizard Classic'!F7 -> 20 | L194: =+Podrida!A7 -> 3 | M194: =+Podrida!B7 -> Joan | N194: =+Podrida!C7 -> 3 | O194: =+Podrida!D7 -> 5 | P194: =+Podrida!E7 -> 2 | Q194: =+Podrida!F7 -> 3 | R194: =+Podrida!G7 -> 0 | T194: =+Remigio!A7 -> 3 | U194: =+Remigio!B7 -> Jordi | V194: =+Remigio!C7 -> 6 | W194: =+Remigio!D7 -> 9 | X194: =+Remigio!E7 -> 1 | Y194: =+Remigio!F7 -> 0 | AB194: =+Tute!A7 -> 3 | AC194: =+Tute!B7 -> Goretti | AD194: =+Tute!C7 -> 0 | AE194: =+Tute!D7 -> -97.5 | AF194: =+Tute!E7 -> 3 | AG194: =+Tute!F7 -> 0
D195: =+'Wizard Classic'!A8 -> 4 | E195: =+'Wizard Classic'!B8 -> Tim | F195: =+'Wizard Classic'!C8 -> 250 | G195: =+'Wizard Classic'!D8 -> 0 | H195: =+'Wizard Classic'!E8 -> 368 | I195: =+'Wizard Classic'!F8 -> 10 | L195: =+Podrida!A8 -> 4 | M195: =+Podrida!B8 -> Rosa M. | N195: =+Podrida!C8 -> 1 | O195: =+Podrida!D8 -> 5 | P195: =+Podrida!E8 -> -8 | Q195: =+Podrida!F8 -> 3 | R195: =+Podrida!G8 -> 0 | T195: =+Remigio!A8 -> 4 | U195: =+Remigio!B8 -> Tito | V195: =+Remigio!C8 -> 5 | W195: =+Remigio!D8 -> 9.2 | X195: =+Remigio!E8 -> 1 | Y195: =+Remigio!F8 -> 0 | AB195: =+Tute!A8 -> 4 | AC195: =+Tute!B8 -> Ana | AD195: =+Tute!C8 -> -10 | AE195: =+Tute!D8 -> -412.5 | AF195: =+Tute!E8 -> 1 | AG195: =+Tute!F8 -> 0
D196: =+'Wizard Classic'!A9 -> 5 | E196: =+'Wizard Classic'!B9 -> Mario | F196: =+'Wizard Classic'!C9 -> 235 | G196: =+'Wizard Classic'!D9 -> 0 | H196: =+'Wizard Classic'!E9 -> 322 | I196: =+'Wizard Classic'!F9 -> 5 | L196: =+Podrida!A9 -> 5 | M196: =+Podrida!B9 -> Anna P. | N196: =+Podrida!C9 -> 1 | O196: =+Podrida!D9 -> 5 | P196: =+Podrida!E9 -> -8 | Q196: =+Podrida!F9 -> 3 | R196: =+Podrida!G9 -> 0 | T196: =+Remigio!A9 -> 5 | U196: =+Remigio!B9 -> Grau | V196: =+Remigio!C9 -> 2 | W196: =+Remigio!D9 -> 10.5 | X196: =+Remigio!E9 -> 1 | Y196: =+Remigio!F9 -> 0 | AB196: =+Tute!A9 -> 5 | AC196: =+Tute!B9 -> Grau | AD196: =+Tute!C9 -> -15 | AE196: =+Tute!D9 -> -352.5 | AF196: =+Tute!E9 -> 4 | AG196: =+Tute!F9 -> 0
D197: =+'Wizard Classic'!A10 -> 6 | E197: =+'Wizard Classic'!B10 -> Jeff | F197: =+'Wizard Classic'!C10 -> 143 | G197: =+'Wizard Classic'!D10 -> 0 | H197: =+'Wizard Classic'!E10 -> 240 | I197: =+'Wizard Classic'!F10 -> 0 | L197: =+Podrida!A10 -> 6 | M197: =+Podrida!B10 -> Silvia | N197: =+Podrida!C10 -> 1 | O197: =+Podrida!D10 -> 5 | P197: =+Podrida!E10 -> -2 | Q197: =+Podrida!F10 -> 1 | R197: =+Podrida!G10 -> 0 | T197: =+Remigio!A10 -> 6 | U197: =+Remigio!B10 -> Sergi | V197: =+Remigio!C10 -> 0 | W197: =+Remigio!D10 -> 10.8 | X197: =+Remigio!E10 -> 1 | Y197: =+Remigio!F10 -> 0
D198: =+'Wizard Classic'!A11 -> 7 | E198: =+'Wizard Classic'!B11 -> Ken | F198: =+'Wizard Classic'!C11 -> 99 | G198: =+'Wizard Classic'!D11 -> 0 | H198: =+'Wizard Classic'!E11 -> 166 | I198: =+'Wizard Classic'!F11 -> 0 | T198: =+Remigio!A11 -> 7 | U198: =+Remigio!B11 -> Mariajo | V198: =+Remigio!C11 -> -2 | W198: =+Remigio!D11 -> 12 | X198: =+Remigio!E11 -> 1 | Y198: =+Remigio!F11 -> 0
D199: =+'Wizard Classic'!A12 -> 8 | E199: =+'Wizard Classic'!B12 -> Marina | F199: =+'Wizard Classic'!C12 -> 82 | G199: =+'Wizard Classic'!D12 -> 0 | H199: =+'Wizard Classic'!E12 -> 203 | I199: =+'Wizard Classic'!F12 -> 0 | T199: =+Remigio!A12 -> 8 | U199: =+Remigio!B12 -> Ana | V199: =+Remigio!C12 -> -5 | W199: =+Remigio!D12 -> 15.2 | X199: =+Remigio!E12 -> 1 | Y199: =+Remigio!F12 -> 0
D200: =+'Wizard Classic'!A13 -> 9 | E200: =+'Wizard Classic'!B13 -> Tito | F200: =+'Wizard Classic'!C13 -> 35 | G200: =+'Wizard Classic'!D13 -> 0 | H200: =+'Wizard Classic'!E13 -> 98 | I200: =+'Wizard Classic'!F13 -> 0 | T200: =+Remigio!A13 -> 9 | U200: =+Remigio!B13 -> Carles | V200: =+Remigio!C13 -> -6 | W200: =+Remigio!D13 -> 13.33333333 | X200: =+Remigio!E13 -> 1 | Y200: =+Remigio!F13 -> 0
D201: =+'Wizard Classic'!A14 -> 10 | E201: =+'Wizard Classic'!B14 -> Alfred | F201: =+'Wizard Classic'!C14 -> 34 | G201: =+'Wizard Classic'!D14 -> 0 | H201: =+'Wizard Classic'!E14 -> 466 | I201: =+'Wizard Classic'!F14 -> 0 | T201: =+Remigio!A14 -> 10 | U201: =+Remigio!B14 -> Martín | V201: =+Remigio!C14 -> -10 | W201: =+Remigio!D14 -> 27.4 | X201: =+Remigio!E14 -> 1 | Y201: =+Remigio!F14 -> 0
D202: =+'Wizard Classic'!A15 -> 11 | E202: =+'Wizard Classic'!B15 -> Grau | F202: =+'Wizard Classic'!C15 -> -33 | G202: =+'Wizard Classic'!D15 -> 0 | H202: =+'Wizard Classic'!E15 -> 463 | I202: =+'Wizard Classic'!F15 -> 0 | T202: =+Remigio!A15 -> 11 | U202: =+Remigio!B15 -> Emiliano | V202: =+Remigio!C15 -> -10 | W202: =+Remigio!D15 -> 31.4 | X202: =+Remigio!E15 -> 1 | Y202: =+Remigio!F15 -> 0
D203: =+'Wizard Classic'!A16 -> 12 | E203: =+'Wizard Classic'!B16 -> Ana B | F203: =+'Wizard Classic'!C16 -> -88 | G203: =+'Wizard Classic'!D16 -> 0 | H203: =+'Wizard Classic'!E16 -> 112 | I203: =+'Wizard Classic'!F16 -> 0
D204: =+'Wizard Classic'!A17 -> 13 | E204: =+'Wizard Classic'!B17 -> Nin | F204: =+'Wizard Classic'!C17 -> -92 | G204: =+'Wizard Classic'!D17 -> 0 | H204: =+'Wizard Classic'!E17 -> 87 | I204: =+'Wizard Classic'!F17 -> 0
D205: =+'Wizard Classic'!A18 -> 14 | E205: =+'Wizard Classic'!B18 -> Gemma | F205: =+'Wizard Classic'!C18 -> -220 | G205: =+'Wizard Classic'!D18 -> 0 | H205: =+'Wizard Classic'!E18 -> 234 | I205: =+'Wizard Classic'!F18 -> 0
D206: =+'Wizard Classic'!A19 -> 15 | E206: =+'Wizard Classic'!B19 -> Nancy | F206: =+'Wizard Classic'!C19 -> -220 | G206: =+'Wizard Classic'!D19 -> 0 | H206: =+'Wizard Classic'!E19 -> 169 | I206: =+'Wizard Classic'!F19 -> 0
D207: =+'Wizard Classic'!A20 -> 16 | E207: =+'Wizard Classic'!B20 -> Goretti | F207: =+'Wizard Classic'!C20 -> -308 | G207: =+'Wizard Classic'!D20 -> 0 | H207: =+'Wizard Classic'!E20 -> 639 | I207: =+'Wizard Classic'!F20 -> 0
D208: =+'Wizard Classic'!A21 -> 17 | E208: =+'Wizard Classic'!B21 -> Jordi | F208: =+'Wizard Classic'!C21 -> 6 | G208: =+'Wizard Classic'!D21 -> 0 | H208: =+'Wizard Classic'!E21 -> 3 | I208: =+'Wizard Classic'!F21 -> 0
D209: =+'Wizard Classic'!A22 -> 18 | E209: =+'Wizard Classic'!B22 -> Sílvia | F209: =+'Wizard Classic'!C22 -> 4 | G209: =+'Wizard Classic'!D22 -> 0 | H209: =+'Wizard Classic'!E22 -> 1 | I209: =+'Wizard Classic'!F22 -> 0
D210: =+'Wizard Classic'!A23 -> 19 | E210: =+'Wizard Classic'!B23 -> Sebas | F210: =+'Wizard Classic'!C23 -> 2 | G210: =+'Wizard Classic'!D23 -> 0 | H210: =+'Wizard Classic'!E23 -> 3 | I210: =+'Wizard Classic'!F23 -> 0
D211: =+'Wizard Classic'!A24 -> 20 | E211: =+'Wizard Classic'!B24 -> Rosa | F211: =+'Wizard Classic'!C24 -> 2 | G211: =+'Wizard Classic'!D24 -> 0 | H211: =+'Wizard Classic'!E24 -> 1 | I211: =+'Wizard Classic'!F24 -> 0
D212: =+'Wizard Classic'!A25 -> 21 | E212: =+'Wizard Classic'!B25 -> Alejandro | F212: =+'Wizard Classic'!C25 -> 1 | G212: =+'Wizard Classic'!D25 -> 0 | H212: =+'Wizard Classic'!E25 -> 2 | I212: =+'Wizard Classic'!F25 -> 0
D213: =+'Wizard Classic'!A26 -> 22 | E213: =+'Wizard Classic'!B26 -> Núria | F213: =+'Wizard Classic'!C26 -> 0 | G213: =+'Wizard Classic'!D26 -> 0 | H213: =+'Wizard Classic'!E26 -> 3 | I213: =+'Wizard Classic'!F26 -> 0
D214: =+'Wizard Classic'!A27 -> 23 | E214: =+'Wizard Classic'!B27 -> Anna P. | F214: =+'Wizard Classic'!C27 -> -1 | G214: =+'Wizard Classic'!D27 -> 0 | H214: =+'Wizard Classic'!E27 -> 1 | I214: =+'Wizard Classic'!F27 -> 0
D215: =+'Wizard Classic'!A28 -> 24 | E215: =+'Wizard Classic'!B28 -> Nogué | F215: =+'Wizard Classic'!C28 -> -4 | G215: =+'Wizard Classic'!D28 -> 0 | H215: =+'Wizard Classic'!E28 -> 1 | I215: =+'Wizard Classic'!F28 -> 0
D216: =+'Wizard Classic'!A29 -> 25 | E216: =+'Wizard Classic'!B29 -> Joan | F216: =+'Wizard Classic'!C29 -> -4 | G216: =+'Wizard Classic'!D29 -> 0 | H216: =+'Wizard Classic'!E29 -> 1 | I216: =+'Wizard Classic'!F29 -> 0
D218: =+Canasta!A1 -> CANASTA | L218: =+'Black Jack'!A1 -> BLACK JACK | T218: =+Julepe!A1 -> JULEPE | AA218: =+'Euchre Sub.'!A1 -> EUCHRE SUBHASTAT
... 357 more rows

Sheet Magic
A1: MAGIC
A2: Mes | E2: =+(E3-10)/6+1 -> 966.1666667
A3: =+GENERAL!B6 -> 12 | E3: =SUM(E5:E27) -> 5801
C4: Premi | D4: Punts | E4: Partides | F4: General
A5: 1 | B5: Alfred | C5: =+AE$49 -> 534 | D5: =+AF$50 -> 0 | E5: =+AF$49 -> 1608 | F5: =+AE$35 -> 80 | G5: =IF(E5<A$3/2,-1,1)*800000+C5*1000+D5*0+E5/1000 -> 1334001.608 | I5: =+C5/E5 -> 0.3320895522
A6: 2 | B6: Carles | C6: =+Q$49 -> 441 | D6: =+R$50 -> 0 | E6: =+R$49 -> 217 | F6: =+Q$35 -> 40 | G6: 1241000.217 | I6: =+C6/E6 -> 2.032258065
A7: 3 | B7: Debi | C7: =+AY$49 -> 324 | D7: =+AZ$50 -> 0 | E7: =+AZ$49 -> 487 | F7: =+AY$35 -> 20 | G7: 1124000.487 | I7: 0.6652977413
A8: 4 | B8: Jeff | C8: =+AI$49 -> 242 | D8: =+AJ$50 -> 0 | E8: =+AJ$49 -> 292 | F8: =+AI$35 -> 10 | G8: 1042000.292 | I8: 0.8287671233
A9: 5 | B9: Mario | C9: =+BA$49 -> 222 | D9: =+BB$50 -> 0 | E9: =+BB$49 -> 246 | F9: =+BA$35 -> 5 | G9: 1022000.246 | I9: 0.9024390244
A10: 6 | B10: Ken | C10: =+K$49 -> 75 | D10: =+L$50 -> 0 | E10: =+L$49 -> 281 | F10: =+K$35 -> 0 | G10: 875000.281 | I10: 0.2669039146
A11: 7 | B11: Tim | C11: =+AW$49 -> 41 | D11: =+AX$50 -> 0 | E11: =+AX$49 -> 55 | F11: =+AW$35 -> 0 | G11: 841000.055 | I11: 0.7454545455
A12: 8 | B12: Manolo | C12: =+C$49 -> 35 | D12: =+D$50 -> 0 | E12: =+D$49 -> 787 | F12: =+C$35 -> 0 | G12: 835000.787 | I12: 0.04447268107
A13: 9 | B13: Marina | C13: =+Y$49 -> 6 | D13: =+Z$50 -> 0 | E13: =+Z$49 -> 166 | F13: =+Y$35 -> 0 | G13: 806000.166 | I13: 0.03614457831
A14: 10 | B14: Sebas | C14: =+AO$49 -> -12 | D14: =+AP$50 -> 0 | E14: =+AP$49 -> 6 | F14: =+AO$35 -> 0 | G14: 788000.006 | I14: -2
A15: 11 | B15: Tito | C15: =+AA$49 -> -31 | D15: =+AB$50 -> 0 | E15: =+AB$49 -> 152 | F15: =+AA$35 -> 0 | G15: 769000.152 | I15: -0.2039473684
A16: 12 | B16: Grau | C16: =+U$49 -> -45 | D16: =+V$50 -> 0 | E16: =+V$49 -> 351 | F16: =+U$35 -> 0 | G16: 755000.351 | I16: -0.1282051282
A17: 13 | B17: Ana B | C17: =+E$49 -> -60 | D17: =+F$50 -> 0 | E17: =+F$49 -> 77 | F17: =+E$35 -> 0 | G17: 740000.077 | I17: -0.7792207792
A18: 14 | B18: Nin | C18: =+AC$49 -> -62 | D18: =+AD$50 -> 0 | E18: =+AD$49 -> 92 | F18: =+AC$35 -> 0 | G18: 738000.092 | I18: -0.6739130435
A19: 15 | B19: Gemma | C19: =+AM$49 -> -286 | D19: =+AN$50 -> 0 | E19: =+AN$49 -> 577 | F19: =+AM$35 -> 0 | G19: 514000.577 | I19: -0.4956672444
A20: 16 | B20: Nancy | C20: =+AG$49 -> -467 | D20: =+AH$50 -> 0 | E20: =+AH$49 -> 393 | F20: =+AG$35 -> 0 | G20: 333000.393 | I20: -1.188295165
A21: 17 | B21: Jordi | C21: =+G$49 -> 4 | D21: =+H$50 -> 0 | E21: =+H$49 -> 3 | F21: =+G$35 -> 0 | G21: -795999.997 | I21: 1.333333333
A22: 18 | B22: Xavier | C22: =+AS$49 -> 2 | D22: =+AT$50 -> 0 | E22: =+AT$49 -> 2 | F22: =+AS$35 -> 0 | G22: -797999.998 | I22: 1
A23: 19 | B23: Mariajo | C23: =+S$49 -> -1 | D23: =+T$50 -> 0 | E23: =+T$49 -> 1 | F23: =+S$35 -> 0 | G23: -800999.999 | I23: -1
A24: 20 | B24: Alejandro | C24: =+W$49 -> -2 | D24: =+X$50 -> 0 | E24: =+X$49 -> 2 | F24: =+W$35 -> 0 | G24: -801999.998 | I24: -1
A25: 21 | B25: Sergi | C25: =+O$49 -> -2 | D25: =+P$50 -> 0 | E25: =+P$49 -> 1 | F25: =+O$35 -> 0 | G25: -801999.999 | I25: -2
A26: 22 | B26: Eito | C26: =+AU$49 -> -3 | D26: =+AV$50 -> 0 | E26: =+AV$49 -> 1 | F26: =+AU$35 -> 0 | G26: -802999.999 | I26: -3
A27: 23 | B27: Goretti | C27: =+M$49 -> -15 | D27: =+N$50 -> 0 | E27: =+N$49 -> 4 | F27: =+M$35 -> 0 | G27: -814999.996
A28: 24 | B28: Nogué | C28: =+BG$49 -> -100000000 | D28: =+BH$50 -> 0 | E28: =+BH$49 -> 0 | F28: =+BG$35 -> 0 | G28: -100000800000
A29: 25 | B29: Christophe | C29: =+BE$49 -> -100000000 | D29: =+BF$50 -> 0 | E29: =+BF$49 -> 0 | F29: =+BE$35 -> 0 | G29: -100000800000
A30: 26 | B30: Núria | C30: =+AK$49 -> -100000000 | D30: =+AL$50 -> 0 | E30: =+AL$49 -> 0 | F30: =+AK$35 -> 0 | G30: -100000800000
A31: 27 | B31: Lluïsa | C31: =+AQ$49 -> -100000000 | D31: =+AR$50 -> 0 | E31: =+AR$49 -> 0 | F31: =+AQ$35 -> 0 | G31: -100000800000
A32: 28 | B32: Lleixà | C32: =+I$49 -> -100000000 | D32: =+J$50 -> 0 | E32: =+J$49 -> 0 | F32: =+I$35 -> 0 | G32: -100000800000
A33: 29 | B33: Òscar | C33: =+BC$49 -> -100000000 | D33: =+BD$50 -> 0 | E33: =+BD$49 -> 0 | F33: =+BC$35 -> 0 | G33: -100000800000
B35: General | C35: =+C36*C37 -> 0 | D35: =+D36*D37 -> 787 | E35: 0 | F35: 77 | G35: =+G36*G37 -> 0 | H35: 3 | I35: 0 | J35: 0 | K35: =+K36*K37 -> 0 | L35: =+L36*L37 -> 281 | M35: 0 | N35: 4 | O35: 0 | P35: 1 | Q35: 40 | R35: 217 | S35: 0 | T35: 1 | U35: =+U36*U37 -> 0 | V35: 351 | W35: 0 | X35: 2 | Y35: 0 | Z35: 166 | AA35: =+AA36*AA37 -> 0 | AB35: =+AB36*AB37 -> 152 | AC35: =+AC36*AC37 -> 0 | AD35: =+AD36*AD37 -> 92 | AE35: =+AE36*AE37 -> 80 | AF35: 1608 | AG35: =+AG36*AG37 -> 0 | AH35: =+AH36*AH37 -> 393 | AI35: 10 | AJ35: 292 | AK35: 0 | AL35: 0 | AM35: 0 | AN35: 577 | AO35: 0 | AP35: 6 | AQ35: 0 | AR35: 0 | AS35: 0 | AT35: 2 | AU35: 0 | AV35: 1 | AW35: 0 | AX35: 55 | AY35: 20 | AZ35: 487 | BA35: 5 | BB35: 246 | BC35: 0 | BD35: 0 | BE35: 0 | BF35: 0 | BG35: 0 | BH35: 0
C36: =IF($B48>3,1,0) -> 1 | D36: =IF($B48>3,1,0) -> 1 | E36: 1 | F36: 1 | G36: =IF($B48>3,1,0) -> 1 | H36: 1 | I36: 1 | J36: 1 | K36: =IF($B48>3,1,0) -> 1 | L36: =IF($B48>3,1,0) -> 1 | M36: 1 | N36: 1 | O36: 1 | P36: 1 | Q36: 1 | R36: 1 | S36: 1 | T36: 1 | U36: 1 | V36: 1 | W36: 1 | X36: 1 | Y36: 1 | Z36: 1 | AA36: =IF($B48>3,1,0) -> 1 | AB36: =IF($B48>3,1,0) -> 1 | AC36: =IF($B48>3,1,0) -> 1 | AD36: =IF($B48>3,1,0) -> 1 | AE36: 1 | AF36: 1 | AG36: =IF($B48>3,1,0) -> 1 | AH36: =IF($B48>3,1,0) -> 1 | AI36: 1 | AJ36: 1 | AK36: 1 | AL36: 1 | AM36: 1 | AN36: 1 | AO36: 1 | AP36: 1 | AQ36: 1 | AR36: 1 | AS36: 1 | AT36: 1 | AU36: 1 | AV36: 1 | AW36: 1 | AX36: 1 | AY36: 1 | AZ36: 1 | BA36: 1 | BB36: 1 | BC36: 1 | BD36: 1 | BE36: 1 | BF36: 1 | BG36: 1 | BH36: 1
C37: =MAX(C38:C42) -> 0 | D37: =+D49 -> 787 | E37: =MAX(E38:E42) -> 0 | F37: =+F49 -> 77 | G37: =MAX(G38:G42) -> 0 | H37: =+H49 -> 3 | I37: =MAX(I38:I42) -> 0 | J37: =+J49 -> 0 | K37: =MAX(K38:K42) -> 0 | L37: =+L49 -> 281 | M37: =MAX(M38:M42) -> 0 | N37: =+N49 -> 4 | O37: =MAX(O38:O42) -> 0 | P37: =+P49 -> 1 | Q37: =MAX(Q38:Q42) -> 40 | R37: =+R49 -> 217 | S37: =MAX(S38:S42) -> 0 | T37: =+T49 -> 1 | U37: =MAX(U38:U42) -> 0 | V37: =+V49 -> 351 | W37: =MAX(W38:W42) -> 0 | X37: =+X49 -> 2 | Y37: =MAX(Y38:Y42) -> 0 | Z37: =+Z49 -> 166 | AA37: =MAX(AA38:AA42) -> 0 | AB37: =+AB49 -> 152 | AC37: =MAX(AC38:AC42) -> 0 | AD37: =+AD49 -> 92 | AE37: =MAX(AE38:AE42) -> 80 | AF37: =+AF49 -> 1608 | AG37: =MAX(AG38:AG42) -> 0 | AH37: =+AH49 -> 393 | AI37: =MAX(AI38:AI42) -> 10 | AJ37: =+AJ49 -> 292 | AK37: =MAX(AK38:AK42) -> 0 | AL37: =+AL49 -> 0 | AM37: =MAX(AM38:AM42) -> 0 | AN37: =+AN49 -> 577 | AO37: =MAX(AO38:AO42) -> 0 | AP37: =+AP49 -> 6 | AQ37: =MAX(AQ38:AQ42) -> 0 | AR37: =+AR49 -> 0 | AS37: =MAX(AS38:AS42) -> 0 | AT37: =+AT49 -> 2 | AU37: =MAX(AU38:AU42) -> 0 | AV37: =+AV49 -> 1 | AW37: =MAX(AW38:AW42) -> 0 | AX37: =+AX49 -> 55 | AY37: =MAX(AY38:AY42) -> 20 | AZ37: =+AZ49 -> 487 | BA37: =MAX(BA38:BA42) -> 5 | BB37: =+BB49 -> 246 | BC37: =MAX(BC38:BC42) -> 0 | BD37: =+BD49 -> 0 | BE37: =MAX(BE38:BE42) -> 0 | BF37: =+BF49 -> 0 | BG37: =MAX(BG38:BG42) -> 0 | BH37: =+BH49 -> 0
C38: =IF(C$43=5,5,0) -> 0 | E38: =IF(E$43=5,5,0) -> 0 | G38: =IF(G$43=5,5,0) -> 0 | I38: =IF(I$43=5,5,0) -> 0 | K38: =IF(K$43=5,5,0) -> 0 | M38: =IF(M$43=5,5,0) -> 0 | O38: =IF(O$43=5,5,0) -> 0 | Q38: =IF(Q$43=5,5,0) -> 0 | S38: =IF(S$43=5,5,0) -> 0 | U38: =IF(U$43=5,5,0) -> 0 | W38: =IF(W$43=5,5,0) -> 0 | Y38: =IF(Y$43=5,5,0) -> 0 | AA38: =IF(AA$43=5,5,0) -> 0 | AC38: =IF(AC$43=5,5,0) -> 0 | AE38: =IF(AE$43=5,5,0) -> 0 | AG38: =IF(AG$43=5,5,0) -> 0 | AI38: =IF(AI$43=5,5,0) -> 0 | AK38: =IF(AK$43=5,5,0) -> 0 | AM38: =IF(AM$43=5,5,0) -> 0 | AO38: =IF(AO$43=5,5,0) -> 0 | AQ38: =IF(AQ$43=5,5,0) -> 0 | AS38: =IF(AS$43=5,5,0) -> 0 | AU38: =IF(AU$43=5,5,0) -> 0 | AW38: =IF(AW$43=5,5,0) -> 0 | AY38: =IF(AY$43=5,5,0) -> 0 | BA38: =IF(BA$43=5,5,0) -> 5 | BC38: =IF(BC$43=5,5,0) -> 0 | BE38: =IF(BE$43=5,5,0) -> 0 | BG38: =IF(BG$43=5,5,0) -> 0
C39: =IF(C$43=4,10,0) -> 0 | E39: =IF(E$43=4,10,0) -> 0 | G39: =IF(G$43=4,10,0) -> 0 | I39: =IF(I$43=4,10,0) -> 0 | K39: =IF(K$43=4,10,0) -> 0 | M39: =IF(M$43=4,10,0) -> 0 | O39: =IF(O$43=4,10,0) -> 0 | Q39: =IF(Q$43=4,10,0) -> 0 | S39: =IF(S$43=4,10,0) -> 0 | U39: =IF(U$43=4,10,0) -> 0 | W39: =IF(W$43=4,10,0) -> 0 | Y39: =IF(Y$43=4,10,0) -> 0 | AA39: =IF(AA$43=4,10,0) -> 0 | AC39: =IF(AC$43=4,10,0) -> 0 | AE39: =IF(AE$43=4,10,0) -> 0 | AG39: =IF(AG$43=4,10,0) -> 0 | AI39: =IF(AI$43=4,10,0) -> 10 | AK39: =IF(AK$43=4,10,0) -> 0 | AM39: =IF(AM$43=4,10,0) -> 0 | AO39: =IF(AO$43=4,10,0) -> 0 | AQ39: =IF(AQ$43=4,10,0) -> 0 | AS39: =IF(AS$43=4,10,0) -> 0 | AU39: =IF(AU$43=4,10,0) -> 0 | AW39: =IF(AW$43=4,10,0) -> 0 | AY39: =IF(AY$43=4,10,0) -> 0 | BA39: =IF(BA$43=4,10,0) -> 0 | BC39: =IF(BC$43=4,10,0) -> 0 | BE39: =IF(BE$43=4,10,0) -> 0 | BG39: =IF(BG$43=4,10,0) -> 0
C40: =IF(C$43=3,20,0) -> 0 | E40: =IF(E$43=3,20,0) -> 0 | G40: =IF(G$43=3,20,0) -> 0 | I40: =IF(I$43=3,20,0) -> 0 | K40: =IF(K$43=3,20,0) -> 0 | M40: =IF(M$43=3,20,0) -> 0 | O40: =IF(O$43=3,20,0) -> 0 | Q40: =IF(Q$43=3,20,0) -> 0 | S40: =IF(S$43=3,20,0) -> 0 | U40: =IF(U$43=3,20,0) -> 0 | W40: =IF(W$43=3,20,0) -> 0 | Y40: =IF(Y$43=3,20,0) -> 0 | AA40: =IF(AA$43=3,20,0) -> 0 | AC40: =IF(AC$43=3,20,0) -> 0 | AE40: =IF(AE$43=3,20,0) -> 0 | AG40: =IF(AG$43=3,20,0) -> 0 | AI40: =IF(AI$43=3,20,0) -> 0 | AK40: =IF(AK$43=3,20,0) -> 0 | AM40: =IF(AM$43=3,20,0) -> 0 | AO40: =IF(AO$43=3,20,0) -> 0 | AQ40: =IF(AQ$43=3,20,0) -> 0 | AS40: =IF(AS$43=3,20,0) -> 0 | AU40: =IF(AU$43=3,20,0) -> 0 | AW40: =IF(AW$43=3,20,0) -> 0 | AY40: =IF(AY$43=3,20,0) -> 20 | BA40: =IF(BA$43=3,20,0) -> 0 | BC40: =IF(BC$43=3,20,0) -> 0 | BE40: =IF(BE$43=3,20,0) -> 0 | BG40: =IF(BG$43=3,20,0) -> 0
C41: =IF(C$43=2,40,0) -> 0 | E41: =IF(E$43=2,40,0) -> 0 | G41: =IF(G$43=2,40,0) -> 0 | I41: =IF(I$43=2,40,0) -> 0 | K41: =IF(K$43=2,40,0) -> 0 | M41: =IF(M$43=2,40,0) -> 0 | O41: =IF(O$43=2,40,0) -> 0 | Q41: =IF(Q$43=2,40,0) -> 40 | S41: =IF(S$43=2,40,0) -> 0 | U41: =IF(U$43=2,40,0) -> 0 | W41: =IF(W$43=2,40,0) -> 0 | Y41: =IF(Y$43=2,40,0) -> 0 | AA41: =IF(AA$43=2,40,0) -> 0 | AC41: =IF(AC$43=2,40,0) -> 0 | AE41: =IF(AE$43=2,40,0) -> 0 | AG41: =IF(AG$43=2,40,0) -> 0 | AI41: =IF(AI$43=2,40,0) -> 0 | AK41: =IF(AK$43=2,40,0) -> 0 | AM41: =IF(AM$43=2,40,0) -> 0 | AO41: =IF(AO$43=2,40,0) -> 0 | AQ41: =IF(AQ$43=2,40,0) -> 0 | AS41: =IF(AS$43=2,40,0) -> 0 | AU41: =IF(AU$43=2,40,0) -> 0 | AW41: =IF(AW$43=2,40,0) -> 0 | AY41: =IF(AY$43=2,40,0) -> 0 | BA41: =IF(BA$43=2,40,0) -> 0 | BC41: =IF(BC$43=2,40,0) -> 0 | BE41: =IF(BE$43=2,40,0) -> 0 | BG41: =IF(BG$43=2,40,0) -> 0
C42: =IF(C$43=1,80,0) -> 0 | E42: =IF(E$43=1,80,0) -> 0 | G42: =IF(G$43=1,80,0) -> 0 | I42: =IF(I$43=1,80,0) -> 0 | K42: =IF(K$43=1,80,0) -> 0 | M42: =IF(M$43=1,80,0) -> 0 | O42: =IF(O$43=1,80,0) -> 0 | Q42: =IF(Q$43=1,80,0) -> 0 | S42: =IF(S$43=1,80,0) -> 0 | U42: =IF(U$43=1,80,0) -> 0 | W42: =IF(W$43=1,80,0) -> 0 | Y42: =IF(Y$43=1,80,0) -> 0 | AA42: =IF(AA$43=1,80,0) -> 0 | AC42: =IF(AC$43=1,80,0) -> 0 | AE42: =IF(AE$43=1,80,0) -> 80 | AG42: =IF(AG$43=1,80,0) -> 0 | AI42: =IF(AI$43=1,80,0) -> 0 | AK42: =IF(AK$43=1,80,0) -> 0 | AM42: =IF(AM$43=1,80,0) -> 0 | AO42: =IF(AO$43=1,80,0) -> 0 | AQ42: =IF(AQ$43=1,80,0) -> 0 | AS42: =IF(AS$43=1,80,0) -> 0 | AU42: =IF(AU$43=1,80,0) -> 0 | AW42: =IF(AW$43=1,80,0) -> 0 | AY42: =IF(AY$43=1,80,0) -> 0 | BA42: =IF(BA$43=1,80,0) -> 0 | BC42: =IF(BC$43=1,80,0) -> 0 | BE42: =IF(BE$43=1,80,0) -> 0 | BG42: =IF(BG$43=1,80,0) -> 0
C43: =RANK(C44,$C44:$CJ44)*C48 -> 8 | E43: =RANK(E44,$C44:$CJ44)*E48 -> 13 | G43: =RANK(G44,$C44:$CJ44)*G48 -> 0 | I43: =RANK(I44,$C44:$CJ44)*I48 -> 0 | K43: =RANK(K44,$C44:$CJ44)*K48 -> 6 | M43: =RANK(M44,$C44:$CJ44)*M48 -> 0 | O43: =RANK(O44,$C44:$CJ44)*O48 -> 0 | Q43: =RANK(Q44,$C44:$CJ44)*Q48 -> 2 | S43: =RANK(S44,$C44:$CJ44)*S48 -> 0 | U43: =RANK(U44,$C44:$CJ44)*U48 -> 12 | W43: =RANK(W44,$C44:$CJ44)*W48 -> 0 | Y43: =RANK(Y44,$C44:$CJ44)*Y48 -> 9 | AA43: =RANK(AA44,$C44:$CJ44)*AA48 -> 11 | AC43: =RANK(AC44,$C44:$CJ44)*AC48 -> 14 | AE43: =RANK(AE44,$C44:$CJ44)*AE48 -> 1 | AG43: =RANK(AG44,$C44:$CJ44)*AG48 -> 16 | AI43: =RANK(AI44,$C44:$CJ44)*AI48 -> 4 | AK43: =RANK(AK44,$C44:$CJ44)*AK48 -> 0 | AM43: =RANK(AM44,$C44:$CJ44)*AM48 -> 15 | AO43: =RANK(AO44,$C44:$CJ44)*AO48 -> 10 | AQ43: =RANK(AQ44,$C44:$CJ44)*AQ48 -> 0 | AS43: =RANK(AS44,$C44:$CJ44)*AS48 -> 0 | AU43: =RANK(AU44,$C44:$CJ44)*AU48 -> 0 | AW43: =RANK(AW44,$C44:$CJ44)*AW48 -> 7 | AY43: =RANK(AY44,$C44:$CJ44)*AY48 -> 3 | BA43: =RANK(BA44,$C44:$CJ44)*BA48 -> 5 | BC43: =RANK(BC44,$C44:$CJ44)*BC48 -> 0 | BE43: =RANK(BE44,$C44:$CJ44)*BE48 -> 0 | BG43: =RANK(BG44,$C44:$CJ44)*BG48 -> 0
C44: =SUM(C45:C47) -> 35042.87 | E44: =SUM(E45:E47) -> -60059.23 | G44: =SUM(G45:G47) -> -999995.97 | I44: =SUM(I45:I47) -> -101000000 | K44: =SUM(K45:K47) -> 75077.81 | M44: =SUM(M45:M47) -> -1000014.96 | O44: =SUM(O45:O47) -> -1000001.99 | Q44: =SUM(Q45:Q47) -> 441443.17 | S44: =SUM(S45:S47) -> -1000000.99 | U44: =SUM(U45:U47) -> -45041.49 | W44: =SUM(W45:W47) -> -1000001.98 | Y44: =SUM(Y45:Y47) -> 6007.66 | AA44: =SUM(AA45:AA47) -> -31029.48 | AC44: =SUM(AC45:AC47) -> -62061.08 | AE44: =SUM(AE45:AE47) -> 534550.08 | AG44: =SUM(AG45:AG47) -> -467463.07 | AI44: =SUM(AI45:AI47) -> 242244.92 | AK44: =SUM(AK45:AK47) -> -101000000 | AM44: =SUM(AM45:AM47) -> -286280.23 | AO44: =SUM(AO45:AO47) -> -12011.94 | AQ44: =SUM(AQ45:AQ47) -> -101000000 | AS44: =SUM(AS45:AS47) -> -999997.98 | AU44: =SUM(AU45:AU47) -> -1000002.99 | AW44: =SUM(AW45:AW47) -> 41041.55 | AY44: =SUM(AY45:AY47) -> 324328.87 | BA44: =SUM(BA45:BA47) -> 222224.46 | BC44: =SUM(BC45:BC47) -> -101000000 | BE44: =SUM(BE45:BE47) -> -101000000 | BG44: =SUM(BG45:BG47) -> -101000000
C45: =+D49/100 -> 7.87 | E45: =+F49/100 -> 0.77 | G45: =+H49/100 -> 0.03 | I45: =+J49/100 -> 0 | K45: =+L49/100 -> 2.81 | M45: =+N49/100 -> 0.04 | O45: =+P49/100 -> 0.01 | Q45: =+R49/100 -> 2.17 | S45: =+T49/100 -> 0.01 | U45: =+V49/100 -> 3.51 | W45: =+X49/100 -> 0.02 | Y45: =+Z49/100 -> 1.66 | AA45: =+AB49/100 -> 1.52 | AC45: =+AD49/100 -> 0.92 | AE45: =+AF49/100 -> 16.08 | AG45: =+AH49/100 -> 3.93 | AI45: =+AJ49/100 -> 2.92 | AK45: =+AL49/100 -> 0 | AM45: =+AN49/100 -> 5.77 | AO45: =+AP49/100 -> 0.06 | AQ45: =+AR49/100 -> 0 | AS45: =+AT49/100 -> 0.02 | AU45: =+AV49/100 -> 0.01 | AW45: =+AX49/100 -> 0.55 | AY45: =+AZ49/100 -> 4.87 | BA45: =+BB49/100 -> 2.46 | BC45: =+BD49/100 -> 0 | BE45: =+BF49/100 -> 0 | BG45: =+BH49/100 -> 0
C46: =D50*0 -> 0 | E46: =F50*0 -> 0 | G46: =H50*0 -> 0 | I46: =J50*0 -> 0 | K46: =L50*0 -> 0 | M46: =N50*0 -> 0 | O46: =P50*0 -> 0 | Q46: =R50*0 -> 0 | S46: =T50*0 -> 0 | U46: =V50*0 -> 0 | W46: =X50*0 -> 0 | Y46: =Z50*0 -> 0 | AA46: =AB50*0 -> 0 | AC46: =AD50*0 -> 0 | AE46: =AF50*0 -> 0 | AG46: =AH50*0 -> 0 | AI46: =AJ50*0 -> 0 | AK46: =AL50*0 -> 0 | AM46: =AN50*0 -> 0 | AO46: =AP50*0 -> 0 | AQ46: =AR50*0 -> 0 | AS46: =AT50*0 -> 0 | AU46: =AV50*0 -> 0 | AW46: =AX50*0 -> 0 | AY46: =AZ50*0 -> 0 | BA46: =BB50*0 -> 0 | BC46: =BD50*0 -> 0 | BE46: =BF50*0 -> 0 | BG46: =BH50*0 -> 0
C47: =IF(C48=1,C49*C48*1000+C49,-1000000+C49) -> 35035 | E47: =IF(E48=1,E49*E48*1000+E49,-1000000+E49) -> -60060 | G47: =IF(G48=1,G49*G48*1000+G49,-1000000+G49) -> -999996 | I47: =IF(I48=1,I49*I48*1000+I49,-1000000+I49) -> -101000000 | K47: =IF(K48=1,K49*K48*1000+K49,-1000000+K49) -> 75075 | M47: =IF(M48=1,M49*M48*1000+M49,-1000000+M49) -> -1000015 | O47: =IF(O48=1,O49*O48*1000+O49,-1000000+O49) -> -1000002 | Q47: =IF(Q48=1,Q49*Q48*1000+Q49,-1000000+Q49) -> 441441 | S47: =IF(S48=1,S49*S48*1000+S49,-1000000+S49) -> -1000001 | U47: =IF(U48=1,U49*U48*1000+U49,-1000000+U49) -> -45045 | W47: =IF(W48=1,W49*W48*1000+W49,-1000000+W49) -> -1000002 | Y47: =IF(Y48=1,Y49*Y48*1000+Y49,-1000000+Y49) -> 6006 | AA47: =IF(AA48=1,AA49*AA48*1000+AA49,-1000000+AA49) -> -31031 | AC47: =IF(AC48=1,AC49*AC48*1000+AC49,-1000000+AC49) -> -62062 | AE47: =IF(AE48=1,AE49*AE48*1000+AE49,-1000000+AE49) -> 534534 | AG47: =IF(AG48=1,AG49*AG48*1000+AG49,-1000000+AG49) -> -467467 | AI47: =IF(AI48=1,AI49*AI48*1000+AI49,-1000000+AI49) -> 242242 | AK47: =IF(AK48=1,AK49*AK48*1000+AK49,-1000000+AK49) -> -101000000 | AM47: =IF(AM48=1,AM49*AM48*1000+AM49,-1000000+AM49) -> -286286 | AO47: =IF(AO48=1,AO49*AO48*1000+AO49,-1000000+AO49) -> -12012 | AQ47: =IF(AQ48=1,AQ49*AQ48*1000+AQ49,-1000000+AQ49) -> -101000000 | AS47: =IF(AS48=1,AS49*AS48*1000+AS49,-1000000+AS49) -> -999998 | AU47: =IF(AU48=1,AU49*AU48*1000+AU49,-1000000+AU49) -> -1000003 | AW47: =IF(AW48=1,AW49*AW48*1000+AW49,-1000000+AW49) -> 41041 | AY47: =IF(AY48=1,AY49*AY48*1000+AY49,-1000000+AY49) -> 324324 | BA47: =IF(BA48=1,BA49*BA48*1000+BA49,-1000000+BA49) -> 222222 | BC47: =IF(BC48=1,BC49*BC48*1000+BC49,-1000000+BC49) -> -101000000 | BE47: =IF(BE48=1,BE49*BE48*1000+BE49,-1000000+BE49) -> -101000000 | BG47: =IF(BG48=1,BG49*BG48*1000+BG49,-1000000+BG49) -> -101000000
A48: Classificats | B48: =SUM(C48:AI48) -> 11 | C48: =IF(D49>=$A3/2,1,0) -> 1 | E48: =IF(F49>=$A3/2,1,0) -> 1 | G48: =IF(H49>=$A3/2,1,0) -> 0 | I48: =IF(J49>=$A3/2,1,0) -> 0 | K48: =IF(L49>=$A3/2,1,0) -> 1 | M48: =IF(N49>=$A3/2,1,0) -> 0 | O48: =IF(P49>=$A3/2,1,0) -> 0 | Q48: =IF(R49>=$A3/2,1,0) -> 1 | S48: =IF(T49>=$A3/2,1,0) -> 0 | U48: =IF(V49>=$A3/2,1,0) -> 1 | W48: =IF(X49>=$A3/2,1,0) -> 0 | Y48: =IF(Z49>=$A3/2,1,0) -> 1 | AA48: =IF(AB49>=$A3/2,1,0) -> 1 | AC48: =IF(AD49>=$A3/2,1,0) -> 1 | AE48: =IF(AF49>=$A3/2,1,0) -> 1 | AG48: =IF(AH49>=$A3/2,1,0) -> 1 | AI48: =IF(AJ49>=$A3/2,1,0) -> 1 | AK48: =IF(AL49>=$A3/2,1,0) -> 0 | AM48: =IF(AN49>=$A3/2,1,0) -> 1 | AO48: =IF(AP49>=$A3/2,1,0) -> 1 | AQ48: =IF(AR49>=$A3/2,1,0) -> 0 | AS48: =IF(AT49>=$A3/2,1,0) -> 0 | AU48: =IF(AV49>=$A3/2,1,0) -> 0 | AW48: =IF(AX49>=$A3/2,1,0) -> 1 | AY48: =IF(AZ49>=$A3/2,1,0) -> 1 | BA48: =IF(BB49>=$A3/2,1,0) -> 1 | BC48: =IF(BD49>=$A3/2,1,0) -> 0 | BE48: =IF(BF49>=$A3/2,1,0) -> 0 | BG48: =IF(BH49>=$A3/2,1,0) -> 0
C49: =IF(SUM(C54:C994)<-1000,-100000000,SUM(C54:C994)) -> 35 | D49: =COUNT(D67:D994)+SUM(D54:D66) -> 787 | E49: =IF(SUM(E54:E994)<-1000,-100000000,SUM(E54:E994)) -> -60 | F49: =COUNT(F67:F994)+SUM(F54:F66) -> 77 | G49: =IF(SUM(G54:G994)<-1000,-100000000,SUM(G54:G994)) -> 4 | H49: =COUNT(H67:H994)+SUM(H54:H66) -> 3 | I49: =IF(SUM(I54:I994)<-1000,-100000000,SUM(I54:I994)) -> -100000000 | J49: =COUNT(J67:J994)+SUM(J54:J66) -> 0 | K49: =IF(SUM(K54:K994)<-1000,-100000000,SUM(K54:K994)) -> 75 | L49: =COUNT(L67:L994)+SUM(L54:L66) -> 281 | M49: =IF(SUM(M54:M994)<-1000,-100000000,SUM(M54:M994)) -> -15 | N49: =COUNT(N67:N994)+SUM(N54:N66) -> 4 | O49: =IF(SUM(O54:O994)<-1000,-100000000,SUM(O54:O994)) -> -2 | P49: =COUNT(P67:P994)+SUM(P54:P66) -> 1 | Q49: =IF(SUM(Q54:Q994)<-1000,-100000000,SUM(Q54:Q994)) -> 441 | R49: =COUNT(R67:R994)+SUM(R54:R66) -> 217 | S49: =IF(SUM(S54:S994)<-1000,-100000000,SUM(S54:S994)) -> -1 | T49: =COUNT(T67:T994)+SUM(T54:T66) -> 1 | U49: =IF(SUM(U54:U994)<-1000,-100000000,SUM(U54:U994)) -> -45 | V49: =COUNT(V67:V994)+SUM(V54:V66) -> 351 | W49: =IF(SUM(W54:W994)<-1000,-100000000,SUM(W54:W994)) -> -2 | X49: =COUNT(X67:X994)+SUM(X54:X66) -> 2 | Y49: =IF(SUM(Y54:Y994)<-1000,-100000000,SUM(Y54:Y994)) -> 6 | Z49: =COUNT(Z67:Z994)+SUM(Z54:Z66) -> 166 | AA49: =IF(SUM(AA54:AA994)<-1000,-100000000,SUM(AA54:AA994)) -> -31 | AB49: =COUNT(AB67:AB994)+SUM(AB54:AB66) -> 152 | AC49: =IF(SUM(AC54:AC994)<-1000,-100000000,SUM(AC54:AC994)) -> -62 | AD49: =COUNT(AD67:AD994)+SUM(AD54:AD66) -> 92 | AE49: =IF(SUM(AE54:AE994)<-1000,-100000000,SUM(AE54:AE994)) -> 534 | AF49: =COUNT(AF67:AF994)+SUM(AF54:AF66) -> 1608 | AG49: =IF(SUM(AG54:AG994)<-1000,-100000000,SUM(AG54:AG994)) -> -467 | AH49: =COUNT(AH67:AH994)+SUM(AH54:AH66) -> 393 | AI49: =IF(SUM(AI54:AI994)<-1000,-100000000,SUM(AI54:AI994)) -> 242 | AJ49: =COUNT(AJ67:AJ994)+SUM(AJ54:AJ66) -> 292 | AK49: =IF(SUM(AK54:AK994)<-1000,-100000000,SUM(AK54:AK994)) -> -100000000 | AL49: =COUNT(AL67:AL994)+SUM(AL54:AL66) -> 0 | AM49: =IF(SUM(AM54:AM994)<-1000,-100000000,SUM(AM54:AM994)) -> -286 | AN49: =COUNT(AN67:AN994)+SUM(AN54:AN66) -> 577 | AO49: =IF(SUM(AO54:AO994)<-1000,-100000000,SUM(AO54:AO994)) -> -12 | AP49: =COUNT(AP67:AP994)+SUM(AP54:AP66) -> 6 | AQ49: =IF(SUM(AQ54:AQ994)<-1000,-100000000,SUM(AQ54:AQ994)) -> -100000000 | AR49: =COUNT(AR67:AR994)+SUM(AR54:AR66) -> 0 | AS49: =IF(SUM(AS54:AS994)<-1000,-100000000,SUM(AS54:AS994)) -> 2 | AT49: =COUNT(AT67:AT994)+SUM(AT54:AT66) -> 2 | AU49: =IF(SUM(AU54:AU994)<-1000,-100000000,SUM(AU54:AU994)) -> -3 | AV49: =COUNT(AV67:AV994)+SUM(AV54:AV66) -> 1 | AW49: =IF(SUM(AW54:AW994)<-1000,-100000000,SUM(AW54:AW994)) -> 41 | AX49: =COUNT(AX67:AX994)+SUM(AX54:AX66) -> 55 | AY49: =IF(SUM(AY54:AY994)<-1000,-100000000,SUM(AY54:AY994)) -> 324 | AZ49: =COUNT(AZ67:AZ994)+SUM(AZ54:AZ66) -> 487 | BA49: =IF(SUM(BA54:BA994)<-1000,-100000000,SUM(BA54:BA994)) -> 222 | BB49: =COUNT(BB67:BB994)+SUM(BB54:BB66) -> 246 | BC49: =IF(SUM(BC54:BC994)<-1000,-100000000,SUM(BC54:BC994)) -> -100000000 | BD49: =COUNT(BD67:BD994)+SUM(BD54:BD66) -> 0 | BE49: =IF(SUM(BE54:BE994)<-1000,-100000000,SUM(BE54:BE994)) -> -100000000 | BF49: =COUNT(BF67:BF994)+SUM(BF54:BF66) -> 0 | BG49: =IF(SUM(BG54:BG994)<-1000,-100000000,SUM(BG54:BG994)) -> -100000000 | BH49: =COUNT(BH67:BH994)+SUM(BH54:BH66) -> 0
BI51: =MAX(BJ54:BJ1075) -> 23
B52: Comentaris | C52: Manolo | E52: Ana B | G52: Jordi | I52: Lleixà | K52: Ken | M52: Goretti | O52: Sergi | Q52: Carles | S52: Mariajo | U52: Grau | W52: Alejandro | Y52: Marina | AA52: Tito | AC52: Nin | AE52: Alfred | AG52: Nancy | AI52: Jeff | AK52: Núria | AM52: Gemma | AO52: Sebas | AQ52: Lluïsa | AS52: Xavier | AU52: Eito | AW52: Tim | AY52: Debi | BA52: Mario | BC52: Òscar | BE52: Christophe | BG52: Nogué | BI52: =COUNT(BI68:BI910)+SUM(BI55:BI66) -> 966.1666667 | BJ52: A | BK52: B | BL52: C | BM52: cyberX2 | BN52: =SUM(BN54:BN909) -> 0
C53: Premi | D53: Punts | E53: Premi | F53: Punts | G53: Premi | H53: Punts | I53: Premi | J53: Punts | K53: Premi | L53: Punts | M53: Premi | N53: Punts | O53: Premi | P53: Punts | Q53: Premi | R53: Punts | S53: Premi | T53: Punts | U53: Premi | V53: Punts | W53: Premi | X53: Punts | Y53: Premi | Z53: Punts | AA53: Premi | AB53: Punts | AC53: Premi | AD53: Punts | AE53: Premi | AF53: Punts | AG53: Premi | AH53: Punts | AI53: Premi | AJ53: Punts | AK53: Premi | AL53: Punts | AM53: Premi | AN53: Punts | AO53: Premi | AP53: Punts | AQ53: Premi | AR53: Punts | AS53: Premi | AT53: Punts | AU53: Premi | AV53: Punts | AW53: Premi | AX53: Punts | AY53: Premi | AZ53: Punts | BA53: Premi | BB53: Punts | BC53: Premi | BD53: Punts | BE53: Premi | BF53: Punts | BG53: Premi | BH53: Punts | BI53: Data | BJ53: Timba | BN53: Excés cyber
A54: 1 | B54: 2022-10-01
A55: =+A54+1 -> 2 | B55: =+B54+31 -> 2022-11-01 | C55: -8 | D55: 42 | E55: 7 | F55: 10 | G55: -1 | H55: 1 | K55: -7 | L55: 23 | Q55: 26 | R55: 15 | U55: -4 | V55: 26 | Y55: -3 | Z55: 22 | AA55: -8 | AB55: 11 | AE55: 24 | AF55: 132 | AG55: -8 | AH55: 9 | AI55: 8 | AJ55: 26 | AM55: -18 | AN55: 51 | AO55: 1 | AP55: 1 | AS55: 2 | AT55: 2 | AU55: -3 | AV55: 1 | AW55: 6 | AX55: 8 | AY55: 7 | AZ55: 22 | BA55: -10 | BB55: 31 | BI55: =+(AH55+AD55+X55+V55+T55+R55+P55+N55+L55+H55+F55+D55+AF55+J55+BH55+BO55+Z55+AB55+AJ55+AN55+AP55+AX55+BF55+BD55+BB55+AZ55+AV55+AT55+AR55)/6 -> 72.16666667
A56: =+A55+1 -> 3 | B56: =+B55+31 -> 2022-12-02 | C56: 53 | D56: 124 | E56: 6 | F56: 13 | K56: -4 | L56: 25 | Q56: 37 | R56: 19 | U56: -11 | V56: 33 | Y56: -4 | Z56: 19 | AA56: -10 | AB56: 18 | AE56: 44 | AF56: 106 | AG56: -94 | AH56: 47 | AI56: 40 | AJ56: 46 | AM56: -63 | AN56: 63 | AO56: 1 | AP56: 1 | AW56: 15 | AX56: 13 | AY56: 55 | AZ56: 53 | BA56: -12 | BB56: 21 | BI56: =+(AH56+AD56+X56+V56+T56+R56+P56+N56+L56+H56+F56+D56+AF56+J56+BH56+BO56+Z56+AB56+AJ56+AN56+AP56+AX56+BF56+BD56+BB56+AZ56+AV56+AT56+AR56)/6 -> 100.1666667
A57: 4 | B57: 2023-01-02 | C57: 12 | D57: 83 | E57: -3 | F57: 4 | G57: 3 | H57: 1 | K57: 23 | L57: 37 | Q57: 33 | R57: 25 | U57: -5 | V57: 27 | Y57: -14 | Z57: 26 | AA57: 17 | AB57: 20 | AE57: 123 | AF57: 236 | AG57: -47 | AH57: 35 | AI57: 44 | AJ57: 49 | AM57: -65 | AN57: 95 | AW57: 20 | AX57: 20 | AY57: 3 | AZ57: 26 | BA57: 7 | BB57: 9 | BI57: 115.5
A58: 5 | B58: 2023-02-02 | C58: -2 | D58: 109 | E58: -8 | F58: 6 | K58: 16 | L58: 38 | M58: -5 | N58: 1 | Q58: 47 | R58: 23 | U58: -22 | V58: 29 | Y58: 24 | Z58: 36 | AA58: 11 | AB58: 16 | AC58: 1 | AD58: 3 | AE58: 2 | AF58: 228 | AG58: -26 | AH58: 47 | AI58: 51 | AJ58: 57 | AM58: -77 | AN58: 72 | AW58: 0 | AX58: 5 | AY58: 38 | AZ58: 71 | BA58: -5 | BB58: 12 | BI58: 125.5
A59: 6 | B59: 2023-03-05 | C59: 22 | D59: 161 | E59: -1 | F59: 4 | K59: -2 | L59: 36 | Q59: 56 | R59: 24 | U59: -18 | V59: 39 | Y59: -5 | Z59: 7 | AA59: 1 | AB59: 21 | AE59: 61 | AF59: 163 | AG59: -24 | AH59: 43 | AI59: -3 | AJ59: 15 | AM59: 6 | AN59: 72 | AY59: -21 | AZ59: 70 | BA59: 34 | BB59: 21 | BI59: 112.6666667
A60: 7 | B60: 2023-04-05 | C60: 18 | D60: 38 | E60: -1 | F60: 6 | K60: 26 | L60: 27 | Q60: 64 | R60: 26 | U60: -16 | V60: 26 | Y60: 8 | Z60: 17 | AA60: 18 | AB60: 11 | AC60: -24 | AD60: 25 | AE60: 114 | AF60: 173 | AG60: -53 | AH60: 39 | AI60: 31 | AJ60: 29 | AM60: -9 | AN60: 70 | AO60: -4 | AP60: 2 | AW60: -6 | AX60: 3 | AY60: 35 | AZ60: 14 | BA60: 20 | BB60: 15 | BI60: 86.83333333
A61: 8 | B61: 2023-05-06 | C61: -13 | D61: 39 | E61: -17 | F61: 6 | K61: 19 | L61: 31 | M61: -4 | N61: 1 | Q61: 61 | R61: 35 | U61: -8 | V61: 36 | Y61: -1 | Z61: 17 | AA61: -15 | AB61: 18 | AC61: -37 | AD61: 26 | AE61: 17 | AF61: 159 | AG61: -29 | AH61: 24 | AI61: 9 | AJ61: 20 | AM61: -40 | AN61: 60 | AW61: 5 | AX61: 5 | AY61: 57 | AZ61: 44 | BA61: 29 | BB61: 12 | BI61: 88.83333333
A62: 9 | B62: 2023-06-06 | C62: -4 | D62: 37 | E62: -1 | F62: 5 | K62: 8 | L62: 24 | Q62: 33 | R62: 16 | U62: 9 | V62: 33 | Y62: 7 | Z62: 8 | AA62: -8 | AB62: 8 | AC62: 4 | AD62: 18 | AE62: 10 | AF62: 95 | AG62: -17 | AH62: 21 | AI62: 15 | AJ62: 14 | AM62: -12 | AN62: 39 | AY62: 59 | AZ62: 35 | BA62: 42 | BB62: 27 | BI62: 63.33333333
A63: =+A62+1 -> 10 | B63: 2023-07-07 | C63: -12 | D63: 94 | E63: -23 | F63: 11 | K63: 5 | L63: 10 | M63: -5 | N63: 1 | Q63: 34 | R63: 16 | U63: -5 | V63: 57 | W63: -2 | X63: 2 | Y63: 3 | Z63: 5 | AA63: -16 | AB63: 11 | AC63: -7 | AD63: 14 | AE63: 75 | AF63: 118 | AG63: -49 | AH63: 60 | AI63: 37 | AJ63: 22 | AM63: 7 | AN63: 36 | AO63: -5 | AP63: 1 | AW63: 1 | AX63: 1 | AY63: 41 | AZ63: 63 | BA63: 22 | BB63: 31 | BI63: 92.16666667
A64: 11 | B64: 2023-08-07 | C64: -16 | D64: 31 | E64: -11 | F64: 4 | K64: -7 | L64: 17 | U64: 18 | V64: 14 | Y64: -4 | Z64: 1 | AA64: -8 | AB64: 7 | AC64: 4 | AD64: 2 | AE64: 56 | AF64: 90 | AG64: -91 | AH64: 44 | AI64: 6 | AJ64: 3 | AM64: 5 | AN64: 7 | AO64: -5 | AP64: 1 | AY64: 29 | AZ64: 46 | BA64: 42 | BB64: 29 | BI64: 49.33333333
A65: 12 | B65: 2023-09-07 | C65: -11 | D65: 28 | E65: -10 | F65: 7 | K65: -2 | L65: 13 | Q65: 46 | R65: 17 | U65: 13 | V65: 30 | Y65: -5 | Z65: 8 | AA65: -13 | AB65: 10 | AC65: 1 | AD65: 3 | AE65: 8 | AF65: 108 | AG65: -29 | AH65: 24 | AI65: 4 | AJ65: 11 | AM65: -20 | AN65: 12 | AY65: 21 | AZ65: 43 | BA65: 53 | BB65: 38 | BI65: 58.66666667
A66: 13 | B66: 2023-10-08 | BI66: 0
A67: 14 | I67: -10000 | AK67: -10000 | AQ67: -10000 | BC67: -10000 | BE67: -10000 | BG67: -10000 | BK67: =+AI67+AE67+Y67+W67+U67+S67+Q67+O67+M67+I67+G67+E67+C67+AG67+K67+BG67+BN67+AA67+AC67+AK67+AM67+AO67+AW67+BE67+BC67+BA67+AY67+AU67+AS67+AQ67 -> -60000 | BL67: =COUNT(C67:BH67)/2 -> 3 | BM67: =+BK67/BL67 -> -20000 | BN67: =+K67 -> 0
A68: 15 | C68: -4 | D68: 150 | E68: 2 | F68: 260 | G68: 2 | H68: 350 | M68: -1 | N68: 210 | O68: -2 | P68: 280 | Q68: 4 | R68: 370 | S68: -1 | T68: 210 | U68: 4 | V68: 270 | AA68: 0 | AB68: 340 | AC68: -4 | AD68: 230 | BI68: 2022-12-17 | BJ68: 23 | BK68: =+AI68+AE68+Y68+W68+U68+S68+Q68+O68+M68+I68+G68+E68+C68+AG68+K68+BG68+BN68+AA68+AC68+AK68+AM68+AO68+AW68+BE68+BC68+BA68+AY68+AU68+AS68+AQ68 -> 0 | BL68: 10 | BM68: 0 | BN68: =+K68 -> 0
A69: 16 | BK69: =+AI69+AE69+Y69+W69+U69+S69+Q69+O69+M69+I69+G69+E69+C69+AG69+K69+BG69+BN69+AA69+AC69+AK69+AM69+AO69+AW69+BE69+BC69+BA69+AY69+AU69+AS69+AQ69 -> 0 | BL69: 0 | BN69: =+K69 -> 0
A70: 17 | BK70: =+AI70+AE70+Y70+W70+U70+S70+Q70+O70+M70+I70+G70+E70+C70+AG70+K70+BG70+BN70+AA70+AC70+AK70+AM70+AO70+AW70+BE70+BC70+BA70+AY70+AU70+AS70+AQ70 -> 0 | BL70: 0 | BN70: =+K70*2 -> 0
A71: 18 | BK71: 0 | BL71: 0 | BN71: =+K71 -> 0
A72: 19 | BK72: 0 | BL72: 0 | BN72: =+K72 -> 0
A73: 20 | BK73: 0 | BL73: 0 | BN73: =+K73 -> 0
A74: 21 | BK74: 0 | BL74: 0 | BN74: =+K74*2 -> 0
A75: 22 | BK75: 0 | BL75: 0 | BN75: =+K75*2 -> 0
A76: 23 | BK76: 0 | BL76: 0 | BN76: =+K76 -> 0
A77: 24 | BK77: 0 | BL77: 0 | BN77: =+K77 -> 0
A78: 25 | BK78: 0 | BL78: 0 | BN78: =+K78*2 -> 0
A79: 26 | BK79: 0 | BL79: 0 | BN79: =+K79*2 -> 0
A80: 27 | BK80: 0 | BL80: 0 | BN80: 0
A81: 28 | BK81: 0 | BL81: 0 | BN81: 0
A82: 29 | BK82: 0 | BL82: 0 | BN82: 0
A83: 30 | BK83: 0 | BL83: 0 | BN83: 0
A84: 31 | BK84: 0 | BL84: 0 | BN84: 0
A85: 32 | BK85: 0 | BL85: 0 | BN85: =+K85 -> 0
A86: 33 | BK86: 0 | BL86: 0 | BM86: =+BK86/BL86 ->  | BN86: =+K86*2 -> 0
A87: 34 | BK87: 0 | BL87: 0 | BM87: =+BK87/BL87 ->  | BN87: =+K87*2 -> 0
A88: 35 | BK88: 0 | BL88: 0
A89: 36 | BK89: 0 | BL89: 0 | BM89: =+BK89/BL89 ->  | BN89: =+K89*2 -> 0
A90: 37 | BK90: 0 | BL90: 0 | BN90: =+K90 -> 0
A91: 38 | BK91: 0 | BL91: 0 | BN91: =+K91 -> 0
A92: 39 | BK92: 0 | BL92: 0 | BN92: =+K92 -> 0
A93: 40 | BK93: 0 | BL93: 0 | BN93: =+K93*2 -> 0
A94: 41 | BK94: 0 | BL94: 0 | BN94: =+K94 -> 0
A95: 42 | BK95: 0 | BL95: =COUNT(C95:BH95)/2 -> 0 | BN95: =+K95 -> 0
A96: 43 | BK96: 0 | BL96: =COUNT(C96:BH96)/2 -> 0 | BN96: =+K96*2 -> 0
A97: 44 | BK97: 0 | BL97: =COUNT(C97:BH97)/2 -> 0 | BM97: =+BK97/BL97 ->  | BN97: =+K97*2 -> 0
A98: 45 | BK98: 0 | BL98: 0 | BN98: =+K98 -> 0
A99: =+A98+1 -> 46 | BK99: 0 | BL99: 0 | BN99: =+K99*2 -> 0
A100: 47 | BK100: 0 | BL100: 0 | BN100: =+K100 -> 0
A101: 48 | BK101: 0 | BL101: 0 | BN101: =+K101*2 -> 0
A102: 49 | BK102: 0 | BL102: 0 | BN102: 0
A103: 50 | BK103: 0 | BL103: 0 | BN103: 0
A104: 51 | BK104: 0 | BL104: 0 | BN104: 0
A105: 52 | BK105: 0 | BL105: 0 | BN105: 0
A106: 53 | BK106: 0 | BL106: 0 | BN106: 0
A107: 54 | BK107: 0 | BL107: 0
A108: 55 | BK108: 0 | BL108: 0 | BM108: =+BK108/BL108 ->  | BN108: =+K108 -> 0
A109: 56 | BK109: 0 | BL109: 0
A110: 57 | BK110: 0 | BL110: 0 | BM110: =+BK110/BL110 ->  | BN110: =+K110 -> 0
A111: 58 | BK111: 0 | BL111: 0
A112: 59 | BK112: 0 | BL112: 0 | BM112: =+BK112/BL112 ->  | BN112: =+K112 -> 0
A113: 60 | BK113: 0 | BL113: 0 | BM113: =+BK113/BL113 ->  | BN113: =+K113*2 -> 0
A114: 61 | BK114: 0 | BL114: 0 | BM114: =+BK114/BL114 ->  | BN114: =+K114 -> 0
A115: 62 | BK115: 0 | BL115: 4 | BM115: 2.22045e-16 | BN115: =+K115*2 -> 0
A116: 63 | BK116: 0 | BL116: 4 | BM116: -2.22045e-16 | BN116: =+K116*2 -> 0
A117: 64 | BK117: 0 | BL117: =COUNT(C117:BH117)/2 -> 0
A118: 65 | BK118: 0 | BL118: 0 | BM118: =+BK118/BL118 ->  | BN118: =+K118*2 -> 0
A119: 66 | BK119: 0 | BL119: 0 | BN119: =+K119*2 -> 0
A120: =+A119+1 -> 67 | BK120: 0 | BL120: 0 | BN120: =+K120*2 -> 0
A121: 68 | BK121: 0 | BL121: 0 | BN121: =+K121*2 -> 0
A122: 69 | BK122: 0 | BL122: 0 | BN122: =+K122*2 -> 0
A123: 70 | BK123: 0 | BL123: 0 | BN123: =+K123 -> 0
A124: 71 | BK124: 0 | BL124: 0 | BN124: =+K124 -> 0
A125: 72 | BK125: 0 | BL125: 0 | BN125: =+K125*2 -> 0
A126: 73 | BK126: 0 | BL126: 0
A127: 74 | BK127: 0 | BL127: 0 | BM127: =+BK127/BL127 ->  | BN127: =+K127*2 -> 0
A128: 75 | BK128: 0 | BL128: =COUNT(C128:BH128)/2 -> 0 | BM128: =+BK128/BL128 ->  | BN128: =+K128*2 -> 0
A129: 76 | BK129: 0 | BL129: =COUNT(C129:BH129)/2 -> 0 | BM129: =+BK129/BL129 ->  | BN129: =+K129*2 -> 0
A130: 77 | BK130: 0 | BL130: =COUNT(C130:BH130)/2 -> 0 | BM130: =+BK130/BL130 ->  | BN130: =+K130*2 -> 0
A131: 78 | BK131: 0 | BL131: 0 | BM131: =+BK131/BL131 ->  | BN131: =+K131 -> 0
A132: 79 | BK132: 0 | BL132: 0
A133: 80 | BK133: 0 | BL133: 0 | BM133: =+BK133/BL133 ->  | BN133: =+K133*2 -> 0
A134: 81 | BK134: =+AI134+AE134+Y134+W134+U134+S134+Q134+O134+M134+I134+G134+E134+C134+AG134+K134+BG134+BN134+AA134+AC134+AK134+AM134+AO134+AW134+BE134+BC134+BA134+AY134+AU134+AS134+AQ134 -> 0 | BL134: 0
A135: 82 | BK135: 0 | BL135: 0 | BM135: =+BK135/BL135 ->  | BN135: =+K135 -> 0
A136: 83 | BK136: 0 | BL136: 0 | BM136: =+BK136/BL136 ->  | BN136: =+K136*2 -> 0
A137: 84 | BK137: 0 | BL137: 0
A138: 85 | BK138: 0 | BL138: 0
A139: 86 | BK139: 0 | BL139: 0
A140: 87 | BK140: 0 | BL140: 0
A141: 88 | BK141: 0 | BL141: 0
A142: 89 | BK142: 0 | BL142: 0
A143: 90 | BK143: 0 | BL143: 0
A144: 91 | BK144: 0 | BL144: 0
A145: 92 | BK145: 0 | BL145: 0
A146: 93 | BK146: 0 | BL146: 0
A147: 94 | BK147: 0 | BL147: 0
A148: 95 | BK148: 0 | BL148: 0
A149: 96 | BK149: 0 | BL149: 0
A150: 97 | BK150: 0 | BL150: 0
A151: 98 | BK151: 0 | BL151: 0
A152: 99 | BK152: 0 | BL152: 0
A153: 100 | BK153: 0 | BL153: 0
A154: 101 | BK154: 0 | BL154: 0
A155: 102 | BK155: 0 | BL155: 0
A156: 103 | BK156: 0 | BL156: 0
A157: 104 | BK157: 0 | BL157: 0
A158: 105 | BK158: 0 | BL158: 0
A159: 106 | BK159: 0 | BL159: 0
A160: 107 | BK160: 0 | BL160: 0
A161: 108 | BK161: 0 | BL161: 0
A162: 109 | BK162: 0 | BL162: 0
A163: 110 | BK163: 0 | BL163: 0
A164: 111 | BK164: 0 | BL164: 0
A165: 112 | BK165: 0 | BL165: 0
A166: 113 | BK166: 0 | BL166: 0
A167: 114 | BK167: 0 | BL167: 0
A168: 115 | BK168: 0 | BL168: 0
A169: 116 | BK169: 0 | BL169: 0
A170: 117 | BK170: 0 | BL170: 0
A171: 118 | BK171: 0 | BL171: 0
A172: 119 | BK172: 0 | BL172: 0
A173: 120 | BK173: 0 | BL173: 0
A174: 121 | BK174: 0 | BL174: 0
A175: 122 | BK175: 0 | BL175: 0
A176: 123 | BK176: 0 | BL176: 0
A177: 124 | BK177: 0 | BL177: 0
A178: 125 | BK178: 0 | BL178: 0
A179: 126 | BK179: 0 | BL179: 0
A180: 127 | BK180: 0 | BL180: 0
A181: 128 | BK181: 0 | BL181: 0
A182: 129 | BK182: 0 | BL182: 0
A183: 130 | BK183: 0 | BL183: 0
A184: =+A183+1 -> 131 | BK184: 0 | BL184: 0
A185: 132 | BK185: 0 | BL185: 0
A186: 133 | BK186: 0 | BL186: 0
A187: 134 | BK187: 0 | BL187: 0
A188: 135 | BK188: 0 | BL188: 0
A189: 136 | BK189: 0 | BL189: 0
A190: 137 | BK190: 0 | BL190: 0
A191: 138 | BK191: 0 | BL191: 0
A192: 139 | BK192: 0 | BL192: 0
A193: 140 | BK193: 0 | BL193: 0
A194: 141 | BK194: 0 | BL194: =COUNT(C194:BH194)/2 -> 0
A195: 142 | BK195: 0 | BL195: 0
A196: 143 | BK196: 0 | BL196: 0
A197: 144 | BK197: 0 | BL197: 0
A198: 145 | BK198: =+AI198+AE198+Y198+W198+U198+S198+Q198+O198+M198+I198+G198+E198+C198+AG198+K198+BG198+BN198+AA198+AC198+AK198+AM198+AO198+AW198+BE198+BC198+BA198+AY198+AU198+AS198+AQ198 -> 0 | BL198: 0
A199: 146 | BK199: 0 | BL199: 0
A200: 147 | BK200: 0 | BL200: 0
A201: 148 | BK201: 0 | BL201: 0
A202: 149 | BK202: 0 | BL202: 0
... 657 more rows

Sheet Wizard Classic
A1: WIZARD CLASSIC
A2: Mes | E2: =+(E3-10)/6 -> 834
A3: =+GENERAL!B6 -> 12 | E3: =SUM(E5:E29) -> 5014
C4: Premi | D4: Punts | E4: Partides | F4: General
A5: 1 | B5: Debi | C5: =+BA$50 -> 342 | D5: =+BB$51 -> 0 | E5: =+BB$50 -> 548 | F5: =+BA$36 -> 80 | G5: =IF(E5<A$3/2,-1,1)*800000+C5*1000+D5*0+E5/1000 -> 1142000.548 | I5: =+C5/E5 -> 0.6240875912
A6: 2 | B6: Carles | C6: =+Q$50 -> 299 | D6: =+R$51 -> 0 | E6: =+R$50 -> 153 | F6: =+Q$36 -> 40 | G6: 1099000.153 | I6: =+C6/E6 -> 1.954248366
A7: 3 | B7: Manolo | C7: =+C$50 -> 267 | D7: =+D$51 -> 0 | E7: =+D$50 -> 730 | F7: =+C$36 -> 20 | G7: 1067000.73 | I7: 0.3657534247
A8: 4 | B8: Tim | C8: =+AY$50 -> 250 | D8: =+AZ$51 -> 0 | E8: =+AZ$50 -> 368 | F8: =+AY$36 -> 10 | G8: 1050000.368 | I8: 0.6793478261
A9: 5 | B9: Mario | C9: =+BC$50 -> 235 | D9: =+BE$51 -> 0 | E9: =+BD$50 -> 322 | F9: =+BC$36 -> 5 | G9: 1035000.322 | I9: 0.7298136646
A10: 6 | B10: Jeff | C10: =+AI$50 -> 143 | D10: =+AJ$51 -> 0 | E10: =+AJ$50 -> 240 | F10: =+AI$36 -> 0 | G10: 943000.24 | I10: 0.5958333333
A11: 7 | B11: Ken | C11: =+K$50 -> 99 | D11: =+L$51 -> 0 | E11: =+L$50 -> 166 | F11: =+K$36 -> 0 | G11: 899000.166 | I11: 0.5963855422
A12: 8 | B12: Marina | C12: =+Y$50 -> 82 | D12: =+Z$51 -> 0 | E12: =+Z$50 -> 203 | F12: =+Y$36 -> 0 | G12: 882000.203 | I12: 0.4039408867
A13: 9 | B13: Tito | C13: =+AA$50 -> 35 | D13: =+AB$51 -> 0 | E13: =+AB$50 -> 98 | F13: =+AA$36 -> 0 | G13: 835000.098 | I13: 0.3571428571
A14: 10 | B14: Alfred | C14: =+AE$50 -> 34 | D14: =+AF$51 -> 0 | E14: =+AF$50 -> 466 | F14: =+AE$36 -> 0 | G14: 834000.466 | I14: 0.07296137339
A15: 11 | B15: Grau | C15: =+U$50 -> -33 | D15: =+V$51 -> 0 | E15: =+V$50 -> 463 | F15: =+U$36 -> 0 | G15: 767000.463 | I15: -0.07127429806
A16: 12 | B16: Ana B | C16: =+E$50 -> -88 | D16: =+F$51 -> 0 | E16: =+F$50 -> 112 | F16: =+E$36 -> 0 | G16: 712000.112 | I16: -0.7857142857
A17: 13 | B17: Nin | C17: =+AC$50 -> -92 | D17: =+AD$51 -> 0 | E17: =+AD$50 -> 87 | F17: =+AC$36 -> 0 | G17: 708000.087 | I17: -1.057471264
A18: 14 | B18: Gemma | C18: =+AO$50 -> -220 | D18: =+AP$51 -> 0 | E18: =+AP$50 -> 234 | F18: =+AO$36 -> 0 | G18: 580000.234 | I18: -0.9401709402
A19: 15 | B19: Nancy | C19: =+AG$50 -> -220 | D19: =+AH$51 -> 0 | E19: =+AH$50 -> 169 | F19: =+AG$36 -> 0 | G19: 580000.169 | I19: -1.301775148
A20: 16 | B20: Goretti | C20: =+M$50 -> -308 | D20: =+N$51 -> 0 | E20: =+N$50 -> 639 | F20: =+M$36 -> 0 | G20: 492000.639 | I20: -0.4820031299
A21: 17 | B21: Jordi | C21: =+G$50 -> 6 | D21: =+H$51 -> 0 | E21: =+H$50 -> 3 | F21: =+G$36 -> 0 | G21: -793999.997 | I21: 2
A22: 18 | B22: Sílvia | C22: =+AU$50 -> 4 | D22: =+AV$51 -> 0 | E22: =+AV$50 -> 1 | F22: =+AU$36 -> 0 | G22: -795999.999 | I22: 4
A23: 19 | B23: Sebas | C23: =+AQ$50 -> 2 | D23: =+AR$51 -> 0 | E23: =+AR$50 -> 3 | F23: =+AQ$36 -> 0 | G23: -797999.997 | I23: 0.6666666667
A24: 20 | B24: Rosa | C24: =+I$50 -> 2 | D24: =+J$51 -> 0 | E24: =+J$50 -> 1 | F24: =+I$36 -> 0 | G24: -797999.999 | I24: 2
A25: 21 | B25: Alejandro | C25: =+W$50 -> 1 | D25: =+X$51 -> 0 | E25: =+X$50 -> 2 | F25: =+W$36 -> 0 | G25: -798999.998 | I25: 0.5
A26: 22 | B26: Núria | C26: =+AK$50 -> 0 | D26: =+AL$51 -> 0 | E26: =+AL$50 -> 3 | F26: =+AK$36 -> 0 | G26: -799999.997 | I26: 0
A27: 23 | B27: Anna P. | C27: =+AM$50 -> -1 | D27: =+AN$51 -> 0 | E27: =+AN$36 -> 1 | F27: =+S$36 -> 0 | G27: -800999.999
A28: 24 | B28: Nogué | C28: =+BI$50 -> -4 | D28: =+BJ$51 -> 0 | E28: =+BJ$50 -> 1 | F28: =+BI$36 -> 0 | G28: -803999.999
A29: 25 | B29: Joan | C29: =+AW$50 -> -4 | D29: =+AX$51 -> 0 | E29: =+AX$50 -> 1 | F29: =+AW$36 -> 0 | G29: -803999.999
A30: 26 | B30: Christophe | C30: =+BG$50 -> -100000000 | D30: =+BH$51 -> 0 | E30: =+BH$50 -> 0 | F30: =+BG$36 -> 0 | G30: -100000800000
A31: 27 | B31: France | C31: =+AS$50 -> 4 | D31: =+AT$51 -> 0 | E31: =+AT$50 -> 1 | F31: =+AS$36 -> 0 | G31: -795999.999
A32: 28 | B32: Òscar | C32: =+BE$50 -> -100000000 | D32: =+BF$51 -> 0 | E32: =+BF$50 -> 0 | F32: =+BE$36 -> 0 | G32: -100000800000
A33: 29 | B33: Sergi | C33: =+O$50 -> -100000000 | D33: =+P$51 -> 0 | E33: =+P$50 -> 0 | F33: =+O$36 -> 0 | G33: -100000800000
A34: 30 | B34: Mariajo | C34: =+S$50 -> -100000000 | D34: =+T$51 -> 0 | E34: =+T$50 -> 0 | F34: =+S$36 -> 0 | G34: -100000800000
B36: General | C36: =+C37*C38 -> 20 | D36: =+D37*D38 -> 730 | E36: 0 | F36: 112 | G36: =+G37*G38 -> 0 | H36: 3 | I36: 0 | J36: 1 | K36: =+K37*K38 -> 0 | L36: =+L37*L38 -> 166 | M36: 0 | N36: 639 | O36: 0 | P36: 0 | Q36: 40 | R36: 153 | S36: 0 | T36: 0 | U36: =+U37*U38 -> 0 | V36: 463 | W36: 0 | X36: 2 | Y36: 0 | Z36: 203 | AA36: =+AA37*AA38 -> 0 | AB36: =+AB37*AB38 -> 98 | AC36: =+AC37*AC38 -> 0 | AD36: =+AD37*AD38 -> 87 | AE36: =+AE37*AE38 -> 0 | AF36: 466 | AG36: =+AG37*AG38 -> 0 | AH36: =+AH37*AH38 -> 169 | AI36: 0 | AJ36: 240 | AK36: 0 | AL36: 3 | AM36: 0 | AN36: 1 | AO36: 0 | AP36: 234 | AQ36: 0 | AR36: 3 | AS36: 0 | AT36: 1 | AU36: 0 | AV36: 1 | AW36: 0 | AX36: 1 | AY36: 10 | AZ36: 368 | BA36: 80 | BB36: 548 | BC36: 5 | BD36: 322 | BE36: 0 | BF36: 0 | BG36: 0 | BH36: 0 | BI36: 0 | BJ36: 1
C37: =IF($B49>3,1,0) -> 1 | D37: =IF($B49>3,1,0) -> 1 | E37: 1 | F37: 1 | G37: =IF($B49>3,1,0) -> 1 | H37: 1 | I37: 1 | J37: 1 | K37: =IF($B49>3,1,0) -> 1 | L37: =IF($B49>3,1,0) -> 1 | M37: 1 | N37: 1 | O37: 1 | P37: 1 | Q37: 1 | R37: 1 | S37: 1 | T37: 1 | U37: 1 | V37: 1 | W37: 1 | X37: 1 | Y37: 1 | Z37: 1 | AA37: =IF($B49>3,1,0) -> 1 | AB37: =IF($B49>3,1,0) -> 1 | AC37: =IF($B49>3,1,0) -> 1 | AD37: =IF($B49>3,1,0) -> 1 | AE37: 1 | AF37: 1 | AG37: =IF($B49>3,1,0) -> 1 | AH37: =IF($B49>3,1,0) -> 1 | AI37: 1 | AJ37: 1 | AK37: 1 | AL37: 1 | AM37: 1 | AN37: 1 | AO37: 1 | AP37: 1 | AQ37: 1 | AR37: 1 | AS37: 1 | AT37: 1 | AU37: 1 | AV37: 1 | AW37: 1 | AX37: 1 | AY37: 1 | AZ37: 1 | BA37: 1 | BB37: 1 | BC37: 1 | BD37: 1 | BE37: 1 | BF37: 1 | BG37: 1 | BH37: 1 | BI37: 1 | BJ37: 1
C38: =MAX(C39:C43) -> 20 | D38: =+D50 -> 730 | E38: =MAX(E39:E43) -> 0 | F38: =+F50 -> 112 | G38: =MAX(G39:G43) -> 0 | H38: =+H50 -> 3 | I38: =MAX(I39:I43) -> 0 | J38: =+J50 -> 1 | K38: =MAX(K39:K43) -> 0 | L38: =+L50 -> 166 | M38: =MAX(M39:M43) -> 0 | N38: =+N50 -> 639 | O38: =MAX(O39:O43) -> 0 | P38: =+P50 -> 0 | Q38: =MAX(Q39:Q43) -> 40 | R38: =+R50 -> 153 | S38: =MAX(S39:S43) -> 0 | T38: =+T50 -> 0 | U38: =MAX(U39:U43) -> 0 | V38: =+V50 -> 463 | W38: =MAX(W39:W43) -> 0 | X38: =+X50 -> 2 | Y38: =MAX(Y39:Y43) -> 0 | Z38: =+Z50 -> 203 | AA38: =MAX(AA39:AA43) -> 0 | AB38: =+AB50 -> 98 | AC38: =MAX(AC39:AC43) -> 0 | AD38: =+AD50 -> 87 | AE38: =MAX(AE39:AE43) -> 0 | AF38: =+AF50 -> 466 | AG38: =MAX(AG39:AG43) -> 0 | AH38: =+AH50 -> 169 | AI38: =MAX(AI39:AI43) -> 0 | AJ38: =+AJ50 -> 240 | AK38: =MAX(AK39:AK43) -> 0 | AL38: =+AL50 -> 3 | AM38: =MAX(AM39:AM43) -> 0 | AN38: =+AN50 -> 1 | AO38: =MAX(AO39:AO43) -> 0 | AP38: =+AP50 -> 234 | AQ38: =MAX(AQ39:AQ43) -> 0 | AR38: =+AR50 -> 3 | AS38: =MAX(AS39:AS43) -> 0 | AT38: =+AT50 -> 1 | AU38: =MAX(AU39:AU43) -> 0 | AV38: =+AV50 -> 1 | AW38: =MAX(AW39:AW43) -> 0 | AX38: =+AX50 -> 1 | AY38: =MAX(AY39:AY43) -> 10 | AZ38: =+AZ50 -> 368 | BA38: =MAX(BA39:BA43) -> 80 | BB38: =+BB50 -> 548 | BC38: =MAX(BC39:BC43) -> 5 | BD38: =+BD50 -> 322 | BE38: =MAX(BE39:BE43) -> 0 | BF38: =+BF50 -> 0 | BG38: =MAX(BG39:BG43) -> 0 | BH38: =+BH50 -> 0 | BI38: =MAX(BI39:BI43) -> 0 | BJ38: =+BJ50 -> 1
C39: =IF(C$44=5,5,0) -> 0 | E39: =IF(E$44=5,5,0) -> 0 | G39: =IF(G$44=5,5,0) -> 0 | I39: =IF(I$44=5,5,0) -> 0 | K39: =IF(K$44=5,5,0) -> 0 | M39: =IF(M$44=5,5,0) -> 0 | O39: =IF(O$44=5,5,0) -> 0 | Q39: =IF(Q$44=5,5,0) -> 0 | S39: =IF(S$44=5,5,0) -> 0 | U39: =IF(U$44=5,5,0) -> 0 | W39: =IF(W$44=5,5,0) -> 0 | Y39: =IF(Y$44=5,5,0) -> 0 | AA39: =IF(AA$44=5,5,0) -> 0 | AC39: =IF(AC$44=5,5,0) -> 0 | AE39: =IF(AE$44=5,5,0) -> 0 | AG39: =IF(AG$44=5,5,0) -> 0 | AI39: =IF(AI$44=5,5,0) -> 0 | AK39: =IF(AK$44=5,5,0) -> 0 | AM39: =IF(AM$44=5,5,0) -> 0 | AO39: =IF(AO$44=5,5,0) -> 0 | AQ39: =IF(AQ$44=5,5,0) -> 0 | AS39: =IF(AS$44=5,5,0) -> 0 | AU39: =IF(AU$44=5,5,0) -> 0 | AW39: =IF(AW$44=5,5,0) -> 0 | AY39: =IF(AY$44=5,5,0) -> 0 | BA39: =IF(BA$44=5,5,0) -> 0 | BC39: =IF(BC$44=5,5,0) -> 5 | BE39: =IF(BE$44=5,5,0) -> 0 | BG39: =IF(BG$44=5,5,0) -> 0 | BI39: =IF(BI$44=5,5,0) -> 0
C40: =IF(C$44=4,10,0) -> 0 | E40: =IF(E$44=4,10,0) -> 0 | G40: =IF(G$44=4,10,0) -> 0 | I40: =IF(I$44=4,10,0) -> 0 | K40: =IF(K$44=4,10,0) -> 0 | M40: =IF(M$44=4,10,0) -> 0 | O40: =IF(O$44=4,10,0) -> 0 | Q40: =IF(Q$44=4,10,0) -> 0 | S40: =IF(S$44=4,10,0) -> 0 | U40: =IF(U$44=4,10,0) -> 0 | W40: =IF(W$44=4,10,0) -> 0 | Y40: =IF(Y$44=4,10,0) -> 0 | AA40: =IF(AA$44=4,10,0) -> 0 | AC40: =IF(AC$44=4,10,0) -> 0 | AE40: =IF(AE$44=4,10,0) -> 0 | AG40: =IF(AG$44=4,10,0) -> 0 | AI40: =IF(AI$44=4,10,0) -> 0 | AK40: =IF(AK$44=4,10,0) -> 0 | AM40: =IF(AM$44=4,10,0) -> 0 | AO40: =IF(AO$44=4,10,0) -> 0 | AQ40: =IF(AQ$44=4,10,0) -> 0 | AS40: =IF(AS$44=4,10,0) -> 0 | AU40: =IF(AU$44=4,10,0) -> 0 | AW40: =IF(AW$44=4,10,0) -> 0 | AY40: =IF(AY$44=4,10,0) -> 10 | BA40: =IF(BA$44=4,10,0) -> 0 | BC40: =IF(BC$44=4,10,0) -> 0 | BE40: =IF(BE$44=4,10,0) -> 0 | BG40: =IF(BG$44=4,10,0) -> 0 | BI40: =IF(BI$44=4,10,0) -> 0
C41: =IF(C$44=3,20,0) -> 20 | E41: =IF(E$44=3,20,0) -> 0 | G41: =IF(G$44=3,20,0) -> 0 | I41: =IF(I$44=3,20,0) -> 0 | K41: =IF(K$44=3,20,0) -> 0 | M41: =IF(M$44=3,20,0) -> 0 | O41: =IF(O$44=3,20,0) -> 0 | Q41: =IF(Q$44=3,20,0) -> 0 | S41: =IF(S$44=3,20,0) -> 0 | U41: =IF(U$44=3,20,0) -> 0 | W41: =IF(W$44=3,20,0) -> 0 | Y41: =IF(Y$44=3,20,0) -> 0 | AA41: =IF(AA$44=3,20,0) -> 0 | AC41: =IF(AC$44=3,20,0) -> 0 | AE41: =IF(AE$44=3,20,0) -> 0 | AG41: =IF(AG$44=3,20,0) -> 0 | AI41: =IF(AI$44=3,20,0) -> 0 | AK41: =IF(AK$44=3,20,0) -> 0 | AM41: =IF(AM$44=3,20,0) -> 0 | AO41: =IF(AO$44=3,20,0) -> 0 | AQ41: =IF(AQ$44=3,20,0) -> 0 | AS41: =IF(AS$44=3,20,0) -> 0 | AU41: =IF(AU$44=3,20,0) -> 0 | AW41: =IF(AW$44=3,20,0) -> 0 | AY41: =IF(AY$44=3,20,0) -> 0 | BA41: =IF(BA$44=3,20,0) -> 0 | BC41: =IF(BC$44=3,20,0) -> 0 | BE41: =IF(BE$44=3,20,0) -> 0 | BG41: =IF(BG$44=3,20,0) -> 0 | BI41: =IF(BI$44=3,20,0) -> 0
C42: =IF(C$44=2,40,0) -> 0 | E42: =IF(E$44=2,40,0) -> 0 | G42: =IF(G$44=2,40,0) -> 0 | I42: =IF(I$44=2,40,0) -> 0 | K42: =IF(K$44=2,40,0) -> 0 | M42: =IF(M$44=2,40,0) -> 0 | O42: =IF(O$44=2,40,0) -> 0 | Q42: =IF(Q$44=2,40,0) -> 40 | S42: =IF(S$44=2,40,0) -> 0 | U42: =IF(U$44=2,40,0) -> 0 | W42: =IF(W$44=2,40,0) -> 0 | Y42: =IF(Y$44=2,40,0) -> 0 | AA42: =IF(AA$44=2,40,0) -> 0 | AC42: =IF(AC$44=2,40,0) -> 0 | AE42: =IF(AE$44=2,40,0) -> 0 | AG42: =IF(AG$44=2,40,0) -> 0 | AI42: =IF(AI$44=2,40,0) -> 0 | AK42: =IF(AK$44=2,40,0) -> 0 | AM42: =IF(AM$44=2,40,0) -> 0 | AO42: =IF(AO$44=2,40,0) -> 0 | AQ42: =IF(AQ$44=2,40,0) -> 0 | AS42: =IF(AS$44=2,40,0) -> 0 | AU42: =IF(AU$44=2,40,0) -> 0 | AW42: =IF(AW$44=2,40,0) -> 0 | AY42: =IF(AY$44=2,40,0) -> 0 | BA42: =IF(BA$44=2,40,0) -> 0 | BC42: =IF(BC$44=2,40,0) -> 0 | BE42: =IF(BE$44=2,40,0) -> 0 | BG42: =IF(BG$44=2,40,0) -> 0 | BI42: =IF(BI$44=2,40,0) -> 0
C43: =IF(C$44=1,80,0) -> 0 | E43: =IF(E$44=1,80,0) -> 0 | G43: =IF(G$44=1,80,0) -> 0 | I43: =IF(I$44=1,80,0) -> 0 | K43: =IF(K$44=1,80,0) -> 0 | M43: =IF(M$44=1,80,0) -> 0 | O43: =IF(O$44=1,80,0) -> 0 | Q43: =IF(Q$44=1,80,0) -> 0 | S43: =IF(S$44=1,80,0) -> 0 | U43: =IF(U$44=1,80,0) -> 0 | W43: =IF(W$44=1,80,0) -> 0 | Y43: =IF(Y$44=1,80,0) -> 0 | AA43: =IF(AA$44=1,80,0) -> 0 | AC43: =IF(AC$44=1,80,0) -> 0 | AE43: =IF(AE$44=1,80,0) -> 0 | AG43: =IF(AG$44=1,80,0) -> 0 | AI43: =IF(AI$44=1,80,0) -> 0 | AK43: =IF(AK$44=1,80,0) -> 0 | AM43: =IF(AM$44=1,80,0) -> 0 | AO43: =IF(AO$44=1,80,0) -> 0 | AQ43: =IF(AQ$44=1,80,0) -> 0 | AS43: =IF(AS$44=1,80,0) -> 0 | AU43: =IF(AU$44=1,80,0) -> 0 | AW43: =IF(AW$44=1,80,0) -> 0 | AY43: =IF(AY$44=1,80,0) -> 0 | BA43: =IF(BA$44=1,80,0) -> 80 | BC43: =IF(BC$44=1,80,0) -> 0 | BE43: =IF(BE$44=1,80,0) -> 0 | BG43: =IF(BG$44=1,80,0) -> 0 | BI43: =IF(BI$44=1,80,0) -> 0
C44: =RANK(C45,$C45:$CL45)*C49 -> 3 | E44: =RANK(E45,$C45:$CL45)*E49 -> 12 | G44: =RANK(G45,$C45:$CL45)*G49 -> 0 | I44: =RANK(I45,$C45:$CL45)*I49 -> 0 | K44: =RANK(K45,$C45:$CL45)*K49 -> 7 | M44: =RANK(M45,$C45:$CL45)*M49 -> 16 | O44: =RANK(O45,$C45:$CL45)*O49 -> 0 | Q44: =RANK(Q45,$C45:$CL45)*Q49 -> 2 | S44: =RANK(S45,$C45:$CL45)*S49 -> 0 | U44: =RANK(U45,$C45:$CL45)*U49 -> 11 | W44: =RANK(W45,$C45:$CL45)*W49 -> 0 | Y44: =RANK(Y45,$C45:$CL45)*Y49 -> 8 | AA44: =RANK(AA45,$C45:$CL45)*AA49 -> 9 | AC44: =RANK(AC45,$C45:$CL45)*AC49 -> 13 | AE44: =RANK(AE45,$C45:$CL45)*AE49 -> 10 | AG44: =RANK(AG45,$C45:$CL45)*AG49 -> 15 | AI44: =RANK(AI45,$C45:$CL45)*AI49 -> 6 | AK44: =RANK(AK45,$C45:$CL45)*AK49 -> 0 | AM44: =RANK(AM45,$C45:$CL45)*AM49 -> 0 | AO44: =RANK(AO45,$C45:$CL45)*AO49 -> 14 | AQ44: =RANK(AQ45,$C45:$CL45)*AQ49 -> 0 | AS44: =RANK(AS45,$C45:$CL45)*AS49 -> 0 | AU44: =RANK(AU45,$C45:$CL45)*AU49 -> 0 | AW44: =RANK(AW45,$C45:$CL45)*AW49 -> 0 | AY44: =RANK(AY45,$C45:$CL45)*AY49 -> 4 | BA44: =RANK(BA45,$C45:$CL45)*BA49 -> 1 | BC44: =RANK(BC45,$C45:$CL45)*BC49 -> 5 | BE44: =RANK(BE45,$C45:$CL45)*BE49 -> 0 | BG44: =RANK(BG45,$C45:$CL45)*BG49 -> 0 | BI44: =RANK(BI45,$C45:$CL45)*BI49 -> 0
C45: =SUM(C46:C48) -> 267274.3 | E45: =SUM(E46:E48) -> -88086.88 | G45: =SUM(G46:G48) -> -999993.97 | I45: =SUM(I46:I48) -> -999997.99 | K45: =SUM(K46:K48) -> 99100.66 | M45: =SUM(M46:M48) -> -308301.61 | O45: =SUM(O46:O48) -> -101000000 | Q45: =SUM(Q46:Q48) -> 299300.53 | S45: =SUM(S46:S48) -> -101000000 | U45: =SUM(U46:U48) -> -33028.37 | W45: =SUM(W46:W48) -> -999998.98 | Y45: =SUM(Y46:Y48) -> 82084.03 | AA45: =SUM(AA46:AA48) -> 35035.98 | AC45: =SUM(AC46:AC48) -> -92091.13 | AE45: =SUM(AE46:AE48) -> 34038.66 | AG45: =SUM(AG46:AG48) -> -220218.31 | AI45: =SUM(AI46:AI48) -> 143145.4 | AK45: =SUM(AK46:AK48) -> -999999.97 | AM45: =SUM(AM46:AM48) -> -1000000.99 | AO45: =SUM(AO46:AO48) -> -220217.66 | AQ45: =SUM(AQ46:AQ48) -> -999997.97 | AS45: =SUM(AS46:AS48) -> -999995.99 | AU45: =SUM(AU46:AU48) -> -999995.99 | AW45: =SUM(AW46:AW48) -> -1000003.99 | AY45: =SUM(AY46:AY48) -> 250253.68 | BA45: =SUM(BA46:BA48) -> 342347.48 | BC45: =SUM(BC46:BC48) -> 235238.22 | BE45: =SUM(BE46:BE48) -> -101000000 | BG45: =SUM(BG46:BG48) -> -101000000 | BI45: =SUM(BI46:BI48) -> -1000003.99
C46: =+D50/100 -> 7.3 | E46: =+F50/100 -> 1.12 | G46: =+H50/100 -> 0.03 | I46: =+J50/100 -> 0.01 | K46: =+L50/100 -> 1.66 | M46: =+N50/100 -> 6.39 | O46: =+P50/100 -> 0 | Q46: =+R50/100 -> 1.53 | S46: =+T50/100 -> 0 | U46: =+V50/100 -> 4.63 | W46: =+X50/100 -> 0.02 | Y46: =+Z50/100 -> 2.03 | AA46: =+AB50/100 -> 0.98 | AC46: =+AD50/100 -> 0.87 | AE46: =+AF50/100 -> 4.66 | AG46: =+AH50/100 -> 1.69 | AI46: =+AJ50/100 -> 2.4 | AK46: =+AL50/100 -> 0.03 | AM46: =+AN50/100 -> 0.01 | AO46: =+AP50/100 -> 2.34 | AQ46: =+AR50/100 -> 0.03 | AS46: =+AT50/100 -> 0.01 | AU46: =+AV50/100 -> 0.01 | AW46: =+AX50/100 -> 0.01 | AY46: =+AZ50/100 -> 3.68 | BA46: =+BB50/100 -> 5.48 | BC46: =+BD50/100 -> 3.22 | BE46: =+BF50/100 -> 0 | BG46: =+BH50/100 -> 0 | BI46: =+BJ50/100 -> 0.01
C47: =D51*0 -> 0 | E47: =F51*0 -> 0 | G47: =H51*0 -> 0 | I47: =J51*0 -> 0 | K47: =L51*0 -> 0 | M47: =N51*0 -> 0 | O47: =P51*0 -> 0 | Q47: =R51*0 -> 0 | S47: =T51*0 -> 0 | U47: =V51*0 -> 0 | W47: =X51*0 -> 0 | Y47: =Z51*0 -> 0 | AA47: =AB51*0 -> 0 | AC47: =AD51*0 -> 0 | AE47: =AF51*0 -> 0 | AG47: =AH51*0 -> 0 | AI47: =AJ51*0 -> 0 | AK47: =AL51*0 -> 0 | AM47: =AN51*0 -> 0 | AO47: =AP51*0 -> 0 | AQ47: =AR51*0 -> 0 | AS47: =AT51*0 -> 0 | AU47: =AV51*0 -> 0 | AW47: =AX51*0 -> 0 | AY47: =AZ51*0 -> 0 | BA47: =BB51*0 -> 0 | BC47: =BE51*0 -> 0 | BE47: =BF51*0 -> 0 | BG47: =BH51*0 -> 0 | BI47: =BJ51*0 -> 0
C48: =IF(C49=1,C50*C49*1000+C50,-1000000+C50) -> 267267 | E48: =IF(E49=1,E50*E49*1000+E50,-1000000+E50) -> -88088 | G48: =IF(G49=1,G50*G49*1000+G50,-1000000+G50) -> -999994 | I48: =IF(I49=1,I50*I49*1000+I50,-1000000+I50) -> -999998 | K48: =IF(K49=1,K50*K49*1000+K50,-1000000+K50) -> 99099 | M48: =IF(M49=1,M50*M49*1000+M50,-1000000+M50) -> -308308 | O48: =IF(O49=1,O50*O49*1000+O50,-1000000+O50) -> -101000000 | Q48: =IF(Q49=1,Q50*Q49*1000+Q50,-1000000+Q50) -> 299299 | S48: =IF(S49=1,S50*S49*1000+S50,-1000000+S50) -> -101000000 | U48: =IF(U49=1,U50*U49*1000+U50,-1000000+U50) -> -33033 | W48: =IF(W49=1,W50*W49*1000+W50,-1000000+W50) -> -999999 | Y48: =IF(Y49=1,Y50*Y49*1000+Y50,-1000000+Y50) -> 82082 | AA48: =IF(AA49=1,AA50*AA49*1000+AA50,-1000000+AA50) -> 35035 | AC48: =IF(AC49=1,AC50*AC49*1000+AC50,-1000000+AC50) -> -92092 | AE48: =IF(AE49=1,AE50*AE49*1000+AE50,-1000000+AE50) -> 34034 | AG48: =IF(AG49=1,AG50*AG49*1000+AG50,-1000000+AG50) -> -220220 | AI48: =IF(AI49=1,AI50*AI49*1000+AI50,-1000000+AI50) -> 143143 | AK48: =IF(AK49=1,AK50*AK49*1000+AK50,-1000000+AK50) -> -1000000 | AM48: =IF(AM49=1,AM50*AM49*1000+AM50,-1000000+AM50) -> -1000001 | AO48: =IF(AO49=1,AO50*AO49*1000+AO50,-1000000+AO50) -> -220220 | AQ48: =IF(AQ49=1,AQ50*AQ49*1000+AQ50,-1000000+AQ50) -> -999998 | AS48: =IF(AS49=1,AS50*AS49*1000+AS50,-1000000+AS50) -> -999996 | AU48: =IF(AU49=1,AU50*AU49*1000+AU50,-1000000+AU50) -> -999996 | AW48: =IF(AW49=1,AW50*AW49*1000+AW50,-1000000+AW50) -> -1000004 | AY48: =IF(AY49=1,AY50*AY49*1000+AY50,-1000000+AY50) -> 250250 | BA48: =IF(BA49=1,BA50*BA49*1000+BA50,-1000000+BA50) -> 342342 | BC48: =IF(BC49=1,BC50*BC49*1000+BC50,-1000000+BC50) -> 235235 | BE48: =IF(BE49=1,BE50*BE49*1000+BE50,-1000000+BE50) -> -101000000 | BG48: =IF(BG49=1,BG50*BG49*1000+BG50,-1000000+BG50) -> -101000000 | BI48: =IF(BI49=1,BI50*BI49*1000+BI50,-1000000+BI50) -> -1000004
A49: Classificats | B49: =SUM(C49:BJ49) -> 16 | C49: =IF(D50>=$A3/2,1,0) -> 1 | E49: =IF(F50>=$A3/2,1,0) -> 1 | G49: =IF(H50>=$A3/2,1,0) -> 0 | I49: =IF(J50>=$A3/2,1,0) -> 0 | K49: =IF(L50>=$A3/2,1,0) -> 1 | M49: =IF(N50>=$A3/2,1,0) -> 1 | O49: =IF(P50>=$A3/2,1,0) -> 0 | Q49: =IF(R50>=$A3/2,1,0) -> 1 | S49: =IF(T50>=$A3/2,1,0) -> 0 | U49: =IF(V50>=$A3/2,1,0) -> 1 | W49: =IF(X50>=$A3/2,1,0) -> 0 | Y49: =IF(Z50>=$A3/2,1,0) -> 1 | AA49: =IF(AB50>=$A3/2,1,0) -> 1 | AC49: =IF(AD50>=$A3/2,1,0) -> 1 | AE49: =IF(AF50>=$A3/2,1,0) -> 1 | AG49: =IF(AH50>=$A3/2,1,0) -> 1 | AI49: =IF(AJ50>=$A3/2,1,0) -> 1 | AK49: =IF(AL50>=$A3/2,1,0) -> 0 | AM49: =IF(AN50>=$A3/2,1,0) -> 0 | AO49: =IF(AP50>=$A3/2,1,0) -> 1 | AQ49: =IF(AR50>=$A3/2,1,0) -> 0 | AS49: =IF(AT50>=$A3/2,1,0) -> 0 | AU49: =IF(AV50>=$A3/2,1,0) -> 0 | AW49: =IF(AX50>=$A3/2,1,0) -> 0 | AY49: =IF(AZ50>=$A3/2,1,0) -> 1 | BA49: =IF(BB50>=$A3/2,1,0) -> 1 | BC49: =IF(BD50>=$A3/2,1,0) -> 1 | BE49: =IF(BF50>=$A3/2,1,0) -> 0 | BG49: =IF(BH50>=$A3/2,1,0) -> 0 | BI49: =IF(BJ50>=$A3/2,1,0) -> 0
C50: =IF(SUM(C55:C995)<-1000,-100000000,SUM(C55:C995)) -> 267 | D50: =COUNT(D68:D995)+SUM(D55:D67) -> 730 | E50: =IF(SUM(E55:E995)<-1000,-100000000,SUM(E55:E995)) -> -88 | F50: =COUNT(F68:F995)+SUM(F55:F67) -> 112 | G50: =IF(SUM(G55:G995)<-1000,-100000000,SUM(G55:G995)) -> 6 | H50: =COUNT(H68:H995)+SUM(H55:H67) -> 3 | I50: =IF(SUM(I55:I995)<-1000,-100000000,SUM(I55:I995)) -> 2 | J50: =COUNT(J68:J995)+SUM(J55:J67) -> 1 | K50: =IF(SUM(K55:K995)<-1000,-100000000,SUM(K55:K995)) -> 99 | L50: =COUNT(L68:L995)+SUM(L55:L67) -> 166 | M50: =IF(SUM(M55:M995)<-1000,-100000000,SUM(M55:M995)) -> -308 | N50: =COUNT(N68:N995)+SUM(N55:N67) -> 639 | O50: =IF(SUM(O55:O995)<-1000,-100000000,SUM(O55:O995)) -> -100000000 | P50: =COUNT(P68:P995)+SUM(P55:P67) -> 0 | Q50: =IF(SUM(Q55:Q995)<-1000,-100000000,SUM(Q55:Q995)) -> 299 | R50: =COUNT(R68:R995)+SUM(R55:R67) -> 153 | S50: =IF(SUM(S55:S995)<-1000,-100000000,SUM(S55:S995)) -> -100000000 | T50: =COUNT(T68:T995)+SUM(T55:T67) -> 0 | U50: =IF(SUM(U55:U995)<-1000,-100000000,SUM(U55:U995)) -> -33 | V50: =COUNT(V68:V995)+SUM(V55:V67) -> 463 | W50: =IF(SUM(W55:W995)<-1000,-100000000,SUM(W55:W995)) -> 1 | X50: =COUNT(X68:X995)+SUM(X55:X67) -> 2 | Y50: =IF(SUM(Y55:Y995)<-1000,-100000000,SUM(Y55:Y995)) -> 82 | Z50: =COUNT(Z68:Z995)+SUM(Z55:Z67) -> 203 | AA50: =IF(SUM(AA55:AA995)<-1000,-100000000,SUM(AA55:AA995)) -> 35 | AB50: =COUNT(AB68:AB995)+SUM(AB55:AB67) -> 98 | AC50: =IF(SUM(AC55:AC995)<-1000,-100000000,SUM(AC55:AC995)) -> -92 | AD50: =COUNT(AD68:AD995)+SUM(AD55:AD67) -> 87 | AE50: =IF(SUM(AE55:AE995)<-1000,-100000000,SUM(AE55:AE995)) -> 34 | AF50: =COUNT(AF68:AF995)+SUM(AF55:AF67) -> 466 | AG50: =IF(SUM(AG55:AG995)<-1000,-100000000,SUM(AG55:AG995)) -> -220 | AH50: =COUNT(AH68:AH995)+SUM(AH55:AH67) -> 169 | AI50: =IF(SUM(AI55:AI995)<-1000,-100000000,SUM(AI55:AI995)) -> 143 | AJ50: =COUNT(AJ68:AJ995)+SUM(AJ55:AJ67) -> 240 | AK50: =IF(SUM(AK55:AK995)<-1000,-100000000,SUM(AK55:AK995)) -> 0 | AL50: =COUNT(AL68:AL995)+SUM(AL55:AL67) -> 3 | AM50: =IF(SUM(AM55:AM995)<-1000,-100000000,SUM(AM55:AM995)) -> -1 | AN50: =COUNT(AN68:AN995)+SUM(AN55:AN67) -> 1 | AO50: =IF(SUM(AO55:AO995)<-1000,-100000000,SUM(AO55:AO995)) -> -220 | AP50: =COUNT(AP68:AP995)+SUM(AP55:AP67) -> 234 | AQ50: =IF(SUM(AQ55:AQ995)<-1000,-100000000,SUM(AQ55:AQ995)) -> 2 | AR50: =COUNT(AR68:AR995)+SUM(AR55:AR67) -> 3 | AS50: =IF(SUM(AS55:AS995)<-1000,-100000000,SUM(AS55:AS995)) -> 4 | AT50: =COUNT(AT68:AT995)+SUM(AT55:AT67) -> 1 | AU50: =IF(SUM(AU55:AU995)<-1000,-100000000,SUM(AU55:AU995)) -> 4 | AV50: =COUNT(AV68:AV995)+SUM(AV55:AV67) -> 1 | AW50: =IF(SUM(AW55:AW995)<-1000,-100000000,SUM(AW55:AW995)) -> -4 | AX50: =COUNT(AX68:AX995)+SUM(AX55:AX67) -> 1 | AY50: =IF(SUM(AY55:AY995)<-1000,-100000000,SUM(AY55:AY995)) -> 250 | AZ50: =COUNT(AZ68:AZ995)+SUM(AZ55:AZ67) -> 368 | BA50: =IF(SUM(BA55:BA995)<-1000,-100000000,SUM(BA55:BA995)) -> 342 | BB50: =COUNT(BB68:BB995)+SUM(BB55:BB67) -> 548 | BC50: =IF(SUM(BC55:BC995)<-1000,-100000000,SUM(BC55:BC995)) -> 235 | BD50: =COUNT(BD68:BD995)+SUM(BD55:BD67) -> 322 | BE50: =IF(SUM(BE55:BE995)<-1000,-100000000,SUM(BE55:BE995)) -> -100000000 | BF50: =COUNT(BF68:BF995)+SUM(BF55:BF67) -> 0 | BG50: =IF(SUM(BG55:BG995)<-1000,-100000000,SUM(BG55:BG995)) -> -100000000 | BH50: =COUNT(BH68:BH995)+SUM(BH55:BH67) -> 0 | BI50: =IF(SUM(BI55:BI995)<-1000,-100000000,SUM(BI55:BI995)) -> -4 | BJ50: =COUNT(BJ68:BJ995)+SUM(BJ55:BJ67) -> 1
BK52: =MAX(BL55:BL1076) -> 141
B53: Comentaris | C53: Manolo | E53: Ana B | G53: Jordi | I53: Rosa M. | K53: Ken | M53: Goretti | O53: Sergi | Q53: Carles | S53: Mariajo | U53: Grau | W53: Alejandro | Y53: Marina | AA53: Tito | AC53: Nin | AE53: Alfred | AG53: Nancy | AI53: Jeff | AK53: Núria | AM53: Anna P. | AO53: Gemma | AQ53: Sebas | AS53: Jim | AU53: Sílvia | AW53: Joan | AY53: Tim | BA53: Debi | BC53: Mario | BE53: Òscar | BG53: Christophe | BI53: Nogué | BK53: =COUNT(BK69:BK911)+SUM(BK56:BK67) -> 836.3333333 | BL53: A | BM53: B | BN53: C | BO53: cyberX2 | BP53: =SUM(BP55:BP910) -> 0
C54: Premi | D54: Punts | E54: Premi | F54: Punts | G54: Premi | H54: Punts | I54: Premi | J54: Punts | K54: Premi | L54: Punts | M54: Premi | N54: Punts | O54: Premi | P54: Punts | Q54: Premi | R54: Punts | S54: Premi | T54: Punts | U54: Premi | V54: Punts | W54: Premi | X54: Punts | Y54: Premi | Z54: Punts | AA54: Premi | AB54: Punts | AC54: Premi | AD54: Punts | AE54: Premi | AF54: Punts | AG54: Premi | AH54: Punts | AI54: Premi | AJ54: Punts | AK54: Premi | AL54: Punts | AM54: Premi | AN54: Punts | AO54: Premi | AP54: Punts | AQ54: Premi | AR54: Punts | AS54: Premi | AT54: Punts | AU54: Premi | AV54: Punts | AW54: Premi | AX54: Punts | AY54: Premi | AZ54: Punts | BA54: Premi | BB54: Punts | BC54: Premi | BD54: Punts | BE54: Premi | BF54: Punts | BG54: Premi | BH54: Punts | BI54: Premi | BJ54: Punts | BK54: Data | BL54: Timba | BP54: Excés cyber
B55: CLASSIC
B56: 2022-10-01 | BK56: =+(AJ56+AF56+Z56+X56+V56+T56+R56+P56+N56+J56+H56+F56+D56+AH56+L56+BJ56+BQ56+AB56+AD56+AL56+AP56+AR56+AZ56+BH56+BF56+BD56+BB56+AX56+AV56+AT56)/6 -> 0
B57: 2022-11-01 | C57: 16 | D57: 23 | E57: -10 | F57: 11 | K57: 24 | L57: 16 | M57: -13 | N57: 68 | Q57: 16 | R57: 19 | U57: -25 | V57: 51 | Y57: 27 | Z57: 26 | AA57: 10 | AB57: 4 | AE57: 16 | AF57: 65 | AG57: -4 | AH57: 5 | AI57: 16 | AJ57: 33 | AO57: -20 | AP57: 28 | AY57: 51 | AZ57: 33 | BA57: 33 | BB57: 50 | BC57: 10 | BD57: 11 | BK57: =+(AJ57+AF57+Z57+X57+V57+T57+R57+P57+N57+J57+H57+F57+D57+AH57+L57+BJ57+BQ57+AB57+AD57+AL57+AP57+AR57+AZ57+BH57+BF57+BD57+BB57+AX57+AV57+AT57)/6 -> 73.83333333
B58: 2022-12-01 | C58: -32 | D58: 79 | E58: 8 | F58: 20 | K58: 23 | L58: 15 | M58: -12 | N58: 93 | Q58: 35 | R58: 22 | U58: 23 | V58: 46 | Y58: 38 | Z58: 23 | AA58: -10 | AB58: 6 | AE58: -3 | AF58: 49 | AG58: -43 | AH58: 20 | AI58: -3 | AJ58: 27 | AK58: 0 | AL58: 2 | AO58: -26 | AP58: 26 | AY58: 0 | AZ58: 23 | BA58: 20 | BB58: 25 | BC58: 13 | BD58: 13 | BK58: =+(AJ58+AF58+Z58+X58+V58+T58+R58+P58+N58+J58+H58+F58+D58+AH58+L58+BJ58+BQ58+AB58+AD58+AL58+AP58+AR58+AZ58+BH58+BF58+BD58+BB58+AX58+AV58+AT58)/6 -> 81.5
B59: 2023-01-01 | C59: 21 | D59: 67 | E59: -13 | F59: 9 | G59: 5 | H59: 1 | K59: 6 | L59: 16 | M59: -13 | N59: 109 | Q59: 19 | R59: 14 | U59: -2 | V59: 30 | Y59: -2 | Z59: 14 | AA59: -7 | AB59: 15 | AC59: -2 | AD59: 1 | AE59: 20 | AF59: 59 | AG59: -41 | AH59: 25 | AI59: 24 | AJ59: 18 | AO59: -37 | AP59: 35 | AY59: 20 | AZ59: 18 | BA59: 56 | BB59: 77 | BC59: 2 | BD59: 10 | BK59: 86.33333333
B60: 2023-02-01 | C60: 27 | D60: 56 | E60: 0 | F60: 2 | K60: -10 | L60: 13 | M60: -36 | N60: 47 | Q60: 26 | R60: 9 | U60: -24 | V60: 22 | Y60: 10 | Z60: 13 | AA60: 4 | AB60: 12 | AE60: -11 | AF60: 24 | AG60: -32 | AH60: 23 | AI60: -10 | AJ60: 9 | AO60: -23 | AP60: 22 | AY60: 2 | AZ60: 40 | BA60: 1 | BB60: 55 | BC60: 30 | BD60: 29 | BK60: 62.66666667
B61: 2023-03-01 | C61: 27 | D61: 105 | E61: -6 | F61: 12 | K61: 22 | L61: 21 | M61: -29 | N61: 84 | Q61: 30 | R61: 18 | U61: -25 | V61: 46 | Y61: -4 | Z61: 14 | AA61: 16 | AB61: 10 | AC61: 3 | AD61: 1 | AE61: -10 | AF61: 32 | AG61: -66 | AH61: 23 | AI61: 19 | AJ61: 18 | AO61: 9 | AP61: 29 | AY61: 20 | AZ61: 32 | BA61: 74 | BB61: 91 | BC61: 30 | BD61: 41 | BK61: 96.16666667
B62: 2023-04-01 | C62: -6 | D62: 22 | E62: -6 | F62: 3 | K62: 15 | L62: 13 | M62: -48 | N62: 48 | Q62: 55 | R62: 15 | U62: -2 | V62: 27 | Y62: 2 | Z62: 19 | AA62: 12 | AB62: 8 | AC62: -13 | AD62: 10 | AE62: 3 | AF62: 42 | AG62: -6 | AH62: 7 | AI62: 10 | AJ62: 23 | AO62: -41 | AP62: 20 | AY62: 43 | AZ62: 55 | BA62: 33 | BB62: 49 | BC62: 21 | BD62: 18 | BK62: 63.16666667
B63: 2023-05-01 | C63: 39 | D63: 40 | E63: -15 | F63: 11 | K63: -2 | L63: 16 | M63: -49 | N63: 30 | Q63: 42 | R63: 14 | U63: -38 | V63: 27 | Y63: -18 | Z63: 9 | AA63: -9 | AB63: 10 | AC63: -29 | AD63: 21 | AE63: 4 | AF63: 35 | AG63: -2 | AH63: 10 | AI63: 12 | AJ63: 18 | AO63: -10 | AP63: 27 | AY63: 35 | AZ63: 35 | BA63: 7 | BB63: 44 | BC63: 17 | BD63: 23 | BK63: 61.66666667
B64: 2023-06-01 | C64: 3 | D64: 61 | E64: -3 | F64: 4 | K64: 16 | L64: 23 | M64: -47 | N64: 35 | Q64: 34 | R64: 14 | U64: 5 | V64: 26 | Y64: 12 | Z64: 25 | AA64: -3 | AB64: 9 | AC64: -17 | AD64: 16 | AE64: 2 | AF64: 35 | AG64: 7 | AH64: 8 | AI64: 24 | AJ64: 22 | AO64: -27 | AP64: 19 | AY64: 24 | AZ64: 63 | BA64: 19 | BB64: 25 | BC64: 38 | BD64: 48 | BK64: 72.16666667
B65: 2023-07-01 | C65: 150 | D65: 176 | E65: -20 | F65: 14 | K65: -10 | L65: 6 | M65: -23 | N65: 63 | Q65: 26 | R65: 17 | U65: 61 | V65: 97 | W65: 1 | X65: 2 | Y65: 3 | Z65: 19 | AA65: 3 | AB65: 13 | AC65: -30 | AD65: 35 | AE65: 8 | AF65: 37 | AG65: -4 | AH65: 22 | AI65: 33 | AJ65: 42 | AO65: -21 | AP65: 18 | AQ65: 1 | AR65: 1 | AY65: -16 | AZ65: 11 | BA65: 49 | BB65: 37 | BC65: 3 | BD65: 37 | BK65: 107.8333333
B66: 2023-08-01 | C66: 0 | D66: 59 | E66: -1 | F66: 2 | K66: 3 | L66: 16 | M66: -33 | N66: 31 | U66: -5 | V66: 12 | Y66: 16 | Z66: 25 | AA66: 18 | AB66: 6 | AE66: 5 | AF66: 38 | AG66: -11 | AH66: 18 | AI66: -14 | AJ66: 9 | AO66: -1 | AP66: 1 | AQ66: -3 | AR66: 1 | AY66: 26 | AZ66: 22 | BA66: 23 | BB66: 41 | BC66: 37 | BD66: 48 | BK66: 54.83333333
B67: 2023-09-01 | C67: 22 | D67: 42 | E67: -22 | F67: 24 | K67: 12 | L67: 11 | M67: -5 | N67: 31 | Q67: 20 | R67: 10 | U67: 1 | V67: 78 | Y67: -2 | Z67: 15 | AA67: 1 | AB67: 5 | AC67: -4 | AD67: 3 | AE67: 0 | AF67: 50 | AG67: -18 | AH67: 8 | AI67: 32 | AJ67: 21 | AO67: -21 | AP67: 8 | AY67: 43 | AZ67: 35 | BA67: 27 | BB67: 54 | BC67: 34 | BD67: 44 | BK67: 73.16666667
A68: 1 | O68: -10000 | S68: -10000 | BE68: -10000 | BG68: -10000
A69: 2 | G69: 2 | H69: 310 | AK69: 0 | AL69: 270 | AO69: -2 | AP69: 250 | AQ69: 4 | AR69: 360 | BI69: -4 | BJ69: 220 | BK69: 2023-06-08 | BL69: 94 | BM69: =+AI69+AE69+Y69+W69+U69+S69+Q69+O69+M69+I69+G69+E69+C69+AG69+K69+BI69+BP69+AA69+AC69+AK69+AO69+AQ69+AY69+BG69+BE69+BC69+BA69+AW69+AU69+AS69 -> 0 | BN69: =COUNT(C69:BJ69)/2 -> 5 | BO69: =+BM69/BN69 -> 0 | BP69: =+K69 -> 0
A70: 3 | G70: -1 | H70: 220 | I70: 2 | J70: 250 | AM70: -1 | AN70: 220 | AU70: 4 | AV70: 320 | AW70: -4 | AX70: 50 | BK70: 2023-08-08 | BL70: 115 | BM70: =+AI70+AE70+Y70+W70+U70+S70+Q70+O70+M70+I70+G70+E70+C70+AG70+K70+BI70+BP70+AA70+AC70+AK70+AO70+AQ70+AY70+BG70+BE70+BC70+BA70+AW70+AU70+AS70 -> 1 | BN70: 5 | BO70: 0.2 | BP70: =+K70 -> 0
A71: 4 | Q71: -4 | R71: 110 | U71: -2 | V71: 240 | Y71: 0 | Z71: 250 | AS71: 4 | AT71: 310 | AY71: 2 | AZ71: 280 | BK71: 2023-08-13 | BL71: 141 | BM71: =+AI71+AE71+Y71+W71+U71+S71+Q71+O71+M71+I71+G71+E71+C71+AG71+K71+BI71+BP71+AA71+AC71+AK71+AO71+AQ71+AY71+BG71+BE71+BC71+BA71+AW71+AU71+AS71 -> 0 | BN71: 5 | BO71: 0 | BP71: =+K71*2 -> 0
A72: 5 | BM72: =+AI72+AE72+Y72+W72+U72+S72+Q72+O72+M72+I72+G72+E72+C72+AG72+K72+BI72+BP72+AA72+AC72+AK72+AO72+AQ72+AY72+BG72+BE72+BC72+BA72+AW72+AU72+AS72 -> 0 | BN72: 0 | BP72: =+K72 -> 0
A73: 6 | BM73: 0 | BN73: 0 | BP73: =+K73 -> 0
A74: 7 | BM74: 0 | BN74: 0 | BP74: =+K74 -> 0
A75: 8 | BM75: 0 | BN75: 0 | BP75: =+K75*2 -> 0
A76: 9 | BM76: 0 | BN76: 0 | BP76: =+K76*2 -> 0
A77: 10 | BM77: 0 | BN77: 0 | BP77: =+K77 -> 0
A78: 11 | BM78: 0 | BN78: 0 | BP78: =+K78 -> 0
A79: 12 | BM79: 0 | BN79: 0 | BP79: =+K79*2 -> 0
A80: 13 | BM80: 0 | BN80: 0 | BP80: =+K80*2 -> 0
A81: 14 | BM81: 0 | BN81: 0 | BP81: 0
A82: 15 | BM82: 0 | BN82: 0 | BP82: 0
A83: 16 | BM83: 0 | BN83: 0 | BP83: 0
A84: 17 | BM84: 0 | BN84: 0 | BP84: 0
A85: 18 | BM85: 0 | BN85: 0 | BP85: 0
A86: 19 | BM86: 0 | BN86: 0 | BP86: =+K86 -> 0
A87: 20 | BM87: 0 | BN87: 0 | BO87: =+BM87/BN87 ->  | BP87: =+K87*2 -> 0
A88: 21 | BM88: 0 | BN88: 0 | BO88: =+BM88/BN88 ->  | BP88: =+K88*2 -> 0
A89: 22 | BM89: 0 | BN89: 0
A90: 23 | BM90: 0 | BN90: 0 | BO90: =+BM90/BN90 ->  | BP90: =+K90*2 -> 0
A91: 24 | BM91: 0 | BN91: 0 | BP91: =+K91 -> 0
A92: 25 | BM92: 0 | BN92: 0 | BP92: =+K92 -> 0
A93: 26 | BM93: 0 | BN93: 0 | BP93: =+K93 -> 0
A94: 27 | BM94: 0 | BN94: 0 | BP94: =+K94*2 -> 0
A95: 28 | BM95: 0 | BN95: 0 | BP95: =+K95 -> 0
A96: 29 | BM96: 0 | BN96: =COUNT(C96:BJ96)/2 -> 0 | BP96: =+K96 -> 0
A97: 30 | BM97: 0 | BN97: =COUNT(C97:BJ97)/2 -> 0 | BP97: =+K97*2 -> 0
A98: 31 | BM98: 0 | BN98: =COUNT(C98:BJ98)/2 -> 0 | BO98: =+BM98/BN98 ->  | BP98: =+K98*2 -> 0
A99: 32 | BM99: 0 | BN99: 0 | BP99: =+K99 -> 0
A100: 33 | BM100: 0 | BN100: 0 | BP100: =+K100*2 -> 0
A101: 34 | BM101: 0 | BN101: 0 | BP101: =+K101 -> 0
A102: 35 | BM102: 0 | BN102: 0 | BP102: =+K102*2 -> 0
A103: 36 | BM103: 0 | BN103: 0 | BP103: 0
A104: 37 | BM104: 0 | BN104: 0 | BP104: 0
A105: 38 | BM105: 0 | BN105: 0 | BP105: 0
A106: 39 | BM106: 0 | BN106: 0 | BP106: 0
A107: 40 | BM107: 0 | BN107: 0 | BP107: 0
A108: 41 | BM108: 0 | BN108: 0
A109: 42 | BM109: 0 | BN109: 0 | BO109: =+BM109/BN109 ->  | BP109: =+K109 -> 0
A110: 43 | BM110: 0 | BN110: 0
A111: 44 | BM111: 0 | BN111: 0 | BO111: =+BM111/BN111 ->  | BP111: =+K111 -> 0
A112: 45 | BM112: 0 | BN112: 0
A113: 46 | BM113: 0 | BN113: 0 | BO113: =+BM113/BN113 ->  | BP113: =+K113 -> 0
A114: 47 | BM114: 0 | BN114: 0 | BO114: =+BM114/BN114 ->  | BP114: =+K114*2 -> 0
A115: 48 | BM115: 0 | BN115: 0 | BO115: =+BM115/BN115 ->  | BP115: =+K115 -> 0
A116: 49 | BM116: 0 | BN116: 4 | BO116: 2.22045e-16 | BP116: =+K116*2 -> 0
A117: 50 | BM117: 0 | BN117: 4 | BO117: -2.22045e-16 | BP117: =+K117*2 -> 0
A118: 51 | BM118: 0 | BN118: =COUNT(C118:BJ118)/2 -> 0
A119: 52 | BM119: 0 | BN119: 0 | BO119: =+BM119/BN119 ->  | BP119: =+K119*2 -> 0
A120: 53 | BM120: 0 | BN120: 0 | BP120: =+K120*2 -> 0
A121: 54 | BM121: 0 | BN121: 0 | BP121: =+K121*2 -> 0
A122: 55 | BM122: 0 | BN122: 0 | BP122: =+K122*2 -> 0
A123: 56 | BM123: 0 | BN123: 0 | BP123: =+K123*2 -> 0
A124: 57 | BM124: 0 | BN124: 0 | BP124: =+K124 -> 0
A125: 58 | BM125: 0 | BN125: 0 | BP125: =+K125 -> 0
A126: 59 | BM126: 0 | BN126: 0 | BP126: =+K126*2 -> 0
A127: 60 | BM127: 0 | BN127: 0
A128: 61 | BM128: 0 | BN128: 0 | BO128: =+BM128/BN128 ->  | BP128: =+K128*2 -> 0
A129: 62 | BM129: 0 | BN129: =COUNT(C129:BJ129)/2 -> 0 | BO129: =+BM129/BN129 ->  | BP129: =+K129*2 -> 0
A130: 63 | BM130: 0 | BN130: =COUNT(C130:BJ130)/2 -> 0 | BO130: =+BM130/BN130 ->  | BP130: =+K130*2 -> 0
A131: 64 | BM131: 0 | BN131: =COUNT(C131:BJ131)/2 -> 0 | BO131: =+BM131/BN131 ->  | BP131: =+K131*2 -> 0
A132: 65 | BM132: 0 | BN132: 0 | BO132: =+BM132/BN132 ->  | BP132: =+K132 -> 0
A133: 66 | BM133: 0 | BN133: 0
A134: 67 | BM134: 0 | BN134: 0 | BO134: =+BM134/BN134 ->  | BP134: =+K134*2 -> 0
A135: 68 | BM135: =+AI135+AE135+Y135+W135+U135+S135+Q135+O135+M135+I135+G135+E135+C135+AG135+K135+BI135+BP135+AA135+AC135+AK135+AO135+AQ135+AY135+BG135+BE135+BC135+BA135+AW135+AU135+AS135 -> 0 | BN135: 0
A136: 69 | BM136: 0 | BN136: 0 | BO136: =+BM136/BN136 ->  | BP136: =+K136 -> 0
A137: 70 | BM137: 0 | BN137: 0 | BO137: =+BM137/BN137 ->  | BP137: =+K137*2 -> 0
A138: 71 | BM138: 0 | BN138: 0
A139: 72 | BM139: 0 | BN139: 0
A140: 73 | BM140: 0 | BN140: 0
A141: 74 | BM141: 0 | BN141: 0
A142: 75 | BM142: 0 | BN142: 0
A143: 76 | BM143: 0 | BN143: 0
A144: 77 | BM144: 0 | BN144: 0
A145: 78 | BM145: 0 | BN145: 0
A146: 79 | BM146: 0 | BN146: 0
A147: 80 | BM147: 0 | BN147: 0
A148: 81 | BM148: 0 | BN148: 0
A149: 82 | BM149: 0 | BN149: 0
A150: 83 | BM150: 0 | BN150: 0
A151: 84 | BM151: 0 | BN151: 0
A152: 85 | BM152: 0 | BN152: 0
A153: 86 | BM153: 0 | BN153: 0
A154: 87 | BM154: 0 | BN154: 0
A155: 88 | BM155: 0 | BN155: 0
A156: 89 | BM156: 0 | BN156: 0
A157: 90 | BM157: 0 | BN157: 0
A158: 91 | BM158: 0 | BN158: 0
A159: 92 | BM159: 0 | BN159: 0
A160: 93 | BM160: 0 | BN160: 0
A161: 94 | BM161: 0 | BN161: 0
A162: 95 | BM162: 0 | BN162: 0
A163: 96 | BM163: 0 | BN163: 0
A164: 97 | BM164: 0 | BN164: 0
A165: 98 | BM165: 0 | BN165: 0
A166: 99 | BM166: 0 | BN166: 0
A167: 100 | BM167: 0 | BN167: 0
A168: 101 | BM168: 0 | BN168: 0
A169: 102 | BM169: 0 | BN169: 0
A170: 103 | BM170: 0 | BN170: 0
A171: 104 | BM171: 0 | BN171: 0
A172: 105 | BM172: 0 | BN172: 0
A173: 106 | BM173: 0 | BN173: 0
A174: 107 | BM174: 0 | BN174: 0
A175: 108 | BM175: 0 | BN175: 0
A176: 109 | BM176: 0 | BN176: 0
A177: 110 | BM177: 0 | BN177: 0
A178: 111 | BM178: 0 | BN178: 0
A179: 112 | BM179: 0 | BN179: 0
A180: 113 | BM180: 0 | BN180: 0
A181: 114 | BM181: 0 | BN181: 0
A182: 115 | BM182: 0 | BN182: 0
A183: 116 | BM183: 0 | BN183: 0
A184: 117 | BM184: 0 | BN184: 0
A185: 118 | BM185: 0 | BN185: 0
A186: 119 | BM186: 0 | BN186: 0
A187: 120 | BM187: 0 | BN187: 0
A188: 121 | BM188: 0 | BN188: 0
A189: 122 | BM189: 0 | BN189: 0
A190: 123 | BM190: 0 | BN190: 0
A191: 124 | BM191: 0 | BN191: 0
A192: 125 | BM192: 0 | BN192: 0
A193: 126 | BM193: 0 | BN193: 0
A194: 127 | BM194: 0 | BN194: 0
A195: 128 | BM195: 0 | BN195: =COUNT(C195:BJ195)/2 -> 0
A196: 129 | BM196: 0 | BN196: 0
A197: 130 | BM197: 0 | BN197: 0
A198: 131 | BM198: 0 | BN198: 0
A199: 132 | BM199: =+AI199+AE199+Y199+W199+U199+S199+Q199+O199+M199+I199+G199+E199+C199+AG199+K199+BI199+BP199+AA199+AC199+AK199+AO199+AQ199+AY199+BG199+BE199+BC199+BA199+AW199+AU199+AS199 -> 0 | BN199: 0
A200: 133 | BM200: 0 | BN200: 0
A201: 134 | BM201: 0 | BN201: 0
A202: 135 | BM202: 0 | BN202: 0
... 658 more rows

Sheet Wizard
A1: WIZARD
A2: Mes | E2: =+E3/6 -> 164.1666667
A3: =+GENERAL!B6 -> 12 | E3: =SUM(E5:E33) -> 985
C4: Premi | D4: Punts | E4: Partides | F4: General
A5: 1 | B5: Carles | C5: =+Q$50 -> 188 | D5: =+R$51 -> 0 | E5: =+R$50 -> 73 | F5: =+Q$36 -> 80 | G5: =IF(E5<A$3/2,-1,1)*800000+C5*1000+D5*0+E5/1000 -> 988000.073 | I5: =+C5/E5 -> 2.575342466
A6: 2 | B6: Tim | C6: =+AY$50 -> 72 | D6: =+AZ$51 -> 0 | E6: =+AZ$50 -> 106 | F6: =+AY$36 -> 40 | G6: 872000.106 | I6: =+C6/E6 -> 0.679245283
A7: 3 | B7: Mario | C7: =+BC$50 -> 30 | D7: =+BE$51 -> 0 | E7: =+BD$50 -> 81 | F7: =+BC$36 -> 20 | G7: 830000.081 | I7: 0.3703703704
A8: 4 | B8: Marina | C8: =+Y$50 -> 29 | D8: =+Z$51 -> 0 | E8: =+Z$50 -> 96 | F8: =+Y$36 -> 10 | G8: 829000.096 | I8: 0.3020833333
A9: 5 | B9: Grau | C9: =+U$50 -> 28 | D9: =+V$51 -> 0 | E9: =+V$50 -> 85 | F9: =+U$36 -> 5 | G9: 828000.085 | I9: 0.3294117647
A10: 6 | B10: Jordi | C10: =+G$50 -> 24 | D10: =+H$51 -> 0 | E10: =+H$50 -> 9 | F10: =+G$36 -> 0 | G10: 824000.009 | I10: 2.666666667
A11: 7 | B11: Debi | C11: =+BA$50 -> 18 | D11: =+BB$51 -> 0 | E11: =+BB$50 -> 26 | F11: =+BA$36 -> 0 | G11: 818000.026 | I11: 0.6923076923
A12: 8 | B12: Tito | C12: =+AA$50 -> 7 | D12: =+AB$51 -> 0 | E12: =+AB$50 -> 13 | F12: =+AA$36 -> 0 | G12: 807000.013 | I12: 0.5384615385
A13: 9 | B13: Jeff | C13: =+AI$50 -> 0 | D13: =+AJ$51 -> 0 | E13: =+AJ$50 -> 93 | F13: =+AI$36 -> 0 | G13: 800000.093 | I13: 0
A14: 10 | B14: Nogué | C14: =+BI$50 -> -2 | D14: =+BJ$51 -> 0 | E14: =+BJ$50 -> 7 | F14: =+BI$36 -> 0 | G14: 798000.007 | I14: -0.2857142857
A15: 11 | B15: Sebas | C15: =+AQ$50 -> -4 | D15: =+AR$51 -> 0 | E15: =+AR$50 -> 6 | F15: =+AQ$36 -> 0 | G15: 796000.006 | I15: -0.6666666667
A16: 12 | B16: Núria | C16: =+AK$50 -> -11 | D16: =+AL$51 -> 0 | E16: =+AL$50 -> 8 | F16: =+AK$36 -> 0 | G16: 789000.008 | I16: -1.375
A17: 13 | B17: Nancy | C17: =+AG$50 -> -15 | D17: =+AH$51 -> 0 | E17: =+AH$50 -> 28 | F17: =+AG$36 -> 0 | G17: 785000.028 | I17: -0.5357142857
A18: 14 | B18: Ana B | C18: =+E$50 -> -20 | D18: =+F$51 -> 0 | E18: =+F$50 -> 49 | F18: =+E$36 -> 0 | G18: 780000.049 | I18: -0.4081632653
A19: 15 | B19: Nin | C19: =+AC$50 -> -22 | D19: =+AD$51 -> 0 | E19: =+AD$50 -> 34 | F19: =+AC$36 -> 0 | G19: 778000.034 | I19: -0.6470588235
A20: 16 | B20: Alfred | C20: =+AE$50 -> -31 | D20: =+AF$51 -> 0 | E20: =+AF$50 -> 48 | F20: =+AE$36 -> 0 | G20: 769000.048 | I20: -0.6458333333
A21: 17 | B21: Gemma | C21: =+AO$50 -> -31 | D21: =+AP$51 -> 0 | E21: =+AP$50 -> 33 | F21: =+AO$36 -> 0 | G21: 769000.033 | I21: -0.9393939394
A22: 18 | B22: Manolo | C22: =+C$50 -> -41 | D22: =+D$51 -> 0 | E22: =+D$50 -> 101 | F22: =+C$36 -> 0 | G22: 759000.101 | I22: -0.4059405941
A23: 19 | B23: Goretti | C23: =+M$50 -> -67 | D23: =+N$51 -> 0 | E23: =+N$50 -> 69 | F23: =+M$36 -> 0 | G23: 733000.069 | I23: -0.9710144928
A24: 20 | B24: Robert | C24: =+AU$50 -> 12 | D24: =+AV$51 -> 0 | E24: =+AV$50 -> 3 | F24: =+AU$36 -> 0 | G24: -787999.997 | I24: 4
A25: 21 | B25: Òscar | C25: =+BE$50 -> 5 | D25: =+BF$51 -> 0 | E25: =+BF$50 -> 1 | F25: =+BE$36 -> 0 | G25: -794999.999 | I25: 5
A26: 22 | B26: France | C26: =+AS$50 -> 4 | D26: =+AT$51 -> 0 | E26: =+AT$50 -> 2 | F26: =+AS$36 -> 0 | G26: -795999.998 | I26: 2
A27: 23 | B27: Mariajo | C27: =+S$50 -> 3 | D27: =+T$51 -> 0 | E27: =+T$50 -> 1 | F27: =+S$36 -> 0 | G27: -796999.999
A28: 24 | B28: Eito | C28: =+AW$50 -> 2 | D28: =+AX$51 -> 0 | E28: =+AX$50 -> 2 | F28: =+AW$36 -> 0 | G28: -797999.998
A29: 25 | B29: Christophe | C29: =+BG$50 -> 0 | D29: =+BH$51 -> 0 | E29: =+BH$50 -> 2 | F29: =+BG$36 -> 0 | G29: -799999.998
A30: 26 | B30: Paul | C30: =+W$50 -> -2 | D30: =+X$51 -> 0 | E30: =+X$50 -> 4 | F30: =+W$36 -> 0 | G30: -801999.996
A31: 27 | B31: Kallie | C31: =+K$50 -> -2 | D31: =+L$51 -> 0 | E31: =+L$50 -> 2 | F31: =+K$36 -> 0 | G31: -801999.998
A32: 28 | B32: Levi | C32: =+O$50 -> -2 | D32: =+P$51 -> 0 | E32: =+P$50 -> 2 | F32: =+O$36 -> 0 | G32: -801999.998
A33: 29 | B33: Alejandro | C33: =+I$50 -> -3 | D33: =+J$51 -> 0 | E33: =+J$50 -> 1 | F33: =+I$36 -> 0 | G33: -802999.999
A34: 30 | B34: XXX | C34: =+AM$50 -> -100000000 | D34: =+AN$51 -> 0 | E34: =+AN$36 -> 1 | F34: =+S$36 -> 0 | G34: -1.000008e+11
B36: General | C36: =+C37*C38 -> 0 | D36: =+D37*D38 -> 101 | E36: 0 | F36: 49 | G36: =+G37*G38 -> 0 | H36: 9 | I36: 0 | J36: 1 | K36: =+K37*K38 -> 0 | L36: =+L37*L38 -> 2 | M36: 0 | N36: 69 | O36: 0 | P36: 2 | Q36: 80 | R36: 73 | S36: 0 | T36: 1 | U36: =+U37*U38 -> 5 | V36: 85 | W36: 0 | X36: 4 | Y36: 10 | Z36: 96 | AA36: =+AA37*AA38 -> 0 | AB36: =+AB37*AB38 -> 13 | AC36: =+AC37*AC38 -> 0 | AD36: =+AD37*AD38 -> 34 | AE36: =+AE37*AE38 -> 0 | AF36: 48 | AG36: =+AG37*AG38 -> 0 | AH36: =+AH37*AH38 -> 28 | AI36: 0 | AJ36: 93 | AK36: =+AK37*AK38 -> 0 | AL36: 8 | AM36: 0 | AN36: 1 | AO36: 0 | AP36: 33 | AQ36: 0 | AR36: 6 | AS36: 0 | AT36: 2 | AU36: 0 | AV36: 3 | AW36: 0 | AX36: 2 | AY36: =+AY37*AY38 -> 40 | AZ36: 106 | BA36: 0 | BB36: 26 | BC36: 20 | BD36: 81 | BE36: =+BE37*BE38 -> 0 | BF36: 1 | BG36: 0 | BH36: 2 | BI36: 0 | BJ36: 7
C37: =IF($B49>3,1,0) -> 1 | D37: =IF($B49>3,1,0) -> 1 | E37: 1 | F37: 1 | G37: =IF($B49>3,1,0) -> 1 | H37: 1 | I37: 1 | J37: 1 | K37: =IF($B49>3,1,0) -> 1 | L37: =IF($B49>3,1,0) -> 1 | M37: 1 | N37: 1 | O37: 1 | P37: 1 | Q37: 1 | R37: 1 | S37: 1 | T37: 1 | U37: 1 | V37: 1 | W37: 1 | X37: 1 | Y37: 1 | Z37: 1 | AA37: =IF($B49>3,1,0) -> 1 | AB37: =IF($B49>3,1,0) -> 1 | AC37: =IF($B49>3,1,0) -> 1 | AD37: =IF($B49>3,1,0) -> 1 | AE37: 1 | AF37: 1 | AG37: =IF($B49>3,1,0) -> 1 | AH37: =IF($B49>3,1,0) -> 1 | AI37: 1 | AJ37: 1 | AK37: =IF($B49>3,1,0) -> 1 | AL37: 1 | AM37: 1 | AN37: 1 | AO37: 1 | AP37: 1 | AQ37: 1 | AR37: 1 | AS37: 1 | AT37: 1 | AU37: 1 | AV37: 1 | AW37: 1 | AX37: 1 | AY37: =IF($B49>3,1,0) -> 1 | AZ37: 1 | BA37: 1 | BB37: 1 | BC37: 1 | BD37: 1 | BE37: =IF($B49>3,1,0) -> 1 | BF37: 1 | BG37: 1 | BH37: 1 | BI37: 1 | BJ37: 1
C38: =MAX(C39:C43) -> 0 | D38: =+D50 -> 101 | E38: =MAX(E39:E43) -> 0 | F38: =+F50 -> 49 | G38: =MAX(G39:G43) -> 0 | H38: =+H50 -> 9 | I38: =MAX(I39:I43) -> 0 | J38: =+J50 -> 1 | K38: =MAX(K39:K43) -> 0 | L38: =+L50 -> 2 | M38: =MAX(M39:M43) -> 0 | N38: =+N50 -> 69 | O38: =MAX(O39:O43) -> 0 | P38: =+P50 -> 2 | Q38: =MAX(Q39:Q43) -> 80 | R38: =+R50 -> 73 | S38: =MAX(S39:S43) -> 0 | T38: =+T50 -> 1 | U38: =MAX(U39:U43) -> 5 | V38: =+V50 -> 85 | W38: =MAX(W39:W43) -> 0 | X38: =+X50 -> 4 | Y38: =MAX(Y39:Y43) -> 10 | Z38: =+Z50 -> 96 | AA38: =MAX(AA39:AA43) -> 0 | AB38: =+AB50 -> 13 | AC38: =MAX(AC39:AC43) -> 0 | AD38: =+AD50 -> 34 | AE38: =MAX(AE39:AE43) -> 0 | AF38: =+AF50 -> 48 | AG38: =MAX(AG39:AG43) -> 0 | AH38: =+AH50 -> 28 | AI38: =MAX(AI39:AI43) -> 0 | AJ38: =+AJ50 -> 93 | AK38: =MAX(AK39:AK43) -> 0 | AL38: =+AL50 -> 8 | AM38: =MAX(AM39:AM43) -> 0 | AN38: =+AN50 -> 1 | AO38: =MAX(AO39:AO43) -> 0 | AP38: =+AP50 -> 33 | AQ38: =MAX(AQ39:AQ43) -> 0 | AR38: =+AR50 -> 6 | AS38: =MAX(AS39:AS43) -> 0 | AT38: =+AT50 -> 2 | AU38: =MAX(AU39:AU43) -> 0 | AV38: =+AV50 -> 3 | AW38: =MAX(AW39:AW43) -> 0 | AX38: =+AX50 -> 2 | AY38: =MAX(AY39:AY43) -> 40 | AZ38: =+AZ50 -> 106 | BA38: =MAX(BA39:BA43) -> 0 | BB38: =+BB50 -> 26 | BC38: =MAX(BC39:BC43) -> 20 | BD38: =+BD50 -> 81 | BE38: =MAX(BE39:BE43) -> 0 | BF38: =+BF50 -> 1 | BG38: =MAX(BG39:BG43) -> 0 | BH38: =+BH50 -> 2 | BI38: =MAX(BI39:BI43) -> 0 | BJ38: =+BJ50 -> 7
C39: =IF(C$44=5,5,0) -> 0 | E39: =IF(E$44=5,5,0) -> 0 | G39: =IF(G$44=5,5,0) -> 0 | I39: =IF(I$44=5,5,0) -> 0 | K39: =IF(K$44=5,5,0) -> 0 | M39: =IF(M$44=5,5,0) -> 0 | O39: =IF(O$44=5,5,0) -> 0 | Q39: =IF(Q$44=5,5,0) -> 0 | S39: =IF(S$44=5,5,0) -> 0 | U39: =IF(U$44=5,5,0) -> 5 | W39: =IF(W$44=5,5,0) -> 0 | Y39: =IF(Y$44=5,5,0) -> 0 | AA39: =IF(AA$44=5,5,0) -> 0 | AC39: =IF(AC$44=5,5,0) -> 0 | AE39: =IF(AE$44=5,5,0) -> 0 | AG39: =IF(AG$44=5,5,0) -> 0 | AI39: =IF(AI$44=5,5,0) -> 0 | AK39: =IF(AK$44=5,5,0) -> 0 | AM39: =IF(AM$44=5,5,0) -> 0 | AO39: =IF(AO$44=5,5,0) -> 0 | AQ39: =IF(AQ$44=5,5,0) -> 0 | AS39: =IF(AS$44=5,5,0) -> 0 | AU39: =IF(AU$44=5,5,0) -> 0 | AW39: =IF(AW$44=5,5,0) -> 0 | AY39: =IF(AY$44=5,5,0) -> 0 | BA39: =IF(BA$44=5,5,0) -> 0 | BC39: =IF(BC$44=5,5,0) -> 0 | BE39: =IF(BE$44=5,5,0) -> 0 | BG39: =IF(BG$44=5,5,0) -> 0 | BI39: =IF(BI$44=5,5,0) -> 0
C40: =IF(C$44=4,10,0) -> 0 | E40: =IF(E$44=4,10,0) -> 0 | G40: =IF(G$44=4,10,0) -> 0 | I40: =IF(I$44=4,10,0) -> 0 | K40: =IF(K$44=4,10,0) -> 0 | M40: =IF(M$44=4,10,0) -> 0 | O40: =IF(O$44=4,10,0) -> 0 | Q40: =IF(Q$44=4,10,0) -> 0 | S40: =IF(S$44=4,10,0) -> 0 | U40: =IF(U$44=4,10,0) -> 0 | W40: =IF(W$44=4,10,0) -> 0 | Y40: =IF(Y$44=4,10,0) -> 10 | AA40: =IF(AA$44=4,10,0) -> 0 | AC40: =IF(AC$44=4,10,0) -> 0 | AE40: =IF(AE$44=4,10,0) -> 0 | AG40: =IF(AG$44=4,10,0) -> 0 | AI40: =IF(AI$44=4,10,0) -> 0 | AK40: =IF(AK$44=4,10,0) -> 0 | AM40: =IF(AM$44=4,10,0) -> 0 | AO40: =IF(AO$44=4,10,0) -> 0 | AQ40: =IF(AQ$44=4,10,0) -> 0 | AS40: =IF(AS$44=4,10,0) -> 0 | AU40: =IF(AU$44=4,10,0) -> 0 | AW40: =IF(AW$44=4,10,0) -> 0 | AY40: =IF(AY$44=4,10,0) -> 0 | BA40: =IF(BA$44=4,10,0) -> 0 | BC40: =IF(BC$44=4,10,0) -> 0 | BE40: =IF(BE$44=4,10,0) -> 0 | BG40: =IF(BG$44=4,10,0) -> 0 | BI40: =IF(BI$44=4,10,0) -> 0
C41: =IF(C$44=3,20,0) -> 0 | E41: =IF(E$44=3,20,0) -> 0 | G41: =IF(G$44=3,20,0) -> 0 | I41: =IF(I$44=3,20,0) -> 0 | K41: =IF(K$44=3,20,0) -> 0 | M41: =IF(M$44=3,20,0) -> 0 | O41: =IF(O$44=3,20,0) -> 0 | Q41: =IF(Q$44=3,20,0) -> 0 | S41: =IF(S$44=3,20,0) -> 0 | U41: =IF(U$44=3,20,0) -> 0 | W41: =IF(W$44=3,20,0) -> 0 | Y41: =IF(Y$44=3,20,0) -> 0 | AA41: =IF(AA$44=3,20,0) -> 0 | AC41: =IF(AC$44=3,20,0) -> 0 | AE41: =IF(AE$44=3,20,0) -> 0 | AG41: =IF(AG$44=3,20,0) -> 0 | AI41: =IF(AI$44=3,20,0) -> 0 | AK41: =IF(AK$44=3,20,0) -> 0 | AM41: =IF(AM$44=3,20,0) -> 0 | AO41: =IF(AO$44=3,20,0) -> 0 | AQ41: =IF(AQ$44=3,20,0) -> 0 | AS41: =IF(AS$44=3,20,0) -> 0 | AU41: =IF(AU$44=3,20,0) -> 0 | AW41: =IF(AW$44=3,20,0) -> 0 | AY41: =IF(AY$44=3,20,0) -> 0 | BA41: =IF(BA$44=3,20,0) -> 0 | BC41: =IF(BC$44=3,20,0) -> 20 | BE41: =IF(BE$44=3,20,0) -> 0 | BG41: =IF(BG$44=3,20,0) -> 0 | BI41: =IF(BI$44=3,20,0) -> 0
C42: =IF(C$44=2,40,0) -> 0 | E42: =IF(E$44=2,40,0) -> 0 | G42: =IF(G$44=2,40,0) -> 0 | I42: =IF(I$44=2,40,0) -> 0 | K42: =IF(K$44=2,40,0) -> 0 | M42: =IF(M$44=2,40,0) -> 0 | O42: =IF(O$44=2,40,0) -> 0 | Q42: =IF(Q$44=2,40,0) -> 0 | S42: =IF(S$44=2,40,0) -> 0 | U42: =IF(U$44=2,40,0) -> 0 | W42: =IF(W$44=2,40,0) -> 0 | Y42: =IF(Y$44=2,40,0) -> 0 | AA42: =IF(AA$44=2,40,0) -> 0 | AC42: =IF(AC$44=2,40,0) -> 0 | AE42: =IF(AE$44=2,40,0) -> 0 | AG42: =IF(AG$44=2,40,0) -> 0 | AI42: =IF(AI$44=2,40,0) -> 0 | AK42: =IF(AK$44=2,40,0) -> 0 | AM42: =IF(AM$44=2,40,0) -> 0 | AO42: =IF(AO$44=2,40,0) -> 0 | AQ42: =IF(AQ$44=2,40,0) -> 0 | AS42: =IF(AS$44=2,40,0) -> 0 | AU42: =IF(AU$44=2,40,0) -> 0 | AW42: =IF(AW$44=2,40,0) -> 0 | AY42: =IF(AY$44=2,40,0) -> 40 | BA42: =IF(BA$44=2,40,0) -> 0 | BC42: =IF(BC$44=2,40,0) -> 0 | BE42: =IF(BE$44=2,40,0) -> 0 | BG42: =IF(BG$44=2,40,0) -> 0 | BI42: =IF(BI$44=2,40,0) -> 0
C43: =IF(C$44=1,80,0) -> 0 | E43: =IF(E$44=1,80,0) -> 0 | G43: =IF(G$44=1,80,0) -> 0 | I43: =IF(I$44=1,80,0) -> 0 | K43: =IF(K$44=1,80,0) -> 0 | M43: =IF(M$44=1,80,0) -> 0 | O43: =IF(O$44=1,80,0) -> 0 | Q43: =IF(Q$44=1,80,0) -> 80 | S43: =IF(S$44=1,80,0) -> 0 | U43: =IF(U$44=1,80,0) -> 0 | W43: =IF(W$44=1,80,0) -> 0 | Y43: =IF(Y$44=1,80,0) -> 0 | AA43: =IF(AA$44=1,80,0) -> 0 | AC43: =IF(AC$44=1,80,0) -> 0 | AE43: =IF(AE$44=1,80,0) -> 0 | AG43: =IF(AG$44=1,80,0) -> 0 | AI43: =IF(AI$44=1,80,0) -> 0 | AK43: =IF(AK$44=1,80,0) -> 0 | AM43: =IF(AM$44=1,80,0) -> 0 | AO43: =IF(AO$44=1,80,0) -> 0 | AQ43: =IF(AQ$44=1,80,0) -> 0 | AS43: =IF(AS$44=1,80,0) -> 0 | AU43: =IF(AU$44=1,80,0) -> 0 | AW43: =IF(AW$44=1,80,0) -> 0 | AY43: =IF(AY$44=1,80,0) -> 0 | BA43: =IF(BA$44=1,80,0) -> 0 | BC43: =IF(BC$44=1,80,0) -> 0 | BE43: =IF(BE$44=1,80,0) -> 0 | BG43: =IF(BG$44=1,80,0) -> 0 | BI43: =IF(BI$44=1,80,0) -> 0
C44: =RANK(C45,$C45:$CL45)*C49 -> 18 | E44: =RANK(E45,$C45:$CL45)*E49 -> 14 | G44: =RANK(G45,$C45:$CL45)*G49 -> 6 | I44: =RANK(I45,$C45:$CL45)*I49 -> 0 | K44: =RANK(K45,$C45:$CL45)*K49 -> 0 | M44: =RANK(M45,$C45:$CL45)*M49 -> 19 | O44: =RANK(O45,$C45:$CL45)*O49 -> 0 | Q44: =RANK(Q45,$C45:$CL45)*Q49 -> 1 | S44: =RANK(S45,$C45:$CL45)*S49 -> 0 | U44: =RANK(U45,$C45:$CL45)*U49 -> 5 | W44: =RANK(W45,$C45:$CL45)*W49 -> 0 | Y44: =RANK(Y45,$C45:$CL45)*Y49 -> 4 | AA44: =RANK(AA45,$C45:$CL45)*AA49 -> 8 | AC44: =RANK(AC45,$C45:$CL45)*AC49 -> 15 | AE44: =RANK(AE45,$C45:$CL45)*AE49 -> 16 | AG44: =RANK(AG45,$C45:$CL45)*AG49 -> 13 | AI44: =RANK(AI45,$C45:$CL45)*AI49 -> 9 | AK44: =RANK(AK45,$C45:$CL45)*AK49 -> 12 | AM44: =RANK(AM45,$C45:$CL45)*AM49 -> 0 | AO44: =RANK(AO45,$C45:$CL45)*AO49 -> 17 | AQ44: =RANK(AQ45,$C45:$CL45)*AQ49 -> 11 | AS44: =RANK(AS45,$C45:$CL45)*AS49 -> 0 | AU44: =RANK(AU45,$C45:$CL45)*AU49 -> 0 | AW44: =RANK(AW45,$C45:$CL45)*AW49 -> 0 | AY44: =RANK(AY45,$C45:$CL45)*AY49 -> 2 | BA44: =RANK(BA45,$C45:$CL45)*BA49 -> 7 | BC44: =RANK(BC45,$C45:$CL45)*BC49 -> 3 | BE44: =RANK(BE45,$C45:$CL45)*BE49 -> 0 | BG44: =RANK(BG45,$C45:$CL45)*BG49 -> 0 | BI44: =RANK(BI45,$C45:$CL45)*BI49 -> 10
C45: =SUM(C46:C48) -> -41039.99 | E45: =SUM(E46:E48) -> -20019.51 | G45: =SUM(G46:G48) -> 24024.09 | I45: =SUM(I46:I48) -> -1000002.99 | K45: =SUM(K46:K48) -> -1000001.98 | M45: =SUM(M46:M48) -> -67066.31 | O45: =SUM(O46:O48) -> -1000001.98 | Q45: =SUM(Q46:Q48) -> 188188.73 | S45: =SUM(S46:S48) -> -999996.99 | U45: =SUM(U46:U48) -> 28028.85 | W45: =SUM(W46:W48) -> -1000001.96 | Y45: =SUM(Y46:Y48) -> 29029.96 | AA45: =SUM(AA46:AA48) -> 7007.13 | AC45: =SUM(AC46:AC48) -> -22021.66 | AE45: =SUM(AE46:AE48) -> -31030.52 | AG45: =SUM(AG46:AG48) -> -15014.72 | AI45: =SUM(AI46:AI48) -> 0.93 | AK45: =SUM(AK46:AK48) -> -11010.92 | AM45: =SUM(AM46:AM48) -> -101000000 | AO45: =SUM(AO46:AO48) -> -31030.67 | AQ45: =SUM(AQ46:AQ48) -> -4003.94 | AS45: =SUM(AS46:AS48) -> -999995.98 | AU45: =SUM(AU46:AU48) -> -999987.97 | AW45: =SUM(AW46:AW48) -> -999997.98 | AY45: =SUM(AY46:AY48) -> 72073.06 | BA45: =SUM(BA46:BA48) -> 18018.26 | BC45: =SUM(BC46:BC48) -> 30030.81 | BE45: =SUM(BE46:BE48) -> -999994.99 | BG45: =SUM(BG46:BG48) -> -999999.98 | BI45: =SUM(BI46:BI48) -> -2001.93
C46: =+D50/100 -> 1.01 | E46: =+F50/100 -> 0.49 | G46: =+H50/100 -> 0.09 | I46: =+J50/100 -> 0.01 | K46: =+L50/100 -> 0.02 | M46: =+N50/100 -> 0.69 | O46: =+P50/100 -> 0.02 | Q46: =+R50/100 -> 0.73 | S46: =+T50/100 -> 0.01 | U46: =+V50/100 -> 0.85 | W46: =+X50/100 -> 0.04 | Y46: =+Z50/100 -> 0.96 | AA46: =+AB50/100 -> 0.13 | AC46: =+AD50/100 -> 0.34 | AE46: =+AF50/100 -> 0.48 | AG46: =+AH50/100 -> 0.28 | AI46: =+AJ50/100 -> 0.93 | AK46: =+AL50/100 -> 0.08 | AM46: =+AN50/100 -> 0.01 | AO46: =+AP50/100 -> 0.33 | AQ46: =+AR50/100 -> 0.06 | AS46: =+AT50/100 -> 0.02 | AU46: =+AV50/100 -> 0.03 | AW46: =+AX50/100 -> 0.02 | AY46: =+AZ50/100 -> 1.06 | BA46: =+BB50/100 -> 0.26 | BC46: =+BD50/100 -> 0.81 | BE46: =+BF50/100 -> 0.01 | BG46: =+BH50/100 -> 0.02 | BI46: =+BJ50/100 -> 0.07
C47: =D51*0 -> 0 | E47: =F51*0 -> 0 | G47: =H51*0 -> 0 | I47: =J51*0 -> 0 | K47: =L51*0 -> 0 | M47: =N51*0 -> 0 | O47: =P51*0 -> 0 | Q47: =R51*0 -> 0 | S47: =T51*0 -> 0 | U47: =V51*0 -> 0 | W47: =X51*0 -> 0 | Y47: =Z51*0 -> 0 | AA47: =AB51*0 -> 0 | AC47: =AD51*0 -> 0 | AE47: =AF51*0 -> 0 | AG47: =AH51*0 -> 0 | AI47: =AJ51*0 -> 0 | AK47: =AL51*0 -> 0 | AM47: =AN51*0 -> 0 | AO47: =AP51*0 -> 0 | AQ47: =AR51*0 -> 0 | AS47: =AT51*0 -> 0 | AU47: =AV51*0 -> 0 | AW47: =AX51*0 -> 0 | AY47: =AZ51*0 -> 0 | BA47: =BB51*0 -> 0 | BC47: =BE51*0 -> 0 | BE47: =BF51*0 -> 0 | BG47: =BH51*0 -> 0 | BI47: =BJ51*0 -> 0
C48: =IF(C49=1,C50*C49*1000+C50,-1000000+C50) -> -41041 | E48: =IF(E49=1,E50*E49*1000+E50,-1000000+E50) -> -20020 | G48: =IF(G49=1,G50*G49*1000+G50,-1000000+G50) -> 24024 | I48: =IF(I49=1,I50*I49*1000+I50,-1000000+I50) -> -1000003 | K48: =IF(K49=1,K50*K49*1000+K50,-1000000+K50) -> -1000002 | M48: =IF(M49=1,M50*M49*1000+M50,-1000000+M50) -> -67067 | O48: =IF(O49=1,O50*O49*1000+O50,-1000000+O50) -> -1000002 | Q48: =IF(Q49=1,Q50*Q49*1000+Q50,-1000000+Q50) -> 188188 | S48: =IF(S49=1,S50*S49*1000+S50,-1000000+S50) -> -999997 | U48: =IF(U49=1,U50*U49*1000+U50,-1000000+U50) -> 28028 | W48: =IF(W49=1,W50*W49*1000+W50,-1000000+W50) -> -1000002 | Y48: =IF(Y49=1,Y50*Y49*1000+Y50,-1000000+Y50) -> 29029 | AA48: =IF(AA49=1,AA50*AA49*1000+AA50,-1000000+AA50) -> 7007 | AC48: =IF(AC49=1,AC50*AC49*1000+AC50,-1000000+AC50) -> -22022 | AE48: =IF(AE49=1,AE50*AE49*1000+AE50,-1000000+AE50) -> -31031 | AG48: =IF(AG49=1,AG50*AG49*1000+AG50,-1000000+AG50) -> -15015 | AI48: =IF(AI49=1,AI50*AI49*1000+AI50,-1000000+AI50) -> 0 | AK48: =IF(AK49=1,AK50*AK49*1000+AK50,-1000000+AK50) -> -11011 | AM48: =IF(AM49=1,AM50*AM49*1000+AM50,-1000000+AM50) -> -101000000 | AO48: =IF(AO49=1,AO50*AO49*1000+AO50,-1000000+AO50) -> -31031 | AQ48: =IF(AQ49=1,AQ50*AQ49*1000+AQ50,-1000000+AQ50) -> -4004 | AS48: =IF(AS49=1,AS50*AS49*1000+AS50,-1000000+AS50) -> -999996 | AU48: =IF(AU49=1,AU50*AU49*1000+AU50,-1000000+AU50) -> -999988 | AW48: =IF(AW49=1,AW50*AW49*1000+AW50,-1000000+AW50) -> -999998 | AY48: =IF(AY49=1,AY50*AY49*1000+AY50,-1000000+AY50) -> 72072 | BA48: =IF(BA49=1,BA50*BA49*1000+BA50,-1000000+BA50) -> 18018 | BC48: =IF(BC49=1,BC50*BC49*1000+BC50,-1000000+BC50) -> 30030 | BE48: =IF(BE49=1,BE50*BE49*1000+BE50,-1000000+BE50) -> -999995 | BG48: =IF(BG49=1,BG50*BG49*1000+BG50,-1000000+BG50) -> -1000000 | BI48: =IF(BI49=1,BI50*BI49*1000+BI50,-1000000+BI50) -> -2002
A49: Classificats | B49: =SUM(C49:BJ49) -> 19 | C49: =IF(D50>=$A3/2,1,0) -> 1 | E49: =IF(F50>=$A3/2,1,0) -> 1 | G49: =IF(H50>=$A3/2,1,0) -> 1 | I49: =IF(J50>=$A3/2,1,0) -> 0 | K49: =IF(L50>=$A3/2,1,0) -> 0 | M49: =IF(N50>=$A3/2,1,0) -> 1 | O49: =IF(P50>=$A3/2,1,0) -> 0 | Q49: =IF(R50>=$A3/2,1,0) -> 1 | S49: =IF(T50>=$A3/2,1,0) -> 0 | U49: =IF(V50>=$A3/2,1,0) -> 1 | W49: =IF(X50>=$A3/2,1,0) -> 0 | Y49: =IF(Z50>=$A3/2,1,0) -> 1 | AA49: =IF(AB50>=$A3/2,1,0) -> 1 | AC49: =IF(AD50>=$A3/2,1,0) -> 1 | AE49: =IF(AF50>=$A3/2,1,0) -> 1 | AG49: =IF(AH50>=$A3/2,1,0) -> 1 | AI49: =IF(AJ50>=$A3/2,1,0) -> 1 | AK49: =IF(AL50>=$A3/2,1,0) -> 1 | AM49: =IF(AN50>=$A3/2,1,0) -> 0 | AO49: =IF(AP50>=$A3/2,1,0) -> 1 | AQ49: =IF(AR50>=$A3/2,1,0) -> 1 | AS49: =IF(AT50>=$A3/2,1,0) -> 0 | AU49: =IF(AV50>=$A3/2,1,0) -> 0 | AW49: =IF(AX50>=$A3/2,1,0) -> 0 | AY49: =IF(AZ50>=$A3/2,1,0) -> 1 | BA49: =IF(BB50>=$A3/2,1,0) -> 1 | BC49: =IF(BD50>=$A3/2,1,0) -> 1 | BE49: =IF(BF50>=$A3/2,1,0) -> 0 | BG49: =IF(BH50>=$A3/2,1,0) -> 0 | BI49: =IF(BJ50>=$A3/2,1,0) -> 1
C50: =IF(SUM(C55:C996)<-1000,-100000000,SUM(C55:C996)) -> -41 | D50: =COUNT(D69:D996)+SUM(D55:D68) -> 101 | E50: =IF(SUM(E55:E996)<-1000,-100000000,SUM(E55:E996)) -> -20 | F50: =COUNT(F69:F996)+SUM(F55:F68) -> 49 | G50: =IF(SUM(G55:G996)<-1000,-100000000,SUM(G55:G996)) -> 24 | H50: =COUNT(H69:H996)+SUM(H55:H68) -> 9 | I50: =IF(SUM(I55:I996)<-1000,-100000000,SUM(I55:I996)) -> -3 | J50: =COUNT(J69:J996)+SUM(J55:J68) -> 1 | K50: =IF(SUM(K55:K996)<-1000,-100000000,SUM(K55:K996)) -> -2 | L50: =COUNT(L69:L996)+SUM(L55:L68) -> 2 | M50: =IF(SUM(M55:M996)<-1000,-100000000,SUM(M55:M996)) -> -67 | N50: =COUNT(N69:N996)+SUM(N55:N68) -> 69 | O50: =IF(SUM(O55:O996)<-1000,-100000000,SUM(O55:O996)) -> -2 | P50: =COUNT(P69:P996)+SUM(P55:P68) -> 2 | Q50: =IF(SUM(Q55:Q996)<-1000,-100000000,SUM(Q55:Q996)) -> 188 | R50: =COUNT(R69:R996)+SUM(R55:R68) -> 73 | S50: =IF(SUM(S55:S996)<-1000,-100000000,SUM(S55:S996)) -> 3 | T50: =COUNT(T69:T996)+SUM(T55:T68) -> 1 | U50: =IF(SUM(U55:U996)<-1000,-100000000,SUM(U55:U996)) -> 28 | V50: =COUNT(V69:V996)+SUM(V55:V68) -> 85 | W50: =IF(SUM(W55:W996)<-1000,-100000000,SUM(W55:W996)) -> -2 | X50: =COUNT(X69:X996)+SUM(X55:X68) -> 4 | Y50: =IF(SUM(Y55:Y996)<-1000,-100000000,SUM(Y55:Y996)) -> 29 | Z50: =COUNT(Z69:Z996)+SUM(Z55:Z68) -> 96 | AA50: =IF(SUM(AA55:AA996)<-1000,-100000000,SUM(AA55:AA996)) -> 7 | AB50: =COUNT(AB69:AB996)+SUM(AB55:AB68) -> 13 | AC50: =IF(SUM(AC55:AC996)<-1000,-100000000,SUM(AC55:AC996)) -> -22 | AD50: =COUNT(AD69:AD996)+SUM(AD55:AD68) -> 34 | AE50: =IF(SUM(AE55:AE996)<-1000,-100000000,SUM(AE55:AE996)) -> -31 | AF50: =COUNT(AF69:AF996)+SUM(AF55:AF68) -> 48 | AG50: =IF(SUM(AG55:AG996)<-1000,-100000000,SUM(AG55:AG996)) -> -15 | AH50: =COUNT(AH69:AH996)+SUM(AH55:AH68) -> 28 | AI50: =IF(SUM(AI55:AI996)<-1000,-100000000,SUM(AI55:AI996)) -> 0 | AJ50: =COUNT(AJ69:AJ996)+SUM(AJ55:AJ68) -> 93 | AK50: =IF(SUM(AK55:AK996)<-1000,-100000000,SUM(AK55:AK996)) -> -11 | AL50: =COUNT(AL69:AL996)+SUM(AL55:AL68) -> 8 | AM50: =IF(SUM(AM55:AM996)<-1000,-100000000,SUM(AM55:AM996)) -> -100000000 | AN50: =COUNT(AN69:AN996)+SUM(AN55:AN68) -> 1 | AO50: =IF(SUM(AO55:AO996)<-1000,-100000000,SUM(AO55:AO996)) -> -31 | AP50: =COUNT(AP69:AP996)+SUM(AP55:AP68) -> 33 | AQ50: =IF(SUM(AQ55:AQ996)<-1000,-100000000,SUM(AQ55:AQ996)) -> -4 | AR50: =COUNT(AR69:AR996)+SUM(AR55:AR68) -> 6 | AS50: =IF(SUM(AS55:AS996)<-1000,-100000000,SUM(AS55:AS996)) -> 4 | AT50: =COUNT(AT69:AT996)+SUM(AT55:AT68) -> 2 | AU50: =IF(SUM(AU55:AU996)<-1000,-100000000,SUM(AU55:AU996)) -> 12 | AV50: =COUNT(AV69:AV996)+SUM(AV55:AV68) -> 3 | AW50: =IF(SUM(AW55:AW996)<-1000,-100000000,SUM(AW55:AW996)) -> 2 | AX50: =COUNT(AX69:AX996)+SUM(AX55:AX68) -> 2 | AY50: =IF(SUM(AY55:AY996)<-1000,-100000000,SUM(AY55:AY996)) -> 72 | AZ50: =COUNT(AZ69:AZ996)+SUM(AZ55:AZ68) -> 106 | BA50: =IF(SUM(BA55:BA996)<-1000,-100000000,SUM(BA55:BA996)) -> 18 | BB50: =COUNT(BB69:BB996)+SUM(BB55:BB68) -> 26 | BC50: =IF(SUM(BC55:BC996)<-1000,-100000000,SUM(BC55:BC996)) -> 30 | BD50: =COUNT(BD69:BD996)+SUM(BD55:BD68) -> 81 | BE50: =IF(SUM(BE55:BE996)<-1000,-100000000,SUM(BE55:BE996)) -> 5 | BF50: =COUNT(BF69:BF996)+SUM(BF55:BF68) -> 1 | BG50: =IF(SUM(BG55:BG996)<-1000,-100000000,SUM(BG55:BG996)) -> 0 | BH50: =COUNT(BH69:BH996)+SUM(BH55:BH68) -> 2 | BI50: =IF(SUM(BI55:BI996)<-1000,-100000000,SUM(BI55:BI996)) -> -2 | BJ50: =COUNT(BJ69:BJ996)+SUM(BJ55:BJ68) -> 7
BK52: =MAX(BL55:BL1077) -> 140
B53: Comentaris | C53: Manolo | E53: Ana B | G53: Jordi | I53: Alejandro | K53: Kallie | M53: Goretti | O53: Levi | Q53: Carles | S53: Mariajo | U53: Grau | W53: Paul | Y53: Marina | AA53: Tito | AC53: Nin | AE53: Alfred | AG53: Nancy | AI53: Jeff | AK53: Núria | AM53: XXX | AO53: Gemma | AQ53: Sebas | AS53: France | AU53: Robert | AW53: Georges | AY53: Tim | BA53: Debi | BC53: Mario | BE53: Òscar | BG53: Christophe | BI53: Nogué | BK53: =COUNT(BK70:BK911)+SUM(BK56:BK67) -> 161.5 | BL53: A | BM53: B | BN53: C | BO53: cyberX2 | BP53: =SUM(BP55:BP911) -> -4
C54: Premi | D54: Punts | E54: Premi | F54: Punts | G54: Premi | H54: Punts | I54: Premi | J54: Punts | K54: Premi | L54: Punts | M54: Premi | N54: Punts | O54: Premi | P54: Punts | Q54: Premi | R54: Punts | S54: Premi | T54: Punts | U54: Premi | V54: Punts | W54: Premi | X54: Punts | Y54: Premi | Z54: Punts | AA54: Premi | AB54: Punts | AC54: Premi | AD54: Punts | AE54: Premi | AF54: Punts | AG54: Premi | AH54: Punts | AI54: Premi | AJ54: Punts | AK54: Premi | AL54: Punts | AM54: Premi | AN54: Punts | AO54: Premi | AP54: Punts | AQ54: Premi | AR54: Punts | AS54: Premi | AT54: Punts | AU54: Premi | AV54: Punts | AW54: Premi | AX54: Punts | AY54: Premi | AZ54: Punts | BA54: Premi | BB54: Punts | BC54: Premi | BD54: Punts | BE54: Premi | BF54: Punts | BG54: Premi | BH54: Punts | BI54: Premi | BJ54: Punts | BK54: Data | BL54: Timba | BP54: Excés cyber
B55: GERMAN
B56: 2022-10-01 | BK56: =+(AJ56+AF56+Z56+X56+V56+T56+R56+P56+N56+J56+H56+F56+D56+AH56+L56+BJ56+BQ56+AB56+AD56+AL56+AP56+AR56+AZ56+BH56+BF56+BD56+BB56+AX56+AV56+AT56)/6 -> 0
B57: 2022-11-01 | C57: 4 | D57: 13 | E57: 3 | F57: 5 | M57: -25 | N57: 13 | Q57: 14 | R57: 2 | U57: 11 | V57: 13 | Y57: -3 | Z57: 1 | AE57: -5 | AF57: 6 | AI57: 5 | AJ57: 2 | AO57: 4 | AP57: 4 | BA57: 8 | BB57: 4 | BC57: 7 | BD57: 8 | BK57: =+(AJ57+AF57+Z57+X57+V57+T57+R57+P57+N57+J57+H57+F57+D57+AH57+L57+BJ57+BQ57+AB57+AD57+AL57+AP57+AR57+AZ57+BH57+BF57+BD57+BB57+AX57+AV57+AT57)/6 -> 11.83333333
B58: 2022-12-01 | C58: -18 | D58: 20 | E58: -8 | F58: 7 | M58: -10 | N58: 10 | Q58: 33 | R58: 14 | U58: 5 | V58: 10 | Y58: -2 | Z58: 8 | AC58: -6 | AD58: 2 | AE58: 0 | AF58: 6 | AG58: 1 | AH58: 4 | AI58: 3 | AJ58: 7 | AO58: -8 | AP58: 4 | AY58: 6 | AZ58: 4 | BA58: -2 | BB58: 1 | BC58: 8 | BD58: 6 | BK58: =+(AJ58+AF58+Z58+X58+V58+T58+R58+P58+N58+J58+H58+F58+D58+AH58+L58+BJ58+BQ58+AB58+AD58+AL58+AP58+AR58+AZ58+BH58+BF58+BD58+BB58+AX58+AV58+AT58)/6 -> 17.16666667
B59: 2023-01-01 | C59: -4 | D59: 6 | E59: 5 | F59: 3 | M59: -3 | N59: 8 | Q59: 14 | R59: 3 | U59: 2 | V59: 7 | Y59: 3 | Z59: 3 | AA59: -2 | AB59: 1 | AE59: -2 | AF59: 4 | AG59: -2 | AH59: 2 | AI59: -2 | AJ59: 3 | AO59: 0 | AP59: 3 | AY59: 3 | AZ59: 2 | BA59: 6 | BB59: 2 | BC59: 6 | BD59: 3 | BK59: 8.333333333
B60: 2023-02-01 | C60: -4 | D60: 8 | E60: 1 | F60: 6 | M60: -6 | N60: 8 | Q60: 16 | R60: 5 | U60: 2 | V60: 7 | Y60: 3 | Z60: 15 | AA60: -4 | AB60: 1 | AC60: -2 | AD60: 1 | AE60: 4 | AF60: 6 | AG60: -10 | AH60: 8 | AI60: -1 | AJ60: 15 | AO60: -8 | AP60: 2 | AY60: 13 | AZ60: 16 | BA60: -1 | BB60: 3 | BC60: -5 | BD60: 9 | BK60: 18.33333333
B61: 2023-03-01 | C61: 0 | D61: 13 | E61: -5 | F61: 3 | G61: 0 | H61: 1 | M61: -5 | N61: 3 | Q61: 12 | R61: 6 | U61: 1 | V61: 9 | Y61: -2 | Z61: 10 | AA61: -3 | AB61: 2 | AE61: -1 | AF61: 2 | AG61: -3 | AH61: 1 | AI61: -7 | AJ61: 9 | AO61: 3 | AP61: 2 | AY61: 10 | AZ61: 8 | BA61: -2 | BB61: 4 | BC61: -4 | BD61: 4 | BK61: 12.83333333
B62: 2023-04-01 | C62: -1 | D62: 9 | E62: -1 | F62: 1 | M62: -7 | N62: 5 | Q62: 22 | R62: 9 | U62: -2 | V62: 3 | Y62: -5 | Z62: 5 | AA62: -1 | AB62: 2 | AC62: -5 | AD62: 7 | AE62: 1 | AF62: 5 | AG62: -3 | AH62: 4 | AI62: -2 | AJ62: 3 | AO62: -9 | AP62: 6 | AY62: 20 | AZ62: 13 | BC62: 2 | BD62: 4 | BK62: 12.66666667
B63: 2023-05-01 | C63: -1 | D63: 3 | E63: -1 | F63: 3 | M63: -5 | N63: 5 | Q63: 12 | R63: 5 | U63: 1 | V63: 4 | Y63: 5 | Z63: 3 | AC63: -9 | AD63: 4 | AE63: 0 | AF63: 3 | AG63: -1 | AH63: 1 | AI63: -4 | AJ63: 2 | AO63: 4 | AP63: 1 | AY63: -3 | AZ63: 8 | BA63: -2 | BB63: 2 | BC63: 9 | BD63: 5 | BK63: 8.166666667
B64: 2023-06-01 | C64: -5 | D64: 10 | E64: -9 | F64: 4 | M64: -3 | N64: 5 | Q64: 18 | R64: 7 | U64: 10 | V64: 9 | Y64: 9 | Z64: 8 | AC64: -6 | AD64: 7 | AE64: 0 | AF64: 2 | AG64: 0 | AH64: 1 | AI64: 12 | AJ64: 5 | AO64: 0 | AP64: 1 | AY64: 5 | AZ64: 17 | BC64: 6 | BD64: 5 | BK64: 13.5
B65: 2023-07-01 | C65: -20 | D65: 10 | E65: 0 | F65: 4 | M65: -9 | N65: 6 | Q65: 22 | R65: 6 | U65: 6 | V65: 5 | Y65: 4 | Z65: 12 | AA65: 5 | AB65: 1 | AC65: 2 | AD65: 7 | AE65: 0 | AF65: 4 | AG65: -1 | AH65: 3 | AI65: 0 | AJ65: 13 | AO65: 2 | AP65: 2 | AY65: 6 | AZ65: 6 | BC65: -1 | BD65: 6 | BK65: 14.16666667
B66: 2023-08-01 | C66: 1 | D66: 5 | E66: 6 | F66: 2 | M66: 2 | N66: 2 | Q66: 3 | R66: 2 | U66: -7 | V66: 4 | Y66: 4 | Z66: 12 | AC66: -4 | AD66: 1 | AE66: -18 | AF66: 6 | AG66: 4 | AH66: 4 | AI66: 3 | AJ66: 15 | AY66: 7 | AZ66: 23 | BA66: -5 | BB66: 1 | BC66: 8 | BD66: 10 | BK66: 14.5
B67: 2023-09-01 | C67: 7 | D67: 3 | E67: 6 | F67: 3 | M67: 3 | N67: 1 | Q67: 24 | R67: 7 | U67: -2 | V67: 6 | Y67: 19 | Z67: 15 | AA67: 5 | AB67: 4 | AC67: 0 | AD67: 1 | AE67: -10 | AF67: 4 | AI67: -8 | AJ67: 15 | AO67: -4 | AP67: 1 | AY67: 7 | AZ67: 7 | BA67: 3 | BB67: 3 | BC67: 4 | BD67: 14 | BK67: 14
A69: 1
A70: 2 | G70: 3 | H70: 250 | AK70: -1 | AL70: 170 | AM70: -10000 | AN70: 1 | AO70: -3 | AP70: 110 | BI70: 1 | BJ70: 190 | BK70: 2022-10-13 | BL70: 3 | BM70: =+AI70+AE70+Y70+W70+U70+S70+Q70+O70+M70+I70+G70+E70+C70+AG70+K70+BI70+BP70+AA70+AC70+AK70+AO70+AQ70+AY70+BG70+BE70+BC70+BA70+AW70+AU70+AS70 -> 0 | BN70: =COUNT(C70:BJ70)/2 -> 5 | BO70: =+BM70/BN70 -> 0 | BP70: =+K70 -> 0
A71: 3 | G71: 3 | H71: 300 | AK71: -3 | AL71: 90 | AO71: -1 | AP71: 19 | BI71: 1 | BJ71: 210 | BK71: 2022-10-13 | BL71: 3 | BM71: =+AI71+AE71+Y71+W71+U71+S71+Q71+O71+M71+I71+G71+E71+C71+AG71+K71+BI71+BP71+AA71+AC71+AK71+AO71+AQ71+AY71+BG71+BE71+BC71+BA71+AW71+AU71+AS71 -> 0 | BN71: 4 | BO71: =+BM71/BN71 -> 0 | BP71: =+K71 -> 0
A72: 4 | E72: 0 | F72: 190 | M72: 3 | N72: 200 | Q72: 0 | R72: 190 | U72: -5 | V72: 0 | BA72: 5 | BB72: 210 | BC72: -3 | BD72: 180 | BK72: 2022-10-21 | BL72: 7 | BM72: =+AI72+AE72+Y72+W72+U72+S72+Q72+O72+M72+I72+G72+E72+C72+AG72+K72+BI72+BP72+AA72+AC72+AK72+AO72+AQ72+AY72+BG72+BE72+BC72+BA72+AW72+AU72+AS72 -> 0 | BN72: 6 | BO72: =+BM72/BN72 -> 0 | BP72: =+K72*2 -> 0
A73: 5 | E73: -1 | F73: 190 | M73: -3 | N73: 150 | Q73: 5 | R73: 330 | U73: 1 | V73: 200 | BA73: 3 | BB73: 270 | BC73: -5 | BD73: 10 | BK73: 2022-10-21 | BL73: 7 | BM73: 0 | BN73: 6 | BO73: 0 | BP73: =+K73 -> 0
A74: 6 | W74: -5 | X74: 100 | Y74: -3 | Z74: 170 | AA74: 3 | AB74: 190 | AI74: 0 | AJ74: 180 | AY74: 0 | AZ74: 180 | BA74: 5 | BB74: 240 | BK74: 2022-10-31 | BL74: 9 | BM74: 0 | BN74: 6 | BO74: 0 | BP74: =+K74 -> 0
A75: 7 | G75: 5 | H75: 290 | AK75: -5 | AL75: 110 | AO75: -2 | AP75: 130 | AQ75: -2 | AR75: 130 | BG75: 3 | BH75: 170 | BI75: 1 | BJ75: 150 | BK75: 2022-11-03 | BL75: 10 | BM75: 0 | BN75: 6 | BO75: 0 | BP75: =+K75 -> 0
A76: 8 | G76: 3 | H76: 270 | AK76: 0 | AL76: 190 | AQ76: -3 | AR76: 70 | BI76: 0 | BJ76: 190 | BK76: 2023-03-02 | BL76: 53 | BM76: 0 | BN76: 4 | BO76: 0 | BP76: =+K76*2 -> 0
A77: 9 | G77: 5 | H77: 230 | AK77: -3 | AL77: 170 | AO77: 2 | AP77: 200 | AQ77: -3 | AR77: 170 | BG77: -3 | BH77: 170 | BI77: 2 | BJ77: 200 | BK77: 2023-03-30 | BL77: 67 | BM77: 0 | BN77: 6 | BO77: 0 | BP77: =+K77*2 -> 0
A78: 10 | G78: 4 | H78: 280 | AK78: 0 | AL78: 190 | AO78: -4 | AP78: 140 | AQ78: 2 | AR78: 260 | BI78: -2 | BJ78: 160 | BK78: 2023-06-01 | BL78: 89 | BM78: 0 | BN78: 5 | BO78: =+BM78/BN78 -> 0 | BP78: =+K78 -> 0
A79: 11 | E79: -5 | F79: 110 | Q79: -1 | R79: 180 | U79: -3 | V79: 160 | AC79: 3 | AD79: 230 | AS79: 1 | AT79: 210 | BC79: 5 | BD79: 250 | BK79: 2023-08-06 | BL79: 114 | BM79: 0 | BN79: 6 | BO79: 0 | BP79: =+K79 -> 0
A80: 12 | E80: -1 | F80: 200 | Q80: -5 | R80: 130 | U80: -3 | V80: 190 | AC80: 5 | AD80: 260 | AS80: 3 | AT80: 250 | BC80: 1 | BD80: 210 | BK80: 2023-08-06 | BL80: 114 | BM80: 0 | BN80: 6 | BO80: 0 | BP80: =+K80*2 -> 0
A81: 13 | G81: 3 | H81: 230 | AK81: -1 | AL81: 180 | AO81: -3 | AP81: 170 | AQ81: 1 | AR81: 200 | BE81: 5 | BF81: 240 | BI81: -5 | BJ81: 130 | BK81: 2023-09-15 | BL81: 133 | BM81: 0 | BN81: 6 | BO81: 0 | BP81: =+K81*2 -> 0
A82: 14 | C82: 0 | D82: 240 | E82: -1 | F82: 260 | G82: -2 | H82: 150 | I82: -3 | J82: 160 | M82: 1 | N82: 420 | Q82: 3 | R82: 430 | S82: 3 | T82: 290 | U82: -3 | V82: 200 | AA82: 4 | AB82: 350 | AC82: -1 | AD82: 230 | AK82: 2 | AL82: 270 | AO82: -4 | AP82: 60 | AQ82: 1 | AR82: 280 | BK82: 2023-09-30 | BL82: 138 | BM82: 0 | BN82: 13 | BO82: 0 | BP82: 0
A83: 15 | E83: -3 | F83: 150 | K83: 3 | L83: 210 | O83: 1 | P83: 190 | Q83: -3 | R83: 150 | U83: 5 | V83: 280 | W83: -1 | X83: 180 | Y83: -5 | Z83: 140 | AI83: -1 | AJ83: 190 | AU83: 5 | AV83: 300 | AW83: 3 | AX83: 220 | BA83: -5 | BB83: 80 | BC83: 1 | BD83: 200 | BK83: 2023-08-11 | BL83: 139 | BM83: 6 | BN83: 12 | BO83: 0.5 | BP83: 6
A84: 16 | E84: -1 | F84: 140 | K84: -5 | L84: 120 | O84: -3 | P84: 70 | U84: 5 | V84: 240 | W84: 1 | X84: 170 | Y84: 5 | Z84: 260 | AI84: 2 | AJ84: 200 | AU84: 2 | AV84: 200 | AW84: -1 | AX84: 150 | BA84: 3 | BB84: 220 | BC84: -5 | BD84: 80 | BK84: 2023-08-11 | BL84: 139 | BM84: -7 | BN84: 11 | BO84: -0.6363636364 | BP84: -10
A85: 17 | E85: -5 | F85: 30 | Q85: -1 | R85: 180 | U85: 4 | V85: 280 | W85: 3 | X85: 230 | Y85: -3 | Z85: 100 | AC85: 1 | AD85: 210 | AI85: 0 | AJ85: 220 | AU85: 5 | AV85: 260 | AY85: -2 | AZ85: 190 | BA85: 2 | BB85: 250 | BC85: -4 | BD85: 100 | BK85: 2023-08-12 | BL85: 140 | BM85: 0 | BN85: 11 | BO85: 0 | BP85: 0
A86: 18 | BM86: 0 | BN86: 0 | BP86: 0
A87: 19 | BM87: 0 | BN87: 0 | BP87: =+K87 -> 0
A88: 20 | BM88: 0 | BN88: 0 | BO88: =+BM88/BN88 ->  | BP88: =+K88*2 -> 0
A89: 21 | BM89: 0 | BN89: 0 | BO89: =+BM89/BN89 ->  | BP89: =+K89*2 -> 0
A90: 22 | BM90: 0 | BN90: 0
A91: 23 | BM91: 0 | BN91: 0 | BO91: =+BM91/BN91 ->  | BP91: =+K91*2 -> 0
A92: 24 | BM92: 0 | BN92: 0 | BP92: =+K92 -> 0
A93: 25 | BM93: 0 | BN93: 0 | BP93: =+K93 -> 0
A94: 26 | BM94: 0 | BN94: 0 | BP94: =+K94 -> 0
A95: 27 | BM95: 0 | BN95: 0 | BP95: =+K95*2 -> 0
A96: 28 | BM96: 0 | BN96: 0 | BP96: =+K96 -> 0
A97: 29 | BM97: 0 | BN97: =COUNT(C97:BJ97)/2 -> 0 | BP97: =+K97 -> 0
A98: 30 | BM98: 0 | BN98: =COUNT(C98:BJ98)/2 -> 0 | BP98: =+K98*2 -> 0
A99: 31 | BM99: 0 | BN99: =COUNT(C99:BJ99)/2 -> 0 | BO99: =+BM99/BN99 ->  | BP99: =+K99*2 -> 0
A100: 32 | BM100: 0 | BN100: 0 | BP100: =+K100 -> 0
A101: 33 | BM101: 0 | BN101: 0 | BP101: =+K101*2 -> 0
A102: 34 | BM102: 0 | BN102: 0 | BP102: =+K102 -> 0
A103: 35 | BM103: 0 | BN103: 0 | BP103: =+K103*2 -> 0
A104: 36 | BM104: 0 | BN104: 0 | BP104: 0
A105: 37 | BM105: 0 | BN105: 0 | BP105: 0
A106: 38 | BM106: 0 | BN106: 0 | BP106: 0
A107: 39 | BM107: 0 | BN107: 0 | BP107: 0
A108: 40 | BM108: 0 | BN108: 0 | BP108: 0
A109: 41 | BM109: 0 | BN109: 0
A110: 42 | BM110: 0 | BN110: 0 | BO110: =+BM110/BN110 ->  | BP110: =+K110 -> 0
A111: 43 | BM111: 0 | BN111: 0
A112: 44 | BM112: 0 | BN112: 0 | BO112: =+BM112/BN112 ->  | BP112: =+K112 -> 0
A113: 45 | BM113: 0 | BN113: 0
A114: 46 | BM114: 0 | BN114: 0 | BO114: =+BM114/BN114 ->  | BP114: =+K114 -> 0
A115: 47 | BM115: 0 | BN115: 0 | BO115: =+BM115/BN115 ->  | BP115: =+K115*2 -> 0
A116: 48 | BM116: 0 | BN116: 0 | BO116: =+BM116/BN116 ->  | BP116: =+K116 -> 0
A117: 49 | BM117: 0 | BN117: 4 | BO117: 2.22045e-16 | BP117: =+K117*2 -> 0
A118: 50 | BM118: 0 | BN118: 4 | BO118: -2.22045e-16 | BP118: =+K118*2 -> 0
A119: 51 | BM119: 0 | BN119: =COUNT(C119:BJ119)/2 -> 0
A120: 52 | BM120: 0 | BN120: 0 | BO120: =+BM120/BN120 ->  | BP120: =+K120*2 -> 0
A121: 53 | BM121: 0 | BN121: 0 | BP121: =+K121*2 -> 0
A122: 54 | BM122: 0 | BN122: 0 | BP122: =+K122*2 -> 0
A123: 55 | BM123: 0 | BN123: 0 | BP123: =+K123*2 -> 0
A124: 56 | BM124: 0 | BN124: 0 | BP124: =+K124*2 -> 0
A125: 57 | BM125: 0 | BN125: 0 | BP125: =+K125 -> 0
A126: 58 | BM126: 0 | BN126: 0 | BP126: =+K126 -> 0
A127: 59 | BM127: 0 | BN127: 0 | BP127: =+K127*2 -> 0
A128: 60 | BM128: 0 | BN128: 0
A129: 61 | BM129: 0 | BN129: 0 | BO129: =+BM129/BN129 ->  | BP129: =+K129*2 -> 0
A130: 62 | BM130: 0 | BN130: =COUNT(C130:BJ130)/2 -> 0 | BO130: =+BM130/BN130 ->  | BP130: =+K130*2 -> 0
A131: 63 | BM131: 0 | BN131: =COUNT(C131:BJ131)/2 -> 0 | BO131: =+BM131/BN131 ->  | BP131: =+K131*2 -> 0
A132: 64 | BM132: 0 | BN132: =COUNT(C132:BJ132)/2 -> 0 | BO132: =+BM132/BN132 ->  | BP132: =+K132*2 -> 0
A133: 65 | BM133: 0 | BN133: 0 | BO133: =+BM133/BN133 ->  | BP133: =+K133 -> 0
A134: 66 | BM134: 0 | BN134: 0
A135: 67 | BM135: 0 | BN135: 0 | BO135: =+BM135/BN135 ->  | BP135: =+K135*2 -> 0
A136: 68 | BM136: =+AI136+AE136+Y136+W136+U136+S136+Q136+O136+M136+I136+G136+E136+C136+AG136+K136+BI136+BP136+AA136+AC136+AK136+AO136+AQ136+AY136+BG136+BE136+BC136+BA136+AW136+AU136+AS136 -> 0 | BN136: 0
A137: 69 | BM137: 0 | BN137: 0 | BO137: =+BM137/BN137 ->  | BP137: =+K137 -> 0
A138: 70 | BM138: 0 | BN138: 0 | BO138: =+BM138/BN138 ->  | BP138: =+K138*2 -> 0
A139: 71 | BM139: 0 | BN139: 0
A140: 72 | BM140: 0 | BN140: 0
A141: 73 | BM141: 0 | BN141: 0
A142: 74 | BM142: 0 | BN142: 0
A143: 75 | BM143: 0 | BN143: =COUNT(C143:BJ143)/2 -> 0
A144: 76 | BM144: 0 | BN144: 0
A145: 77 | BM145: 0 | BN145: 0
A146: 78 | BM146: 0 | BN146: 0
A147: 79 | BM147: 0 | BN147: 0
A148: 80 | BM148: 0 | BN148: 0
A149: 81 | BM149: 0 | BN149: 0
A150: 82 | BM150: 0 | BN150: 0
A151: 83 | BM151: 0 | BN151: 0
A152: 84 | BM152: 0 | BN152: 0
A153: 85 | BM153: 0 | BN153: 0
A154: 86 | BM154: 0 | BN154: 0
A155: 87 | BM155: 0 | BN155: 0
A156: 88 | BM156: 0 | BN156: 0
A157: 89 | BM157: 0 | BN157: 0
A158: 90 | BM158: 0 | BN158: 0
A159: 91 | BM159: 0 | BN159: 0
A160: 92 | BM160: 0 | BN160: 0
A161: 93 | BM161: 0 | BN161: 0
A162: 94 | BM162: 0 | BN162: =COUNT(C162:BJ162)/2 -> 0
A163: 95 | BM163: 0 | BN163: 0
A164: 96 | BM164: 0 | BN164: 0
A165: 97 | BM165: 0 | BN165: 0
A166: 98 | BM166: 0 | BN166: 0
A167: 99 | BM167: 0 | BN167: 0
A168: 100 | BM168: 0 | BN168: 0
A169: 101 | BM169: 0 | BN169: 0
A170: 102 | BM170: 0 | BN170: 0
A171: 103 | BM171: 0 | BN171: 0
A172: 104 | BM172: 0 | BN172: 0
A173: 105 | BM173: 0 | BN173: 0
A174: 106 | BM174: 0 | BN174: =COUNT(C174:BJ174)/2 -> 0
A175: 107 | BM175: 0 | BN175: 0
A176: 108 | BM176: 0 | BN176: 0
A177: 109 | BM177: 0 | BN177: 0
A178: 110 | BM178: 0 | BN178: 0
A179: 111 | BM179: 0 | BN179: 0
A180: 112 | BM180: 0 | BN180: 0
A181: 113 | BM181: 0 | BN181: 0
A182: 114 | BM182: 0 | BN182: 0
A183: 115 | BM183: 0 | BN183: 0
A184: 116 | BM184: 0 | BN184: =COUNT(C184:BJ184)/2 -> 0
A185: 117 | BM185: 0 | BN185: 0
A186: 118 | BM186: 0 | BN186: 0
A187: 119 | BM187: 0 | BN187: 0
A188: 120 | BM188: 0 | BN188: 0
A189: 121 | BM189: 0 | BN189: 0
A190: 122 | BM190: 0 | BN190: 0
A191: 123 | BM191: 0 | BN191: 0
A192: 124 | BM192: 0 | BN192: 0
A193: 125 | BM193: 0 | BN193: 0
A194: 126 | BM194: 0 | BN194: 0
A195: 127 | BM195: 0 | BN195: 0
A196: 128 | BM196: 0 | BN196: 0
A197: 129 | BM197: 0 | BN197: 0
A198: 130 | BM198: 0 | BN198: 0
A199: 131 | BM199: 0 | BN199: 0
A200: 132 | BM200: =+AI200+AE200+Y200+W200+U200+S200+Q200+O200+M200+I200+G200+E200+C200+AG200+K200+BI200+BP200+AA200+AC200+AK200+AO200+AQ200+AY200+BG200+BE200+BC200+BA200+AW200+AU200+AS200 -> 0 | BN200: 0
A201: 133 | BM201: 0 | BN201: 0
A202: 134 | BM202: 0 | BN202: 0
A203: 135 | BM203: 0 | BN203: 0
... 658 more rows

Sheet Camelot
A1: CAMELOT
A2: Mes | E2: =+E3/5 -> 93.6
A3: =+GENERAL!B6 -> 12 | E3: =SUM(E5:E22) -> 468
C4: Premi | D4: Punts | E4: Partides | F4: General
A5: 1 | B5: Carles | C5: =+Q$49 -> 151 | D5: =+R$50 -> 0 | E5: =+R$49 -> 61 | F5: =+Q$35 -> 80 | G5: =IF(E5<A$3/2,-1,1)*800000+C5*1000+D5*0+E5/1000 -> 951000.061 | I5: =+C5/E5 -> 2.475409836
A6: 2 | B6: Manolo | C6: =+C$49 -> 20 | D6: =+D$50 -> 0 | E6: =+D$49 -> 134 | F6: =+C$35 -> 40 | G6: 820000.134 | I6: =+C6/E6 -> 0.1492537313
A7: 3 | B7: Jordi | C7: =+G$49 -> 19 | D7: =+H$50 -> 0 | E7: =+H$49 -> 30 | F7: =+G$35 -> 20 | G7: 819000.03 | I7: 0.6333333333
A8: 4 | B8: Jeff | C8: =+AI$49 -> 16 | D8: =+AJ$50 -> 0 | E8: =+AJ$49 -> 12 | F8: =+AI$35 -> 10 | G8: 816000.012 | I8: 1.333333333
A9: 5 | B9: Grau | C9: =+U$49 -> 13 | D9: =+V$50 -> 0 | E9: =+V$49 -> 56 | F9: =+U$35 -> 5 | G9: 813000.056 | I9: 0.2321428571
A10: 6 | B10: Ken | C10: =+K$49 -> 12 | D10: =+L$50 -> 0 | E10: =+L$49 -> 16 | F10: =+K$35 -> 0 | G10: 812000.016 | I10: 0.75
A11: 7 | B11: Alfred | C11: =+AE$49 -> 11 | D11: =+AF$50 -> 0 | E11: =+AF$49 -> 9 | F11: =+AE$35 -> 0 | G11: 811000.009 | I11: 1.222222222
A12: 8 | B12: Lluïsa | C12: =+AQ$49 -> 7 | D12: =+AR$50 -> 0 | E12: =+AR$49 -> 29 | F12: =+AQ$35 -> 0 | G12: 807000.029 | I12: 0.2413793103
A13: 9 | B13: Ana B | C13: =+E$49 -> -4 | D13: =+F$50 -> 0 | E13: =+F$49 -> 26 | F13: =+E$35 -> 0 | G13: 796000.026 | I13: -0.1538461538
A14: 10 | B14: Sagalés | C14: =+I$49 -> -9 | D14: =+J$50 -> 0 | E14: =+J$49 -> 16 | F14: =+I$35 -> 0 | G14: 791000.016 | I14: -0.5625
A15: 11 | B15: Xavier | C15: =+AS$49 -> -12 | D15: =+AT$50 -> 0 | E15: =+AT$49 -> 26 | F15: =+AS$35 -> 0 | G15: 788000.026 | I15: -0.4615384615
A16: 12 | B16: Eito | C16: =+AU$49 -> -14 | D16: =+AV$50 -> 0 | E16: =+AV$49 -> 18 | F16: =+AU$35 -> 0 | G16: 786000.018 | I16: -0.7777777778
A17: 13 | B17: Nin | C17: =+AC$49 -> -16 | D17: =+AD$50 -> 0 | E17: =+AD$49 -> 8 | F17: =+AC$35 -> 0 | G17: 784000.008 | I17: -2
A18: 14 | B18: Gemma | C18: =+AM$49 -> -37 | D18: =+AN$50 -> 0 | E18: =+AN$49 -> 21 | F18: =+AM$35 -> 0 | G18: 763000.021 | I18: -1.761904762
A19: 15 | B19: Nogué | C19: =+BG$49 -> 1 | D19: =+BH$50 -> 0 | E19: =+BH$49 -> 1 | F19: =+BG$35 -> 0 | G19: -798999.999 | I19: 1
A20: 16 | B20: Marina | C20: =+Y$49 -> 0 | D20: =+Z$50 -> 0 | E20: =+Z$49 -> 2 | F20: =+Y$35 -> 0 | G20: -799999.998 | I20: 0
A21: 17 | B21: Sebas | C21: =+AO$49 -> -2 | D21: =+AP$50 -> 0 | E21: =+AP$49 -> 1 | F21: =+AO$35 -> 0 | G21: -801999.999 | I21: -2
A22: 18 | B22: Núria | C22: =+AK$49 -> -7 | D22: =+AL$50 -> 0 | E22: =+AL$49 -> 2 | F22: =+AK$35 -> 0 | G22: -806999.998 | I22: -3.5
A23: 19 | B23: Debi | C23: =+AY$49 -> -100000000 | D23: =+AZ$50 -> 0 | E23: =+AZ$49 -> 0 | F23: =+AY$35 -> 0 | G23: =IF(E23<A$3/2,-1,1)*800000+C23*1000+D23*0+E23/1000 -> -100000800000
A24: 20 | B24: Christophe | C24: =+BE$49 -> -100000000 | D24: =+BF$50 -> 0 | E24: =+BF$49 -> 0 | F24: =+BE$35 -> 0 | G24: -100000800000
A25: 21 | B25: Tito | C25: =+AA$49 -> -100000000 | D25: =+AB$50 -> 0 | E25: =+AB$49 -> 0 | F25: =+AA$35 -> 0 | G25: -100000800000
A26: 22 | B26: Goretti | C26: =+M$49 -> -100000000 | D26: =+N$50 -> 0 | E26: =+N$49 -> 0 | F26: =+M$35 -> 0 | G26: -100000800000
A27: 23 | B27: Tim | C27: =+AW$49 -> -100000000 | D27: =+AX$50 -> 0 | E27: =+AX$49 -> 0 | F27: =+AW$35 -> 0 | G27: -100000800000
A28: 24 | B28: Alejandro | C28: =+W$49 -> -100000000 | D28: =+X$50 -> 0 | E28: =+X$49 -> 0 | F28: =+W$35 -> 0 | G28: -100000800000
A29: 25 | B29: Mario | C29: =+BA$49 -> -100000000 | D29: =+BB$50 -> 0 | E29: =+BB$49 -> 0 | F29: =+BA$35 -> 0 | G29: -100000800000
A30: 26 | B30: Nancy | C30: =+AG$49 -> -100000000 | D30: =+AH$50 -> 0 | E30: =+AH$49 -> 0 | F30: =+AG$35 -> 0 | G30: -100000800000
A31: 27 | B31: Sergi | C31: =+O$49 -> -100000000 | D31: =+P$50 -> 0 | E31: =+P$49 -> 0 | F31: =+O$35 -> 0 | G31: -100000800000
A32: 28 | B32: Òscar | C32: =+BC$49 -> -100000000 | D32: =+BD$50 -> 0 | E32: =+BD$49 -> 0 | F32: =+BC$35 -> 0 | G32: -100000800000
A33: 29 | B33: Mariajo | C33: =+S$49 -> -100000000 | D33: =+T$50 -> 0 | E33: =+T$49 -> 0 | F33: =+S$35 -> 0 | G33: -100000800000
B35: General | C35: =+C36*C37 -> 40 | D35: =+D36*D37 -> 134 | E35: 0 | F35: 26 | G35: =+G36*G37 -> 20 | H35: 30 | I35: 0 | J35: 16 | K35: =+K36*K37 -> 0 | L35: =+L36*L37 -> 16 | M35: 0 | N35: 0 | O35: 0 | P35: 0 | Q35: 80 | R35: 61 | S35: 0 | T35: 0 | U35: =+U36*U37 -> 5 | V35: 56 | W35: 0 | X35: 0 | Y35: 0 | Z35: 2 | AA35: =+AA36*AA37 -> 0 | AB35: =+AB36*AB37 -> 0 | AC35: =+AC36*AC37 -> 0 | AD35: =+AD36*AD37 -> 8 | AE35: =+AE36*AE37 -> 0 | AF35: 9 | AG35: =+AG36*AG37 -> 0 | AH35: =+AH36*AH37 -> 0 | AI35: 10 | AJ35: 12 | AK35: 0 | AL35: 2 | AM35: 0 | AN35: 21 | AO35: 0 | AP35: 1 | AQ35: 0 | AR35: 29 | AS35: 0 | AT35: 26 | AU35: 0 | AV35: 18 | AW35: 0 | AX35: 0 | AY35: 0 | AZ35: 0 | BA35: 0 | BB35: 0 | BC35: 0 | BD35: 0 | BE35: 0 | BF35: 0 | BG35: 0 | BH35: 1
C36: =IF($B48>3,1,0) -> 1 | D36: =IF($B48>3,1,0) -> 1 | E36: 1 | F36: 1 | G36: =IF($B48>3,1,0) -> 1 | H36: 1 | I36: 1 | J36: 1 | K36: =IF($B48>3,1,0) -> 1 | L36: =IF($B48>3,1,0) -> 1 | M36: 1 | N36: 1 | O36: 1 | P36: 1 | Q36: 1 | R36: 1 | S36: 1 | T36: 1 | U36: 1 | V36: 1 | W36: 1 | X36: 1 | Y36: 1 | Z36: 1 | AA36: =IF($B48>3,1,0) -> 1 | AB36: =IF($B48>3,1,0) -> 1 | AC36: =IF($B48>3,1,0) -> 1 | AD36: =IF($B48>3,1,0) -> 1 | AE36: 1 | AF36: 1 | AG36: =IF($B48>3,1,0) -> 1 | AH36: =IF($B48>3,1,0) -> 1 | AI36: 1 | AJ36: 1 | AK36: 1 | AL36: 1 | AM36: 1 | AN36: 1 | AO36: 1 | AP36: 1 | AQ36: 1 | AR36: 1 | AS36: 1 | AT36: 1 | AU36: 1 | AV36: 1 | AW36: 1 | AX36: 1 | AY36: 1 | AZ36: 1 | BA36: 1 | BB36: 1 | BC36: 1 | BD36: 1 | BE36: 1 | BF36: 1 | BG36: 1 | BH36: 1
C37: =MAX(C38:C42) -> 40 | D37: =+D49 -> 134 | E37: =MAX(E38:E42) -> 0 | F37: =+F49 -> 26 | G37: =MAX(G38:G42) -> 20 | H37: =+H49 -> 30 | I37: =MAX(I38:I42) -> 0 | J37: =+J49 -> 16 | K37: =MAX(K38:K42) -> 0 | L37: =+L49 -> 16 | M37: =MAX(M38:M42) -> 0 | N37: =+N49 -> 0 | O37: =MAX(O38:O42) -> 0 | P37: =+P49 -> 0 | Q37: =MAX(Q38:Q42) -> 80 | R37: =+R49 -> 61 | S37: =MAX(S38:S42) -> 0 | T37: =+T49 -> 0 | U37: =MAX(U38:U42) -> 5 | V37: =+V49 -> 56 | W37: =MAX(W38:W42) -> 0 | X37: =+X49 -> 0 | Y37: =MAX(Y38:Y42) -> 0 | Z37: =+Z49 -> 2 | AA37: =MAX(AA38:AA42) -> 0 | AB37: =+AB49 -> 0 | AC37: =MAX(AC38:AC42) -> 0 | AD37: =+AD49 -> 8 | AE37: =MAX(AE38:AE42) -> 0 | AF37: =+AF49 -> 9 | AG37: =MAX(AG38:AG42) -> 0 | AH37: =+AH49 -> 0 | AI37: =MAX(AI38:AI42) -> 10 | AJ37: =+AJ49 -> 12 | AK37: =MAX(AK38:AK42) -> 0 | AL37: =+AL49 -> 2 | AM37: =MAX(AM38:AM42) -> 0 | AN37: =+AN49 -> 21 | AO37: =MAX(AO38:AO42) -> 0 | AP37: =+AP49 -> 1 | AQ37: =MAX(AQ38:AQ42) -> 0 | AR37: =+AR49 -> 29 | AS37: =MAX(AS38:AS42) -> 0 | AT37: =+AT49 -> 26 | AU37: =MAX(AU38:AU42) -> 0 | AV37: =+AV49 -> 18 | AW37: =MAX(AW38:AW42) -> 0 | AX37: =+AX49 -> 0 | AY37: =MAX(AY38:AY42) -> 0 | AZ37: =+AZ49 -> 0 | BA37: =MAX(BA38:BA42) -> 0 | BB37: =+BB49 -> 0 | BC37: =MAX(BC38:BC42) -> 0 | BD37: =+BD49 -> 0 | BE37: =MAX(BE38:BE42) -> 0 | BF37: =+BF49 -> 0 | BG37: =MAX(BG38:BG42) -> 0 | BH37: =+BH49 -> 1
C38: =IF(C$43=5,5,0) -> 0 | E38: =IF(E$43=5,5,0) -> 0 | G38: =IF(G$43=5,5,0) -> 0 | I38: =IF(I$43=5,5,0) -> 0 | K38: =IF(K$43=5,5,0) -> 0 | M38: =IF(M$43=5,5,0) -> 0 | O38: =IF(O$43=5,5,0) -> 0 | Q38: =IF(Q$43=5,5,0) -> 0 | S38: =IF(S$43=5,5,0) -> 0 | U38: =IF(U$43=5,5,0) -> 5 | W38: =IF(W$43=5,5,0) -> 0 | Y38: =IF(Y$43=5,5,0) -> 0 | AA38: =IF(AA$43=5,5,0) -> 0 | AC38: =IF(AC$43=5,5,0) -> 0 | AE38: =IF(AE$43=5,5,0) -> 0 | AG38: =IF(AG$43=5,5,0) -> 0 | AI38: =IF(AI$43=5,5,0) -> 0 | AK38: =IF(AK$43=5,5,0) -> 0 | AM38: =IF(AM$43=5,5,0) -> 0 | AO38: =IF(AO$43=5,5,0) -> 0 | AQ38: =IF(AQ$43=5,5,0) -> 0 | AS38: =IF(AS$43=5,5,0) -> 0 | AU38: =IF(AU$43=5,5,0) -> 0 | AW38: =IF(AW$43=5,5,0) -> 0 | AY38: =IF(AY$43=5,5,0) -> 0 | BA38: =IF(BA$43=5,5,0) -> 0 | BC38: =IF(BC$43=5,5,0) -> 0 | BE38: =IF(BE$43=5,5,0) -> 0 | BG38: =IF(BG$43=5,5,0) -> 0
C39: =IF(C$43=4,10,0) -> 0 | E39: =IF(E$43=4,10,0) -> 0 | G39: =IF(G$43=4,10,0) -> 0 | I39: =IF(I$43=4,10,0) -> 0 | K39: =IF(K$43=4,10,0) -> 0 | M39: =IF(M$43=4,10,0) -> 0 | O39: =IF(O$43=4,10,0) -> 0 | Q39: =IF(Q$43=4,10,0) -> 0 | S39: =IF(S$43=4,10,0) -> 0 | U39: =IF(U$43=4,10,0) -> 0 | W39: =IF(W$43=4,10,0) -> 0 | Y39: =IF(Y$43=4,10,0) -> 0 | AA39: =IF(AA$43=4,10,0) -> 0 | AC39: =IF(AC$43=4,10,0) -> 0 | AE39: =IF(AE$43=4,10,0) -> 0 | AG39: =IF(AG$43=4,10,0) -> 0 | AI39: =IF(AI$43=4,10,0) -> 10 | AK39: =IF(AK$43=4,10,0) -> 0 | AM39: =IF(AM$43=4,10,0) -> 0 | AO39: =IF(AO$43=4,10,0) -> 0 | AQ39: =IF(AQ$43=4,10,0) -> 0 | AS39: =IF(AS$43=4,10,0) -> 0 | AU39: =IF(AU$43=4,10,0) -> 0 | AW39: =IF(AW$43=4,10,0) -> 0 | AY39: =IF(AY$43=4,10,0) -> 0 | BA39: =IF(BA$43=4,10,0) -> 0 | BC39: =IF(BC$43=4,10,0) -> 0 | BE39: =IF(BE$43=4,10,0) -> 0 | BG39: =IF(BG$43=4,10,0) -> 0
C40: =IF(C$43=3,20,0) -> 0 | E40: =IF(E$43=3,20,0) -> 0 | G40: =IF(G$43=3,20,0) -> 20 | I40: =IF(I$43=3,20,0) -> 0 | K40: =IF(K$43=3,20,0) -> 0 | M40: =IF(M$43=3,20,0) -> 0 | O40: =IF(O$43=3,20,0) -> 0 | Q40: =IF(Q$43=3,20,0) -> 0 | S40: =IF(S$43=3,20,0) -> 0 | U40: =IF(U$43=3,20,0) -> 0 | W40: =IF(W$43=3,20,0) -> 0 | Y40: =IF(Y$43=3,20,0) -> 0 | AA40: =IF(AA$43=3,20,0) -> 0 | AC40: =IF(AC$43=3,20,0) -> 0 | AE40: =IF(AE$43=3,20,0) -> 0 | AG40: =IF(AG$43=3,20,0) -> 0 | AI40: =IF(AI$43=3,20,0) -> 0 | AK40: =IF(AK$43=3,20,0) -> 0 | AM40: =IF(AM$43=3,20,0) -> 0 | AO40: =IF(AO$43=3,20,0) -> 0 | AQ40: =IF(AQ$43=3,20,0) -> 0 | AS40: =IF(AS$43=3,20,0) -> 0 | AU40: =IF(AU$43=3,20,0) -> 0 | AW40: =IF(AW$43=3,20,0) -> 0 | AY40: =IF(AY$43=3,20,0) -> 0 | BA40: =IF(BA$43=3,20,0) -> 0 | BC40: =IF(BC$43=3,20,0) -> 0 | BE40: =IF(BE$43=3,20,0) -> 0 | BG40: =IF(BG$43=3,20,0) -> 0
C41: =IF(C$43=2,40,0) -> 40 | E41: =IF(E$43=2,40,0) -> 0 | G41: =IF(G$43=2,40,0) -> 0 | I41: =IF(I$43=2,40,0) -> 0 | K41: =IF(K$43=2,40,0) -> 0 | M41: =IF(M$43=2,40,0) -> 0 | O41: =IF(O$43=2,40,0) -> 0 | Q41: =IF(Q$43=2,40,0) -> 0 | S41: =IF(S$43=2,40,0) -> 0 | U41: =IF(U$43=2,40,0) -> 0 | W41: =IF(W$43=2,40,0) -> 0 | Y41: =IF(Y$43=2,40,0) -> 0 | AA41: =IF(AA$43=2,40,0) -> 0 | AC41: =IF(AC$43=2,40,0) -> 0 | AE41: =IF(AE$43=2,40,0) -> 0 | AG41: =IF(AG$43=2,40,0) -> 0 | AI41: =IF(AI$43=2,40,0) -> 0 | AK41: =IF(AK$43=2,40,0) -> 0 | AM41: =IF(AM$43=2,40,0) -> 0 | AO41: =IF(AO$43=2,40,0) -> 0 | AQ41: =IF(AQ$43=2,40,0) -> 0 | AS41: =IF(AS$43=2,40,0) -> 0 | AU41: =IF(AU$43=2,40,0) -> 0 | AW41: =IF(AW$43=2,40,0) -> 0 | AY41: =IF(AY$43=2,40,0) -> 0 | BA41: =IF(BA$43=2,40,0) -> 0 | BC41: =IF(BC$43=2,40,0) -> 0 | BE41: =IF(BE$43=2,40,0) -> 0 | BG41: =IF(BG$43=2,40,0) -> 0
C42: =IF(C$43=1,80,0) -> 0 | E42: =IF(E$43=1,80,0) -> 0 | G42: =IF(G$43=1,80,0) -> 0 | I42: =IF(I$43=1,80,0) -> 0 | K42: =IF(K$43=1,80,0) -> 0 | M42: =IF(M$43=1,80,0) -> 0 | O42: =IF(O$43=1,80,0) -> 0 | Q42: =IF(Q$43=1,80,0) -> 80 | S42: =IF(S$43=1,80,0) -> 0 | U42: =IF(U$43=1,80,0) -> 0 | W42: =IF(W$43=1,80,0) -> 0 | Y42: =IF(Y$43=1,80,0) -> 0 | AA42: =IF(AA$43=1,80,0) -> 0 | AC42: =IF(AC$43=1,80,0) -> 0 | AE42: =IF(AE$43=1,80,0) -> 0 | AG42: =IF(AG$43=1,80,0) -> 0 | AI42: =IF(AI$43=1,80,0) -> 0 | AK42: =IF(AK$43=1,80,0) -> 0 | AM42: =IF(AM$43=1,80,0) -> 0 | AO42: =IF(AO$43=1,80,0) -> 0 | AQ42: =IF(AQ$43=1,80,0) -> 0 | AS42: =IF(AS$43=1,80,0) -> 0 | AU42: =IF(AU$43=1,80,0) -> 0 | AW42: =IF(AW$43=1,80,0) -> 0 | AY42: =IF(AY$43=1,80,0) -> 0 | BA42: =IF(BA$43=1,80,0) -> 0 | BC42: =IF(BC$43=1,80,0) -> 0 | BE42: =IF(BE$43=1,80,0) -> 0 | BG42: =IF(BG$43=1,80,0) -> 0
C43: =RANK(C44,$C44:$CJ44)*C48 -> 2 | E43: =RANK(E44,$C44:$CJ44)*E48 -> 9 | G43: =RANK(G44,$C44:$CJ44)*G48 -> 3 | I43: =RANK(I44,$C44:$CJ44)*I48 -> 10 | K43: =RANK(K44,$C44:$CJ44)*K48 -> 6 | M43: =RANK(M44,$C44:$CJ44)*M48 -> 0 | O43: =RANK(O44,$C44:$CJ44)*O48 -> 0 | Q43: =RANK(Q44,$C44:$CJ44)*Q48 -> 1 | S43: =RANK(S44,$C44:$CJ44)*S48 -> 0 | U43: =RANK(U44,$C44:$CJ44)*U48 -> 5 | W43: =RANK(W44,$C44:$CJ44)*W48 -> 0 | Y43: =RANK(Y44,$C44:$CJ44)*Y48 -> 0 | AA43: =RANK(AA44,$C44:$CJ44)*AA48 -> 0 | AC43: =RANK(AC44,$C44:$CJ44)*AC48 -> 13 | AE43: =RANK(AE44,$C44:$CJ44)*AE48 -> 7 | AG43: =RANK(AG44,$C44:$CJ44)*AG48 -> 0 | AI43: =RANK(AI44,$C44:$CJ44)*AI48 -> 4 | AK43: =RANK(AK44,$C44:$CJ44)*AK48 -> 0 | AM43: =RANK(AM44,$C44:$CJ44)*AM48 -> 14 | AO43: =RANK(AO44,$C44:$CJ44)*AO48 -> 0 | AQ43: =RANK(AQ44,$C44:$CJ44)*AQ48 -> 8 | AS43: =RANK(AS44,$C44:$CJ44)*AS48 -> 11 | AU43: =RANK(AU44,$C44:$CJ44)*AU48 -> 12 | AW43: =RANK(AW44,$C44:$CJ44)*AW48 -> 0 | AY43: =RANK(AY44,$C44:$CJ44)*AY48 -> 0 | BA43: =RANK(BA44,$C44:$CJ44)*BA48 -> 0 | BC43: =RANK(BC44,$C44:$CJ44)*BC48 -> 0 | BE43: =RANK(BE44,$C44:$CJ44)*BE48 -> 0 | BG43: =RANK(BG44,$C44:$CJ44)*BG48 -> 0
C44: =SUM(C45:C47) -> 20021.34 | E44: =SUM(E45:E47) -> -4003.74 | G44: =SUM(G45:G47) -> 19019.3 | I44: =SUM(I45:I47) -> -9008.84 | K44: =SUM(K45:K47) -> 12012.16 | M44: =SUM(M45:M47) -> -101000000 | O44: =SUM(O45:O47) -> -101000000 | Q44: =SUM(Q45:Q47) -> 151151.61 | S44: =SUM(S45:S47) -> -101000000 | U44: =SUM(U45:U47) -> 13013.56 | W44: =SUM(W45:W47) -> -101000000 | Y44: =SUM(Y45:Y47) -> -999999.98 | AA44: =SUM(AA45:AA47) -> -101000000 | AC44: =SUM(AC45:AC47) -> -16015.92 | AE44: =SUM(AE45:AE47) -> 11011.09 | AG44: =SUM(AG45:AG47) -> -101000000 | AI44: =SUM(AI45:AI47) -> 16016.12 | AK44: =SUM(AK45:AK47) -> -1000006.98 | AM44: =SUM(AM45:AM47) -> -37036.79 | AO44: =SUM(AO45:AO47) -> -1000001.99 | AQ44: =SUM(AQ45:AQ47) -> 7007.29 | AS44: =SUM(AS45:AS47) -> -12011.74 | AU44: =SUM(AU45:AU47) -> -14013.82 | AW44: =SUM(AW45:AW47) -> -101000000 | AY44: =SUM(AY45:AY47) -> -101000000 | BA44: =SUM(BA45:BA47) -> -101000000 | BC44: =SUM(BC45:BC47) -> -101000000 | BE44: =SUM(BE45:BE47) -> -101000000 | BG44: =SUM(BG45:BG47) -> -999998.99
C45: =+D49/100 -> 1.34 | E45: =+F49/100 -> 0.26 | G45: =+H49/100 -> 0.3 | I45: =+J49/100 -> 0.16 | K45: =+L49/100 -> 0.16 | M45: =+N49/100 -> 0 | O45: =+P49/100 -> 0 | Q45: =+R49/100 -> 0.61 | S45: =+T49/100 -> 0 | U45: =+V49/100 -> 0.56 | W45: =+X49/100 -> 0 | Y45: =+Z49/100 -> 0.02 | AA45: =+AB49/100 -> 0 | AC45: =+AD49/100 -> 0.08 | AE45: =+AF49/100 -> 0.09 | AG45: =+AH49/100 -> 0 | AI45: =+AJ49/100 -> 0.12 | AK45: =+AL49/100 -> 0.02 | AM45: =+AN49/100 -> 0.21 | AO45: =+AP49/100 -> 0.01 | AQ45: =+AR49/100 -> 0.29 | AS45: =+AT49/100 -> 0.26 | AU45: =+AV49/100 -> 0.18 | AW45: =+AX49/100 -> 0 | AY45: =+AZ49/100 -> 0 | BA45: =+BB49/100 -> 0 | BC45: =+BD49/100 -> 0 | BE45: =+BF49/100 -> 0 | BG45: =+BH49/100 -> 0.01
C46: =D50*0 -> 0 | E46: =F50*0 -> 0 | G46: =H50*0 -> 0 | I46: =J50*0 -> 0 | K46: =L50*0 -> 0 | M46: =N50*0 -> 0 | O46: =P50*0 -> 0 | Q46: =R50*0 -> 0 | S46: =T50*0 -> 0 | U46: =V50*0 -> 0 | W46: =X50*0 -> 0 | Y46: =Z50*0 -> 0 | AA46: =AB50*0 -> 0 | AC46: =AD50*0 -> 0 | AE46: =AF50*0 -> 0 | AG46: =AH50*0 -> 0 | AI46: =AJ50*0 -> 0 | AK46: =AL50*0 -> 0 | AM46: =AN50*0 -> 0 | AO46: =AP50*0 -> 0 | AQ46: =AR50*0 -> 0 | AS46: =AT50*0 -> 0 | AU46: =AV50*0 -> 0 | AW46: =AX50*0 -> 0 | AY46: =AZ50*0 -> 0 | BA46: =BB50*0 -> 0 | BC46: =BD50*0 -> 0 | BE46: =BF50*0 -> 0 | BG46: =BH50*0 -> 0
C47: =IF(C48=1,C49*C48*1000+C49,-1000000+C49) -> 20020 | E47: =IF(E48=1,E49*E48*1000+E49,-1000000+E49) -> -4004 | G47: =IF(G48=1,G49*G48*1000+G49,-1000000+G49) -> 19019 | I47: =IF(I48=1,I49*I48*1000+I49,-1000000+I49) -> -9009 | K47: =IF(K48=1,K49*K48*1000+K49,-1000000+K49) -> 12012 | M47: =IF(M48=1,M49*M48*1000+M49,-1000000+M49) -> -101000000 | O47: =IF(O48=1,O49*O48*1000+O49,-1000000+O49) -> -101000000 | Q47: =IF(Q48=1,Q49*Q48*1000+Q49,-1000000+Q49) -> 151151 | S47: =IF(S48=1,S49*S48*1000+S49,-1000000+S49) -> -101000000 | U47: =IF(U48=1,U49*U48*1000+U49,-1000000+U49) -> 13013 | W47: =IF(W48=1,W49*W48*1000+W49,-1000000+W49) -> -101000000 | Y47: =IF(Y48=1,Y49*Y48*1000+Y49,-1000000+Y49) -> -1000000 | AA47: =IF(AA48=1,AA49*AA48*1000+AA49,-1000000+AA49) -> -101000000 | AC47: =IF(AC48=1,AC49*AC48*1000+AC49,-1000000+AC49) -> -16016 | AE47: =IF(AE48=1,AE49*AE48*1000+AE49,-1000000+AE49) -> 11011 | AG47: =IF(AG48=1,AG49*AG48*1000+AG49,-1000000+AG49) -> -101000000 | AI47: =IF(AI48=1,AI49*AI48*1000+AI49,-1000000+AI49) -> 16016 | AK47: =IF(AK48=1,AK49*AK48*1000+AK49,-1000000+AK49) -> -1000007 | AM47: =IF(AM48=1,AM49*AM48*1000+AM49,-1000000+AM49) -> -37037 | AO47: =IF(AO48=1,AO49*AO48*1000+AO49,-1000000+AO49) -> -1000002 | AQ47: =IF(AQ48=1,AQ49*AQ48*1000+AQ49,-1000000+AQ49) -> 7007 | AS47: =IF(AS48=1,AS49*AS48*1000+AS49,-1000000+AS49) -> -12012 | AU47: =IF(AU48=1,AU49*AU48*1000+AU49,-1000000+AU49) -> -14014 | AW47: =IF(AW48=1,AW49*AW48*1000+AW49,-1000000+AW49) -> -101000000 | AY47: =IF(AY48=1,AY49*AY48*1000+AY49,-1000000+AY49) -> -101000000 | BA47: =IF(BA48=1,BA49*BA48*1000+BA49,-1000000+BA49) -> -101000000 | BC47: =IF(BC48=1,BC49*BC48*1000+BC49,-1000000+BC49) -> -101000000 | BE47: =IF(BE48=1,BE49*BE48*1000+BE49,-1000000+BE49) -> -101000000 | BG47: =IF(BG48=1,BG49*BG48*1000+BG49,-1000000+BG49) -> -999999
A48: Classificats | B48: =SUM(C48:AI48) -> 10 | C48: =IF(D49>=$A3/2,1,0) -> 1 | E48: =IF(F49>=$A3/2,1,0) -> 1 | G48: =IF(H49>=$A3/2,1,0) -> 1 | I48: =IF(J49>=$A3/2,1,0) -> 1 | K48: =IF(L49>=$A3/2,1,0) -> 1 | M48: =IF(N49>=$A3/2,1,0) -> 0 | O48: =IF(P49>=$A3/2,1,0) -> 0 | Q48: =IF(R49>=$A3/2,1,0) -> 1 | S48: =IF(T49>=$A3/2,1,0) -> 0 | U48: =IF(V49>=$A3/2,1,0) -> 1 | W48: =IF(X49>=$A3/2,1,0) -> 0 | Y48: =IF(Z49>=$A3/2,1,0) -> 0 | AA48: =IF(AB49>=$A3/2,1,0) -> 0 | AC48: =IF(AD49>=$A3/2,1,0) -> 1 | AE48: =IF(AF49>=$A3/2,1,0) -> 1 | AG48: =IF(AH49>=$A3/2,1,0) -> 0 | AI48: =IF(AJ49>=$A3/2,1,0) -> 1 | AK48: =IF(AL49>=$A3/2,1,0) -> 0 | AM48: =IF(AN49>=$A3/2,1,0) -> 1 | AO48: =IF(AP49>=$A3/2,1,0) -> 0 | AQ48: =IF(AR49>=$A3/2,1,0) -> 1 | AS48: =IF(AT49>=$A3/2,1,0) -> 1 | AU48: =IF(AV49>=$A3/2,1,0) -> 1 | AW48: =IF(AX49>=$A3/2,1,0) -> 0 | AY48: =IF(AZ49>=$A3/2,1,0) -> 0 | BA48: =IF(BB49>=$A3/2,1,0) -> 0 | BC48: =IF(BD49>=$A3/2,1,0) -> 0 | BE48: =IF(BF49>=$A3/2,1,0) -> 0 | BG48: =IF(BH49>=$A3/2,1,0) -> 0
C49: =IF(SUM(C54:C994)<-1000,-100000000,SUM(C54:C994)) -> 20 | D49: =COUNT(D67:D994)+SUM(D54:D66) -> 134 | E49: =IF(SUM(E54:E994)<-1000,-100000000,SUM(E54:E994)) -> -4 | F49: =COUNT(F67:F994)+SUM(F54:F66) -> 26 | G49: =IF(SUM(G54:G994)<-1000,-100000000,SUM(G54:G994)) -> 19 | H49: =COUNT(H67:H994)+SUM(H54:H66) -> 30 | I49: =IF(SUM(I54:I994)<-1000,-100000000,SUM(I54:I994)) -> -9 | J49: =COUNT(J67:J994)+SUM(J54:J66) -> 16 | K49: =IF(SUM(K54:K994)<-1000,-100000000,SUM(K54:K994)) -> 12 | L49: =COUNT(L67:L994)+SUM(L54:L66) -> 16 | M49: =IF(SUM(M54:M994)<-1000,-100000000,SUM(M54:M994)) -> -100000000 | N49: =COUNT(N67:N994)+SUM(N54:N66) -> 0 | O49: =IF(SUM(O54:O994)<-1000,-100000000,SUM(O54:O994)) -> -100000000 | P49: =COUNT(P67:P994)+SUM(P54:P66) -> 0 | Q49: =IF(SUM(Q54:Q994)<-1000,-100000000,SUM(Q54:Q994)) -> 151 | R49: =COUNT(R67:R994)+SUM(R54:R66) -> 61 | S49: =IF(SUM(S54:S994)<-1000,-100000000,SUM(S54:S994)) -> -100000000 | T49: =COUNT(T67:T994)+SUM(T54:T66) -> 0 | U49: =IF(SUM(U54:U994)<-1000,-100000000,SUM(U54:U994)) -> 13 | V49: =COUNT(V67:V994)+SUM(V54:V66) -> 56 | W49: =IF(SUM(W54:W994)<-1000,-100000000,SUM(W54:W994)) -> -100000000 | X49: =COUNT(X67:X994)+SUM(X54:X66) -> 0 | Y49: =IF(SUM(Y54:Y994)<-1000,-100000000,SUM(Y54:Y994)) -> 0 | Z49: =COUNT(Z67:Z994)+SUM(Z54:Z66) -> 2 | AA49: =IF(SUM(AA54:AA994)<-1000,-100000000,SUM(AA54:AA994)) -> -100000000 | AB49: =COUNT(AB67:AB994)+SUM(AB54:AB66) -> 0 | AC49: =IF(SUM(AC54:AC994)<-1000,-100000000,SUM(AC54:AC994)) -> -16 | AD49: =COUNT(AD67:AD994)+SUM(AD54:AD66) -> 8 | AE49: =IF(SUM(AE54:AE994)<-1000,-100000000,SUM(AE54:AE994)) -> 11 | AF49: =COUNT(AF67:AF994)+SUM(AF54:AF66) -> 9 | AG49: =IF(SUM(AG54:AG994)<-1000,-100000000,SUM(AG54:AG994)) -> -100000000 | AH49: =COUNT(AH67:AH994)+SUM(AH54:AH66) -> 0 | AI49: =IF(SUM(AI54:AI994)<-1000,-100000000,SUM(AI54:AI994)) -> 16 | AJ49: =COUNT(AJ67:AJ994)+SUM(AJ54:AJ66) -> 12 | AK49: =IF(SUM(AK54:AK994)<-1000,-100000000,SUM(AK54:AK994)) -> -7 | AL49: =COUNT(AL67:AL994)+SUM(AL54:AL66) -> 2 | AM49: =IF(SUM(AM54:AM994)<-1000,-100000000,SUM(AM54:AM994)) -> -37 | AN49: =COUNT(AN67:AN994)+SUM(AN54:AN66) -> 21 | AO49: =IF(SUM(AO54:AO994)<-1000,-100000000,SUM(AO54:AO994)) -> -2 | AP49: =COUNT(AP67:AP994)+SUM(AP54:AP66) -> 1 | AQ49: =IF(SUM(AQ54:AQ994)<-1000,-100000000,SUM(AQ54:AQ994)) -> 7 | AR49: =COUNT(AR67:AR994)+SUM(AR54:AR66) -> 29 | AS49: =IF(SUM(AS54:AS994)<-1000,-100000000,SUM(AS54:AS994)) -> -12 | AT49: =COUNT(AT67:AT994)+SUM(AT54:AT66) -> 26 | AU49: =IF(SUM(AU54:AU994)<-1000,-100000000,SUM(AU54:AU994)) -> -14 | AV49: =COUNT(AV67:AV994)+SUM(AV54:AV66) -> 18 | AW49: =IF(SUM(AW54:AW994)<-1000,-100000000,SUM(AW54:AW994)) -> -100000000 | AX49: =COUNT(AX67:AX994)+SUM(AX54:AX66) -> 0 | AY49: =IF(SUM(AY54:AY994)<-1000,-100000000,SUM(AY54:AY994)) -> -100000000 | AZ49: =COUNT(AZ67:AZ994)+SUM(AZ54:AZ66) -> 0 | BA49: =IF(SUM(BA54:BA994)<-1000,-100000000,SUM(BA54:BA994)) -> -100000000 | BB49: =COUNT(BB67:BB994)+SUM(BB54:BB66) -> 0 | BC49: =IF(SUM(BC54:BC994)<-1000,-100000000,SUM(BC54:BC994)) -> -100000000 | BD49: =COUNT(BD67:BD994)+SUM(BD54:BD66) -> 0 | BE49: =IF(SUM(BE54:BE994)<-1000,-100000000,SUM(BE54:BE994)) -> -100000000 | BF49: =COUNT(BF67:BF994)+SUM(BF54:BF66) -> 0 | BG49: =IF(SUM(BG54:BG994)<-1000,-100000000,SUM(BG54:BG994)) -> 1 | BH49: =COUNT(BH67:BH994)+SUM(BH54:BH66) -> 1
BI51: =MAX(BJ54:BJ1075) -> 53
B52: Comentaris | C52: Manolo | E52: Ana B | G52: Jordi | I52: Sagalés | K52: Ken | M52: Goretti | O52: Sergi | Q52: Carles | S52: Mariajo | U52: Grau | W52: Alejandro | Y52: Marina | AA52: Tito | AC52: Nin | AE52: Alfred | AG52: Nancy | AI52: Jeff | AK52: Núria | AM52: Gemma | AO52: Sebas | AQ52: Lluïsa | AS52: Xavier | AU52: Eito | AW52: Tim | AY52: Debi | BA52: Mario | BC52: Òscar | BE52: Christophe | BG52: Nogué | BI52: =COUNT(BI68:BI910)+SUM(BI55:BI66) -> 78.16666667 | BJ52: A | BK52: B | BL52: C | BM52: cyberX2 | BN52: =SUM(BN54:BN909) -> 0
C53: Premi | D53: Punts | E53: Premi | F53: Punts | G53: Premi | H53: Punts | I53: Premi | J53: Punts | K53: Premi | L53: Punts | M53: Premi | N53: Punts | O53: Premi | P53: Punts | Q53: Premi | R53: Punts | S53: Premi | T53: Punts | U53: Premi | V53: Punts | W53: Premi | X53: Punts | Y53: Premi | Z53: Punts | AA53: Premi | AB53: Punts | AC53: Premi | AD53: Punts | AE53: Premi | AF53: Punts | AG53: Premi | AH53: Punts | AI53: Premi | AJ53: Punts | AK53: Premi | AL53: Punts | AM53: Premi | AN53: Punts | AO53: Premi | AP53: Punts | AQ53: Premi | AR53: Punts | AS53: Premi | AT53: Punts | AU53: Premi | AV53: Punts | AW53: Premi | AX53: Punts | AY53: Premi | AZ53: Punts | BA53: Premi | BB53: Punts | BC53: Premi | BD53: Punts | BE53: Premi | BF53: Punts | BG53: Premi | BH53: Punts | BI53: Data | BJ53: Timba | BN53: Excés cyber
A54: 1 | B54: 2022-10-01
A55: =+A54+1 -> 2 | B55: =+B54+31 -> 2022-11-01 | C55: 1 | D55: 13 | E55: 1 | F55: 7 | G55: 2 | H55: 6 | I55: -10 | J55: 4 | K55: 5 | L55: 1 | Q55: 16 | R55: 7 | U55: -6 | V55: 10 | AE55: -5 | AF55: 3 | AK55: -5 | AL55: 1 | AM55: 4 | AN55: 1 | AQ55: 7 | AR55: 6 | AS55: -1 | AT55: 4 | AU55: -4 | AV55: 1 | BI55: =+(AH55+AD55+X55+V55+T55+R55+P55+N55+L55+H55+F55+D55+AF55+J55+BH55+BO55+Z55+AB55+AJ55+AN55+AP55+AX55+BF55+BD55+BB55+AZ55+AV55+AT55+AR55)/6 -> 10.5
A56: =+A55+1 -> 3 | B56: =+B55+31 -> 2022-12-02 | C56: 17 | D56: 24 | E56: -2 | F56: 5 | G56: 10 | H56: 6 | I56: -2 | J56: 2 | K56: 0 | L56: 2 | Q56: 26 | R56: 7 | U56: 15 | V56: 14 | AE56: 9 | AF56: 4 | AI56: 5 | AJ56: 5 | AM56: -10 | AN56: 5 | AQ56: -4 | AR56: 5 | AS56: 0 | AT56: 6 | AU56: -2 | AV56: 2 | BI56: =+(AH56+AD56+X56+V56+T56+R56+P56+N56+L56+H56+F56+D56+AF56+J56+BH56+BO56+Z56+AB56+AJ56+AN56+AP56+AX56+BF56+BD56+BB56+AZ56+AV56+AT56+AR56)/6 -> 14.5
A57: 4 | B57: 2023-01-02 | C57: -6 | D57: 17 | E57: 0 | F57: 1 | G57: 13 | H57: 7 | I57: -6 | J57: 2 | K57: 5 | L57: 3 | Q57: 20 | R57: 7 | U57: 4 | V57: 3 | AM57: -14 | AN57: 7 | AQ57: -4 | AR57: 6 | AS57: -3 | AT57: 5 | AU57: 0 | AV57: 5 | BI57: 10.5
A58: 5 | B58: 2023-02-02 | C58: 6 | D58: 20 | E58: -2 | F58: 1 | G58: -4 | H58: 2 | I58: 0 | J58: 1 | K58: 1 | L58: 3 | Q58: 13 | R58: 6 | U58: -4 | V58: 1 | AI58: 5 | AJ58: 1 | AM58: -1 | AN58: 1 | AQ58: 6 | AR58: 2 | AS58: -4 | AT58: 2 | AU58: 0 | AV58: 2 | BI58: 7
A59: 6 | B59: 2023-03-05 | C59: 14 | D59: 14 | E59: 1 | F59: 1 | G59: -6 | H59: 2 | I59: 4 | J59: 1 | K59: -8 | L59: 4 | Q59: 15 | R59: 7 | U59: 8 | V59: 4 | AC59: 1 | AD59: 1 | AE59: 2 | AF59: 1 | AM59: -9 | AN59: 4 | AQ59: -2 | AR59: 3 | AS59: 2 | AT59: 3 | AU59: 1 | AV59: 1 | BI59: 7.666666667
A60: 7 | B60: 2023-04-05 | C60: -3 | D60: 6 | G60: 4 | H60: 2 | Q60: 16 | R60: 5 | U60: 4 | V60: 1 | Y60: 2 | Z60: 1 | AC60: -4 | AD60: 1 | AI60: 0 | AJ60: 1 | AQ60: 4 | AR60: 2 | AS60: -6 | AT60: 2 | AU60: -6 | AV60: 2 | BI60: 3.833333333
A61: 8 | B61: 2023-05-06 | C61: 3 | D61: 10 | E61: 8 | F61: 6 | G61: -3 | H61: 1 | I61: -3 | J61: 3 | K61: 4 | L61: 1 | Q61: 15 | R61: 7 | U61: -1 | V61: 8 | Y61: -2 | Z61: 1 | AC61: -5 | AD61: 2 | AI61: 0 | AJ61: 1 | AM61: -4 | AN61: 1 | AQ61: 2 | AR61: 2 | AS61: 4 | AT61: 1 | BI61: 7.333333333
A62: 9 | B62: 2023-06-06 | C62: 1 | D62: 5 | E62: 2 | F62: 2 | K62: 5 | L62: 2 | Q62: 8 | R62: 2 | U62: -1 | V62: 3 | BI62: 2.333333333
A63: =+A62+1 -> 10 | B63: 2023-07-07 | C63: -11 | D63: 18 | E63: -7 | F63: 2 | G63: 1 | H63: 2 | I63: 5 | J63: 2 | Q63: 8 | R63: 7 | U63: -8 | V63: 10 | AC63: -8 | AD63: 4 | AI63: 6 | AJ63: 3 | AQ63: 3 | AR63: 2 | AS63: -1 | AT63: 2 | AU63: -4 | AV63: 4 | BI63: 9.333333333
A64: 11 | B64: 2023-08-07 | BI64: 0 | BK64: Ningú ha jugat
A65: 12 | B65: 2023-09-07 | C65: -2 | D65: 7 | E65: -5 | F65: 1 | G65: -1 | H65: 1 | I65: 3 | J65: 1 | Q65: 14 | R65: 6 | U65: 2 | V65: 2 | AE65: 5 | AF65: 1 | AI65: 0 | AJ65: 1 | AM65: -3 | AN65: 2 | AQ65: -5 | AR65: 1 | AS65: -3 | AT65: 1 | AU65: 1 | AV65: 1 | BI65: 4.166666667
A66: 13 | B66: 2023-10-08 | BI66: 0
A67: 14 | M67: -10000 | O67: -10000 | S67: -10000 | W67: -10000 | AA67: -10000 | AG67: -10000 | AW67: -10000 | AY67: -10000 | BA67: -10000 | BC67: -10000 | BE67: -10000
A68: 15 | G68: 3 | H68: 330 | AK68: -2 | AL68: 190 | AO68: -2 | AP68: 190 | BG68: 1 | BH68: 210 | BI68: 2023-03-02 | BJ68: 53 | BK68: =+AI68+AE68+Y68+W68+U68+S68+Q68+O68+M68+I68+G68+E68+C68+AG68+K68+BG68+BN68+AA68+AC68+AK68+AM68+AO68+AW68+BE68+BC68+BA68+AY68+AU68+AS68+AQ68 -> 0 | BL68: =COUNT(C68:BH68)/2 -> 4 | BM68: =+BK68/BL68 -> 0 | BN68: =+K68 -> 0
A69: 16 | BK69: =+AI69+AE69+Y69+W69+U69+S69+Q69+O69+M69+I69+G69+E69+C69+AG69+K69+BG69+BN69+AA69+AC69+AK69+AM69+AO69+AW69+BE69+BC69+BA69+AY69+AU69+AS69+AQ69 -> 0 | BL69: 0 | BN69: =+K69 -> 0
A70: 17 | BK70: =+AI70+AE70+Y70+W70+U70+S70+Q70+O70+M70+I70+G70+E70+C70+AG70+K70+BG70+BN70+AA70+AC70+AK70+AM70+AO70+AW70+BE70+BC70+BA70+AY70+AU70+AS70+AQ70 -> 0 | BL70: 0 | BN70: =+K70*2 -> 0
A71: 18 | BK71: 0 | BL71: 0 | BN71: =+K71 -> 0
A72: 19 | BK72: 0 | BL72: 0 | BN72: =+K72 -> 0
A73: 20 | BK73: 0 | BL73: 0 | BN73: =+K73 -> 0
A74: 21 | BK74: 0 | BL74: 0 | BN74: =+K74*2 -> 0
A75: 22 | BK75: 0 | BL75: 0 | BN75: =+K75*2 -> 0
A76: 23 | BK76: 0 | BL76: 0 | BN76: =+K76 -> 0
A77: 24 | BK77: 0 | BL77: 0 | BN77: =+K77 -> 0
A78: 25 | BK78: 0 | BL78: 0 | BN78: =+K78*2 -> 0
A79: 26 | BK79: 0 | BL79: 0 | BN79: =+K79*2 -> 0
A80: 27 | BK80: 0 | BL80: 0 | BN80: 0
A81: 28 | BK81: 0 | BL81: 0 | BN81: 0
A82: 29 | BK82: 0 | BL82: 0 | BN82: 0
A83: 30 | BK83: 0 | BL83: 0 | BN83: 0
A84: 31 | BK84: 0 | BL84: 0 | BN84: 0
A85: 32 | BK85: 0 | BL85: 0 | BN85: =+K85 -> 0
A86: 33 | BK86: 0 | BL86: 0 | BM86: =+BK86/BL86 ->  | BN86: =+K86*2 -> 0
A87: 34 | BK87: 0 | BL87: 0 | BM87: =+BK87/BL87 ->  | BN87: =+K87*2 -> 0
A88: 35 | BK88: 0 | BL88: 0
A89: 36 | BK89: 0 | BL89: 0 | BM89: =+BK89/BL89 ->  | BN89: =+K89*2 -> 0
A90: 37 | BK90: 0 | BL90: 0 | BN90: =+K90 -> 0
A91: 38 | BK91: 0 | BL91: 0 | BN91: =+K91 -> 0
A92: 39 | BK92: 0 | BL92: 0 | BN92: =+K92 -> 0
A93: 40 | BK93: 0 | BL93: 0 | BN93: =+K93*2 -> 0
A94: 41 | BK94: 0 | BL94: 0 | BN94: =+K94 -> 0
A95: 42 | BK95: 0 | BL95: =COUNT(C95:BH95)/2 -> 0 | BN95: =+K95 -> 0
A96: 43 | BK96: 0 | BL96: =COUNT(C96:BH96)/2 -> 0 | BN96: =+K96*2 -> 0
A97: 44 | BK97: 0 | BL97: =COUNT(C97:BH97)/2 -> 0 | BM97: =+BK97/BL97 ->  | BN97: =+K97*2 -> 0
A98: 45 | BK98: 0 | BL98: 0 | BN98: =+K98 -> 0
A99: =+A98+1 -> 46 | BK99: 0 | BL99: 0 | BN99: =+K99*2 -> 0
A100: 47 | BK100: 0 | BL100: 0 | BN100: =+K100 -> 0
A101: 48 | BK101: 0 | BL101: 0 | BN101: =+K101*2 -> 0
A102: 49 | BK102: 0 | BL102: 0 | BN102: 0
A103: 50 | BK103: 0 | BL103: 0 | BN103: 0
A104: 51 | BK104: 0 | BL104: 0 | BN104: 0
A105: 52 | BK105: 0 | BL105: 0 | BN105: 0
A106: 53 | BK106: 0 | BL106: 0 | BN106: 0
A107: 54 | BK107: 0 | BL107: 0
A108: 55 | BK108: 0 | BL108: 0 | BM108: =+BK108/BL108 ->  | BN108: =+K108 -> 0
A109: 56 | BK109: 0 | BL109: 0
A110: 57 | BK110: 0 | BL110: 0 | BM110: =+BK110/BL110 ->  | BN110: =+K110 -> 0
A111: 58 | BK111: 0 | BL111: 0
A112: 59 | BK112: 0 | BL112: 0 | BM112: =+BK112/BL112 ->  | BN112: =+K112 -> 0
A113: 60 | BK113: 0 | BL113: 0 | BM113: =+BK113/BL113 ->  | BN113: =+K113*2 -> 0
A114: 61 | BK114: 0 | BL114: 0 | BM114: =+BK114/BL114 ->  | BN114: =+K114 -> 0
A115: 62 | BK115: 0 | BL115: 4 | BM115: 2.22045e-16 | BN115: =+K115*2 -> 0
A116: 63 | BK116: 0 | BL116: 4 | BM116: -2.22045e-16 | BN116: =+K116*2 -> 0
A117: 64 | BK117: 0 | BL117: =COUNT(C117:BH117)/2 -> 0
A118: 65 | BK118: 0 | BL118: 0 | BM118: =+BK118/BL118 ->  | BN118: =+K118*2 -> 0
A119: 66 | BK119: 0 | BL119: 0 | BN119: =+K119*2 -> 0
A120: =+A119+1 -> 67 | BK120: 0 | BL120: 0 | BN120: =+K120*2 -> 0
A121: 68 | BK121: 0 | BL121: 0 | BN121: =+K121*2 -> 0
A122: 69 | BK122: 0 | BL122: 0 | BN122: =+K122*2 -> 0
A123: 70 | BK123: 0 | BL123: 0 | BN123: =+K123 -> 0
A124: 71 | BK124: 0 | BL124: 0 | BN124: =+K124 -> 0
A125: 72 | BK125: 0 | BL125: 0 | BN125: =+K125*2 -> 0
A126: 73 | BK126: 0 | BL126: 0
A127: 74 | BK127: 0 | BL127: 0 | BM127: =+BK127/BL127 ->  | BN127: =+K127*2 -> 0
A128: 75 | BK128: 0 | BL128: =COUNT(C128:BH128)/2 -> 0 | BM128: =+BK128/BL128 ->  | BN128: =+K128*2 -> 0
A129: 76 | BK129: 0 | BL129: =COUNT(C129:BH129)/2 -> 0 | BM129: =+BK129/BL129 ->  | BN129: =+K129*2 -> 0
A130: 77 | BK130: 0 | BL130: =COUNT(C130:BH130)/2 -> 0 | BM130: =+BK130/BL130 ->  | BN130: =+K130*2 -> 0
A131: 78 | BK131: 0 | BL131: 0 | BM131: =+BK131/BL131 ->  | BN131: =+K131 -> 0
A132: 79 | BK132: 0 | BL132: 0
A133: 80 | BK133: 0 | BL133: 0 | BM133: =+BK133/BL133 ->  | BN133: =+K133*2 -> 0
A134: 81 | BK134: =+AI134+AE134+Y134+W134+U134+S134+Q134+O134+M134+I134+G134+E134+C134+AG134+K134+BG134+BN134+AA134+AC134+AK134+AM134+AO134+AW134+BE134+BC134+BA134+AY134+AU134+AS134+AQ134 -> 0 | BL134: 0
A135: 82 | BK135: 0 | BL135: 0 | BM135: =+BK135/BL135 ->  | BN135: =+K135 -> 0
A136: 83 | BK136: 0 | BL136: 0 | BM136: =+BK136/BL136 ->  | BN136: =+K136*2 -> 0
A137: 84 | BK137: 0 | BL137: 0
A138: 85 | BK138: 0 | BL138: 0
A139: 86 | BK139: 0 | BL139: 0
A140: 87 | BK140: 0 | BL140: 0
A141: 88 | BK141: 0 | BL141: 0
A142: 89 | BK142: 0 | BL142: 0
A143: 90 | BK143: 0 | BL143: 0
A144: 91 | BK144: 0 | BL144: 0
A145: 92 | BK145: 0 | BL145: 0
A146: 93 | BK146: 0 | BL146: 0
A147: 94 | BK147: 0 | BL147: 0
A148: 95 | BK148: 0 | BL148: 0
A149: 96 | BK149: 0 | BL149: 0
A150: 97 | BK150: 0 | BL150: 0
A151: 98 | BK151: 0 | BL151: 0
A152: 99 | BK152: 0 | BL152: 0
A153: 100 | BK153: 0 | BL153: 0
A154: 101 | BK154: 0 | BL154: 0
A155: 102 | BK155: 0 | BL155: 0
A156: 103 | BK156: 0 | BL156: 0
A157: 104 | BK157: 0 | BL157: 0
A158: 105 | BK158: 0 | BL158: 0
A159: 106 | BK159: 0 | BL159: 0
A160: 107 | BK160: 0 | BL160: 0
A161: 108 | BK161: 0 | BL161: 0
A162: 109 | BK162: 0 | BL162: 0
A163: 110 | BK163: 0 | BL163: 0
A164: 111 | BK164: 0 | BL164: 0
A165: 112 | BK165: 0 | BL165: 0
A166: 113 | BK166: 0 | BL166: 0
A167: 114 | BK167: 0 | BL167: 0
A168: 115 | BK168: 0 | BL168: 0
A169: 116 | BK169: 0 | BL169: 0
A170: 117 | BK170: 0 | BL170: 0
A171: 118 | BK171: 0 | BL171: 0
A172: 119 | BK172: 0 | BL172: 0
A173: 120 | BK173: 0 | BL173: 0
A174: 121 | BK174: 0 | BL174: 0
A175: 122 | BK175: 0 | BL175: 0
A176: 123 | BK176: 0 | BL176: 0
A177: 124 | BK177: 0 | BL177: 0
A178: 125 | BK178: 0 | BL178: 0
A179: 126 | BK179: 0 | BL179: 0
A180: 127 | BK180: 0 | BL180: 0
A181: 128 | BK181: 0 | BL181: 0
A182: 129 | BK182: 0 | BL182: 0
A183: 130 | BK183: 0 | BL183: 0
A184: =+A183+1 -> 131 | BK184: 0 | BL184: 0
A185: 132 | BK185: 0 | BL185: 0
A186: 133 | BK186: 0 | BL186: 0
A187: 134 | BK187: 0 | BL187: 0
A188: 135 | BK188: 0 | BL188: 0
A189: 136 | BK189: 0 | BL189: 0
A190: 137 | BK190: 0 | BL190: 0
A191: 138 | BK191: 0 | BL191: 0
A192: 139 | BK192: 0 | BL192: 0
A193: 140 | BK193: 0 | BL193: 0
A194: 141 | BK194: 0 | BL194: =COUNT(C194:BH194)/2 -> 0
A195: 142 | BK195: 0 | BL195: 0
A196: 143 | BK196: 0 | BL196: 0
A197: 144 | BK197: 0 | BL197: 0
A198: 145 | BK198: =+AI198+AE198+Y198+W198+U198+S198+Q198+O198+M198+I198+G198+E198+C198+AG198+K198+BG198+BN198+AA198+AC198+AK198+AM198+AO198+AW198+BE198+BC198+BA198+AY198+AU198+AS198+AQ198 -> 0 | BL198: 0
A199: 146 | BK199: 0 | BL199: 0
A200: 147 | BK200: 0 | BL200: 0
A201: 148 | BK201: 0 | BL201: 0
A202: 149 | BK202: 0 | BL202: 0
... 657 more rows

Sheet Cribbage
A1: CRIBBAGE
A2: Mes
A3: =+GENERAL!B6 -> 12 | C3: =SUM(C5:C10) -> 11.5 | E3: =SUM(E5:E26) -> -1
C4: Premi | D4: Reptes | E4: Punts | F4: Partides | G4: General
A5: 1 | B5: Jordi | C5: =+C$43 -> 3.5 | D5: =+C$44 -> 7 | E5: =+D$43 -> -4 | F5: =+E$44 -> 75 | G5: =+C$29 -> 80 | H5: =IF(F5<A$3/2,-1000,1)*800+C5-D5/1000+E5/1000000 -> 803.492996
A6: 2 | B6: Gemma | C6: =+L$43 -> 3 | D6: =+L$44 -> 4 | E6: =+M$43 -> 8 | F6: =+N$44 -> 16 | G6: =+L$29 -> 40 | H6: 802.996008
A7: 3 | B7: Sebas | C7: =+AP$43 -> 2 | D7: =+AP$44 -> 4 | E7: =+AQ$43 -> 12 | F7: =+AR$44 -> 27 | G7: =+AP$29 -> 20 | H7: 801.996012
A8: 4 | B8: Núria | C8: =+I$43 -> 2 | D8: =+I$44 -> 5 | E8: =+J$43 -> 1 | F8: =+K$44 -> 18 | G8: =+I$29 -> 10 | H8: 801.995001
A9: 5 | B9: Goretti | C9: =+AS$43 -> 0.5 | D9: =+AS$44 -> 3 | E9: =+AT$43 -> -7 | F9: =+AU$44 -> 28 | G9: =+AS$29 -> 5 | H9: 800.496993
A10: 6 | B10: Nogué | C10: =+R$43 -> 0.5 | D10: =+R$44 -> 5 | E10: =+S$43 -> -17 | F10: =+T$44 -> 38 | G10: =+R$29 -> 0 | H10: 800.494983
A11: 7 | B11: Òscar | C11: =+O$43 -> 3 | D11: =+O$44 -> 3 | E11: =+P$43 -> 4 | F11: =+Q$44 -> 2 | G11: =+O$29 -> 0 | H11: -799997.003
A12: 8 | B12: Anaïs | C12: =+AY$43 -> 2 | D12: =+AY$44 -> 2 | E12: =+AZ$43 -> 2 | F12: =+BA$44 -> 1 | G12: =+AY$29 -> 0 | H12: -799998.002
A13: 9 | B13: Grau | C13: =+AV$43 -> 0.5 | D13: =+AV$44 -> 1 | E13: =+AW$43 -> 0 | F13: =+AX$44 -> 4 | G13: =+AV$29 -> 0 | H13: -799999.501
A14: 10 | B14: Lluisa | C14: =+BH$43 -> -100000000 | D14: =+BH$44 -> 1 | E14: =+BI$43 -> 0 | F14: =+BJ$44 -> 0 | G14: =+BH$29 -> 0 | H14: =IF(F14<A$3/2,-1000,1)*800+C14-D14/1000+E14/1000000 -> -100800000
A15: 11 | B15: Xavier | C15: =+AJ$43 -> -100000000 | D15: =+AJ$44 -> 1 | E15: =+AK$43 -> 0 | F15: =+AL$44 -> 0 | G15: =+AJ$29 -> 0 | H15: -100800000
A16: 12 | B16: Christophe | C16: =+AD$43 -> -100000000 | D16: =+AD$44 -> 1 | E16: =+AE$43 -> 0 | F16: =+AF$44 -> 0 | G16: =+AD$29 -> 0 | H16: -100800000
A17: 13 | B17: Eito | C17: =+AA$43 -> -100000000 | D17: =+AA$44 -> 1 | E17: =+AB$43 -> 0 | F17: =+AC$44 -> 0 | G17: =+AA$29 -> 0 | H17: -100800000
A18: 14 | B18: Ana B. | C18: =+AG$43 -> -100000000 | D18: =+AG$44 -> 1 | E18: =+AH$43 -> 0 | F18: =+AI$44 -> 0 | G18: =+AG$29 -> 0 | H18: -100800000
A19: 15 | B19: Carles | C19: =+U$43 -> -100000000 | D19: =+U$44 -> 1 | E19: =+V$43 -> 0 | F19: =+W$44 -> 0 | G19: =+U$29 -> 0 | H19: -100800000
A20: 16 | B20: Sergi | C20: =+F$43 -> -100000000 | D20: =+F$44 -> 1 | E20: =+G$43 -> 0 | F20: =+H$44 -> 0 | G20: =+F$29 -> 0 | H20: -100800000
A21: 17 | B21: Manolo | C21: =+AM$43 -> -100000000 | D21: =+AM$44 -> 1 | E21: =+AN$43 -> 0 | F21: =+AO$44 -> 0 | G21: =+AM$29 -> 0 | H21: -100800000
A22: 18 | B22: Mariajo | C22: =+X$43 -> -100000000 | D22: =+X$44 -> 1 | E22: =+Y$43 -> 0 | F22: =+Z$44 -> 0 | G22: =+X$29 -> 0 | H22: -100800000
A23: 19 | B23: Nin | C23: =+BE$43 -> -100000000 | D23: =+BE$44 -> 1 | E23: =+BF$43 -> 0 | F23: =+BG$44 -> 0 | G23: =+BE$29 -> 0 | H23: -100800000
A24: 20 | B24: Tito | C24: =+BB$43 -> -100000000 | D24: =+BB$44 -> 1 | E24: =+BC$43 -> 0 | F24: =+BD$44 -> 0 | G24: =+BB$29 -> 0 | H24: -100800000
A25: 21 | C25: -2000000000000 | H25: -2000000800000
A26: 22 | C26: -2000000000000 | H26: -2000000800000
B29: General | C29: =+C30*C31 -> 80 | D29: =+D30*D31 -> -4 | F29: =+F30*F31 -> 0 | G29: =+G30*G31 -> 0 | I29: =+I30*I31 -> 10 | J29: =+J30*J31 -> 1 | L29: =+L30*L31 -> 40 | M29: =+M30*M31 -> 8 | O29: =+O30*O31 -> 0 | P29: =+P30*P31 -> 4 | R29: =+R30*R31 -> 0 | S29: =+S30*S31 -> -17 | U29: =+U30*U31 -> 0 | V29: =+V30*V31 -> 0 | X29: =+X30*X31 -> 0 | Y29: =+Y30*Y31 -> 0 | AA29: =+AA30*AA31 -> 0 | AB29: =+AB30*AB31 -> 0 | AD29: =+AD30*AD31 -> 0 | AE29: =+AE30*AE31 -> 0 | AG29: =+AG30*AG31 -> 0 | AH29: =+AH30*AH31 -> 0 | AJ29: =+AJ30*AJ31 -> 0 | AK29: =+AK30*AK31 -> 0 | AM29: =+AM30*AM31 -> 0 | AN29: =+AN30*AN31 -> 0 | AP29: =+AP30*AP31 -> 20 | AQ29: =+AQ30*AQ31 -> 12 | AS29: =+AS30*AS31 -> 5 | AT29: =+AT30*AT31 -> -7 | AV29: =+AV30*AV31 -> 0 | AW29: =+AW30*AW31 -> 0 | AY29: =+AY30*AY31 -> 0 | AZ29: =+AZ30*AZ31 -> 2 | BB29: =+BB30*BB31 -> 0 | BC29: =+BC30*BC31 -> 0 | BE29: =+BE30*BE31 -> 0 | BF29: =+BF30*BF31 -> 0 | BH29: =+BH30*BH31 -> 0 | BI29: =+BI30*BI31 -> 0
C30: =IF($B42>3,1,0) -> 1 | D30: =IF($B42>3,1,0) -> 1 | F30: =IF($B42>3,1,0) -> 1 | G30: =IF($B42>3,1,0) -> 1 | I30: =IF($B42>3,1,0) -> 1 | J30: =IF($B42>3,1,0) -> 1 | L30: =IF($B42>3,1,0) -> 1 | M30: =IF($B42>3,1,0) -> 1 | O30: =IF($B42>3,1,0) -> 1 | P30: =IF($B42>3,1,0) -> 1 | R30: =IF($B42>3,1,0) -> 1 | S30: =IF($B42>3,1,0) -> 1 | U30: =IF($B42>3,1,0) -> 1 | V30: =IF($B42>3,1,0) -> 1 | X30: =IF($B42>3,1,0) -> 1 | Y30: =IF($B42>3,1,0) -> 1 | AA30: =IF($B42>3,1,0) -> 1 | AB30: =IF($B42>3,1,0) -> 1 | AD30: =IF($B42>3,1,0) -> 1 | AE30: =IF($B42>3,1,0) -> 1 | AG30: =IF($B42>3,1,0) -> 1 | AH30: =IF($B42>3,1,0) -> 1 | AJ30: =IF($B42>3,1,0) -> 1 | AK30: =IF($B42>3,1,0) -> 1 | AM30: =IF($B42>3,1,0) -> 1 | AN30: =IF($B42>3,1,0) -> 1 | AP30: =IF($B42>3,1,0) -> 1 | AQ30: =IF($B42>3,1,0) -> 1 | AS30: =IF($B42>3,1,0) -> 1 | AT30: =IF($B42>3,1,0) -> 1 | AV30: =IF($B42>3,1,0) -> 1 | AW30: =IF($B42>3,1,0) -> 1 | AY30: =IF($B42>3,1,0) -> 1 | AZ30: =IF($B42>3,1,0) -> 1 | BB30: =IF($B42>3,1,0) -> 1 | BC30: =IF($B42>3,1,0) -> 1 | BE30: =IF($B42>3,1,0) -> 1 | BF30: =IF($B42>3,1,0) -> 1 | BH30: =IF($B42>3,1,0) -> 1 | BI30: =IF($B42>3,1,0) -> 1
C31: =MAX(C32:C36) -> 80 | D31: =+D43 -> -4 | F31: =MAX(F32:F36) -> 0 | G31: =+G43 -> 0 | I31: =MAX(I32:I36) -> 10 | J31: =+J43 -> 1 | L31: =MAX(L32:L36) -> 40 | M31: =+M43 -> 8 | O31: =MAX(O32:O36) -> 0 | P31: =+P43 -> 4 | R31: =MAX(R32:R36) -> 0 | S31: =+S43 -> -17 | U31: =MAX(U32:U36) -> 0 | V31: =+V43 -> 0 | X31: =MAX(X32:X36) -> 0 | Y31: =+Y43 -> 0 | AA31: =MAX(AA32:AA36) -> 0 | AB31: =+AB43 -> 0 | AD31: =MAX(AD32:AD36) -> 0 | AE31: =+AE43 -> 0 | AG31: =MAX(AG32:AG36) -> 0 | AH31: =+AH43 -> 0 | AJ31: =MAX(AJ32:AJ36) -> 0 | AK31: =+AK43 -> 0 | AM31: =MAX(AM32:AM36) -> 0 | AN31: =+AN43 -> 0 | AP31: =MAX(AP32:AP36) -> 20 | AQ31: =+AQ43 -> 12 | AS31: =MAX(AS32:AS36) -> 5 | AT31: =+AT43 -> -7 | AV31: =MAX(AV32:AV36) -> 0 | AW31: =+AW43 -> 0 | AY31: =MAX(AY32:AY36) -> 0 | AZ31: =+AZ43 -> 2 | BB31: =MAX(BB32:BB36) -> 0 | BC31: =+BC43 -> 0 | BE31: =MAX(BE32:BE36) -> 0 | BF31: =+BF43 -> 0 | BH31: =MAX(BH32:BH36) -> 0 | BI31: =+BI43 -> 0
C32: =IF(C$37=5,5,0) -> 0 | F32: =IF(F$37=5,5,0) -> 0 | I32: =IF(I$37=5,5,0) -> 0 | L32: =IF(L$37=5,5,0) -> 0 | O32: =IF(O$37=5,5,0) -> 0 | R32: =IF(R$37=5,5,0) -> 0 | U32: =IF(U$37=5,5,0) -> 0 | X32: =IF(X$37=5,5,0) -> 0 | AA32: =IF(AA$37=5,5,0) -> 0 | AD32: =IF(AD$37=5,5,0) -> 0 | AG32: =IF(AG$37=5,5,0) -> 0 | AJ32: =IF(AJ$37=5,5,0) -> 0 | AM32: =IF(AM$37=5,5,0) -> 0 | AP32: =IF(AP$37=5,5,0) -> 0 | AS32: =IF(AS$37=5,5,0) -> 5 | AV32: =IF(AV$37=5,5,0) -> 0 | AY32: =IF(AY$37=5,5,0) -> 0 | BB32: =IF(BB$37=5,5,0) -> 0 | BE32: =IF(BE$37=5,5,0) -> 0 | BH32: =IF(BH$37=5,5,0) -> 0
C33: =IF(C$37=4,10,0) -> 0 | F33: =IF(F$37=4,10,0) -> 0 | I33: =IF(I$37=4,10,0) -> 10 | L33: =IF(L$37=4,10,0) -> 0 | O33: =IF(O$37=4,10,0) -> 0 | R33: =IF(R$37=4,10,0) -> 0 | U33: =IF(U$37=4,10,0) -> 0 | X33: =IF(X$37=4,10,0) -> 0 | AA33: =IF(AA$37=4,10,0) -> 0 | AD33: =IF(AD$37=4,10,0) -> 0 | AG33: =IF(AG$37=4,10,0) -> 0 | AJ33: =IF(AJ$37=4,10,0) -> 0 | AM33: =IF(AM$37=4,10,0) -> 0 | AP33: =IF(AP$37=4,10,0) -> 0 | AS33: =IF(AS$37=4,10,0) -> 0 | AV33: =IF(AV$37=4,10,0) -> 0 | AY33: =IF(AY$37=4,10,0) -> 0 | BB33: =IF(BB$37=4,10,0) -> 0 | BE33: =IF(BE$37=4,10,0) -> 0 | BH33: =IF(BH$37=4,10,0) -> 0
C34: =IF(C$37=3,20,0) -> 0 | F34: =IF(F$37=3,20,0) -> 0 | I34: =IF(I$37=3,20,0) -> 0 | L34: =IF(L$37=3,20,0) -> 0 | O34: =IF(O$37=3,20,0) -> 0 | R34: =IF(R$37=3,20,0) -> 0 | U34: =IF(U$37=3,20,0) -> 0 | X34: =IF(X$37=3,20,0) -> 0 | AA34: =IF(AA$37=3,20,0) -> 0 | AD34: =IF(AD$37=3,20,0) -> 0 | AG34: =IF(AG$37=3,20,0) -> 0 | AJ34: =IF(AJ$37=3,20,0) -> 0 | AM34: =IF(AM$37=3,20,0) -> 0 | AP34: =IF(AP$37=3,20,0) -> 20 | AS34: =IF(AS$37=3,20,0) -> 0 | AV34: =IF(AV$37=3,20,0) -> 0 | AY34: =IF(AY$37=3,20,0) -> 0 | BB34: =IF(BB$37=3,20,0) -> 0 | BE34: =IF(BE$37=3,20,0) -> 0 | BH34: =IF(BH$37=3,20,0) -> 0
C35: =IF(C$37=2,40,0) -> 0 | F35: =IF(F$37=2,40,0) -> 0 | I35: =IF(I$37=2,40,0) -> 0 | L35: =IF(L$37=2,40,0) -> 40 | O35: =IF(O$37=2,40,0) -> 0 | R35: =IF(R$37=2,40,0) -> 0 | U35: =IF(U$37=2,40,0) -> 0 | X35: =IF(X$37=2,40,0) -> 0 | AA35: =IF(AA$37=2,40,0) -> 0 | AD35: =IF(AD$37=2,40,0) -> 0 | AG35: =IF(AG$37=2,40,0) -> 0 | AJ35: =IF(AJ$37=2,40,0) -> 0 | AM35: =IF(AM$37=2,40,0) -> 0 | AP35: =IF(AP$37=2,40,0) -> 0 | AS35: =IF(AS$37=2,40,0) -> 0 | AV35: =IF(AV$37=2,40,0) -> 0 | AY35: =IF(AY$37=2,40,0) -> 0 | BB35: =IF(BB$37=2,40,0) -> 0 | BE35: =IF(BE$37=2,40,0) -> 0 | BH35: =IF(BH$37=2,40,0) -> 0
C36: =IF(C$37=1,80,0) -> 80 | F36: =IF(F$37=1,80,0) -> 0 | I36: =IF(I$37=1,80,0) -> 0 | L36: =IF(L$37=1,80,0) -> 0 | O36: =IF(O$37=1,80,0) -> 0 | R36: =IF(R$37=1,80,0) -> 0 | U36: =IF(U$37=1,80,0) -> 0 | X36: =IF(X$37=1,80,0) -> 0 | AA36: =IF(AA$37=1,80,0) -> 0 | AD36: =IF(AD$37=1,80,0) -> 0 | AG36: =IF(AG$37=1,80,0) -> 0 | AJ36: =IF(AJ$37=1,80,0) -> 0 | AM36: =IF(AM$37=1,80,0) -> 0 | AP36: =IF(AP$37=1,80,0) -> 0 | AS36: =IF(AS$37=1,80,0) -> 0 | AV36: =IF(AV$37=1,80,0) -> 0 | AY36: =IF(AY$37=1,80,0) -> 0 | BB36: =IF(BB$37=1,80,0) -> 0 | BE36: =IF(BE$37=1,80,0) -> 0 | BH36: =IF(BH$37=1,80,0) -> 0
C37: =RANK(C38,$C38:$BI38)*C42 -> 1 | F37: =RANK(F38,$C38:$BI38)*F42 -> 0 | I37: =RANK(I38,$C38:$BI38)*I42 -> 4 | L37: =RANK(L38,$C38:$BI38)*L42 -> 2 | O37: =RANK(O38,$C38:$BI38)*O42 -> 0 | R37: =RANK(R38,$C38:$BI38)*R42 -> 6 | U37: =RANK(U38,$C38:$BI38)*U42 -> 0 | X37: =RANK(X38,$C38:$BI38)*X42 -> 0 | AA37: =RANK(AA38,$C38:$BI38)*AA42 -> 0 | AD37: =RANK(AD38,$C38:$BI38)*AD42 -> 0 | AG37: =RANK(AG38,$C38:$BI38)*AG42 -> 0 | AJ37: =RANK(AJ38,$C38:$BI38)*AJ42 -> 0 | AM37: =RANK(AM38,$C38:$BI38)*AM42 -> 0 | AP37: =RANK(AP38,$C38:$BI38)*AP42 -> 3 | AS37: =RANK(AS38,$C38:$BI38)*AS42 -> 5 | AV37: =RANK(AV38,$C38:$BI38)*AV42 -> 0 | AY37: =RANK(AY38,$C38:$BI38)*AY42 -> 0 | BB37: =RANK(BB38,$C38:$BI38)*BB42 -> 0 | BE37: =RANK(BE38,$C38:$BI38)*BE42 -> 0 | BH37: =RANK(BH38,$C38:$BI38)*BH42 -> 0
C38: =SUM(C39:C41) -> 349299.5 | F38: =SUM(F39:F41) -> -1000000100 | I38: =SUM(I39:I41) -> 199503 | L38: =SUM(L39:L41) -> 299611 | O38: =SUM(O39:O41) -> -1000000296 | R38: =SUM(R39:R41) -> 49483.5 | U38: =SUM(U39:U41) -> -1000000100 | X38: =SUM(X39:X41) -> -1000000100 | AA38: =SUM(AA39:AA41) -> -1000000100 | AD38: =SUM(AD39:AD41) -> -1000000100 | AG38: =SUM(AG39:AG41) -> -1000000100 | AJ38: =SUM(AJ39:AJ41) -> -1000000100 | AM38: =SUM(AM39:AM41) -> -1000000100 | AP38: =SUM(AP39:AP41) -> 199614 | AS38: =SUM(AS39:AS41) -> 49693.5 | AV38: =SUM(AV39:AV41) -> -1000000100 | AY38: =SUM(AY39:AY41) -> -1000000198 | BB38: =SUM(BB39:BB41) -> -1000000100 | BE38: =SUM(BE39:BE41) -> -1000000100 | BH38: =SUM(BH39:BH41) -> -1000000100
C39: =+D43 -> -4 | F39: =+G43 -> 0 | I39: =+J43 -> 1 | L39: =+M43 -> 8 | O39: =+P43 -> 4 | R39: =+S43 -> -17 | U39: =+V43 -> 0 | X39: =+Y43 -> 0 | AA39: =+AB43 -> 0 | AD39: =+AE43 -> 0 | AG39: =+AH43 -> 0 | AJ39: =+AK43 -> 0 | AM39: =+AN43 -> 0 | AP39: =+AQ43 -> 12 | AS39: =+AT43 -> -7 | AV39: =+AW43 -> 0 | AY39: =+AZ43 -> 2 | BB39: =+BC43 -> 0 | BE39: =+BF43 -> 0 | BH39: =+BI43 -> 0
C40: =-C44*100 -> -700 | F40: =-F44*100 -> -100 | I40: =-I44*100 -> -500 | L40: =-L44*100 -> -400 | O40: =-O44*100 -> -300 | R40: =-R44*100 -> -500 | U40: =-U44*100 -> -100 | X40: =-X44*100 -> -100 | AA40: =-AA44*100 -> -100 | AD40: =-AD44*100 -> -100 | AG40: =-AG44*100 -> -100 | AJ40: =-AJ44*100 -> -100 | AM40: =-AM44*100 -> -100 | AP40: =-AP44*100 -> -400 | AS40: =-AS44*100 -> -300 | AV40: =-AV44*100 -> -100 | AY40: =-AY44*100 -> -200 | BB40: =-BB44*100 -> -100 | BE40: =-BE44*100 -> -100 | BH40: =-BH44*100 -> -100
C41: =IF(E44-$A3/2<0,-1000000000,C43*C42*100000+C43) -> 350003.5 | F41: =IF(H44-$A3/2<0,-1000000000,F43*F42*100000+F43) -> -1000000000 | I41: =IF(K44-$A3/2<0,-1000000000,I43*I42*100000+I43) -> 200002 | L41: =IF(N44-$A3/2<0,-1000000000,L43*L42*100000+L43) -> 300003 | O41: =IF(Q44-$A3/2<0,-1000000000,O43*O42*100000+O43) -> -1000000000 | R41: =IF(T44-$A3/2<0,-1000000000,R43*R42*100000+R43) -> 50000.5 | U41: =IF(W44-$A3/2<0,-1000000000,U43*U42*100000+U43) -> -1000000000 | X41: =IF(Z44-$A3/2<0,-1000000000,X43*X42*100000+X43) -> -1000000000 | AA41: =IF(AC44-$A3/2<0,-1000000000,AA43*AA42*100000+AA43) -> -1000000000 | AD41: =IF(AF44-$A3/2<0,-1000000000,AD43*AD42*100000+AD43) -> -1000000000 | AG41: =IF(AI44-$A3/2<0,-1000000000,AG43*AG42*100000+AG43) -> -1000000000 | AJ41: =IF(AL44-$A3/2<0,-1000000000,AJ43*AJ42*100000+AJ43) -> -1000000000 | AM41: =IF(AO44-$A3/2<0,-1000000000,AM43*AM42*100000+AM43) -> -1000000000 | AP41: =IF(AR44-$A3/2<0,-1000000000,AP43*AP42*100000+AP43) -> 200002 | AS41: =IF(AU44-$A3/2<0,-1000000000,AS43*AS42*100000+AS43) -> 50000.5 | AV41: =IF(AX44-$A3/2<0,-1000000000,AV43*AV42*100000+AV43) -> -1000000000 | AY41: =IF(BA44-$A3/2<0,-1000000000,AY43*AY42*100000+AY43) -> -1000000000 | BB41: =IF(BD44-$A3/2<0,-1000000000,BB43*BB42*100000+BB43) -> -1000000000 | BE41: =IF(BG44-$A3/2<0,-1000000000,BE43*BE42*100000+BE43) -> -1000000000 | BH41: =IF(BJ44-$A3/2<0,-1000000000,BH43*BH42*100000+BH43) -> -1000000000
A42: Classificats | B42: =SUM(C42:BH42) -> 6 | C42: =IF(E44>=$A3/2,1,0) -> 1 | F42: =IF(H44>=$A3/2,1,0) -> 0 | I42: =IF(K43>=$A3/2,1,0) -> 1 | L42: =IF(N44>=$A3/2,1,0) -> 1 | O42: =IF(Q44>=$A3/2,1,0) -> 0 | R42: =IF(T44>=$A3/2,1,0) -> 1 | U42: =IF(W44>=$A3/2,1,0) -> 0 | X42: =IF(Z44>=$A3/2,1,0) -> 0 | AA42: =IF(AC44>=$A3/2,1,0) -> 0 | AD42: =IF(AF44>=$A3/2,1,0) -> 0 | AG42: =IF(AI44>=$A3/2,1,0) -> 0 | AJ42: =IF(AL44>=$A3/2,1,0) -> 0 | AM42: =IF(AO44>=$A3/2,1,0) -> 0 | AP42: =IF(AR44>=$A3/2,1,0) -> 1 | AS42: =IF(AU44>=$A3/2,1,0) -> 1 | AV42: =IF(AX44>=$A3/2,1,0) -> 0 | AY42: =IF(BA44>=$A3/2,1,0) -> 0 | BB42: =IF(BD44>=$A3/2,1,0) -> 0 | BE42: =IF(BG44>=$A3/2,1,0) -> 0 | BH42: =IF(BJ44>=$A3/2,1,0) -> 0 | BK42: =MAX(BL45:BL147) -> 136
C43: =IF(SUM(C48:C147)<-1000,-100000000,SUM(C48:C147)) -> 3.5 | D43: =+D48+D51+D54+D57+D60+D63+D66+D69+D75+D78+D81+D84+D87+D90+D93+D96+D99+D102+D105+D108+D111+D114+D117+D120+D123-D125-D122-D119-D116-D113-D110-D107-D104-D101-D98-D95-D92-D89-D83-D80-D77-D74-+D72-D71-D68-D65-D59-D56-D53-D50-D62-D86 -> -4 | E43: =SUM(D48:D147)/3 -> 40.33333333 | F43: =IF(SUM(F48:F147)<-1000,-100000000,SUM(F48:F147)) -> -100000000 | G43: =+G48+G51+G54+G57+G60+G63+G66+G69+G75+G78+G81+G84+G87+G90+G93+G96+G99+G102+G105+G108+G111+G114+G117+G120+G123-G125-G122-G119-G116-G113-G110-G107-G104-G101-G98-G95-G92-G89-G83-G80-G77-G74-+G72-G71-G68-G65-G59-G56-G53-G50-G62-G86 -> 0 | H43: =SUM(G48:G147)/3 -> 0 | I43: =IF(SUM(I48:I147)<-1000,-100000000,SUM(I48:I147)) -> 2 | J43: =+J48+J51+J54+J57+J60+J63+J66+J69+J75+J78+J81+J84+J87+J90+J93+J96+J99+J102+J105+J108+J111+J114+J117+J120+J123-J125-J122-J119-J116-J113-J110-J107-J104-J101-J98-J95-J92-J89-J83-J80-J77-J74-+J72-J71-J68-J65-J59-J56-J53-J50-J62-J86 -> 1 | K43: =SUM(J48:J147)/3 -> 17.66666667 | L43: =IF(SUM(L48:L147)<-1000,-100000000,SUM(L48:L147)) -> 3 | M43: =+M48+M51+M54+M57+M60+M63+M66+M69+M75+M78+M81+M84+M87+M90+M93+M96+M99+M102+M105+M108+M111+M114+M117+M120+M123-M125-M122-M119-M116-M113-M110-M107-M104-M101-M98-M95-M92-M89-M83-M80-M77-M74-+M72-M71-M68-M65-M59-M56-M53-M50-M62-M86 -> 8 | N43: =SUM(M48:M147)/3 -> 14.66666667 | O43: =IF(SUM(O48:O147)<-1000,-100000000,SUM(O48:O147)) -> 3 | P43: =+P48+P51+P54+P57+P60+P63+P66+P69+P75+P78+P81+P84+P87+P90+P93+P96+P99+P102+P105+P108+P111+P114+P117+P120+P123-P125-P122-P119-P116-P113-P110-P107-P104-P101-P98-P95-P92-P89-P83-P80-P77-P74-+P72-P71-P68-P65-P59-P56-P53-P50-P62-P86 -> 4 | Q43: =SUM(P48:P147)/3 -> 1.666666667 | R43: =IF(SUM(R48:R147)<-1000,-100000000,SUM(R48:R147)) -> 0.5 | S43: =+S48+S51+S54+S57+S60+S63+S66+S69+S75+S78+S81+S84+S87+S90+S93+S96+S99+S102+S105+S108+S111+S114+S117+S120+S123-S125-S122-S119-S116-S113-S110-S107-S104-S101-S98-S95-S92-S89-S83-S80-S77-S74-+S72-S71-S68-S65-S59-S56-S53-S50-S62-S86 -> -17 | T43: =SUM(S48:S147)/3 -> 27.66666667 | U43: =IF(SUM(U48:U147)<-1000,-100000000,SUM(U48:U147)) -> -100000000 | V43: =+V48+V51+V54+V57+V60+V63+V66+V69+V75+V78+V81+V84+V87+V90+V93+V96+V99+V102+V105+V108+V111+V114+V117+V120+V123-V125-V122-V119-V116-V113-V110-V107-V104-V101-V98-V95-V92-V89-V83-V80-V77-V74-+V72-V71-V68-V65-V59-V56-V53-V50-V62-V86 -> 0 | W43: =SUM(V48:V147)/3 -> 0 | X43: =IF(SUM(X48:X147)<-1000,-100000000,SUM(X48:X147)) -> -100000000 | Y43: =+Y48+Y51+Y54+Y57+Y60+Y63+Y66+Y69+Y75+Y78+Y81+Y84+Y87+Y90+Y93+Y96+Y99+Y102+Y105+Y108+Y111+Y114+Y117+Y120+Y123-Y125-Y122-Y119-Y116-Y113-Y110-Y107-Y104-Y101-Y98-Y95-Y92-Y89-Y83-Y80-Y77-Y74-+Y72-Y71-Y68-Y65-Y59-Y56-Y53-Y50-Y62-Y86 -> 0 | Z43: =SUM(Y48:Y147)/3 -> 0 | AA43: =IF(SUM(AA48:AA147)<-1000,-100000000,SUM(AA48:AA147)) -> -100000000 | AB43: =+AB48+AB51+AB54+AB57+AB60+AB63+AB66+AB69+AB75+AB78+AB81+AB84+AB87+AB90+AB93+AB96+AB99+AB102+AB105+AB108+AB111+AB114+AB117+AB120+AB123-AB125-AB122-AB119-AB116-AB113-AB110-AB107-AB104-AB101-AB98-AB95-AB92-AB89-AB83-AB80-AB77-AB74-+AB72-AB71-AB68-AB65-AB59-AB56-AB53-AB50-AB62-AB86 -> 0 | AC43: =SUM(AB48:AB147)/3 -> 0 | AD43: =IF(SUM(AD48:AD147)<-1000,-100000000,SUM(AD48:AD147)) -> -100000000 | AE43: =+AE48+AE51+AE54+AE57+AE60+AE63+AE66+AE69+AE75+AE78+AE81+AE84+AE87+AE90+AE93+AE96+AE99+AE102+AE105+AE108+AE111+AE114+AE117+AE120+AE123-AE125-AE122-AE119-AE116-AE113-AE110-AE107-AE104-AE101-AE98-AE95-AE92-AE89-AE83-AE80-AE77-AE74-+AE72-AE71-AE68-AE65-AE59-AE56-AE53-AE50-AE62-AE86 -> 0 | AF43: =SUM(AE48:AE147)/3 -> 0 | AG43: =IF(SUM(AG48:AG147)<-1000,-100000000,SUM(AG48:AG147)) -> -100000000 | AH43: =+AH48+AH51+AH54+AH57+AH60+AH63+AH66+AH69+AH75+AH78+AH81+AH84+AH87+AH90+AH93+AH96+AH99+AH102+AH105+AH108+AH111+AH114+AH117+AH120+AH123-AH125-AH122-AH119-AH116-AH113-AH110-AH107-AH104-AH101-AH98-AH95-AH92-AH89-AH83-AH80-AH77-AH74-+AH72-AH71-AH68-AH65-AH59-AH56-AH53-AH50-AH62-AH86 -> 0 | AI43: =SUM(AH48:AH147)/3 -> 0 | AJ43: =IF(SUM(AJ48:AJ147)<-1000,-100000000,SUM(AJ48:AJ147)) -> -100000000 | AK43: =+AK48+AK51+AK54+AK57+AK60+AK63+AK66+AK69+AK75+AK78+AK81+AK84+AK87+AK90+AK93+AK96+AK99+AK102+AK105+AK108+AK111+AK114+AK117+AK120+AK123-AK125-AK122-AK119-AK116-AK113-AK110-AK107-AK104-AK101-AK98-AK95-AK92-AK89-AK83-AK80-AK77-AK74-+AK72-AK71-AK68-AK65-AK59-AK56-AK53-AK50-AK62-AK86 -> 0 | AL43: =SUM(AK48:AK147)/3 -> 0 | AM43: =IF(SUM(AM48:AM147)<-1000,-100000000,SUM(AM48:AM147)) -> -100000000 | AN43: =+AN48+AN51+AN54+AN57+AN60+AN63+AN66+AN69+AN75+AN78+AN81+AN84+AN87+AN90+AN93+AN96+AN99+AN102+AN105+AN108+AN111+AN114+AN117+AN120+AN123-AN125-AN122-AN119-AN116-AN113-AN110-AN107-AN104-AN101-AN98-AN95-AN92-AN89-AN83-AN80-AN77-AN74-+AN72-AN71-AN68-AN65-AN59-AN56-AN53-AN50-AN62-AN86 -> 0 | AO43: =SUM(AN48:AN147)/3 -> 0 | AP43: =IF(SUM(AP48:AP147)<-1000,-100000000,SUM(AP48:AP147)) -> 2 | AQ43: =+AQ48+AQ51+AQ54+AQ57+AQ60+AQ63+AQ66+AQ69+AQ75+AQ78+AQ81+AQ84+AQ87+AQ90+AQ93+AQ96+AQ99+AQ102+AQ105+AQ108+AQ111+AQ114+AQ117+AQ120+AQ123-AQ125-AQ122-AQ119-AQ116-AQ113-AQ110-AQ107-AQ104-AQ101-AQ98-AQ95-AQ92-AQ89-AQ83-AQ80-AQ77-AQ74-+AQ72-AQ71-AQ68-AQ65-AQ59-AQ56-AQ53-AQ50-AQ62-AQ86 -> 12 | AR43: =SUM(AQ48:AQ147)/3 -> 18.66666667 | AS43: =IF(SUM(AS48:AS147)<-1000,-100000000,SUM(AS48:AS147)) -> 0.5 | AT43: =+AT48+AT51+AT54+AT57+AT60+AT63+AT66+AT69+AT75+AT78+AT81+AT84+AT87+AT90+AT93+AT96+AT99+AT102+AT105+AT108+AT111+AT114+AT117+AT120+AT123-AT125-AT122-AT119-AT116-AT113-AT110-AT107-AT104-AT101-AT98-AT95-AT92-AT89-AT83-AT80-AT77-AT74-+AT72-AT71-AT68-AT65-AT59-AT56-AT53-AT50-AT62-AT86 -> -7 | AU43: =SUM(AT48:AT147)/3 -> 9.666666667 | AV43: =IF(SUM(AV48:AV147)<-1000,-100000000,SUM(AV48:AV147)) -> 0.5 | AW43: =+AW48+AW51+AW54+AW57+AW60+AW63+AW66+AW69+AW75+AW78+AW81+AW84+AW87+AW90+AW93+AW96+AW99+AW102+AW105+AW108+AW111+AW114+AW117+AW120+AW123-AW125-AW122-AW119-AW116-AW113-AW110-AW107-AW104-AW101-AW98-AW95-AW92-AW89-AW83-AW80-AW77-AW74-+AW72-AW71-AW68-AW65-AW59-AW56-AW53-AW50-AW62-AW86 -> 0 | AX43: =SUM(AW48:AW147)/3 -> 1.333333333 | AY43: =IF(SUM(AY48:AY147)<-1000,-100000000,SUM(AY48:AY147)) -> 2 | AZ43: =+AZ48+AZ51+AZ54+AZ57+AZ60+AZ63+AZ66+AZ69+AZ75+AZ78+AZ81+AZ84+AZ87+AZ90+AZ93+AZ96+AZ99+AZ102+AZ105+AZ108+AZ111+AZ114+AZ117+AZ120+AZ123-AZ125-AZ122-AZ119-AZ116-AZ113-AZ110-AZ107-AZ104-AZ101-AZ98-AZ95-AZ92-AZ89-AZ83-AZ80-AZ77-AZ74-+AZ72-AZ71-AZ68-AZ65-AZ59-AZ56-AZ53-AZ50-AZ62-AZ86 -> 2 | BA43: =SUM(AZ48:AZ147)/3 -> 0.6666666667 | BB43: =IF(SUM(BB48:BB147)<-1000,-100000000,SUM(BB48:BB147)) -> -100000000 | BC43: =+BC48+BC51+BC54+BC57+BC60+BC63+BC66+BC69+BC75+BC78+BC81+BC84+BC87+BC90+BC93+BC96+BC99+BC102+BC105+BC108+BC111+BC114+BC117+BC120+BC123-BC125-BC122-BC119-BC116-BC113-BC110-BC107-BC104-BC101-BC98-BC95-BC92-BC89-BC83-BC80-BC77-BC74-+BC72-BC71-BC68-BC65-BC59-BC56-BC53-BC50-BC62-BC86 -> 0 | BD43: =SUM(BC48:BC147)/3 -> 0 | BE43: =IF(SUM(BE48:BE147)<-1000,-100000000,SUM(BE48:BE147)) -> -100000000 | BF43: =+BF48+BF51+BF54+BF57+BF60+BF63+BF66+BF69+BF75+BF78+BF81+BF84+BF87+BF90+BF93+BF96+BF99+BF102+BF105+BF108+BF111+BF114+BF117+BF120+BF123-BF125-BF122-BF119-BF116-BF113-BF110-BF107-BF104-BF101-BF98-BF95-BF92-BF89-BF83-BF80-BF77-BF74-+BF72-BF71-BF68-BF65-BF59-BF56-BF53-BF50-BF62-BF86 -> 0 | BG43: =SUM(BF48:BF147)/3 -> 0 | BH43: =IF(SUM(BH48:BH147)<-1000,-100000000,SUM(BH48:BH147)) -> -100000000 | BI43: =+BI48+BI51+BI54+BI57+BI60+BI63+BI66+BI69+BI75+BI78+BI81+BI84+BI87+BI90+BI93+BI96+BI99+BI102+BI105+BI108+BI111+BI114+BI117+BI120+BI123-BI125-BI122-BI119-BI116-BI113-BI110-BI107-BI104-BI101-BI98-BI95-BI92-BI89-BI83-BI80-BI77-BI74-+BI72-BI71-BI68-BI65-BI59-BI56-BI53-BI50-BI62-BI86 -> 0 | BJ43: =SUM(BI48:BI147)/3 -> 0 | BL43: A
C44: =COUNT(C48:C147) -> 7 | D44: =SUM(D48:D147) -> 121 | E44: 75 | F44: =COUNT(F48:F147) -> 1 | G44: =SUM(G48:G147) -> 0 | H44: 0 | I44: =COUNT(I48:I147) -> 5 | J44: =SUM(J48:J147) -> 53 | K44: 18 | L44: =COUNT(L48:L147) -> 4 | M44: =SUM(M48:M147) -> 44 | N44: 16 | O44: =COUNT(O48:O147) -> 3 | P44: =SUM(P48:P147) -> 5 | Q44: 2 | R44: =COUNT(R48:R147) -> 5 | S44: =SUM(S48:S147) -> 83 | T44: 38 | U44: =COUNT(U48:U147) -> 1 | V44: =SUM(V48:V147) -> 0 | W44: 0 | X44: =COUNT(X48:X147) -> 1 | Y44: =SUM(Y48:Y147) -> 0 | Z44: 0 | AA44: =COUNT(AA48:AA147) -> 1 | AB44: =SUM(AB48:AB147) -> 0 | AC44: 0 | AD44: =COUNT(AD48:AD147) -> 1 | AE44: =SUM(AE48:AE147) -> 0 | AF44: 0 | AG44: =COUNT(AG48:AG147) -> 1 | AH44: =SUM(AH48:AH147) -> 0 | AI44: 0 | AJ44: =COUNT(AJ48:AJ147) -> 1 | AK44: =SUM(AK48:AK147) -> 0 | AL44: 0 | AM44: =COUNT(AM48:AM147) -> 1 | AN44: =SUM(AN48:AN147) -> 0 | AO44: 0 | AP44: =COUNT(AP48:AP147) -> 4 | AQ44: =SUM(AQ48:AQ147) -> 56 | AR44: 27 | AS44: =COUNT(AS48:AS147) -> 3 | AT44: =SUM(AT48:AT147) -> 29 | AU44: 28 | AV44: =COUNT(AV48:AV147) -> 1 | AW44: =SUM(AW48:AW147) -> 4 | AX44: 4 | AY44: =COUNT(AY48:AY147) -> 2 | AZ44: =SUM(AZ48:AZ147) -> 2 | BA44: 1 | BB44: =COUNT(BB48:BB147) -> 1 | BC44: =SUM(BC48:BC147) -> 0 | BD44: 0 | BE44: =COUNT(BE48:BE147) -> 1 | BF44: =SUM(BF48:BF147) -> 0 | BG44: 0 | BH44: =COUNT(BH48:BH147) -> 1 | BI44: =SUM(BI48:BI147) -> 0 | BJ44: 0 | BL44: B
C45: =COUNTIF(C48:C67,10) -> 0 | F45: =COUNTIF(F48:F67,10) -> 0 | I45: =COUNTIF(I48:I67,10) -> 0 | L45: =COUNTIF(L48:L67,10) -> 0 | O45: =COUNTIF(O48:O67,10) -> 0 | R45: =COUNTIF(R48:R67,10) -> 0 | U45: =COUNTIF(U48:U67,10) -> 0 | X45: =COUNTIF(X48:X67,10) -> 0 | AG45: =COUNTIF(AG48:AG67,10) -> 0 | AM45: =COUNTIF(AM48:AM67,10) -> 0 | AP45: =COUNTIF(AP48:AP67,10) -> 0 | AS45: =COUNTIF(AS48:AS67,10) -> 0 | AV45: =COUNTIF(AV48:AV67,10) -> 0 | AY45: =COUNTIF(AY48:AY67,10) -> 0 | BK45: =MAX(BL48:BL147) -> 136
C46: Jordi | F46: Sergi | I46: Núria | L46: Gemma | O46: Òscar | R46: Nogué | U46: Carles | X46: Mariajo | AA46: Eito | AD46: Christophe | AG46: Ana B. | AJ46: Xavier | AM46: Manolo | AP46: Sebas | AS46: Goretti | AV46: Grau | AY46: Anaïs | BB46: Tito | BE46: Nin | BH46: Lluisa | BK46: =COUNT(BK48:BK147) -> 86 | BL46: A | BM46: B | BN46: C
B47: Comentaris | C47: Premi | D47: Punts | F47: Premi | G47: Punts | I47: Premi | J47: Punts | L47: Premi | M47: Punts | O47: Premi | P47: Punts | R47: Premi | S47: Punts | U47: Premi | V47: Punts | X47: Premi | Y47: Punts | AA47: Premi | AB47: Punts | AD47: Premi | AE47: Punts | AG47: Premi | AH47: Punts | AJ47: Premi | AK47: Punts | AM47: Premi | AN47: Punts | AP47: Premi | AQ47: Punts | AS47: Premi | AT47: Punts | AV47: Premi | AW47: Punts | AY47: Premi | AZ47: Punts | BB47: Premi | BC47: Punts | BE47: Premi | BF47: Punts | BH47: Premi | BI47: Punts | BK47: Data | BL47: Timba | BS47: Jordi | BT47: Gemma | BU47: Sebas | BV47: Núria | BW47: Goretti | BX47: Nogué | BY47: Anaïs | BZ47: Grau
A48: =+C42 -> 1 | B48: Jordi | F48: -10000 | H48: -1 | I48: =IF(J48-J50=0,0.5,IF(J48>J50,1,0))*$A48 -> 0 | J48: 6 | L48: =IF(M48-M50=0,0.5,IF(M48>M50,1,0))*$A48 -> 0 | M48: 5 | O48: =IF(P48-P50=0,0.5,IF(P48>P50,1,0))*$A48 -> 1 | P48: 1 | R48: =IF(S48-S50=0,0.5,IF(S48>S50,1,0))*$A48 -> 0.5 | S48: 19 | U48: -10000 | W48: -1 | X48: -10000 | Z48: -1 | AA48: -10000 | AC48: -1 | AD48: -10000 | AF48: -1 | AG48: -10000 | AI48: -1 | AJ48: -10000 | AL48: -1 | AM48: -10000 | AO48: -1 | AP48: =IF(AQ48-AQ50=0,0.5,IF(AQ48>AQ50,1,0))*$A48 -> 1 | AQ48: 17 | AS48: =IF(AT48-AT50=0,0.5,IF(AT48>AT50,1,0))*$A48 -> 0 | AT48: 9 | AY48: =IF(AZ48-AZ50=0,0.5,IF(AZ48>AZ50,1,0))*$A48 -> 1 | AZ48: 1 | BB48: -10000 | BD48: -1 | BE48: -10000 | BG48: -1 | BH48: -10000 | BJ48: -1 | BK48: 2022-10-06 | BL48: 1 | BM48: =+BH48+AJ48+AG48+AD48+AA48+X48+U48+R48+O48+L48+I48+F48+C48+AM48+AP48+AS48+AV48+AY48+BB48+BE48 -> -109996.5 | BN48: =+BI48+AK48+AH48+AE48+AB48+Y48+V48+S48+P48+M48+J48+G48+D48+AN48+AQ48+AT48+AW48+AZ48+BC48+BF48 -> 58 | BO48: =+BJ48+AL48+AI48+AF48+AC48+Z48+W48+T48+Q48+N48+K48+H48+E48+AO48+AR48+AU48+AX48+BA48+BD48+BG48 -> -11 | BP48: =+BN48-BO48 -> 69 | BQ48: =COUNT(C48:BJ48)/3 -> 12 | BR48: =+BM48/BQ48 -> -9166.375
A49: E | J49: 2 | M49: 2 | P49: 1 | S49: 2 | AQ49: 2 | BK49: 2022-10-07 | BL49: 2 | BM49: 0 | BN49: =+BI49+AK49+AH49+AE49+AB49+Y49+V49+S49+P49+M49+J49+G49+D49+AN49+AQ49+AT49+AW49+AZ49+BC49+BF49 -> 9 | BO49: =+BJ49+AL49+AI49+AF49+AC49+Z49+W49+T49+Q49+N49+K49+H49+E49+AO49+AR49+AU49+AX49+BA49+BD49+BG49 -> 0 | BP49: 9 | BQ49: 1.666666667 | BR49: 0
A50: P | J50: 9 | M50: 6 | S50: 19 | AQ50: 6 | AT50: 15 | BK50: 2022-10-07 | BL50: 2 | BM50: 0 | BN50: 55 | BO50: 0 | BP50: 55 | BQ50: 1.666666667 | BR50: 0
A51: =+F42 -> 0 | B51: Sergi | BK51: 2022-10-07 | BL51: 2 | BM51: 0 | BN51: 0 | BO51: 0 | BP51: 0 | BQ51: 0
A52: E | BK52: 2022-10-14 | BL52: 4 | BM52: 0 | BN52: 0 | BO52: 0 | BP52: 0 | BQ52: 0
A53: P | BK53: 2022-10-20 | BL53: 5 | BM53: 0 | BN53: 0 | BO53: 0 | BP53: 0 | BQ53: 0
A54: =+I42 -> 1 | B54: Núria | C54: =IF(D54-D56=0,0.5,IF(D54>D56,1,0))*$A54 -> 1 | D54: 9 | L54: =IF(M54-M56=0,0.5,IF(M54>M56,1,0))*$A54 -> 1 | M54: 5 | O54: =IF(P54-P56=0,0.5,IF(P54>P56,1,0))*$A54 -> 1 | P54: 1 | R54: =IF(S54-S56=0,0.5,IF(S54>S56,1,0))*$A54 -> 0 | S54: 4 | AP54: =IF(AQ54-AQ56=0,0.5,IF(AQ54>AQ56,1,0))*$A54 -> 0 | AQ54: 2 | BK54: 2022-10-20 | BL54: 5 | BM54: 3 | BN54: 21 | BO54: 0 | BP54: 21 | BQ54: 3.333333333 | BR54: 0.9
A55: E | D55: 2 | M55: 4 | S55: 3 | AQ55: 1 | BK55: 2022-11-24 | BL55: 14 | BM55: 0 | BN55: 10 | BO55: 0 | BP55: 10 | BQ55: 1.333333333 | BR55: 0
A56: P | D56: 6 | M56: 3 | S56: 9 | AQ56: 4 | BK56: 2022-11-24 | BL56: 14 | BM56: 0 | BN56: 22 | BO56: 0 | BP56: 22 | BQ56: 1.333333333 | BR56: 0
A57: =+L42 -> 1 | B57: Gemma | C57: =IF(D57-D59=0,0.5,IF(D57>D59,1,0))*$A57 -> 1 | D57: 6 | I57: =IF(J57-J59=0,0.5,IF(J57>J59,1,0))*$A57 -> 0 | J57: 3 | R57: =IF(S57-S59=0,0.5,IF(S57>S59,1,0))*$A57 -> 0 | S57: 1 | AP57: =IF(AQ57-AQ59=0,0.5,IF(AQ57>AQ59,1,0))*$A57 -> 0 | AQ57: 4 | BK57: 2022-11-24 | BL57: 14 | BM57: 1 | BN57: 14 | BO57: 0 | BP57: 14 | BQ57: 2.666666667 | BR57: 0.375
A58: E | D58: 2 | J58: 4 | S58: 2 | BK58: 2022-11-25 | BL58: 15 | BM58: 0 | BN58: 8 | BO58: 0 | BP58: 8 | BQ58: 1 | BR58: 0
A59: P | D59: 5 | J59: 5 | S59: 7 | AQ59: 5 | BK59: 2022-11-25 | BL59: 15 | BM59: 0 | BN59: 22 | BO59: 0 | BP59: 22 | BQ59: 1.333333333 | BR59: 0
A60: =+O42 -> 0 | B60: Òscar | C60: =IF(D60-D62=0,0.5,IF(D60>D62,1,0))*$A60 -> 0 | I60: =IF(J60-J62=0,0.5,IF(J60>J62,1,0))*$A60 -> 0 | R60: =IF(S60-S62=0,0.5,IF(S60>S62,1,0))*$A60 -> 0 | BK60: 2022-11-25 | BL60: 15 | BM60: 0 | BN60: 0 | BO60: 0 | BP60: 0 | BQ60: 1 | BR60: 0
A61: E | D61: 1 | BK61: 2022-12-15 | BL61: 20 | BM61: 0 | BN61: 1 | BO61: 0 | BP61: 1 | BQ61: 0.3333333333 | BR61: 0
A62: P | D62: 1 | J62: 1 | S62: 2 | BK62: 2023-01-03 | BL62: 31 | BM62: 0 | BN62: 4 | BO62: 0 | BP62: 4 | BQ62: 1 | BR62: 0
A63: =+R42 -> 1 | B63: Nogué | C63: =IF(D63-D65=0,0.5,IF(D63>D65,1,0))*$A63 -> 0.5 | D63: 19 | I63: =IF(J63-J65=0,0.5,IF(J63>J65,1,0))*$A63 -> 1 | J63: 9 | L63: =IF(M63-M65=0,0.5,IF(M63>M65,1,0))*$A63 -> 1 | M63: 7 | O63: =IF(P63-P65=0,0.5,IF(P63>P65,1,0))*$A63 -> 1 | P63: 2 | AP63: =IF(AQ63-AQ65=0,0.5,IF(AQ63>AQ65,1,0))*$A63 -> 1 | AQ63: 9 | BK63: 2023-01-08 | BL63: 33 | BM63: 4.5 | BN63: 46 | BO63: 0 | BP63: 46 | BQ63: 3.333333333 | BR63: 1.35
A64: E | D64: 2 | J64: 3 | M64: 2 | AQ64: 1 | BK64: 2023-01-10 | BL64: 35 | BM64: 0 | BN64: 8 | BO64: 0 | BP64: 8 | BQ64: 1.333333333 | BR64: 0
A65: P | D65: 19 | J65: 4 | M65: 1 | AQ65: 5 | BK65: 2023-01-10 | BL65: 35 | BM65: 0 | BN65: 29 | BO65: 0 | BP65: 29 | BQ65: 1.333333333 | BR65: 0
A66: =+U42 -> 0 | B66: Carles | BK66: 2023-01-19 | BL66: 39 | BM66: 0 | BN66: 0 | BO66: 0 | BP66: 0 | BQ66: 0
A67: E | BK67: 2023-01-19 | BL67: 39 | BM67: 0 | BN67: 0 | BO67: 0 | BP67: 0 | BQ67: 0
A68: P | BK68: 2023-01-20 | BL68: 40 | BM68: 0 | BN68: 0 | BO68: 0 | BP68: 0 | BQ68: 0
A69: =+X42 -> 0 | B69: Mariajo | BK69: 2023-01-20 | BL69: 40 | BM69: 0 | BN69: 0 | BO69: 0 | BP69: 0 | BQ69: 0
A70: E | BK70: 2023-01-24 | BL70: 43 | BM70: 0 | BN70: 0 | BO70: 0 | BP70: 0 | BQ70: 0
A71: P | BK71: 2023-01-24 | BL71: 43 | BM71: 0 | BN71: 0 | BO71: 0 | BP71: 0 | BQ71: 0
A72: =+AA42 -> 0 | B72: Eito | BK72: 2023-02-02 | BL72: 44 | BM72: 0 | BN72: 0 | BO72: 0 | BP72: 0 | BQ72: 0
A73: E | BK73: 2023-02-10 | BL73: 46 | BM73: 0 | BN73: 0 | BO73: 0 | BP73: 0 | BQ73: 0
A74: P | BK74: 2023-02-10 | BL74: 46 | BM74: 0 | BN74: 0 | BO74: 0 | BP74: 0 | BQ74: 0
A75: =+AD42 -> 0 | B75: Christophe | BK75: 2023-02-21 | BL75: 49 | BM75: 0 | BN75: 0 | BO75: 0 | BP75: 0 | BQ75: 0
A76: E | BK76: 2023-02-24 | BL76: 51 | BM76: 0 | BN76: 0 | BO76: 0 | BP76: 0 | BQ76: 0
A77: P | BK77: 2023-03-10 | BL77: 57 | BM77: 0 | BN77: 0 | BO77: 0 | BP77: 0 | BQ77: 0
A78: =+AG42 -> 0 | B78: Ana B. | BK78: 2023-03-17 | BL78: 61 | BM78: 0 | BN78: 0 | BO78: 0 | BP78: 0 | BQ78: 0
A79: E | BK79: 2023-03-23 | BL79: 64 | BM79: 0 | BN79: 0 | BO79: 0 | BP79: 0 | BQ79: 0
A80: P | BK80: 2023-03-23 | BL80: 64 | BM80: 0 | BN80: 0 | BO80: 0 | BP80: =+BN80-BO80 -> 0 | BQ80: =COUNT(C80:BJ80)/3 -> 0 | BR80: =+BM80/BQ80 -> 
A81: =+AJ42 -> 0 | B81: Xavier | BK81: 2023-03-24 | BL81: 65 | BM81: 0 | BN81: 0 | BO81: 0 | BP81: 0 | BQ81: 0
A82: E | BK82: 2023-03-31 | BL82: 69 | BM82: 0 | BN82: 0 | BO82: 0 | BP82: 0 | BQ82: 0
A83: P | BK83: 2023-04-14 | BL83: 74 | BM83: 0 | BN83: 0 | BO83: 0 | BP83: 0 | BQ83: 0
A84: =+AM42 -> 0 | B84: Manolo | BK84: 2023-04-20 | BL84: 75 | BM84: 0 | BN84: 0 | BO84: 0 | BP84: 0 | BQ84: 0
A85: E | BK85: 2023-04-28 | BL85: 77 | BM85: 0 | BN85: 0 | BO85: 0 | BP85: 0 | BQ85: 0
A86: P | BK86: 2023-05-11 | BL86: 82 | BM86: 0 | BN86: 0 | BO86: 0 | BP86: 0 | BQ86: 0
A87: =+AP42 -> 1 | B87: Sebas | C87: =IF(D87-D89=0,0.5,IF(D87>D89,1,0))*$A87 -> 0 | D87: 5 | I87: =IF(J87-J89=0,0.5,IF(J87>J89,1,0))*$A87 -> 1 | J87: 4 | L87: =IF(M87-M89=0,0.5,IF(M87>M89,1,0))*$A87 -> 1 | M87: 5 | R87: =IF(S87-S89=0,0.5,IF(S87>S89,1,0))*$A87 -> 0 | S87: 5 | BK87: 2023-05-11 | BL87: 82 | BM87: 2 | BN87: 19 | BO87: 0 | BP87: 19 | BQ87: 2.666666667 | BR87: 0.75
A88: E | D88: 2 | J88: 1 | S88: 1 | BK88: 2023-06-02 | BL88: 91 | BM88: 0 | BN88: 4 | BO88: 0 | BP88: 4 | BQ88: 1 | BR88: 0
A89: P | D89: 17 | J89: 2 | M89: 4 | S89: 9 | BK89: 2023-06-09 | BL89: 95 | BM89: 0 | BN89: 32 | BO89: 0 | BP89: =+BN89-BO89 -> 32 | BQ89: =COUNT(C89:BJ89)/3 -> 1.333333333 | BR89: =+BM89/BQ89 -> 0
A90: =+AS42 -> 1 | B90: Goretti | C90: =IF(D90-D92=0,0.5,IF(D90>D92,1,0))*$A90 -> 1 | D90: 15 | AV90: =IF(AW90-AW92=0,0.5,IF(AW90>AW92,1,0))*$A90 -> 0.5 | AW90: 2 | AY90: =IF(AZ90-AZ92=0,0.5,IF(AZ90>AZ92,1,0))*$A90 -> 1 | AZ90: 1 | BK90: 2023-06-15 | BL90: 96 | BM90: 2.5 | BN90: 18 | BO90: 0 | BP90: 18 | BQ90: 2 | BR90: 1.25
A91: E | BK91: 2023-06-15 | BL91: 96 | BM91: 0 | BN91: 0 | BO91: 0 | BP91: 0 | BQ91: 0
A92: P | D92: 9 | AW92: 2 | BK92: 2023-06-16 | BL92: 97 | BM92: 0 | BN92: 11 | BO92: 0 | BP92: 11 | BQ92: 0.6666666667 | BR92: 0
A93: =+AV42 -> 0 | B93: Grau | AS93: =IF(AT93-AT95=0,0.5,IF(AT93>AT95,1,0)) -> 0.5 | AT93: 2 | BK93: 2023-06-16 | BL93: 97 | BM93: 0.5 | BN93: 2 | BO93: 0 | BP93: 2 | BQ93: 0.6666666667 | BR93: 0.75
A94: E | BK94: 2023-06-22 | BL94: 98 | BM94: 0 | BN94: 0 | BO94: 0 | BP94: 0 | BQ94: 0
A95: P | AT95: 2 | BK95: 2023-07-06 | BL95: 102 | BM95: 0 | BN95: 2 | BO95: 0 | BP95: 2 | BQ95: 0.3333333333 | BR95: 0
A96: =+AY42 -> 0 | B96: Anaïs | C96: =IF(D96-D98=0,0.5,IF(D96>D98,1,0))*$A96 -> 0 | AS96: =IF(AT96-AT98=0,0.5,IF(AT96>AT98,1,0))*$A96 -> 0 | BK96: 2023-07-06 | BL96: 102 | BM96: 0 | BN96: 0 | BO96: 0 | BP96: 0 | BQ96: 0.6666666667 | BR96: 0
A97: E | BK97: 2023-07-06 | BL97: 102 | BM97: 0 | BN97: 0 | BO97: 0 | BP97: 0 | BQ97: 0
A98: P | D98: 1 | AT98: 1 | BK98: 2023-07-19 | BL98: 105 | BM98: 0 | BN98: 2 | BO98: 0 | BP98: 2 | BQ98: 0.6666666667 | BR98: 0
A99: =+BB42 -> 0 | B99: Tito | BK99: 2023-07-29 | BL99: 109 | BM99: 0 | BN99: 0 | BO99: 0 | BP99: 0 | BQ99: 0
A100: E | BK100: 2023-08-02 | BL100: 111 | BM100: 0 | BN100: 0 | BO100: 0 | BP100: 0 | BQ100: 0
A101: P | BK101: 2023-08-03 | BL101: 112 | BM101: 0 | BN101: 0 | BO101: 0 | BP101: 0 | BQ101: 0
A102: =+BE42 -> 0 | B102: Nin | BK102: 2023-08-03 | BL102: 112 | BM102: =+BH102+AJ102+AG102+AD102+AA102+X102+U102+R102+O102+L102+I102+F102+C102+AM102+AP102+AS102+AV102+AY102+BB102+BE102 -> 0 | BN102: 0 | BO102: 0 | BP102: 0 | BQ102: 0
A103: E | BK103: 2023-08-03 | BL103: 112 | BM103: 0 | BN103: 0 | BO103: 0 | BP103: 0 | BQ103: 0
A104: P | BK104: 2023-08-04 | BL104: 113 | BM104: 0 | BN104: 0 | BO104: 0 | BP104: 0 | BQ104: 0
A105: =+BH42 -> 0 | B105: Lluisa | BK105: 2023-08-04 | BL105: 113 | BM105: =+BH105+AJ105+AG105+AD105+AA105+X105+U105+R105+O105+L105+I105+F105+C105+AM105+AP105+AS105+AV105+AY105+BB105+BE105 -> 0 | BN105: 0 | BO105: 0 | BP105: 0 | BQ105: 0
A106: E | BK106: 2023-08-09 | BL106: 116 | BM106: 0 | BN106: 0 | BO106: 0 | BP106: 0 | BQ106: 0
A107: P | BK107: 2023-08-15 | BL107: 117 | BM107: 0 | BN107: 0 | BO107: 0 | BP107: 0 | BQ107: 0
A108: G | B108: Isabel | BK108: 2023-08-15 | BL108: 117 | BM108: 0 | BN108: 0 | BO108: 0 | BP108: 0 | BQ108: 0
A109: E | BK109: 2023-08-16 | BL109: 118 | BM109: 0 | BN109: 0 | BO109: 0 | BP109: 0 | BQ109: 0 | BS109: 104 | BW109: 121
A110: P | BK110: 2023-08-16 | BL110: 118 | BM110: 0 | BN110: 0 | BO110: 0 | BP110: 0 | BQ110: 0 | BS110: 121 | BW110: 108
A111: G | B111: Xavier | BK111: 2023-08-17 | BL111: 119 | BM111: 0 | BN111: 0 | BO111: 0 | BP111: 0 | BQ111: 0 | BS111: 121 | BW111: 111
A112: E | BK112: 2023-08-18 | BL112: 120 | BM112: =+BH112+AJ112+AG112+AD112+AA112+X112+U112+R112+O112+L112+I112+F112+C112+AM112+AP112+AS112+AV112+AY112+BB112+BE112 -> 0 | BN112: 0 | BO112: 0 | BP112: 0 | BQ112: 0 | BS112: 121 | BW112: 92
A113: P | BK113: 2023-08-18 | BL113: 120 | BM113: 0 | BN113: =+BI113+AK113+AH113+AE113+AB113+Y113+V113+S113+P113+M113+J113+G113+D113+AN113+AQ113+AT113+AW113+AZ113+BC113+BF113 -> 0 | BO113: =+BJ113+AL113+AI113+AF113+AC113+Z113+W113+T113+Q113+N113+K113+H113+E113+AO113+AR113+AU113+AX113+BA113+BD113+BG113 -> 0 | BP113: 0 | BQ113: 0 | BS113: 119 | BW113: 121
A114: G | BK114: 2023-08-18 | BL114: 120 | BM114: 0 | BN114: 0 | BO114: 0 | BP114: =+BN114-BO114 -> 0 | BQ114: =COUNT(C114:BJ114)/3 -> 0 | BR114: =+BM114/BQ114 ->  | BS114: 93 | BW114: 121
A115: E | BK115: 2023-08-18 | BL115: 120 | BM115: 0 | BN115: 0 | BO115: 0 | BP115: 0 | BQ115: 0 | BS115: 97 | BW115: 121
A116: P | BK116: 2023-08-23 | BL116: 122 | BM116: 0 | BN116: 0 | BO116: 0 | BP116: 0 | BQ116: 0 | BS116: 121 | BW116: 120
A117: G | BK117: 2023-08-24 | BL117: 123 | BM117: 0 | BN117: 0 | BO117: 0 | BP117: 0 | BQ117: 0 | BW117: 119 | BZ117: 121
A118: E | BK118: 2023-08-26 | BL118: 125 | BM118: 0 | BN118: 0 | BO118: 0 | BP118: 0 | BQ118: 0 | BS118: 121 | BW118: 116
A119: P | BK119: 2023-08-26 | BL119: 125 | BM119: 0 | BN119: 0 | BO119: 0 | BP119: 0 | BQ119: 0 | BS119: 121 | BW119: 119
A120: G | BK120: 2023-08-26 | BL120: 125 | BM120: 0 | BN120: 0 | BO120: 0 | BP120: 0 | BQ120: 0 | BS120: 121 | BW120: 96
A121: E | BK121: 2023-08-26 | BL121: 125 | BM121: 0 | BN121: 0 | BO121: 0 | BP121: 0 | BQ121: 0 | BS121: 120 | BW121: 121
A122: P | BK122: 2023-08-29 | BL122: 126 | BM122: 0 | BN122: 0 | BO122: 0 | BP122: 0 | BQ122: 0 | BS122: 82 | BW122: 88 | BY122: 121
A123: G | BK123: 2023-08-30 | BL123: 127 | BM123: 0 | BN123: 0 | BO123: 0 | BP123: 0 | BQ123: 0 | BS123: 121 | BW123: 115
A124: E | BK124: 2023-08-30 | BL124: 127 | BM124: 0 | BN124: 0 | BO124: 0 | BP124: 0 | BQ124: 0 | BS124: 121 | BW124: 111
A125: P | BK125: 2023-08-30 | BL125: 127 | BM125: 0 | BN125: 0 | BO125: 0 | BP125: 0 | BQ125: 0 | BS125: 121 | BW125: 94
A126: =+A125+1 ->  | BK126: 2023-08-31 | BL126: 128 | BM126: 0 | BN126: 0 | BO126: 0 | BP126: 0 | BQ126: 0 | BS126: 121 | BX126: 116
BK127: 2023-08-31 | BL127: 128 | BM127: 0 | BN127: 0 | BO127: 0 | BP127: =+BN127-BO127 -> 0 | BQ127: =COUNT(C127:BJ127)/3 -> 0 | BR127: =+BM127/BQ127 ->  | BS127: 101 | BX127: 121
BK128: 2023-09-01 | BL128: 129 | BM128: 0 | BN128: 0 | BO128: 0 | BP128: 0 | BQ128: 0 | BS128: 113 | BX128: 121
BK129: 2023-09-01 | BL129: 129 | BM129: 0 | BN129: 0 | BO129: 0 | BP129: 0 | BQ129: 0 | BS129: 87 | BX129: 121
BK130: 2023-09-01 | BL130: 129 | BM130: 0 | BN130: 0 | BO130: 0 | BP130: 0 | BQ130: 0 | BS130: 121 | BX130: 116
BK131: 2023-09-08 | BL131: 131 | BM131: 0 | BN131: 0 | BO131: 0 | BP131: 0 | BQ131: 0 | BS131: 121 | BV131: 116
BK132: 2023-09-08 | BL132: 131 | BM132: 0 | BN132: 0 | BO132: 0 | BP132: 0 | BQ132: 0 | BS132: 121 | BV132: 87 | BX132: 88
BK133: 2023-09-28 | BL133: 136 | BM133: 0 | BN133: 0 | BO133: 0 | BP133: 0 | BQ133: 0 | BS133: 83 | BT133: 118 | BU133: 121
BM134: 0 | BN134: 0 | BO134: 0 | BP134: 0 | BQ134: 0
BM135: 0 | BN135: 0 | BO135: 0 | BP135: 0 | BQ135: 0
BM136: 0 | BN136: 0 | BO136: 0 | BP136: 0 | BQ136: 0
BM137: 0 | BN137: 0 | BO137: 0 | BP137: 0 | BQ137: 0
BM138: 0 | BN138: 0 | BO138: 0 | BP138: 0 | BQ138: 0
BM139: 0 | BN139: 0 | BO139: 0 | BP139: 0 | BQ139: 0
BM140: 0 | BN140: 0 | BO140: 0 | BP140: 0 | BQ140: 0
BM141: 0 | BN141: 0 | BO141: 0 | BP141: 0 | BQ141: 0
BM142: 0 | BN142: 0 | BO142: 0 | BP142: 0 | BQ142: 0
BM143: 0 | BN143: 0 | BO143: 0 | BP143: 0 | BQ143: 0
BM144: 0 | BN144: 0 | BO144: 0 | BP144: 0 | BQ144: 0
BM145: 0 | BN145: 0 | BO145: 0 | BP145: 0 | BQ145: 0
BM146: 0 | BN146: 0 | BO146: 0 | BP146: 0 | BQ146: 0
A147: =+#REF!+1 ->  | BM147: =+BH147+AJ147+AG147+AD147+AA147+X147+U147+R147+O147+L147+I147+F147+C147+AM147+AP147+AS147+AV147+AY147+BB147+BE147 -> 0 | BN147: =+BI147+AK147+AH147+AE147+AB147+Y147+V147+S147+P147+M147+J147+G147+D147+AN147+AQ147+AT147+AW147+AZ147+BC147+BF147 -> 0 | BO147: =+BJ147+AL147+AI147+AF147+AC147+Z147+W147+T147+Q147+N147+K147+H147+E147+AO147+AR147+AU147+AX147+BA147+BD147+BG147 -> 0 | BP147: =+BN147-BO147 -> 0 | BQ147: =COUNT(C147:BJ147)/3 -> 0 | BR147: =+BM147/BQ147 -> 

Sheet Buti
A1: BOTIFARRA
A2: Mes
A3: =+GENERAL!B6 -> 12 | C3: =SUM(C5:C27) -> 0
C4: Premi | D4: Punts | E4: Partides | F4: General
A5: 1 | B5: Jordi | C5: =+I$44 -> 140 | D5: =+I$45 -> 581 | E5: =+J$44 -> 73 | F5: =+I$30 -> 80 | G5: =IF(E5<A$3/2,-1,1)*800+C5+D5/1000 -> 940.581
A6: 2 | B6: Nogué | C6: =+AP$44 -> 140 | D6: =+AP$45 -> 410 | E6: =+AQ$44 -> 53 | F6: =+AP$30 -> 40 | G6: 940.41
A7: 3 | B7: Anaïs | C7: =+BH$44 -> 30 | D7: =+BH$45 -> 111 | E7: =+BI$44 -> 7 | F7: =+BH$30 -> 20 | G7: 830.111
A8: 4 | B8: Goretti | C8: =+AS$44 -> -10 | D8: =+AS$45 -> -25 | E8: =+AT$44 -> 15 | F8: =+AS$30 -> 10 | G8: 789.975
A9: 5 | B9: Ana B. | C9: =+C$44 -> -20 | D9: =+C$45 -> -30 | E9: =+D$44 -> 8 | F9: =+C$30 -> 5 | G9: 779.97
A10: 6 | B10: Núria | C10: =+AA$44 -> -35 | D10: =+AA$45 -> -249 | E10: =+AB$44 -> 47 | F10: =+AA$30 -> 0 | G10: 764.751
A11: 7 | B11: Grau | C11: =+AV$44 -> -70 | D11: =+AV$45 -> -179 | E11: =+AW$44 -> 11 | F11: =+AV$30 -> 0 | G11: 729.821
A12: 8 | B12: Gemma | C12: =+AJ$44 -> -85 | D12: =+AJ$45 -> -358 | E12: =+AK$44 -> 28 | F12: =+AJ$30 -> 0 | G12: 714.642
A13: 9 | B13: Sebas | C13: =+F$44 -> -175 | D13: =+F$45 -> -381 | E13: =+G$44 -> 51 | F13: =+F$30 -> 0 | G13: 624.619
A14: 10 | B14: Carol | C14: =+BE$44 -> 40 | D14: =+BE$45 -> 171 | E14: =+BF$44 -> 4 | F14: =+BE$30 -> 0 | G14: -759.829
A15: 11 | B15: Manolo | C15: =+AM$44 -> 20 | D15: =+AM$45 -> 34 | E15: =+AN$44 -> 2 | F15: =+AM$30 -> 0 | G15: -779.966
A16: 12 | B16: Mariajo | C16: =+X$44 -> 20 | D16: =+X$45 -> 27 | E16: =+Y$44 -> 2 | F16: =+X$30 -> 0 | G16: -779.973
A17: 13 | B17: Joan | C17: =+O$44 -> 15 | D17: =+O$45 -> 47 | E17: =+P$44 -> 4 | F17: =+O$30 -> 0 | G17: -784.953
A18: 14 | B18: Rosa M. | C18: =+L$44 -> 10 | D18: =+L$45 -> 35 | E18: =+M$44 -> 4 | F18: =+L$30 -> 0 | G18: -789.965
A19: 15 | B19: Sergi | C19: =+R$44 -> 10 | D19: =+R$45 -> 18 | E19: =+S$44 -> 1 | F19: =+R$30 -> 0 | G19: -789.982
A20: 16 | B20: Emiliano | C20: =+BN$44 -> 10 | D20: =+BN$45 -> 18 | E20: =+BO$44 -> 1 | F20: =+BN$30 -> 0 | G20: -789.982
A21: 17 | B21: Pol | C21: =+AY$44 -> 5 | D21: =+AY$45 -> 61 | E21: =+AZ$44 -> 3 | F21: =+AY$30 -> 0 | G21: -794.939
A22: 18 | B22: Òscar | C22: =+AG$44 -> 0 | D22: =+AG$45 -> 9 | E22: =+AH$44 -> 4 | F22: =+AG$30 -> 0 | G22: -799.991
A23: 19 | B23: Tito | C23: =+BB$44 -> 0 | D23: =+BB$45 -> -11 | E23: =+BC$44 -> 2 | F23: =+BB$30 -> 0 | G23: -800.011
A24: 20 | B24: Carles | C24: =+U$44 -> 0 | D24: =+U$45 -> -16 | E24: =+V$44 -> 2 | F24: =+U$30 -> 0 | G24: -800.016
A25: 21 | B25: Sílvia | C25: =+BQ$44 -> -5 | D25: =+BQ$45 -> -5 | E25: =+BR$44 -> 1 | F25: =+BQ$30 -> 0 | G25: -805.005
A26: 22 | B26: Nin | C26: =+AD$44 -> -20 | D26: =+AD$45 -> -27 | E26: =+AE$44 -> 2 | F26: =+AD$30 -> 0 | G26: -820.027
A27: 23 | B27: Anna P. | C27: =+BK$44 -> -20 | D27: =+BK$45 -> -54 | E27: =+BL$44 -> 5 | F27: =+BK$30 -> 0 | G27: -820.054
B30: General | C30: =+C31*C32 -> 5 | D30: =+D31*D32 -> 8 | F30: =+F31*F32 -> 0 | G30: =+G31*G32 -> 51 | I30: =+I31*I32 -> 80 | J30: =+J31*J32 -> 73 | L30: =+L31*L32 -> 0 | M30: =+M31*M32 -> 4 | O30: =+O31*O32 -> 0 | P30: =+P31*P32 -> 4 | R30: =+R31*R32 -> 0 | S30: =+S31*S32 -> 1 | U30: =+U31*U32 -> 0 | V30: =+V31*V32 -> 2 | X30: =+X31*X32 -> 0 | Y30: =+Y31*Y32 -> 2 | AA30: =+AA31*AA32 -> 0 | AB30: =+AB31*AB32 -> 47 | AD30: =+AD31*AD32 -> 0 | AE30: =+AE31*AE32 -> 2 | AG30: =+AG31*AG32 -> 0 | AH30: =+AH31*AH32 -> 4 | AJ30: =+AJ31*AJ32 -> 0 | AK30: =+AK31*AK32 -> 28 | AM30: =+AM31*AM32 -> 0 | AN30: =+AN31*AN32 -> 2 | AP30: =+AP31*AP32 -> 40 | AQ30: =+AQ31*AQ32 -> 53 | AS30: =+AS31*AS32 -> 10 | AT30: =+AT31*AT32 -> 15 | AV30: =+AV31*AV32 -> 0 | AW30: =+AW31*AW32 -> 11 | AY30: =+AY31*AY32 -> 0 | AZ30: =+AZ31*AZ32 -> 3 | BB30: =+BB31*BB32 -> 0 | BC30: =+BC31*BC32 -> 2 | BE30: =+BE31*BE32 -> 0 | BF30: =+BF31*BF32 -> 4 | BH30: =+BH31*BH32 -> 20 | BI30: =+BI31*BI32 -> 7 | BK30: =+BK31*BK32 -> 0 | BL30: =+BL31*BL32 -> 5 | BN30: =+BN31*BN32 -> 0 | BO30: =+BO31*BO32 -> 1 | BQ30: =+BQ31*BQ32 -> 0 | BR30: =+BR31*BR32 -> 1
C31: =IF($B43>3,1,0) -> 1 | D31: =IF($B43>3,1,0) -> 1 | F31: =IF($B43>3,1,0) -> 1 | G31: =IF($B43>3,1,0) -> 1 | I31: =IF($B43>3,1,0) -> 1 | J31: =IF($B43>3,1,0) -> 1 | L31: =IF($B43>3,1,0) -> 1 | M31: =IF($B43>3,1,0) -> 1 | O31: =IF($B43>3,1,0) -> 1 | P31: =IF($B43>3,1,0) -> 1 | R31: =IF($B43>3,1,0) -> 1 | S31: =IF($B43>3,1,0) -> 1 | U31: =IF($B43>3,1,0) -> 1 | V31: =IF($B43>3,1,0) -> 1 | X31: =IF($B43>3,1,0) -> 1 | Y31: =IF($B43>3,1,0) -> 1 | AA31: =IF($B43>3,1,0) -> 1 | AB31: =IF($B43>3,1,0) -> 1 | AD31: =IF($B43>3,1,0) -> 1 | AE31: =IF($B43>3,1,0) -> 1 | AG31: =IF($B43>3,1,0) -> 1 | AH31: =IF($B43>3,1,0) -> 1 | AJ31: =IF($B43>3,1,0) -> 1 | AK31: =IF($B43>3,1,0) -> 1 | AM31: =IF($B43>3,1,0) -> 1 | AN31: =IF($B43>3,1,0) -> 1 | AP31: =IF($B43>3,1,0) -> 1 | AQ31: =IF($B43>3,1,0) -> 1 | AS31: =IF($B43>3,1,0) -> 1 | AT31: =IF($B43>3,1,0) -> 1 | AV31: =IF($B43>3,1,0) -> 1 | AW31: =IF($B43>3,1,0) -> 1 | AY31: =IF($B43>3,1,0) -> 1 | AZ31: =IF($B43>3,1,0) -> 1 | BB31: =IF($B43>3,1,0) -> 1 | BC31: =IF($B43>3,1,0) -> 1 | BE31: =IF($B43>3,1,0) -> 1 | BF31: =IF($B43>3,1,0) -> 1 | BH31: =IF($B43>3,1,0) -> 1 | BI31: =IF($B43>3,1,0) -> 1 | BK31: =IF($B43>3,1,0) -> 1 | BL31: =IF($B43>3,1,0) -> 1 | BN31: =IF($B43>3,1,0) -> 1 | BO31: =IF($B43>3,1,0) -> 1 | BQ31: =IF($B43>3,1,0) -> 1 | BR31: =IF($B43>3,1,0) -> 1
C32: =MAX(C33:C37) -> 5 | D32: =+D44 -> 8 | F32: =MAX(F33:F37) -> 0 | G32: =+G44 -> 51 | I32: =MAX(I33:I37) -> 80 | J32: =+J44 -> 73 | L32: =MAX(L33:L37) -> 0 | M32: =+M44 -> 4 | O32: =MAX(O33:O37) -> 0 | P32: =+P44 -> 4 | R32: =MAX(R33:R37) -> 0 | S32: =+S44 -> 1 | U32: =MAX(U33:U37) -> 0 | V32: =+V44 -> 2 | X32: =MAX(X33:X37) -> 0 | Y32: =+Y44 -> 2 | AA32: =MAX(AA33:AA37) -> 0 | AB32: =+AB44 -> 47 | AD32: =MAX(AD33:AD37) -> 0 | AE32: =+AE44 -> 2 | AG32: =MAX(AG33:AG37) -> 0 | AH32: =+AH44 -> 4 | AJ32: =MAX(AJ33:AJ37) -> 0 | AK32: =+AK44 -> 28 | AM32: =MAX(AM33:AM37) -> 0 | AN32: =+AN44 -> 2 | AP32: =MAX(AP33:AP37) -> 40 | AQ32: =+AQ44 -> 53 | AS32: =MAX(AS33:AS37) -> 10 | AT32: =+AT44 -> 15 | AV32: =MAX(AV33:AV37) -> 0 | AW32: =+AW44 -> 11 | AY32: =MAX(AY33:AY37) -> 0 | AZ32: =+AZ44 -> 3 | BB32: =MAX(BB33:BB37) -> 0 | BC32: =+BC44 -> 2 | BE32: =MAX(BE33:BE37) -> 0 | BF32: =+BF44 -> 4 | BH32: =MAX(BH33:BH37) -> 20 | BI32: =+BI44 -> 7 | BK32: =MAX(BK33:BK37) -> 0 | BL32: =+BL44 -> 5 | BN32: =MAX(BN33:BN37) -> 0 | BO32: =+BO44 -> 1 | BQ32: =MAX(BQ33:BQ37) -> 0 | BR32: =+BR44 -> 1
C33: =IF(C$38=5,5,0) -> 5 | F33: =IF(F$38=5,5,0) -> 0 | I33: =IF(I$38=5,5,0) -> 0 | L33: =IF(L$38=5,5,0) -> 0 | O33: =IF(O$38=5,5,0) -> 0 | R33: =IF(R$38=5,5,0) -> 0 | U33: =IF(U$38=5,5,0) -> 0 | X33: =IF(X$38=5,5,0) -> 0 | AA33: =IF(AA$38=5,5,0) -> 0 | AD33: =IF(AD$38=5,5,0) -> 0 | AG33: =IF(AG$38=5,5,0) -> 0 | AJ33: =IF(AJ$38=5,5,0) -> 0 | AM33: =IF(AM$38=5,5,0) -> 0 | AP33: =IF(AP$38=5,5,0) -> 0 | AS33: =IF(AS$38=5,5,0) -> 0 | AV33: =IF(AV$38=5,5,0) -> 0 | AY33: =IF(AY$38=5,5,0) -> 0 | BB33: =IF(BB$38=5,5,0) -> 0 | BE33: =IF(BE$38=5,5,0) -> 0 | BH33: =IF(BH$38=5,5,0) -> 0 | BK33: =IF(BK$38=5,5,0) -> 0 | BN33: =IF(BN$38=5,5,0) -> 0 | BQ33: =IF(BQ$38=5,5,0) -> 0
C34: =IF(C$38=4,10,0) -> 0 | F34: =IF(F$38=4,10,0) -> 0 | I34: =IF(I$38=4,10,0) -> 0 | L34: =IF(L$38=4,10,0) -> 0 | O34: =IF(O$38=4,10,0) -> 0 | R34: =IF(R$38=4,10,0) -> 0 | U34: =IF(U$38=4,10,0) -> 0 | X34: =IF(X$38=4,10,0) -> 0 | AA34: =IF(AA$38=4,10,0) -> 0 | AD34: =IF(AD$38=4,10,0) -> 0 | AG34: =IF(AG$38=4,10,0) -> 0 | AJ34: =IF(AJ$38=4,10,0) -> 0 | AM34: =IF(AM$38=4,10,0) -> 0 | AP34: =IF(AP$38=4,10,0) -> 0 | AS34: =IF(AS$38=4,10,0) -> 10 | AV34: =IF(AV$38=4,10,0) -> 0 | AY34: =IF(AY$38=4,10,0) -> 0 | BB34: =IF(BB$38=4,10,0) -> 0 | BE34: =IF(BE$38=4,10,0) -> 0 | BH34: =IF(BH$38=4,10,0) -> 0 | BK34: =IF(BK$38=4,10,0) -> 0 | BN34: =IF(BN$38=4,10,0) -> 0 | BQ34: =IF(BQ$38=4,10,0) -> 0
C35: =IF(C$38=3,20,0) -> 0 | F35: =IF(F$38=3,20,0) -> 0 | I35: =IF(I$38=3,20,0) -> 0 | L35: =IF(L$38=3,20,0) -> 0 | O35: =IF(O$38=3,20,0) -> 0 | R35: =IF(R$38=3,20,0) -> 0 | U35: =IF(U$38=3,20,0) -> 0 | X35: =IF(X$38=3,20,0) -> 0 | AA35: =IF(AA$38=3,20,0) -> 0 | AD35: =IF(AD$38=3,20,0) -> 0 | AG35: =IF(AG$38=3,20,0) -> 0 | AJ35: =IF(AJ$38=3,20,0) -> 0 | AM35: =IF(AM$38=3,20,0) -> 0 | AP35: =IF(AP$38=3,20,0) -> 0 | AS35: =IF(AS$38=3,20,0) -> 0 | AV35: =IF(AV$38=3,20,0) -> 0 | AY35: =IF(AY$38=3,20,0) -> 0 | BB35: =IF(BB$38=3,20,0) -> 0 | BE35: =IF(BE$38=3,20,0) -> 0 | BH35: =IF(BH$38=3,20,0) -> 20 | BK35: =IF(BK$38=3,20,0) -> 0 | BN35: =IF(BN$38=3,20,0) -> 0 | BQ35: =IF(BQ$38=3,20,0) -> 0
C36: =IF(C$38=2,40,0) -> 0 | F36: =IF(F$38=2,40,0) -> 0 | I36: =IF(I$38=2,40,0) -> 0 | L36: =IF(L$38=2,40,0) -> 0 | O36: =IF(O$38=2,40,0) -> 0 | R36: =IF(R$38=2,40,0) -> 0 | U36: =IF(U$38=2,40,0) -> 0 | X36: =IF(X$38=2,40,0) -> 0 | AA36: =IF(AA$38=2,40,0) -> 0 | AD36: =IF(AD$38=2,40,0) -> 0 | AG36: =IF(AG$38=2,40,0) -> 0 | AJ36: =IF(AJ$38=2,40,0) -> 0 | AM36: =IF(AM$38=2,40,0) -> 0 | AP36: =IF(AP$38=2,40,0) -> 40 | AS36: =IF(AS$38=2,40,0) -> 0 | AV36: =IF(AV$38=2,40,0) -> 0 | AY36: =IF(AY$38=2,40,0) -> 0 | BB36: =IF(BB$38=2,40,0) -> 0 | BE36: =IF(BE$38=2,40,0) -> 0 | BH36: =IF(BH$38=2,40,0) -> 0 | BK36: =IF(BK$38=2,40,0) -> 0 | BN36: =IF(BN$38=2,40,0) -> 0 | BQ36: =IF(BQ$38=2,40,0) -> 0
C37: =IF(C$38=1,80,0) -> 0 | F37: =IF(F$38=1,80,0) -> 0 | I37: =IF(I$38=1,80,0) -> 80 | L37: =IF(L$38=1,80,0) -> 0 | O37: =IF(O$38=1,80,0) -> 0 | R37: =IF(R$38=1,80,0) -> 0 | U37: =IF(U$38=1,80,0) -> 0 | X37: =IF(X$38=1,80,0) -> 0 | AA37: =IF(AA$38=1,80,0) -> 0 | AD37: =IF(AD$38=1,80,0) -> 0 | AG37: =IF(AG$38=1,80,0) -> 0 | AJ37: =IF(AJ$38=1,80,0) -> 0 | AM37: =IF(AM$38=1,80,0) -> 0 | AP37: =IF(AP$38=1,80,0) -> 0 | AS37: =IF(AS$38=1,80,0) -> 0 | AV37: =IF(AV$38=1,80,0) -> 0 | AY37: =IF(AY$38=1,80,0) -> 0 | BB37: =IF(BB$38=1,80,0) -> 0 | BE37: =IF(BE$38=1,80,0) -> 0 | BH37: =IF(BH$38=1,80,0) -> 0 | BK37: =IF(BK$38=1,80,0) -> 0 | BN37: =IF(BN$38=1,80,0) -> 0 | BQ37: =IF(BQ$38=1,80,0) -> 0
C38: =RANK(C39,$C39:$BR39)*C43 -> 5 | F38: =RANK(F39,$C39:$BR39)*F43 -> 14 | I38: =RANK(I39,$C39:$BR39)*I43 -> 1 | L38: =RANK(L39,$C39:$BR39)*L43 -> 0 | O38: =RANK(O39,$C39:$BR39)*O43 -> 0 | R38: =RANK(R39,$C39:$BR39)*R43 -> 0 | U38: =RANK(U39,$C39:$BR39)*U43 -> 0 | X38: =RANK(X39,$C39:$BR39)*X43 -> 0 | AA38: =RANK(AA39,$C39:$BR39)*AA43 -> 6 | AD38: =RANK(AD39,$C39:$BR39)*AD43 -> 0 | AG38: =RANK(AG39,$C39:$BR39)*AG43 -> 0 | AJ38: =RANK(AJ39,$C39:$BR39)*AJ43 -> 8 | AM38: =RANK(AM39,$C39:$BR39)*AM43 -> 0 | AP38: =RANK(AP39,$C39:$BR39)*AP43 -> 2 | AS38: =RANK(AS39,$C39:$BR39)*AS43 -> 4 | AV38: =RANK(AV39,$C39:$BR39)*AV43 -> 7 | AY38: =RANK(AY39,$C39:$BR39)*AY43 -> 0 | BB38: =RANK(BB39,$C39:$BR39)*BB43 -> 0 | BE38: =RANK(BE39,$C39:$BR39)*BE43 -> 0 | BH38: =RANK(BH39,$C39:$BR39)*BH43 -> 3 | BK38: =RANK(BK39,$C39:$BR39)*BK43 -> 0 | BN38: =RANK(BN39,$C39:$BR39)*BN43 -> 0 | BQ38: =RANK(BQ39,$C39:$BR39)*BQ43 -> 0
C39: =SUM(C40:C42) -> -2003012 | F39: =SUM(F40:F42) -> -17538224 | I39: =SUM(I40:I42) -> 14058313 | L39: =SUM(L40:L42) -> -999996496 | O39: =SUM(O40:O42) -> -999995296 | R39: =SUM(R40:R42) -> -999998199 | U39: =SUM(U40:U42) -> -1000001598 | X39: =SUM(X40:X42) -> -999997298 | AA39: =SUM(AA40:AA42) -> -3524888 | AD39: =SUM(AD40:AD42) -> -1000002698 | AG39: =SUM(AG40:AG42) -> -999999096 | AJ39: =SUM(AJ40:AJ42) -> -8535857 | AM39: =SUM(AM40:AM42) -> -999996598 | AP39: =SUM(AP40:AP42) -> 14041193 | AS39: =SUM(AS40:AS42) -> -1002495 | AV39: =SUM(AV40:AV42) -> -7017959 | AY39: =SUM(AY40:AY42) -> -999993897 | BB39: =SUM(BB40:BB42) -> -10001098 | BE39: =SUM(BE40:BE42) -> -9982896 | BH39: =SUM(BH40:BH42) -> 3011137 | BK39: =SUM(BK40:BK42) -> -10005395 | BN39: =SUM(BN40:BN42) -> -9998199 | BQ39: =SUM(BQ40:BQ42) -> -10000499
C40: =+D44 -> 8 | F40: =+G44 -> 51 | I40: =+J44 -> 73 | L40: =+M44 -> 4 | O40: =+P44 -> 4 | R40: =+S44 -> 1 | U40: =+V44 -> 2 | X40: =+Y44 -> 2 | AA40: =+AB44 -> 47 | AD40: =+AE44 -> 2 | AG40: =+AH44 -> 4 | AJ40: =+AK44 -> 28 | AM40: =+AN44 -> 2 | AP40: =+AQ44 -> 53 | AS40: =+AT44 -> 15 | AV40: =+AW44 -> 11 | AY40: =+AZ44 -> 3 | BB40: =+BC44 -> 2 | BE40: =+BF44 -> 4 | BH40: =+BI44 -> 7 | BK40: =+BL44 -> 5 | BN40: =+BO44 -> 1 | BQ40: =+BR44 -> 1
C41: =+C45*100 -> -3000 | F41: =+F45*100 -> -38100 | I41: =+I45*100 -> 58100 | L41: =+L45*100 -> 3500 | O41: =+O45*100 -> 4700 | R41: =+R45*100 -> 1800 | U41: =+U45*100 -> -1600 | X41: =+X45*100 -> 2700 | AA41: =+AA45*100 -> -24900 | AD41: =+AD45*100 -> -2700 | AG41: =+AG45*100 -> 900 | AJ41: =+AJ45*100 -> -35800 | AM41: =+AM45*100 -> 3400 | AP41: =+AP45*100 -> 41000 | AS41: =+AS45*100 -> -2500 | AV41: =+AV45*100 -> -17900 | AY41: =+AY45*100 -> 6100 | BB41: =+BB45*100 -> -1100 | BE41: =+BE45*100 -> 17100 | BH41: =+BH45*100 -> 11100 | BK41: =+BK45*100 -> -5400 | BN41: =+BN45*100 -> 1800 | BQ41: =+BQ45*100 -> -500
C42: =IF(D44-$A3/2<0,-1000000000,C44*C43*100000+C44) -> -2000020 | F42: =IF(G44-$A3/2<0,-1000000000,F44*F43*100000+F44) -> -17500175 | I42: =IF(J44-$A3/2<0,-1000000000,I44*I43*100000+I44) -> 14000140 | L42: =IF(M44-$A3/2<0,-1000000000,L44*L43*100000+L44) -> -1000000000 | O42: =IF(P44-$A3/2<0,-1000000000,O44*O43*100000+O44) -> -1000000000 | R42: =IF(S44-$A3/2<0,-1000000000,R44*R43*100000+R44) -> -1000000000 | U42: =IF(V44-$A3/2<0,-1000000000,U44*U43*100000+U44) -> -1000000000 | X42: =IF(Y44-$A3/2<0,-1000000000,X44*X43*100000+X44) -> -1000000000 | AA42: =IF(AB44-$A3/2<0,-1000000000,AA44*AA43*100000+AA44) -> -3500035 | AD42: =IF(AE44-$A3/2<0,-1000000000,AD44*AD43*100000+AD44) -> -1000000000 | AG42: =IF(AH44-$A3/2<0,-1000000000,AG44*AG43*100000+AG44) -> -1000000000 | AJ42: =IF(AK44-$A3/2<0,-1000000000,AJ44*AJ43*100000+AJ44) -> -8500085 | AM42: =IF(AN44-$A3/2<0,-1000000000,AM44*AM43*100000+AM44) -> -1000000000 | AP42: =IF(AQ44-$A3/2<0,-1000000000,AP44*AP43*100000+AP44) -> 14000140 | AS42: =IF(AT44-$A3/2<0,-1000000000,AS44*AS43*100000+AS44) -> -1000010 | AV42: =IF(AW44-$A3/2<0,-1000000000,AV44*AV43*100000+AV44) -> -7000070 | AY42: =IF(AZ44-$A3/2<0,-1000000000,AY44*AY43*100000+AY44) -> -1000000000 | BB42: =IF(BC44-$A3/2<0,-10000000,BB44*BB43*100000+BB44) -> -10000000 | BE42: =IF(BF44-$A3/2<0,-10000000,BE44*BE43*100000+BE44) -> -10000000 | BH42: =IF(BI44-$A3/2<0,-10000000,BH44*BH43*100000+BH44) -> 3000030 | BK42: =IF(BL44-$A3/2<0,-10000000,BK44*BK43*100000+BK44) -> -10000000 | BN42: =IF(BO44-$A3/2<0,-10000000,BN44*BN43*100000+BN44) -> -10000000 | BQ42: =IF(BR44-$A3/2<0,-10000000,BQ44*BQ43*100000+BQ44) -> -10000000
A43: Classificats | B43: =SUM(C43:BQ43) -> 9 | C43: =IF(D44>=$A3/2,1,0) -> 1 | F43: =IF(G44>=$A3/2,1,0) -> 1 | I43: =IF(J44>=$A3/2,1,0) -> 1 | L43: =IF(M44>=$A3/2,1,0) -> 0 | O43: =IF(P44>=$A3/2,1,0) -> 0 | R43: =IF(S44>=$A3/2,1,0) -> 0 | U43: =IF(V44>=$A3/2,1,0) -> 0 | X43: =IF(Y44>=$A3/2,1,0) -> 0 | AA43: =IF(AB44>=$A3/2,1,0) -> 1 | AD43: =IF(AE44>=$A3/2,1,0) -> 0 | AG43: =IF(AH44>=$A3/2,1,0) -> 0 | AJ43: =IF(AK44>=$A3/2,1,0) -> 1 | AM43: =IF(AN44>=$A3/2,1,0) -> 0 | AP43: =IF(AQ44>=$A3/2,1,0) -> 1 | AS43: =IF(AT44>=$A3/2,1,0) -> 1 | AV43: =IF(AW44>=$A3/2,1,0) -> 1 | AY43: =IF(AZ44>=$A3/2,1,0) -> 0 | BB43: =IF(BC44>=$A3/2,1,0) -> 0 | BE43: =IF(BF44>=$A3/2,1,0) -> 0 | BH43: =IF(BI44>=$A3/2,1,0) -> 1 | BK43: =IF(BL44>=$A3/2,1,0) -> 0 | BN43: =IF(BO44>=$A3/2,1,0) -> 0 | BQ43: =IF(BR44>=$A3/2,1,0) -> 0 | BT43: =MAX(BU49:BU244) -> 138
C44: =IF(SUM(C49:C244)<-1000,-100000000,SUM(C49:C244)) -> -20 | D44: =COUNT(D49:D244) -> 8 | F44: =IF(SUM(F49:F244)<-1000,-100000000,SUM(F49:F244)) -> -175 | G44: =COUNT(G49:G244) -> 51 | I44: =IF(SUM(I49:I244)<-1000,-100000000,SUM(I49:I244)) -> 140 | J44: =COUNT(J49:J244) -> 73 | L44: =IF(SUM(L49:L244)<-1000,-100000000,SUM(L49:L244)) -> 10 | M44: =COUNT(M49:M244) -> 4 | O44: =IF(SUM(O49:O244)<-1000,-100000000,SUM(O49:O244)) -> 15 | P44: =COUNT(P49:P244) -> 4 | R44: =IF(SUM(R49:R244)<-1000,-100000000,SUM(R49:R244)) -> 10 | S44: =COUNT(S49:S244) -> 1 | U44: =IF(SUM(U49:U244)<-1000,-100000000,SUM(U49:U244)) -> 0 | V44: =COUNT(V49:V244) -> 2 | X44: =IF(SUM(X49:X244)<-1000,-100000000,SUM(X49:X244)) -> 20 | Y44: =COUNT(Y49:Y244) -> 2 | AA44: =IF(SUM(AA49:AA244)<-1000,-100000000,SUM(AA49:AA244)) -> -35 | AB44: =COUNT(AB49:AB244) -> 47 | AD44: =IF(SUM(AD49:AD244)<-1000,-100000000,SUM(AD49:AD244)) -> -20 | AE44: =COUNT(AE49:AE244) -> 2 | AG44: =IF(SUM(AG49:AG244)<-1000,-100000000,SUM(AG49:AG244)) -> 0 | AH44: =COUNT(AH49:AH244) -> 4 | AJ44: =IF(SUM(AJ49:AJ244)<-1000,-100000000,SUM(AJ49:AJ244)) -> -85 | AK44: =COUNT(AK49:AK244) -> 28 | AM44: =IF(SUM(AM49:AM244)<-1000,-100000000,SUM(AM49:AM244)) -> 20 | AN44: =COUNT(AN49:AN244) -> 2 | AP44: =IF(SUM(AP49:AP244)<-1000,-100000000,SUM(AP49:AP244)) -> 140 | AQ44: =COUNT(AQ49:AQ244) -> 53 | AS44: =IF(SUM(AS49:AS244)<-1000,-100000000,SUM(AS49:AS244)) -> -10 | AT44: =COUNT(AT49:AT244) -> 15 | AV44: =IF(SUM(AV49:AV244)<-1000,-100000000,SUM(AV49:AV244)) -> -70 | AW44: =COUNT(AW49:AW244) -> 11 | AY44: =IF(SUM(AY49:AY244)<-1000,-100000000,SUM(AY49:AY244)) -> 5 | AZ44: =COUNT(AZ49:AZ244) -> 3 | BB44: =IF(SUM(BB49:BB244)<-1000,-100000000,SUM(BB49:BB244)) -> 0 | BC44: =COUNT(BC49:BC244) -> 2 | BE44: =IF(SUM(BE49:BE244)<-1000,-100000000,SUM(BE49:BE244)) -> 40 | BF44: =COUNT(BF49:BF244) -> 4 | BH44: =IF(SUM(BH49:BH244)<-1000,-100000000,SUM(BH49:BH244)) -> 30 | BI44: =COUNT(BI49:BI244) -> 7 | BK44: =IF(SUM(BK49:BK244)<-1000,-100000000,SUM(BK49:BK244)) -> -20 | BL44: =COUNT(BL49:BL244) -> 5 | BN44: =IF(SUM(BN49:BN244)<-1000,-100000000,SUM(BN49:BN244)) -> 10 | BO44: =COUNT(BO49:BO244) -> 1 | BQ44: =IF(SUM(BQ49:BQ244)<-1000,-100000000,SUM(BQ49:BQ244)) -> -5 | BR44: =COUNT(BR49:BR244) -> 1 | BU44: A
C45: =+D45-E45 -> -30 | D45: =SUM(D49:D244) -> 378 | E45: =SUM(E49:E244) -> 408 | F45: =+G45-H45 -> -381 | G45: =SUM(G49:G244) -> 1367 | H45: =SUM(H49:H244) -> 1748 | I45: =+J45-K45 -> 581 | J45: =SUM(J49:J244) -> 2728 | K45: =SUM(K49:K244) -> 2147 | L45: =+M45-N45 -> 35 | M45: =SUM(M49:M244) -> 93 | N45: =SUM(N49:N244) -> 58 | O45: =+P45-Q45 -> 47 | P45: =SUM(P49:P244) -> 103 | Q45: =SUM(Q49:Q244) -> 56 | R45: =+S45-T45 -> 18 | S45: =SUM(S49:S244) -> 40 | T45: =SUM(T49:T244) -> 22 | U45: =+V45-W45 -> -16 | V45: =SUM(V49:V244) -> 86 | W45: =SUM(W49:W244) -> 102 | X45: =+Y45-Z45 -> 27 | Y45: =SUM(Y49:Y244) -> 130 | Z45: =SUM(Z49:Z244) -> 103 | AA45: =+AB45-AC45 -> -249 | AB45: =SUM(AB49:AB244) -> 1360 | AC45: =SUM(AC49:AC244) -> 1609 | AD45: =+AE45-AF45 -> -27 | AE45: =SUM(AE49:AE244) -> 103 | AF45: =SUM(AF49:AF244) -> 130 | AG45: =+AH45-AI45 -> 9 | AH45: =SUM(AH49:AH244) -> 126 | AI45: =SUM(AI49:AI244) -> 117 | AJ45: =+AK45-AL45 -> -358 | AK45: =SUM(AK49:AK244) -> 657 | AL45: =SUM(AL49:AL244) -> 1015 | AM45: =+AN45-AO45 -> 34 | AN45: =SUM(AN49:AN244) -> 111 | AO45: =SUM(AO49:AO244) -> 77 | AP45: =+AQ45-AR45 -> 410 | AQ45: =SUM(AQ49:AQ244) -> 1813 | AR45: =SUM(AR49:AR244) -> 1403 | AS45: =+AT45-AU45 -> -25 | AT45: =SUM(AT49:AT244) -> 767 | AU45: =SUM(AU49:AU244) -> 792 | AV45: =+AW45-AX45 -> -179 | AW45: =SUM(AW49:AW244) -> 457 | AX45: =SUM(AX49:AX244) -> 636 | AY45: =+AZ45-BA45 -> 61 | AZ45: =SUM(AZ49:AZ244) -> 106 | BA45: =SUM(BA49:BA244) -> 45 | BB45: =+BC45-BD45 -> -11 | BC45: =SUM(BC49:BC244) -> 94 | BD45: =SUM(BD49:BD244) -> 105 | BE45: =+BF45-BG45 -> 171 | BF45: =SUM(BF49:BF244) -> 339 | BG45: =SUM(BG49:BG244) -> 168 | BH45: =+BI45-BJ45 -> 111 | BI45: =SUM(BI49:BI244) -> 460 | BJ45: =SUM(BJ49:BJ244) -> 349 | BK45: =+BL45-BM45 -> -54 | BL45: =SUM(BL49:BL244) -> 74 | BM45: =SUM(BM49:BM244) -> 128 | BN45: =+BO45-BP45 -> 18 | BO45: =SUM(BO49:BO244) -> 40 | BP45: =SUM(BP49:BP244) -> 22 | BQ45: =+BR45-BS45 -> -5 | BR45: =SUM(BR49:BR244) -> 22 | BS45: =SUM(BS49:BS244) -> 27 | BU45: B
I46: =COUNTIF(I49:I68,10) -> 13 | R46: =COUNTIF(R49:R68,10) -> 1 | U46: =COUNTIF(U49:U68,10) -> 1 | X46: =COUNTIF(X49:X68,10) -> 1 | AM46: =COUNTIF(AM49:AM68,10) -> 1 | AP46: =COUNTIF(AP49:AP68,10) -> 7 | AS46: =COUNTIF(AS49:AS68,10) -> 0 | AV46: =COUNTIF(AV49:AV68,10) -> 1 | AY46: =COUNTIF(AY49:AY68,10) -> 0 | BB46: =COUNTIF(BB49:BB68,10) -> 1 | BE46: =COUNTIF(BE49:BE68,10) -> 0 | BH46: =COUNTIF(BH49:BH68,10) -> 0 | BK46: =COUNTIF(BK49:BK68,10) -> 0 | BN46: =COUNTIF(BN49:BN68,10) -> 1 | BQ46: =COUNTIF(BQ49:BQ68,10) -> 0
B47: Nº partida | C47: Ana B. | F47: Sebas | I47: Jordi | L47: Rosa M. | O47: Joan | R47: Sergi | U47: Carles | X47: Mariajo | AA47: Núria | AD47: Nin | AG47: Òscar | AJ47: Gemma | AM47: Manolo | AP47: Nogué | AS47: Goretti | AV47: Grau | AY47: Pol | BB47: Tito | BE47: Carol | BH47: Anaïs | BK47: Anna P. | BN47: Emiliano | BQ47: Sílvia | BT47: =COUNT(BT49:BT259) -> 77 | BU47: A | BV47: B | BW47: C
B48: 5 copes | C48: Premi | D48: Punts | F48: Premi | G48: Punts | I48: Premi | J48: Punts | L48: Premi | M48: Punts | O48: Premi | P48: Punts | R48: Premi | S48: Punts | U48: Premi | V48: Punts | X48: Premi | Y48: Punts | AA48: Premi | AB48: Punts | AD48: Premi | AE48: Punts | AG48: Premi | AH48: Punts | AJ48: Premi | AK48: Punts | AM48: Premi | AN48: Punts | AP48: Premi | AQ48: Punts | AS48: Premi | AT48: Punts | AV48: Premi | AW48: Punts | AY48: Premi | AZ48: Punts | BB48: Premi | BC48: Punts | BE48: Premi | BF48: Punts | BH48: Premi | BI48: Punts | BK48: Premi | BL48: Punts | BN48: Premi | BO48: Punts | BQ48: Premi | BR48: Punts | BT48: Data | BU48: Timba
A49: 1 | F49: 10 | G49: 71 | H49: 33 | I49: 10 | J49: 71 | K49: 33 | AJ49: -10 | AK49: 33 | AL49: 71 | AP49: -10 | AQ49: 33 | AR49: 71 | BT49: 2022-11-11 | BU49: 12 | BV49: =+BQ49+AJ49+AG49+AD49+AA49+X49+U49+R49+O49+L49+I49+F49+C49+AM49+AP49+AS49+AV49+AY49+BB49+BK49+BN49+BE49+BH49 -> 0 | BW49: =+BR49+AK49+AH49+AE49+AB49+Y49+V49+S49+P49+M49+J49+G49+D49+AN49+AQ49+AT49+AW49+AZ49+BC49+BL49+BO49+BI49 -> 208 | BX49: =+BS49+AL49+AI49+AF49+AC49+Z49+W49+T49+Q49+N49+K49+H49+E49+AO49+AR49+AU49+AX49+BA49+BD49+BM49+BP49+BJ49 -> 208 | BY49: =+BW49-BX49 -> 0 | BZ49: =COUNT(C49:BS49)/3 -> 4 | CA49: =+BV49/BZ49 -> 0
A50: =+A49+1 -> 2 | F50: 10 | G50: 39 | H50: 32 | I50: -10 | J50: 32 | K50: 39 | AA50: -10 | AB50: 32 | AC50: 39 | AP50: 10 | AQ50: 39 | AR50: 32 | BT50: 2022-12-02 | BU50: 17 | BV50: 0 | BW50: 142 | BX50: 142 | BY50: 0 | BZ50: 4 | CA50: 0
A51: =+A50+1 -> 3 | F51: -10 | G51: 3 | H51: 16 | I51: -10 | J51: 3 | K51: 16 | AA51: 10 | AB51: 16 | AC51: 3 | AP51: 10 | AQ51: 16 | AR51: 3 | BT51: 2022-12-02 | BU51: 17 | BV51: 0 | BW51: 38 | BX51: 38 | BY51: 0 | BZ51: 4 | CA51: 0
A52: 4 | F52: -10 | G52: 29 | H52: 61 | I52: 10 | J52: 61 | K52: 29 | AA52: -10 | AB52: 29 | AC52: 61 | AP52: 10 | AQ52: 61 | AR52: 29 | BT52: 2022-12-02 | BU52: 17 | BV52: 0 | BW52: 180 | BX52: 180 | BY52: 0 | BZ52: 4 | CA52: 0
A53: 5 | I53: -5 | J53: 1 | K53: 41 | L53: 0 | M53: 24 | N53: 12 | O53: 10 | P53: 52 | Q53: 0 | AY53: 5 | AZ53: 39 | BA53: 9 | BK53: -10 | BL53: 0 | BM53: 44 | BT53: 2022-12-05 | BU53: 18 | BV53: 0 | BW53: 116 | BX53: 106 | BY53: 10 | BZ53: 5 | CA53: 0
A54: 6 | I54: 10 | J54: 36 | K54: 23 | L54: 10 | M54: 36 | N54: 23 | AY54: -10 | AZ54: 23 | BA54: 36 | BK54: -10 | BL54: 23 | BM54: 36 | BT54: 2022-12-05 | BU54: 18 | BV54: =+BQ54+AJ54+AG54+AD54+AA54+X54+U54+R54+O54+L54+I54+F54+C54+AM54+AP54+AS54+AV54+AY54+BB54+BK54+BN54+BE54+BH54 -> 0 | BW54: 118 | BX54: 118 | BY54: 0 | BZ54: 4 | CA54: 0
A55: 7 | I55: 10 | J55: 41 | K55: 16 | AA55: 10 | AB55: 41 | AC55: 16 | AJ55: -10 | AK55: 16 | AL55: 41 | AP55: -10 | AQ55: 16 | AR55: 41 | BT55: 2022-12-08 | BU55: 19 | BV55: =+BQ55+AJ55+AG55+AD55+AA55+X55+U55+R55+O55+L55+I55+F55+C55+AM55+AP55+AS55+AV55+AY55+BB55+BK55+BN55+BE55+BH55 -> 0 | BW55: 114 | BX55: 114 | BY55: 0 | BZ55: 4 | CA55: 0
A56: 8 | I56: 5 | J56: 15 | K56: 9 | AA56: -10 | AB56: 6 | AC56: 20 | AG56: 0 | AH56: 11 | AI56: 15 | AJ56: -5 | AK56: 3 | AL56: 11 | AP56: 10 | AQ56: 23 | AR56: 3 | BT56: 2022-12-08 | BU56: 19 | BV56: 0 | BW56: 58 | BX56: 58 | BY56: 0 | BZ56: 5 | CA56: 0
A57: 9 | I57: 5 | J57: 31 | K57: 14 | AA57: -5 | AB57: 8 | AC57: 31 | AG57: 0 | AH57: 9 | AI57: 16 | AJ57: -10 | AK57: 13 | AL57: 37 | AP57: 10 | AQ57: 44 | AR57: 8 | BT57: 2022-12-08 | BU57: 19 | BV57: 0 | BW57: 105 | BX57: 106 | BY57: -1 | BZ57: 5 | CA57: 0
A58: 10 | I58: 10 | J58: 70 | K58: 14 | AG58: -10 | AH58: 14 | AI58: 70 | AJ58: 10 | AK58: 70 | AL58: 14 | AP58: -10 | AQ58: 14 | AR58: 70 | BT58: 2022-12-08 | BU58: 19 | BV58: 0 | BW58: 168 | BX58: 168 | BY58: 0 | BZ58: 4 | CA58: 0
A59: 11 | C59: -10 | D59: 20 | E59: 44 | I59: 10 | J59: 44 | K59: 20 | AS59: -10 | AT59: 20 | AU59: 44 | AV59: 10 | AW59: 44 | AX59: 20 | BT59: 2022-12-17 | BU59: 22 | BV59: 0 | BW59: 128 | BX59: 128 | BY59: 0 | BZ59: 4 | CA59: 0
A60: 12 | C60: 10 | D60: 105 | E60: 11 | I60: 10 | J60: 105 | K60: 11 | AS60: -10 | AT60: 11 | AU60: 105 | AV60: -10 | AW60: 11 | AX60: 105 | BT60: 2022-12-17 | BU60: 22 | BV60: 0 | BW60: 232 | BX60: 232 | BY60: 0 | BZ60: 4 | CA60: 0
A61: 13 | C61: -10 | D61: 22 | E61: 40 | F61: -10 | G61: 48 | H61: 57 | I61: -10 | J61: 22 | K61: 40 | R61: 10 | S61: 40 | T61: 22 | U61: 10 | V61: 57 | W61: 48 | X61: 10 | Y61: 65 | Z61: 51 | AD61: -10 | AE61: 51 | AF61: 65 | AM61: 10 | AN61: 57 | AO61: 48 | AS61: -10 | AT61: 51 | AU61: 65 | AV61: -10 | AW61: 48 | AX61: 57 | BB61: 10 | BC61: 65 | BD61: 51 | BN61: 10 | BO61: 40 | BP61: 22 | BT61: 2022-12-17 | BU61: 23 | BV61: 0 | BW61: 566 | BX61: 566 | BY61: 0 | BZ61: 12 | CA61: 0
A62: 14 | F62: -10 | G62: 5 | H62: 40 | I62: 10 | J62: 40 | K62: 5 | AA62: 10 | AB62: 40 | AC62: 5 | AJ62: -10 | AK62: 5 | AL62: 40 | BT62: 2022-12-22 | BU62: 25 | BV62: 0 | BW62: 90 | BX62: 90 | BY62: 0 | BZ62: 4 | CA62: 0
A63: 15 | F63: -10 | G63: 0 | H63: 60 | I63: 10 | J63: 60 | K63: 0 | AA63: 10 | AB63: 60 | AC63: 0 | AJ63: -10 | AK63: 0 | AL63: 60 | BT63: 2022-12-22 | BU63: 25 | BV63: 0 | BW63: 120 | BX63: 120 | BY63: 0 | BZ63: 4 | CA63: 0
A64: 16 | F64: -10 | G64: 11 | H64: 46 | I64: 10 | J64: 46 | K64: 11 | AA64: 10 | AB64: 46 | AC64: 11 | AJ64: -10 | AK64: 11 | AL64: 46 | BT64: 2022-12-22 | BU64: 25 | BV64: 0 | BW64: 114 | BX64: 114 | BY64: 0 | BZ64: 4 | CA64: 0
A65: 17 | F65: -10 | G65: 7 | H65: 13 | I65: 10 | J65: 13 | K65: 7 | AJ65: -10 | AK65: 7 | AL65: 13 | AP65: 10 | AQ65: 13 | AR65: 7 | BT65: 2023-01-03 | BU65: 31 | BV65: 0 | BW65: 40 | BX65: 40 | BY65: 0 | BZ65: 4 | CA65: 0
A66: 18 | F66: -10 | G66: 7 | H66: 37 | I66: -10 | J66: 7 | K66: 37 | AJ66: 10 | AK66: 37 | AL66: 7 | AP66: 10 | AQ66: 37 | AR66: 7 | BT66: 2023-01-03 | BU66: 31 | BV66: 0 | BW66: 88 | BX66: 88 | BY66: 0 | BZ66: 4 | CA66: 0
A67: 19 | F67: -10 | G67: 26 | H67: 32 | I67: 10 | J67: 32 | K67: 26 | AA67: 10 | AB67: 32 | AC67: 26 | AP67: -10 | AQ67: 26 | AR67: 32 | BT67: 2023-01-03 | BU67: 31 | BV67: 0 | BW67: 116 | BX67: 116 | BY67: 0 | BZ67: 4 | CA67: 0
A68: 20 | F68: -10 | G68: 21 | H68: 56 | I68: 10 | J68: 56 | K68: 21 | AA68: 10 | AB68: 56 | AC68: 21 | AP68: -10 | AQ68: 21 | AR68: 56 | BT68: 2023-01-07 | BU68: 32 | BV68: 0 | BW68: 154 | BX68: 154 | BY68: =+BW68-BX68 -> 0 | BZ68: =COUNT(C68:BS68)/3 -> 4 | CA68: =+BV68/BZ68 -> 0
A69: 21 | F69: 10 | G69: 34 | H69: 22 | I69: 10 | J69: 34 | K69: 22 | AA69: -10 | AB69: 22 | AC69: 34 | AP69: -10 | AQ69: 22 | AR69: 34 | BT69: 2023-01-07 | BU69: 32 | BV69: 0 | BW69: 112 | BX69: 112 | BY69: 0 | BZ69: 4 | CA69: 0
A70: 22 | F70: 10 | G70: 36 | H70: 26 | I70: 10 | J70: 36 | K70: 26 | AA70: -10 | AB70: 26 | AC70: 36 | AP70: -10 | AQ70: 26 | AR70: 36 | BT70: 2023-01-07 | BU70: 32 | BV70: 0 | BW70: 124 | BX70: 124 | BY70: 0 | BZ70: 4 | CA70: 0
A71: 23 | F71: -10 | G71: 3 | H71: 53 | I71: 10 | J71: 53 | K71: 3 | AA71: -10 | AB71: 3 | AC71: 53 | AP71: 10 | AQ71: 53 | AR71: 3 | BT71: 2023-01-07 | BU71: 32 | BV71: 0 | BW71: 112 | BX71: 112 | BY71: 0 | BZ71: 4 | CA71: 0
A72: 24 | F72: -10 | G72: 4 | H72: 51 | I72: 10 | J72: 51 | K72: 4 | AA72: -10 | AB72: 4 | AC72: 51 | AP72: 10 | AQ72: 51 | AR72: 4 | BT72: 2023-01-07 | BU72: 32 | BV72: 0 | BW72: 110 | BX72: 110 | BY72: 0 | BZ72: 4 | CA72: 0
A73: 25 | F73: -10 | G73: 0 | H73: 29 | I73: 10 | J73: 29 | K73: 0 | AA73: -10 | AB73: 0 | AC73: 29 | AP73: 10 | AQ73: 29 | AR73: 0 | BT73: 2023-01-07 | BU73: 32 | BV73: 0 | BW73: 58 | BX73: 58 | BY73: 0 | BZ73: 4 | CA73: 0
A74: 26 | F74: -10 | G74: 3 | H74: 45 | I74: 5 | J74: 32 | K74: 9 | AA74: 10 | AB74: 54 | AC74: 0 | AJ74: -5 | AK74: 0 | AL74: 35 | AP74: 0 | AQ74: 22 | AR74: 22 | BT74: 2023-02-02 | BU74: 44 | BV74: 0 | BW74: 111 | BX74: 111 | BY74: 0 | BZ74: 5 | CA74: 0
A75: 27 | I75: -10 | J75: 16 | K75: 92 | AA75: -10 | AB75: 16 | AC75: 92 | AG75: 10 | AH75: 92 | AI75: 16 | AP75: 10 | AQ75: 92 | AR75: 16 | BT75: 2023-02-03 | BU75: 45 | BV75: 0 | BW75: 216 | BX75: 216 | BY75: 0 | BZ75: 4 | CA75: 0
A76: 28 | F76: 10 | G76: 50 | H76: 6 | I76: -10 | J76: 6 | K76: 50 | AA76: -10 | AB76: 6 | AC76: 50 | AP76: 10 | AQ76: 50 | AR76: 6 | BT76: 2023-02-23 | BU76: 50 | BV76: 0 | BW76: 112 | BX76: 112 | BY76: 0 | BZ76: 4 | CA76: 0
A77: 29 | F77: 10 | G77: 81 | H77: 0 | I77: -10 | J77: 0 | K77: 81 | AA77: 10 | AB77: 81 | AC77: 0 | AP77: -10 | AQ77: 0 | AR77: 81 | BT77: 2023-02-23 | BU77: 50 | BV77: 0 | BW77: 162 | BX77: 162 | BY77: 0 | BZ77: 4 | CA77: 0
A78: 30 | F78: -10 | G78: 11 | H78: 26 | I78: -10 | J78: 11 | K78: 26 | AJ78: 10 | AK78: 26 | AL78: 11 | AP78: 10 | AQ78: 26 | AR78: 11 | BT78: 2023-03-03 | BU78: 55 | BV78: 0 | BW78: 74 | BX78: 74 | BY78: 0 | BZ78: 4 | CA78: 0
A79: 31 | F79: -10 | G79: 2 | H79: 24 | I79: 10 | J79: 24 | K79: 2 | AJ79: -10 | AK79: 2 | AL79: 24 | AP79: 10 | AQ79: 24 | AR79: 2 | BT79: 2023-03-03 | BU79: 55 | BV79: 0 | BW79: 52 | BX79: 52 | BY79: 0 | BZ79: 4 | CA79: 0
A80: 32 | F80: -10 | G80: 10 | H80: 38 | I80: 10 | J80: 38 | K80: 10 | AJ80: -10 | AK80: 10 | AL80: 38 | AP80: 10 | AQ80: 38 | AR80: 10 | BT80: 2023-03-03 | BU80: 55 | BV80: 0 | BW80: 96 | BX80: 96 | BY80: 0 | BZ80: 4 | CA80: 0
A81: 33 | F81: -10 | G81: 10 | H81: 16 | I81: 10 | J81: 16 | K81: 10 | AA81: -10 | AB81: 10 | AC81: 16 | AP81: 10 | AQ81: 16 | AR81: 10 | BT81: 2023-03-03 | BU81: 55 | BV81: 0 | BW81: 52 | BX81: 52 | BY81: 0 | BZ81: 4 | CA81: 0
A82: 34 | F82: -10 | G82: 15 | H82: 22 | I82: 10 | J82: 22 | K82: 15 | AA82: 10 | AB82: 22 | AC82: 15 | AP82: -10 | AQ82: 15 | AR82: 22 | BT82: 2023-03-03 | BU82: 55 | BV82: 0 | BW82: 74 | BX82: 74 | BY82: =+BW82-BX82 -> 0 | BZ82: =COUNT(C82:BS82)/3 -> 4 | CA82: =+BV82/BZ82 -> 0
A83: 35 | F83: -10 | G83: 6 | H83: 40 | I83: 10 | J83: 40 | K83: 6 | AA83: -10 | AB83: 6 | AC83: 40 | AP83: 10 | AQ83: 40 | AR83: 6 | BT83: 2023-03-03 | BU83: 55 | BV83: 0 | BW83: 92 | BX83: 92 | BY83: 0 | BZ83: 4 | CA83: 0
A84: 36 | F84: -10 | G84: 12 | H84: 68 | I84: 10 | J84: 68 | K84: 12 | AA84: 10 | AB84: 68 | AC84: 12 | AJ84: -10 | AK84: 12 | AL84: 68 | BT84: 2023-03-09 | BU84: 56 | BV84: 0 | BW84: 160 | BX84: 160 | BY84: 0 | BZ84: 4 | CA84: 0
A85: 37 | F85: -10 | G85: 7 | H85: 39 | I85: -10 | J85: 7 | K85: 39 | AA85: 10 | AB85: 39 | AC85: 7 | AP85: 10 | AQ85: 39 | AR85: 7 | BT85: 2023-03-24 | BU85: 65 | BV85: 0 | BW85: 92 | BX85: 92 | BY85: 0 | BZ85: 4 | CA85: 0 | CB85: =+BU85+1 -> 66
A86: 38 | F86: 10 | G86: 32 | H86: 5 | I86: -10 | J86: 5 | K86: 32 | AA86: -10 | AB86: 5 | AC86: 32 | AP86: 10 | AQ86: 32 | AR86: 5 | BT86: 2023-03-24 | BU86: 65 | BV86: 0 | BW86: 74 | BX86: 74 | BY86: 0 | BZ86: 4 | CA86: 0 | CB86: =+BU86+1 -> 66
A87: 39 | F87: -10 | G87: 22 | H87: 46 | I87: -10 | J87: 22 | K87: 46 | AA87: 10 | AB87: 46 | AC87: 22 | AP87: 10 | AQ87: 46 | AR87: 22 | BT87: 2023-03-31 | BU87: 69 | BV87: 0 | BW87: 136 | BX87: 136 | BY87: 0 | BZ87: 4 | CA87: 0 | CB87: 70
A88: 40 | F88: -10 | G88: 11 | H88: 21 | I88: 10 | J88: 21 | K88: 11 | AA88: -10 | AB88: 11 | AC88: 21 | AP88: 10 | AQ88: 21 | AR88: 11 | BT88: 2023-03-31 | BU88: 69 | BV88: 0 | BW88: 64 | BX88: 64 | BY88: 0 | BZ88: 4 | CA88: 0 | CB88: 70
A89: 41 | C89: -10 | D89: 53 | E89: 72 | I89: 10 | J89: 72 | K89: 53 | AS89: 10 | AT89: 72 | AU89: 53 | AV89: -10 | AW89: 53 | AX89: 72 | BT89: 2023-04-06 | BU89: 71 | BV89: 0 | BW89: 250 | BX89: 250 | BY89: 0 | BZ89: 4 | CA89: 0 | CB89: 72
A90: 42 | C90: 10 | D90: 60 | E90: 13 | I90: 10 | J90: 60 | K90: 13 | AS90: -10 | AT90: 13 | AU90: 60 | AV90: -10 | AW90: 13 | AX90: 60 | BT90: 2023-04-06 | BU90: 71 | BV90: 0 | BW90: 146 | BX90: 146 | BY90: 0 | BZ90: 4 | CA90: 0 | CB90: 72
A91: 43 | C91: 10 | D91: 46 | E91: 30 | I91: -10 | J91: 30 | K91: 46 | AS91: 10 | AT91: 46 | AU91: 30 | AV91: -10 | AW91: 30 | AX91: 46 | BT91: 2023-04-06 | BU91: 71 | BV91: 0 | BW91: 152 | BX91: 152 | BY91: 0 | BZ91: 4 | CA91: 0 | CB91: 72
A92: 44 | I92: -10 | J92: 2 | K92: 17 | L92: 10 | M92: 17 | N92: 2 | O92: -10 | P92: 2 | Q92: 17 | BK92: 10 | BL92: 17 | BM92: 2 | BT92: 2023-04-08 | BU92: 72 | BV92: 0 | BW92: 38 | BX92: 38 | BY92: 0 | BZ92: 4 | CA92: 0 | CB92: 73
A93: 45 | F93: -10 | G93: 12 | H93: 21 | I93: -10 | J93: 12 | K93: 21 | AA93: 10 | AB93: 21 | AC93: 12 | AP93: 10 | AQ93: 21 | AR93: 12 | BT93: 2023-05-04 | BU93: 78 | BV93: 0 | BW93: 66 | BX93: 66 | BY93: 0 | BZ93: 4 | CA93: 0 | CB93: 79
A94: =+A93+1 -> 46 | F94: -10 | G94: 5 | H94: 18 | I94: -10 | J94: 5 | K94: 18 | AA94: 10 | AB94: 18 | AC94: 5 | AP94: 10 | AQ94: 18 | AR94: 5 | BT94: 2023-05-05 | BU94: 79 | BV94: 0 | BW94: 46 | BX94: 46 | BY94: 0 | BZ94: 4 | CA94: 0 | CB94: 80
A95: 47 | F95: -10 | G95: 8 | H95: 37 | I95: 10 | J95: 37 | K95: 8 | AA95: -10 | AB95: 8 | AC95: 37 | AP95: 10 | AQ95: 37 | AR95: 8 | BT95: 2023-05-05 | BU95: 79 | BV95: 0 | BW95: 90 | BX95: 90 | BY95: 0 | BZ95: 4 | CA95: 0 | CB95: 80
A96: 48 | F96: 10 | G96: 40 | H96: 36 | AA96: 10 | AB96: 40 | AC96: 36 | AJ96: -10 | AK96: 36 | AL96: 40 | AP96: -10 | AQ96: 36 | AR96: 40 | BT96: 2023-05-18 | BU96: 83 | BV96: 0 | BW96: 152 | BX96: 152 | BY96: 0 | BZ96: 4 | CA96: 0 | CB96: 84
A97: 49 | F97: -10 | G97: 26 | H97: 39 | AA97: 10 | AB97: 39 | AC97: 26 | AJ97: 10 | AK97: 39 | AL97: 26 | AP97: -10 | AQ97: 26 | AR97: 39 | BT97: 2023-05-18 | BU97: 83 | BV97: 0 | BW97: 130 | BX97: 130 | BY97: =+BW97-BX97 -> 0 | BZ97: =COUNT(C97:BS97)/3 -> 4 | CA97: =+BV97/BZ97 -> 0 | CB97: =+BU97+1 -> 84
A98: 50 | F98: 10 | G98: 28 | H98: 5 | AA98: -10 | AB98: 5 | AC98: 28 | AJ98: 10 | AK98: 28 | AL98: 5 | AP98: -10 | AQ98: 5 | AR98: 28 | BT98: 2023-05-18 | BU98: 83 | BV98: 0 | BW98: 66 | BX98: 66 | BY98: 0 | BZ98: 4 | CA98: 0 | CB98: 84
A99: 51 | F99: 10 | G99: 108 | H99: 18 | I99: -10 | J99: 18 | K99: 108 | AA99: -10 | AB99: 18 | AC99: 108 | AP99: 10 | AQ99: 108 | AR99: 18 | BT99: 2023-05-19 | BU99: 84 | BV99: 0 | BW99: 252 | BX99: 252 | BY99: 0 | BZ99: 4 | CA99: 0 | CB99: 85
A100: 52 | F100: -10 | G100: 56 | H100: 60 | AA100: -10 | AB100: 56 | AC100: 60 | AJ100: 10 | AK100: 60 | AL100: 56 | AP100: 10 | AQ100: 60 | AR100: 56 | BT100: 2023-05-25 | BU100: 86 | BV100: 0 | BW100: 232 | BX100: 232 | BY100: =+BW100-BX100 -> 0 | BZ100: =COUNT(C100:BS100)/3 -> 4 | CA100: =+BV100/BZ100 -> 0 | CB100: 87
A101: 53 | F101: 10 | G101: 65 | H101: 35 | I101: -10 | J101: 35 | K101: 65 | AA101: -10 | AB101: 35 | AC101: 65 | AP101: 10 | AQ101: 65 | AR101: 35 | BT101: 2023-06-01 | BU101: 89 | BV101: 0 | BW101: 200 | BX101: 200 | BY101: 0 | BZ101: 4 | CA101: 0 | CB101: 90
